Workbook

Sheet IDF_Input
B1: Rainfall Intensity-Duration-Frequency Coefficients for Texas
B2: Based on "National Oceanic and Atmospheric Administration's (NOAA) Atlas 14 Precipitation-Frequency Atlas of the United States, Volume 11 Version 2.0: Texas" (Perica et al. 2018)
B6: Parameter Selection | I6: Design Annual Exceedance Probability (Design Annual Recurrence Interval)
B7: 1. Select Units
C8: English | H8: Coefficient | I8: 0.5 | J8: 0.2 | K8: 0.1 | L8: 0.04 | M8: 0.02 | N8: 0.01 | O8: 0.002
B9: 2. Select Methodology | I9: (2-year) | J9: (5-year) | K9: (10-year) | L9: (25-year) | M9: (50-year) | N9: (100-year) | O9: (500-year)
C10: Annual Maximum Series (AMS) | H10: e | I10: =IFERROR( IF(txtMethodology="Partial Duration Series (PDS)", INDEX(rngEBDPartialR_2,ParameterIndex,1), IF(txtMethodology="Annual Maximum Series (AMS)", INDEX(rngEBDAnnualR_2,ParameterIndex,1), "-")), "-") -> 0.816132433 | J10: =IFERROR( IF(txtMethodology="Partial Duration Series (PDS)", INDEX(rngEBDPartialR_5,ParameterIndex,1), IF(txtMethodology="Annual Maximum Series (AMS)", INDEX(rngEBDAnnualR_5,ParameterIndex,1), "-")), "-") -> 0.8152074189 | K10: =IFERROR( IF(txtMethodology="Partial Duration Series (PDS)", INDEX(rngEBDPartialR_10,ParameterIndex,1), IF(txtMethodology="Annual Maximum Series (AMS)", INDEX(rngEBDAnnualR_10,ParameterIndex,1), "-")), "-") -> 0.8132958551 | L10: =IFERROR( IF(txtMethodology="Partial Duration Series (PDS)", INDEX(rngEBDPartialR_25,ParameterIndex,1), IF(txtMethodology="Annual Maximum Series (AMS)", INDEX(rngEBDAnnualR_25,ParameterIndex,1), "-")), "-") -> 0.8095375113 | M10: =IFERROR( IF(txtMethodology="Partial Duration Series (PDS)", INDEX(rngEBDPartialR_50,ParameterIndex,1), IF(txtMethodology="Annual Maximum Series (AMS)", INDEX(rngEBDAnnualR_50,ParameterIndex,1), "-")), "-") -> 0.8056453499 | N10: =IFERROR( IF(txtMethodology="Partial Duration Series (PDS)", INDEX(rngEBDPartialR_100,ParameterIndex,1), IF(txtMethodology="Annual Maximum Series (AMS)", INDEX(rngEBDAnnualR_100,ParameterIndex,1), "-")), "-") -> 0.8017764739 | O10: =IFERROR( IF(txtMethodology="Partial Duration Series (PDS)", INDEX(rngEBDPartialR_500,ParameterIndex,1), IF(txtMethodology="Annual Maximum Series (AMS)", INDEX(rngEBDAnnualR_500,ParameterIndex,1), "-")), "-") -> 0.795875725
B11: 3. Select County | H11: b | I11: =IFERROR( IF(txtMethodology="Partial Duration Series (PDS)", (INDEX(rngEBDPartialR_2,ParameterIndex,2)), IF(txtMethodology="Annual Maximum Series (AMS)", (INDEX(rngEBDAnnualR_2,ParameterIndex,2)), "-")), "-") -> 38.41989093 | J11: =IFERROR( IF(txtMethodology="Partial Duration Series (PDS)", (INDEX(rngEBDPartialR_5,ParameterIndex,2)), IF(txtMethodology="Annual Maximum Series (AMS)", (INDEX(rngEBDAnnualR_5,ParameterIndex,2)), "-")), "-") -> 54.2282299 | K11: =IFERROR( IF(txtMethodology="Partial Duration Series (PDS)", (INDEX(rngEBDPartialR_10,ParameterIndex,2)), IF(txtMethodology="Annual Maximum Series (AMS)", (INDEX(rngEBDAnnualR_10,ParameterIndex,2)), "-")), "-") -> 65.75762049 | L11: =IFERROR( IF(txtMethodology="Partial Duration Series (PDS)", (INDEX(rngEBDPartialR_25,ParameterIndex,2)), IF(txtMethodology="Annual Maximum Series (AMS)", (INDEX(rngEBDAnnualR_25,ParameterIndex,2)), "-")), "-") -> 80.28864817 | M11: =IFERROR( IF(txtMethodology="Partial Duration Series (PDS)", (INDEX(rngEBDPartialR_50,ParameterIndex,2)), IF(txtMethodology="Annual Maximum Series (AMS)", (INDEX(rngEBDAnnualR_50,ParameterIndex,2)), "-")), "-") -> 90.41379307 | N11: =IFERROR( IF(txtMethodology="Partial Duration Series (PDS)", (INDEX(rngEBDPartialR_100,ParameterIndex,2)), IF(txtMethodology="Annual Maximum Series (AMS)", (INDEX(rngEBDAnnualR_100,ParameterIndex,2)), "-")), "-") -> 100.5030449 | O11: =IFERROR( IF(txtMethodology="Partial Duration Series (PDS)", (INDEX(rngEBDPartialR_500,ParameterIndex,2)), IF(txtMethodology="Annual Maximum Series (AMS)", (INDEX(rngEBDAnnualR_500,ParameterIndex,2)), "-")), "-") -> 126.5264358
C12: YOAKUM | H12: d (min) | I12: =IFERROR( IF(txtMethodology="Partial Duration Series (PDS)", INDEX(rngEBDPartialR_2,ParameterIndex,3), IF(txtMethodology="Annual Maximum Series (AMS)", INDEX(rngEBDAnnualR_2,ParameterIndex,3), "-")), "-") -> 9.45850972 | J12: =IFERROR( IF(txtMethodology="Partial Duration Series (PDS)", INDEX(rngEBDPartialR_5,ParameterIndex,3), IF(txtMethodology="Annual Maximum Series (AMS)", INDEX(rngEBDAnnualR_5,ParameterIndex,3), "-")), "-") -> 9.235516991 | K12: =IFERROR( IF(txtMethodology="Partial Duration Series (PDS)", INDEX(rngEBDPartialR_10,ParameterIndex,3), IF(txtMethodology="Annual Maximum Series (AMS)", INDEX(rngEBDAnnualR_10,ParameterIndex,3), "-")), "-") -> 9.052524281 | L12: =IFERROR( IF(txtMethodology="Partial Duration Series (PDS)", INDEX(rngEBDPartialR_25,ParameterIndex,3), IF(txtMethodology="Annual Maximum Series (AMS)", INDEX(rngEBDAnnualR_25,ParameterIndex,3), "-")), "-") -> 8.774730313 | M12: =IFERROR( IF(txtMethodology="Partial Duration Series (PDS)", INDEX(rngEBDPartialR_50,ParameterIndex,3), IF(txtMethodology="Annual Maximum Series (AMS)", INDEX(rngEBDAnnualR_50,ParameterIndex,3), "-")), "-") -> 8.507908771 | N12: =IFERROR( IF(txtMethodology="Partial Duration Series (PDS)", INDEX(rngEBDPartialR_100,ParameterIndex,3), IF(txtMethodology="Annual Maximum Series (AMS)", INDEX(rngEBDAnnualR_100,ParameterIndex,3), "-")), "-") -> 8.281438124 | O12: =IFERROR( IF(txtMethodology="Partial Duration Series (PDS)", INDEX(rngEBDPartialR_500,ParameterIndex,3), IF(txtMethodology="Annual Maximum Series (AMS)", INDEX(rngEBDAnnualR_500,ParameterIndex,3), "-")), "-") -> 8.098271232
B13: 4. Select County Zone | H13: ="Intensity "&IF(txtDepthUnits="Metric", "(mm/hour)", IF(txtDepthUnits="English", "(inches/hour)", "-")) -> Intensity (inches/hour) | I13: =IFERROR( IF(TimeOfConcentrationValue=0, "-", IF(txtDepthUnits="English", IF(txtTimeUnits="Minute", IF(OR(TimeOfConcentrationValue<TocThreshold,TimeOfConcentrationValue>TocMaxValue), "-", LookupValue_b_2yr/((TimeOfConcentrationValue+LookupValue_d_2yr)^LookupValue_e_2yr)), IF(txtTimeUnits="Hour", IF(OR(TimeOfConcentrationValue<TocThresholdHr,TimeOfConcentrationValue>TocMaxValueHr), "-", LookupValue_b_2yr/((TimeOfConcentrationValue*60+LookupValue_d_2yr)^LookupValue_e_2yr)), "-")), IF(txtDepthUnits="Metric", IF(txtTimeUnits="Minute", IF(OR(TimeOfConcentrationValue<TocThreshold,TimeOfConcentrationValue>TocMaxValue), "-", (LookupValue_b_2yr/((TimeOfConcentrationValue+LookupValue_d_2yr)^LookupValue_e_2yr)))*lngInchesToMillimeterConversionFactor, IF(txtTimeUnits="Hour", IF(OR(TimeOfConcentrationValue<TocThresholdHr,TimeOfConcentrationValue>TocMaxValueHr), "-", (LookupValue_b_2yr/((TimeOfConcentrationValue*60+LookupValue_d_2yr)^LookupValue_e_2yr)))*lngInchesToMillimeterConversionFactor, "-")), "-"))), "-") -> 2.8275701 | J13: =IFERROR( IF(TimeOfConcentrationValue=0, "-", IF(txtDepthUnits="English", IF(txtTimeUnits="Minute", IF(OR(TimeOfConcentrationValue<TocThreshold,TimeOfConcentrationValue>TocMaxValue), "-", LookupValue_b_5yr/((TimeOfConcentrationValue+LookupValue_d_5yr)^LookupValue_e_5yr)), IF(txtTimeUnits="Hour", IF(OR(TimeOfConcentrationValue<TocThresholdHr,TimeOfConcentrationValue>TocMaxValueHr), "-", LookupValue_b_5yr/((TimeOfConcentrationValue*60+LookupValue_d_5yr)^LookupValue_e_5yr)), "-")), IF(txtDepthUnits="Metric", IF(txtTimeUnits="Minute", IF(OR(TimeOfConcentrationValue<TocThreshold,TimeOfConcentrationValue>TocMaxValue), "-", (LookupValue_b_5yr/((TimeOfConcentrationValue+LookupValue_d_5yr)^LookupValue_e_5yr)))*lngInchesToMillimeterConversionFactor, IF(txtTimeUnits="Hour", IF(OR(TimeOfConcentrationValue<TocThresholdHr,TimeOfConcentrationValue>TocMaxValueHr), "-", (LookupValue_b_5yr/((TimeOfConcentrationValue*60+LookupValue_d_5yr)^LookupValue_e_5yr)))*lngInchesToMillimeterConversionFactor, "-")), "-"))), "-") -> 4.032827555 | K13: =IFERROR( IF(TimeOfConcentrationValue=0, "-", IF(txtDepthUnits="English", IF(txtTimeUnits="Minute", IF(OR(TimeOfConcentrationValue<TocThreshold,TimeOfConcentrationValue>TocMaxValue), "-", LookupValue_b_10yr/((TimeOfConcentrationValue+LookupValue_d_10yr)^LookupValue_e_10yr)), IF(txtTimeUnits="Hour", IF(OR(TimeOfConcentrationValue<TocThresholdHr,TimeOfConcentrationValue>TocMaxValueHr), "-", LookupValue_b_10yr/((TimeOfConcentrationValue*60+LookupValue_d_10yr)^LookupValue_e_10yr)), "-")), IF(txtDepthUnits="Metric", IF(txtTimeUnits="Minute", IF(OR(TimeOfConcentrationValue<TocThreshold,TimeOfConcentrationValue>TocMaxValue), "-", (LookupValue_b_10yr/((TimeOfConcentrationValue+LookupValue_d_10yr)^LookupValue_e_10yr)))*lngInchesToMillimeterConversionFactor, IF(txtTimeUnits="Hour", IF(OR(TimeOfConcentrationValue<TocThresholdHr,TimeOfConcentrationValue>TocMaxValueHr), "-", (LookupValue_b_10yr/((TimeOfConcentrationValue*60+LookupValue_d_10yr)^LookupValue_e_10yr)))*lngInchesToMillimeterConversionFactor, "-")), "-"))), "-") -> 4.950554524 | L13: =IFERROR( IF(TimeOfConcentrationValue=0, "-", IF(txtDepthUnits="English", IF(txtTimeUnits="Minute", IF(OR(TimeOfConcentrationValue<TocThreshold,TimeOfConcentrationValue>TocMaxValue), "-", LookupValue_b_25yr/((TimeOfConcentrationValue+LookupValue_d_25yr)^LookupValue_e_25yr)), IF(txtTimeUnits="Hour", IF(OR(TimeOfConcentrationValue<TocThresholdHr,TimeOfConcentrationValue>TocMaxValueHr), "-", LookupValue_b_25yr/((TimeOfConcentrationValue*60+LookupValue_d_25yr)^LookupValue_e_25yr)), "-")), IF(txtDepthUnits="Metric", IF(txtTimeUnits="Minute", IF(OR(TimeOfConcentrationValue<TocThreshold,TimeOfConcentrationValue>TocMaxValue), "-", (LookupValue_b_25yr/((TimeOfConcentrationValue+LookupValue_d_25yr)^LookupValue_e_25yr)))*lngInchesToMillimeterConversionFactor, IF(txtTimeUnits="Hour", IF(OR(TimeOfConcentrationValue<TocThresholdHr,TimeOfConcentrationValue>TocMaxValueHr), "-", (LookupValue_b_25yr/((TimeOfConcentrationValue*60+LookupValue_d_25yr)^LookupValue_e_25yr)))*lngInchesToMillimeterConversionFactor, "-")), "-"))), "-") -> 6.174999806 | M13: =IFERROR( IF(TimeOfConcentrationValue=0, "-", IF(txtDepthUnits="English", IF(txtTimeUnits="Minute", IF(OR(TimeOfConcentrationValue<TocThreshold,TimeOfConcentrationValue>TocMaxValue), "-", LookupValue_b_50yr/((TimeOfConcentrationValue+LookupValue_d_50yr)^LookupValue_e_50yr)), IF(txtTimeUnits="Hour", IF(OR(TimeOfConcentrationValue<TocThresholdHr,TimeOfConcentrationValue>TocMaxValueHr), "-", LookupValue_b_50yr/((TimeOfConcentrationValue*60+LookupValue_d_50yr)^LookupValue_e_50yr)), "-")), IF(txtDepthUnits="Metric", IF(txtTimeUnits="Minute", IF(OR(TimeOfConcentrationValue<TocThreshold,TimeOfConcentrationValue>TocMaxValue), "-", (LookupValue_b_50yr/((TimeOfConcentrationValue+LookupValue_d_50yr)^LookupValue_e_50yr)))*lngInchesToMillimeterConversionFactor, IF(txtTimeUnits="Hour", IF(OR(TimeOfConcentrationValue<TocThresholdHr,TimeOfConcentrationValue>TocMaxValueHr), "-", (LookupValue_b_50yr/((TimeOfConcentrationValue*60+LookupValue_d_50yr)^LookupValue_e_50yr)))*lngInchesToMillimeterConversionFactor, "-")), "-"))), "-") -> 7.104319902 | N13: =IFERROR( IF(TimeOfConcentrationValue=0, "-", IF(txtDepthUnits="English", IF(txtTimeUnits="Minute", IF(OR(TimeOfConcentrationValue<TocThreshold,TimeOfConcentrationValue>TocMaxValue), "-", LookupValue_b_100yr/((TimeOfConcentrationValue+LookupValue_d_100yr)^LookupValue_e_100yr)), IF(txtTimeUnits="Hour", IF(OR(TimeOfConcentrationValue<TocThresholdHr,TimeOfConcentrationValue>TocMaxValueHr), "-", LookupValue_b_100yr/((TimeOfConcentrationValue*60+LookupValue_d_100yr)^LookupValue_e_100yr)), "-")), IF(txtDepthUnits="Metric", IF(txtTimeUnits="Minute", IF(OR(TimeOfConcentrationValue<TocThreshold,TimeOfConcentrationValue>TocMaxValue), "-", (LookupValue_b_100yr/((TimeOfConcentrationValue+LookupValue_d_100yr)^LookupValue_e_100yr)))*lngInchesToMillimeterConversionFactor, IF(txtTimeUnits="Hour", IF(OR(TimeOfConcentrationValue<TocThresholdHr,TimeOfConcentrationValue>TocMaxValueHr), "-", (LookupValue_b_100yr/((TimeOfConcentrationValue*60+LookupValue_d_100yr)^LookupValue_e_100yr)))*lngInchesToMillimeterConversionFactor, "-")), "-"))), "-") -> 8.056435224 | O13: =IFERROR( IF(TimeOfConcentrationValue=0, "-", IF(txtDepthUnits="English", IF(txtTimeUnits="Minute", IF(OR(TimeOfConcentrationValue<TocThreshold,TimeOfConcentrationValue>TocMaxValue), "-", LookupValue_b_500yr/((TimeOfConcentrationValue+LookupValue_d_500yr)^LookupValue_e_500yr)), IF(txtTimeUnits="Hour", IF(OR(TimeOfConcentrationValue<TocThresholdHr,TimeOfConcentrationValue>TocMaxValueHr), "-", LookupValue_b_500yr/((TimeOfConcentrationValue*60+LookupValue_d_500yr)^LookupValue_e_500yr)), "-")), IF(txtDepthUnits="Metric", IF(txtTimeUnits="Minute", IF(OR(TimeOfConcentrationValue<TocThreshold,TimeOfConcentrationValue>TocMaxValue), "-", (LookupValue_b_500yr/((TimeOfConcentrationValue+LookupValue_d_500yr)^LookupValue_e_500yr)))*lngInchesToMillimeterConversionFactor, IF(txtTimeUnits="Hour", IF(OR(TimeOfConcentrationValue<TocThresholdHr,TimeOfConcentrationValue>TocMaxValueHr), "-", (LookupValue_b_500yr/((TimeOfConcentrationValue*60+LookupValue_d_500yr)^LookupValue_e_500yr)))*lngInchesToMillimeterConversionFactor, "-")), "-"))), "-") -> 10.39780024
C14: Zone-1
B15: 5. Select Time of Concentration (tC) | H15: =IFERROR( "Note: "&INDEX(rngNoteTableRange,PopulateCombo!E28,3), ) -> Note: Yoakum County has 1 rainfall zone.
C16: 15 | E16: Minute
C18: =IFERROR(IF(OR(C16="",E16=""),"", IF(txtTimeUnits="Minute", IF(OR(TimeOfConcentrationValue<TocThreshold, TimeOfConcentrationValue>TocMaxValue), "Time of Concentration value must be greater than "&TEXT(TocThreshold,"#")&" minutes and less than "&TEXT(TocMaxValue,"#")&" minutes ("&TEXT(TocMaxValueHr,"#")&" hours).", ""), IF(OR(TimeOfConcentrationValue<TocThresholdHr, TimeOfConcentrationValue>TocMaxValueHr), "Time of Concentration value must be greater than "&TEXT(TocThresholdHr,"0.0###")&" hours and less than "&TEXT(TocMaxValueHr,"#")&" hours ("&TEXT(TocMaxValue,"#")&" minutes).", ""))), "") -> 
C21: r
P73: ="Filename: "&MID(CELL("filename"),SEARCH("[",CELL("filename"))+1,SEARCH("]",CELL("filename"))-SEARCH("[",CELL("filename"))-1) -> Filename: Project&AssignPriorities_v2.xlsx

Sheet PopulateCombo (hidden)
A1: (rngCountyNameSource) | B1: (rngSubregionNameSource) | C1: (rngMapNote) | D1: Rainfall Intensity-Duration-Frequency Coefficients for Texas | F1: 1 | G1: =F1+1 -> 2 | H1: =G1+1 -> 3 | I1: =H1+1 -> 4 | J1: =I1+1 -> 5 | K1: =J1+1 -> 6 | L1: =K1+1 -> 7 | M1: =L1+1 -> 8 | N1: =M1+1 -> 9 | O1: =N1+1 -> 10 | P1: =O1+1 -> 11 | Q1: =P1+1 -> 12 | R1: =Q1+1 -> 13 | S1: =R1+1 -> 14 | T1: =S1+1 -> 15 | U1: =T1+1 -> 16 | V1: =U1+1 -> 17 | W1: =V1+1 -> 18 | X1: =W1+1 -> 19 | Y1: =X1+1 -> 20 | Z1: =Y1+1 -> 21 | AA1: =Z1+1 -> 22 | AB1: =AA1+1 -> 23 | AC1: =AB1+1 -> 24 | AD1: =AC1+1 -> 25 | AE1: =AD1+1 -> 26 | AF1: =AE1+1 -> 27 | AG1: =AF1+1 -> 28 | AH1: =AG1+1 -> 29 | AI1: =AH1+1 -> 30 | AJ1: =AI1+1 -> 31 | AK1: =AJ1+1 -> 32 | AL1: =AK1+1 -> 33 | AM1: =AL1+1 -> 34 | AN1: =AM1+1 -> 35 | AO1: =AN1+1 -> 36 | AP1: =AO1+1 -> 37 | AQ1: =AP1+1 -> 38 | AR1: =AQ1+1 -> 39 | AS1: =AR1+1 -> 40 | AT1: =AS1+1 -> 41 | AU1: =AT1+1 -> 42 | AV1: =AU1+1 -> 43 | AW1: =AV1+1 -> 44 | AX1: =AW1+1 -> 45 | AY1: =AX1+1 -> 46 | AZ1: =AY1+1 -> 47 | BA1: =AZ1+1 -> 48 | BB1: =BA1+1 -> 49 | BC1: =BB1+1 -> 50 | BD1: =BC1+1 -> 51 | BE1: =BD1+1 -> 52 | BF1: =BE1+1 -> 53 | BG1: =BF1+1 -> 54 | BH1: =BG1+1 -> 55 | BI1: =BH1+1 -> 56 | BJ1: =BI1+1 -> 57 | BK1: =BJ1+1 -> 58 | BL1: =BK1+1 -> 59 | BM1: =BL1+1 -> 60 | BN1: =BM1+1 -> 61 | BO1: =BN1+1 -> 62 | BP1: =BO1+1 -> 63 | BQ1: =BP1+1 -> 64 | BR1: =BQ1+1 -> 65 | BS1: =BR1+1 -> 66 | BT1: =BS1+1 -> 67 | BU1: =BT1+1 -> 68 | BV1: =BU1+1 -> 69 | BW1: =BV1+1 -> 70 | BX1: =BW1+1 -> 71 | BY1: =BX1+1 -> 72 | BZ1: =BY1+1 -> 73 | CA1: =BZ1+1 -> 74 | CB1: =CA1+1 -> 75 | CC1: =CB1+1 -> 76 | CD1: =CC1+1 -> 77 | CE1: =CD1+1 -> 78 | CF1: =CE1+1 -> 79 | CG1: =CF1+1 -> 80 | CH1: =CG1+1 -> 81 | CI1: =CH1+1 -> 82 | CJ1: =CI1+1 -> 83 | CK1: =CJ1+1 -> 84 | CL1: =CK1+1 -> 85 | CM1: =CL1+1 -> 86 | CN1: =CM1+1 -> 87 | CO1: =CN1+1 -> 88 | CP1: =CO1+1 -> 89 | CQ1: =CP1+1 -> 90 | CR1: =CQ1+1 -> 91 | CS1: =CR1+1 -> 92 | CT1: =CS1+1 -> 93 | CU1: =CT1+1 -> 94 | CV1: =CU1+1 -> 95 | CW1: =CV1+1 -> 96 | CX1: =CW1+1 -> 97 | CY1: =CX1+1 -> 98 | CZ1: =CY1+1 -> 99 | DA1: =CZ1+1 -> 100 | DB1: =DA1+1 -> 101 | DC1: =DB1+1 -> 102 | DD1: =DC1+1 -> 103 | DE1: =DD1+1 -> 104 | DF1: =DE1+1 -> 105 | DG1: =DF1+1 -> 106 | DH1: =DG1+1 -> 107 | DI1: =DH1+1 -> 108 | DJ1: =DI1+1 -> 109 | DK1: =DJ1+1 -> 110 | DL1: =DK1+1 -> 111 | DM1: =DL1+1 -> 112 | DN1: =DM1+1 -> 113 | DO1: =DN1+1 -> 114 | DP1: =DO1+1 -> 115 | DQ1: =DP1+1 -> 116 | DR1: =DQ1+1 -> 117 | DS1: =DR1+1 -> 118 | DT1: =DS1+1 -> 119 | DU1: =DT1+1 -> 120 | DV1: =DU1+1 -> 121 | DW1: =DV1+1 -> 122 | DX1: =DW1+1 -> 123 | DY1: =DX1+1 -> 124 | DZ1: =DY1+1 -> 125 | EA1: =DZ1+1 -> 126 | EB1: =EA1+1 -> 127 | EC1: =EB1+1 -> 128 | ED1: =EC1+1 -> 129 | EE1: =ED1+1 -> 130 | EF1: =EE1+1 -> 131 | EG1: =EF1+1 -> 132 | EH1: =EG1+1 -> 133 | EI1: =EH1+1 -> 134 | EJ1: =EI1+1 -> 135 | EK1: =EJ1+1 -> 136 | EL1: =EK1+1 -> 137 | EM1: =EL1+1 -> 138 | EN1: =EM1+1 -> 139 | EO1: =EN1+1 -> 140 | EP1: =EO1+1 -> 141 | EQ1: =EP1+1 -> 142 | ER1: =EQ1+1 -> 143 | ES1: =ER1+1 -> 144 | ET1: =ES1+1 -> 145 | EU1: =ET1+1 -> 146 | EV1: =EU1+1 -> 147 | EW1: =EV1+1 -> 148 | EX1: =EW1+1 -> 149 | EY1: =EX1+1 -> 150 | EZ1: =EY1+1 -> 151 | FA1: =EZ1+1 -> 152 | FB1: =FA1+1 -> 153 | FC1: =FB1+1 -> 154 | FD1: =FC1+1 -> 155 | FE1: =FD1+1 -> 156 | FF1: =FE1+1 -> 157 | FG1: =FF1+1 -> 158 | FH1: =FG1+1 -> 159 | FI1: =FH1+1 -> 160 | FJ1: =FI1+1 -> 161 | FK1: =FJ1+1 -> 162 | FL1: =FK1+1 -> 163 | FM1: =FL1+1 -> 164 | FN1: =FM1+1 -> 165 | FO1: =FN1+1 -> 166 | FP1: =FO1+1 -> 167 | FQ1: =FP1+1 -> 168 | FR1: =FQ1+1 -> 169 | FS1: =FR1+1 -> 170 | FT1: =FS1+1 -> 171 | FU1: =FT1+1 -> 172 | FV1: =FU1+1 -> 173 | FW1: =FV1+1 -> 174 | FX1: =FW1+1 -> 175 | FY1: =FX1+1 -> 176 | FZ1: =FY1+1 -> 177 | GA1: =FZ1+1 -> 178 | GB1: =GA1+1 -> 179 | GC1: =GB1+1 -> 180 | GD1: =GC1+1 -> 181 | GE1: =GD1+1 -> 182 | GF1: =GE1+1 -> 183 | GG1: =GF1+1 -> 184 | GH1: =GG1+1 -> 185 | GI1: =GH1+1 -> 186 | GJ1: =GI1+1 -> 187 | GK1: =GJ1+1 -> 188 | GL1: =GK1+1 -> 189 | GM1: =GL1+1 -> 190 | GN1: =GM1+1 -> 191 | GO1: =GN1+1 -> 192 | GP1: =GO1+1 -> 193 | GQ1: =GP1+1 -> 194 | GR1: =GQ1+1 -> 195 | GS1: =GR1+1 -> 196 | GT1: =GS1+1 -> 197 | GU1: =GT1+1 -> 198 | GV1: =GU1+1 -> 199 | GW1: =GV1+1 -> 200 | GX1: =GW1+1 -> 201 | GY1: =GX1+1 -> 202 | GZ1: =GY1+1 -> 203 | HA1: =GZ1+1 -> 204 | HB1: =HA1+1 -> 205 | HC1: =HB1+1 -> 206 | HD1: =HC1+1 -> 207 | HE1: =HD1+1 -> 208 | HF1: =HE1+1 -> 209 | HG1: =HF1+1 -> 210 | HH1: =HG1+1 -> 211 | HI1: =HH1+1 -> 212 | HJ1: =HI1+1 -> 213 | HK1: =HJ1+1 -> 214 | HL1: =HK1+1 -> 215 | HM1: =HL1+1 -> 216 | HN1: =HM1+1 -> 217 | HO1: =HN1+1 -> 218 | HP1: =HO1+1 -> 219 | HQ1: =HP1+1 -> 220 | HR1: =HQ1+1 -> 221 | HS1: =HR1+1 -> 222 | HT1: =HS1+1 -> 223 | HU1: =HT1+1 -> 224 | HV1: =HU1+1 -> 225 | HW1: =HV1+1 -> 226 | HX1: =HW1+1 -> 227 | HY1: =HX1+1 -> 228 | HZ1: =HY1+1 -> 229 | IA1: =HZ1+1 -> 230 | IB1: =IA1+1 -> 231 | IC1: =IB1+1 -> 232 | ID1: =IC1+1 -> 233 | IE1: =ID1+1 -> 234 | IF1: =IE1+1 -> 235 | IG1: =IF1+1 -> 236 | IH1: =IG1+1 -> 237 | II1: =IH1+1 -> 238 | IJ1: =II1+1 -> 239 | IK1: =IJ1+1 -> 240 | IL1: =IK1+1 -> 241 | IM1: =IL1+1 -> 242 | IN1: =IM1+1 -> 243 | IO1: =IN1+1 -> 244 | IP1: =IO1+1 -> 245 | IQ1: =IP1+1 -> 246 | IR1: =IQ1+1 -> 247 | IS1: =IR1+1 -> 248 | IT1: =IS1+1 -> 249 | IU1: =IT1+1 -> 250 | IV1: =IU1+1 -> 251 | IW1: =IV1+1 -> 252 | IX1: =IW1+1 -> 253 | IY1: =IX1+1 -> 254
A2: COUNTY NAME | B2: SUBREGION | C2: Map Note | D2: Reference: | F2: ANDERSON | G2: ANDREWS | H2: ANGELINA | I2: ARANSAS | J2: ARCHER | K2: ARMSTRONG | L2: ATASCOSA | M2: AUSTIN | N2: BAILEY | O2: BANDERA | P2: BASTROP | Q2: BAYLOR | R2: BEE | S2: BELL | T2: BEXAR | U2: BLANCO | V2: BORDEN | W2: BOSQUE | X2: BOWIE | Y2: BRAZORIA | Z2: BRAZOS | AA2: BREWSTER | AB2: BRISCOE | AC2: BROOKS | AD2: BROWN | AE2: BURLESON | AF2: BURNET | AG2: CALDWELL | AH2: CALHOUN | AI2: CALLAHAN | AJ2: CAMERON | AK2: CAMP | AL2: CARSON | AM2: CASS | AN2: CASTRO | AO2: CHAMBERS | AP2: CHEROKEE | AQ2: CHILDRESS | AR2: CLAY | AS2: COCHRAN | AT2: COKE | AU2: COLEMAN | AV2: COLLIN | AW2: COLLINGSWORTH | AX2: COLORADO | AY2: COMAL | AZ2: COMANCHE | BA2: CONCHO | BB2: COOKE | BC2: CORYELL | BD2: COTTLE | BE2: CRANE | BF2: CROCKETT | BG2: CROSBY | BH2: CULBERSON | BI2: DALLAM | BJ2: DALLAS | BK2: DAWSON | BL2: DE WITT | BM2: DEAF SMITH | BN2: DELTA | BO2: DENTON | BP2: DICKENS | BQ2: DIMMIT | BR2: DONLEY | BS2: DUVAL | BT2: EASTLAND | BU2: ECTOR | BV2: EDWARDS | BW2: EL PASO | BX2: ELLIS | BY2: ERATH | BZ2: FALLS | CA2: FANNIN | CB2: FAYETTE | CC2: FISHER | CD2: FLOYD | CE2: FOARD | CF2: FORT BEND | CG2: FRANKLIN | CH2: FREESTONE | CI2: FRIO | CJ2: GAINES | CK2: GALVESTON | CL2: GARZA | CM2: GILLESPIE | CN2: GLASSCOCK | CO2: GOLIAD | CP2: GONZALES | CQ2: GRAY | CR2: GRAYSON | CS2: GREGG | CT2: GRIMES | CU2: GUADALUPE | CV2: HALE | CW2: HALL | CX2: HAMILTON | CY2: HANSFORD | CZ2: HARDEMAN | DA2: HARDIN | DB2: HARRIS | DC2: HARRISON | DD2: HARTLEY | DE2: HASKELL | DF2: HAYS | DG2: HEMPHILL | DH2: HENDERSON | DI2: HIDALGO | DJ2: HILL | DK2: HOCKLEY | DL2: HOOD | DM2: HOPKINS | DN2: HOUSTON | DO2: HOWARD | DP2: HUDSPETH | DQ2: HUNT | DR2: HUTCHINSON | DS2: IRION | DT2: JACK | DU2: JACKSON | DV2: JASPER | DW2: JEFF DAVIS | DX2: JEFFERSON | DY2: JIM HOGG | DZ2: JIM WELLS | EA2: JOHNSON | EB2: JONES | EC2: KARNES | ED2: KAUFMAN | EE2: KENDALL | EF2: KENEDY | EG2: KENT | EH2: KERR | EI2: KIMBLE | EJ2: KING | EK2: KINNEY | EL2: KLEBERG | EM2: KNOX | EN2: LA SALLE | EO2: LAMAR | EP2: LAMB | EQ2: LAMPASAS | ER2: LAVACA | ES2: LEE | ET2: LEON | EU2: LIBERTY | EV2: LIMESTONE | EW2: LIPSCOMB | EX2: LIVE OAK | EY2: LLANO | EZ2: LOVING | FA2: LUBBOCK | FB2: LYNN | FC2: MADISON | FD2: MARION | FE2: MARTIN | FF2: MASON | FG2: MATAGORDA | FH2: MAVERICK | FI2: MCCULLOCH | FJ2: MCLENNAN | FK2: MCMULLEN | FL2: MEDINA | FM2: MENARD | FN2: MIDLAND | FO2: MILAM | FP2: MILLS | FQ2: MITCHELL | FR2: MONTAGUE | FS2: MONTGOMERY | FT2: MOORE | FU2: MORRIS | FV2: MOTLEY | FW2: NACOGDOCHES | FX2: NAVARRO | FY2: NEWTON | FZ2: NOLAN | GA2: NUECES | GB2: OCHILTREE | GC2: OLDHAM | GD2: ORANGE | GE2: PALO PINTO | GF2: PANOLA | GG2: PARKER | GH2: PARMER | GI2: PECOS | GJ2: POLK | GK2: POTTER | GL2: PRESIDIO | GM2: RAINS | GN2: RANDALL | GO2: REAGAN | GP2: REAL | GQ2: RED RIVER | GR2: REEVES | GS2: REFUGIO | GT2: ROBERTS | GU2: ROBERTSON | GV2: ROCKWALL | GW2: RUNNELS | GX2: RUSK | GY2: SABINE | GZ2: SAN AUGUSTINE | HA2: SAN JACINTO | HB2: SAN PATRICIO | HC2: SAN SABA | HD2: SCHLEICHER | HE2: SCURRY | HF2: SHACKELFORD | HG2: SHELBY | HH2: SHERMAN | HI2: SMITH | HJ2: SOMERVELL | HK2: STARR | HL2: STEPHENS | HM2: STERLING | HN2: STONEWALL | HO2: SUTTON | HP2: SWISHER | HQ2: TARRANT | HR2: TAYLOR | HS2: TERRELL | HT2: TERRY | HU2: THROCKMORTON | HV2: TITUS | HW2: TOM GREEN | HX2: TRAVIS | HY2: TRINITY | HZ2: TYLER | IA2: UPSHUR | IB2: UPTON | IC2: UVALDE | ID2: VAL VERDE | IE2: VAN ZANDT | IF2: VICTORIA | IG2: WALKER | IH2: WALLER | II2: WARD | IJ2: WASHINGTON | IK2: WEBB | IL2: WHARTON | IM2: WHEELER | IN2: WICHITA | IO2: WILBARGER | IP2: WILLACY | IQ2: WILLIAMSON | IR2: WILSON | IS2: WINKLER | IT2: WISE | IU2: WOOD | IV2: YOAKUM | IW2: YOUNG | IX2: ZAPATA | IY2: ZAVALA
A3: =IFERROR(ebd_Annual!A3," ") -> Anderson | B3: =IFERROR(ebd_Annual!B3," ") -> Zone-1 | C3: Anderson County has 1 rainfall zone. | D3: Perica, S., S. Pavlovic, M. St. Laurent, C. Trypaluk, D. Unruh, O. Wilhite (2018). NOAA Atlas 14 Volume 11 Version 2, Precipitation-Frequency Atlas of the United States, Texas. NOAA, National Weather Service, Silver Spring, MD. | E3: Yellow cell highlight indicates that comments are available for the cell. | F3: =IFERROR(INDEX($B$3:$B$864,SMALL(IF(F$2=$A$3:$A$864,ROW($B$3:$B$864) - MIN(ROW($B$3:$B$864))+1,""), ROW()-2)),"") -> Zone-1 | G3: =IFERROR(INDEX($B$3:$B$864,SMALL(IF(G$2=$A$3:$A$864,ROW($B$3:$B$864) - MIN(ROW($B$3:$B$864))+1,""), ROW()-2)),"") -> Zone-1 | H3: =IFERROR(INDEX($B$3:$B$864,SMALL(IF(H$2=$A$3:$A$864,ROW($B$3:$B$864) - MIN(ROW($B$3:$B$864))+1,""), ROW()-2)),"") -> Zone-1 | I3: =IFERROR(INDEX($B$3:$B$864,SMALL(IF(I$2=$A$3:$A$864,ROW($B$3:$B$864) - MIN(ROW($B$3:$B$864))+1,""), ROW()-2)),"") -> Zone-1 | J3: =IFERROR(INDEX($B$3:$B$864,SMALL(IF(J$2=$A$3:$A$864,ROW($B$3:$B$864) - MIN(ROW($B$3:$B$864))+1,""), ROW()-2)),"") -> Zone-1 | K3: =IFERROR(INDEX($B$3:$B$864,SMALL(IF(K$2=$A$3:$A$864,ROW($B$3:$B$864) - MIN(ROW($B$3:$B$864))+1,""), ROW()-2)),"") -> Zone-1 | L3: =IFERROR(INDEX($B$3:$B$864,SMALL(IF(L$2=$A$3:$A$864,ROW($B$3:$B$864) - MIN(ROW($B$3:$B$864))+1,""), ROW()-2)),"") -> Zone-1 | M3: =IFERROR(INDEX($B$3:$B$864,SMALL(IF(M$2=$A$3:$A$864,ROW($B$3:$B$864) - MIN(ROW($B$3:$B$864))+1,""), ROW()-2)),"") -> Zone-1 | N3: =IFERROR(INDEX($B$3:$B$864,SMALL(IF(N$2=$A$3:$A$864,ROW($B$3:$B$864) - MIN(ROW($B$3:$B$864))+1,""), ROW()-2)),"") -> Zone-1 | O3: =IFERROR(INDEX($B$3:$B$864,SMALL(IF(O$2=$A$3:$A$864,ROW($B$3:$B$864) - MIN(ROW($B$3:$B$864))+1,""), ROW()-2)),"") -> Zone-1 | P3: =IFERROR(INDEX($B$3:$B$864,SMALL(IF(P$2=$A$3:$A$864,ROW($B$3:$B$864) - MIN(ROW($B$3:$B$864))+1,""), ROW()-2)),"") -> Zone-1 | Q3: =IFERROR(INDEX($B$3:$B$864,SMALL(IF(Q$2=$A$3:$A$864,ROW($B$3:$B$864) - MIN(ROW($B$3:$B$864))+1,""), ROW()-2)),"") -> Zone-1 | R3: =IFERROR(INDEX($B$3:$B$864,SMALL(IF(R$2=$A$3:$A$864,ROW($B$3:$B$864) - MIN(ROW($B$3:$B$864))+1,""), ROW()-2)),"") -> Zone-1 | S3: =IFERROR(INDEX($B$3:$B$864,SMALL(IF(S$2=$A$3:$A$864,ROW($B$3:$B$864) - MIN(ROW($B$3:$B$864))+1,""), ROW()-2)),"") -> Zone-1 | T3: =IFERROR(INDEX($B$3:$B$864,SMALL(IF(T$2=$A$3:$A$864,ROW($B$3:$B$864) - MIN(ROW($B$3:$B$864))+1,""), ROW()-2)),"") -> PA-5 | U3: =IFERROR(INDEX($B$3:$B$864,SMALL(IF(U$2=$A$3:$A$864,ROW($B$3:$B$864) - MIN(ROW($B$3:$B$864))+1,""), ROW()-2)),"") -> Zone-1 | V3: =IFERROR(INDEX($B$3:$B$864,SMALL(IF(V$2=$A$3:$A$864,ROW($B$3:$B$864) - MIN(ROW($B$3:$B$864))+1,""), ROW()-2)),"") -> Zone-1 | W3: =IFERROR(INDEX($B$3:$B$864,SMALL(IF(W$2=$A$3:$A$864,ROW($B$3:$B$864) - MIN(ROW($B$3:$B$864))+1,""), ROW()-2)),"") -> Zone-1 | X3: =IFERROR(INDEX($B$3:$B$864,SMALL(IF(X$2=$A$3:$A$864,ROW($B$3:$B$864) - MIN(ROW($B$3:$B$864))+1,""), ROW()-2)),"") -> Zone-1 | Y3: =IFERROR(INDEX($B$3:$B$864,SMALL(IF(Y$2=$A$3:$A$864,ROW($B$3:$B$864) - MIN(ROW($B$3:$B$864))+1,""), ROW()-2)),"") -> Zone-1 | Z3: =IFERROR(INDEX($B$3:$B$864,SMALL(IF(Z$2=$A$3:$A$864,ROW($B$3:$B$864) - MIN(ROW($B$3:$B$864))+1,""), ROW()-2)),"") -> Zone-1 | AA3: =IFERROR(INDEX($B$3:$B$864,SMALL(IF(AA$2=$A$3:$A$864,ROW($B$3:$B$864) - MIN(ROW($B$3:$B$864))+1,""), ROW()-2)),"") -> Zone-1 | AB3: =IFERROR(INDEX($B$3:$B$864,SMALL(IF(AB$2=$A$3:$A$864,ROW($B$3:$B$864) - MIN(ROW($B$3:$B$864))+1,""), ROW()-2)),"") -> Zone-1 | AC3: =IFERROR(INDEX($B$3:$B$864,SMALL(IF(AC$2=$A$3:$A$864,ROW($B$3:$B$864) - MIN(ROW($B$3:$B$864))+1,""), ROW()-2)),"") -> Zone-1 | AD3: =IFERROR(INDEX($B$3:$B$864,SMALL(IF(AD$2=$A$3:$A$864,ROW($B$3:$B$864) - MIN(ROW($B$3:$B$864))+1,""), ROW()-2)),"") -> Zone-1 | AE3: =IFERROR(INDEX($B$3:$B$864,SMALL(IF(AE$2=$A$3:$A$864,ROW($B$3:$B$864) - MIN(ROW($B$3:$B$864))+1,""), ROW()-2)),"") -> Zone-1 | AF3: =IFERROR(INDEX($B$3:$B$864,SMALL(IF(AF$2=$A$3:$A$864,ROW($B$3:$B$864) - MIN(ROW($B$3:$B$864))+1,""), ROW()-2)),"") -> Zone-1 | AG3: =IFERROR(INDEX($B$3:$B$864,SMALL(IF(AG$2=$A$3:$A$864,ROW($B$3:$B$864) - MIN(ROW($B$3:$B$864))+1,""), ROW()-2)),"") -> Zone-1 | AH3: =IFERROR(INDEX($B$3:$B$864,SMALL(IF(AH$2=$A$3:$A$864,ROW($B$3:$B$864) - MIN(ROW($B$3:$B$864))+1,""), ROW()-2)),"") -> Zone-1 | AI3: =IFERROR(INDEX($B$3:$B$864,SMALL(IF(AI$2=$A$3:$A$864,ROW($B$3:$B$864) - MIN(ROW($B$3:$B$864))+1,""), ROW()-2)),"") -> Zone-1 | AJ3: =IFERROR(INDEX($B$3:$B$864,SMALL(IF(AJ$2=$A$3:$A$864,ROW($B$3:$B$864) - MIN(ROW($B$3:$B$864))+1,""), ROW()-2)),"") -> Zone-1 | AK3: =IFERROR(INDEX($B$3:$B$864,SMALL(IF(AK$2=$A$3:$A$864,ROW($B$3:$B$864) - MIN(ROW($B$3:$B$864))+1,""), ROW()-2)),"") -> Zone-1 | AL3: =IFERROR(INDEX($B$3:$B$864,SMALL(IF(AL$2=$A$3:$A$864,ROW($B$3:$B$864) - MIN(ROW($B$3:$B$864))+1,""), ROW()-2)),"") -> Zone-1 | AM3: =IFERROR(INDEX($B$3:$B$864,SMALL(IF(AM$2=$A$3:$A$864,ROW($B$3:$B$864) - MIN(ROW($B$3:$B$864))+1,""), ROW()-2)),"") -> Zone-1 | AN3: =IFERROR(INDEX($B$3:$B$864,SMALL(IF(AN$2=$A$3:$A$864,ROW($B$3:$B$864) - MIN(ROW($B$3:$B$864))+1,""), ROW()-2)),"") -> Zone-1 | AO3: =IFERROR(INDEX($B$3:$B$864,SMALL(IF(AO$2=$A$3:$A$864,ROW($B$3:$B$864) - MIN(ROW($B$3:$B$864))+1,""), ROW()-2)),"") -> Zone-1 | AP3: =IFERROR(INDEX($B$3:$B$864,SMALL(IF(AP$2=$A$3:$A$864,ROW($B$3:$B$864) - MIN(ROW($B$3:$B$864))+1,""), ROW()-2)),"") -> Zone-1 | AQ3: =IFERROR(INDEX($B$3:$B$864,SMALL(IF(AQ$2=$A$3:$A$864,ROW($B$3:$B$864) - MIN(ROW($B$3:$B$864))+1,""), ROW()-2)),"") -> Zone-1 | AR3: =IFERROR(INDEX($B$3:$B$864,SMALL(IF(AR$2=$A$3:$A$864,ROW($B$3:$B$864) - MIN(ROW($B$3:$B$864))+1,""), ROW()-2)),"") -> Zone-1 | AS3: =IFERROR(INDEX($B$3:$B$864,SMALL(IF(AS$2=$A$3:$A$864,ROW($B$3:$B$864) - MIN(ROW($B$3:$B$864))+1,""), ROW()-2)),"") -> Zone-1 | AT3: =IFERROR(INDEX($B$3:$B$864,SMALL(IF(AT$2=$A$3:$A$864,ROW($B$3:$B$864) - MIN(ROW($B$3:$B$864))+1,""), ROW()-2)),"") -> Zone-1 | AU3: =IFERROR(INDEX($B$3:$B$864,SMALL(IF(AU$2=$A$3:$A$864,ROW($B$3:$B$864) - MIN(ROW($B$3:$B$864))+1,""), ROW()-2)),"") -> Zone-1 | AV3: =IFERROR(INDEX($B$3:$B$864,SMALL(IF(AV$2=$A$3:$A$864,ROW($B$3:$B$864) - MIN(ROW($B$3:$B$864))+1,""), ROW()-2)),"") -> Zone-1 | AW3: =IFERROR(INDEX($B$3:$B$864,SMALL(IF(AW$2=$A$3:$A$864,ROW($B$3:$B$864) - MIN(ROW($B$3:$B$864))+1,""), ROW()-2)),"") -> Zone-1 | AX3: =IFERROR(INDEX($B$3:$B$864,SMALL(IF(AX$2=$A$3:$A$864,ROW($B$3:$B$864) - MIN(ROW($B$3:$B$864))+1,""), ROW()-2)),"") -> Zone-1 | AY3: =IFERROR(INDEX($B$3:$B$864,SMALL(IF(AY$2=$A$3:$A$864,ROW($B$3:$B$864) - MIN(ROW($B$3:$B$864))+1,""), ROW()-2)),"") -> Zone-1 | AZ3: =IFERROR(INDEX($B$3:$B$864,SMALL(IF(AZ$2=$A$3:$A$864,ROW($B$3:$B$864) - MIN(ROW($B$3:$B$864))+1,""), ROW()-2)),"") -> Zone-1 | BA3: =IFERROR(INDEX($B$3:$B$864,SMALL(IF(BA$2=$A$3:$A$864,ROW($B$3:$B$864) - MIN(ROW($B$3:$B$864))+1,""), ROW()-2)),"") -> Zone-1 | BB3: =IFERROR(INDEX($B$3:$B$864,SMALL(IF(BB$2=$A$3:$A$864,ROW($B$3:$B$864) - MIN(ROW($B$3:$B$864))+1,""), ROW()-2)),"") -> Zone-1 | BC3: =IFERROR(INDEX($B$3:$B$864,SMALL(IF(BC$2=$A$3:$A$864,ROW($B$3:$B$864) - MIN(ROW($B$3:$B$864))+1,""), ROW()-2)),"") -> Zone-1 | BD3: =IFERROR(INDEX($B$3:$B$864,SMALL(IF(BD$2=$A$3:$A$864,ROW($B$3:$B$864) - MIN(ROW($B$3:$B$864))+1,""), ROW()-2)),"") -> Zone-1 | BE3: =IFERROR(INDEX($B$3:$B$864,SMALL(IF(BE$2=$A$3:$A$864,ROW($B$3:$B$864) - MIN(ROW($B$3:$B$864))+1,""), ROW()-2)),"") -> Zone-1 | BF3: =IFERROR(INDEX($B$3:$B$864,SMALL(IF(BF$2=$A$3:$A$864,ROW($B$3:$B$864) - MIN(ROW($B$3:$B$864))+1,""), ROW()-2)),"") -> Zone-1 | BG3: =IFERROR(INDEX($B$3:$B$864,SMALL(IF(BG$2=$A$3:$A$864,ROW($B$3:$B$864) - MIN(ROW($B$3:$B$864))+1,""), ROW()-2)),"") -> Zone-1 | BH3: =IFERROR(INDEX($B$3:$B$864,SMALL(IF(BH$2=$A$3:$A$864,ROW($B$3:$B$864) - MIN(ROW($B$3:$B$864))+1,""), ROW()-2)),"") -> Zone-1 | BI3: =IFERROR(INDEX($B$3:$B$864,SMALL(IF(BI$2=$A$3:$A$864,ROW($B$3:$B$864) - MIN(ROW($B$3:$B$864))+1,""), ROW()-2)),"") -> Zone-1 | BJ3: =IFERROR(INDEX($B$3:$B$864,SMALL(IF(BJ$2=$A$3:$A$864,ROW($B$3:$B$864) - MIN(ROW($B$3:$B$864))+1,""), ROW()-2)),"") -> Zone-1 | BK3: =IFERROR(INDEX($B$3:$B$864,SMALL(IF(BK$2=$A$3:$A$864,ROW($B$3:$B$864) - MIN(ROW($B$3:$B$864))+1,""), ROW()-2)),"") -> Zone-1 | BL3: =IFERROR(INDEX($B$3:$B$864,SMALL(IF(BL$2=$A$3:$A$864,ROW($B$3:$B$864) - MIN(ROW($B$3:$B$864))+1,""), ROW()-2)),"") -> Zone-1 | BM3: =IFERROR(INDEX($B$3:$B$864,SMALL(IF(BM$2=$A$3:$A$864,ROW($B$3:$B$864) - MIN(ROW($B$3:$B$864))+1,""), ROW()-2)),"") -> Zone-1 | BN3: =IFERROR(INDEX($B$3:$B$864,SMALL(IF(BN$2=$A$3:$A$864,ROW($B$3:$B$864) - MIN(ROW($B$3:$B$864))+1,""), ROW()-2)),"") -> Zone-1 | BO3: =IFERROR(INDEX($B$3:$B$864,SMALL(IF(BO$2=$A$3:$A$864,ROW($B$3:$B$864) - MIN(ROW($B$3:$B$864))+1,""), ROW()-2)),"") -> Zone-1 | BP3: =IFERROR(INDEX($B$3:$B$864,SMALL(IF(BP$2=$A$3:$A$864,ROW($B$3:$B$864) - MIN(ROW($B$3:$B$864))+1,""), ROW()-2)),"") -> Zone-1 | BQ3: =IFERROR(INDEX($B$3:$B$864,SMALL(IF(BQ$2=$A$3:$A$864,ROW($B$3:$B$864) - MIN(ROW($B$3:$B$864))+1,""), ROW()-2)),"") -> Zone-1 | BR3: =IFERROR(INDEX($B$3:$B$864,SMALL(IF(BR$2=$A$3:$A$864,ROW($B$3:$B$864) - MIN(ROW($B$3:$B$864))+1,""), ROW()-2)),"") -> Zone-1 | BS3: =IFERROR(INDEX($B$3:$B$864,SMALL(IF(BS$2=$A$3:$A$864,ROW($B$3:$B$864) - MIN(ROW($B$3:$B$864))+1,""), ROW()-2)),"") -> Zone-1 | BT3: =IFERROR(INDEX($B$3:$B$864,SMALL(IF(BT$2=$A$3:$A$864,ROW($B$3:$B$864) - MIN(ROW($B$3:$B$864))+1,""), ROW()-2)),"") -> Zone-1 | BU3: =IFERROR(INDEX($B$3:$B$864,SMALL(IF(BU$2=$A$3:$A$864,ROW($B$3:$B$864) - MIN(ROW($B$3:$B$864))+1,""), ROW()-2)),"") -> Zone-1 | BV3: =IFERROR(INDEX($B$3:$B$864,SMALL(IF(BV$2=$A$3:$A$864,ROW($B$3:$B$864) - MIN(ROW($B$3:$B$864))+1,""), ROW()-2)),"") -> Zone-1 | BW3: =IFERROR(INDEX($B$3:$B$864,SMALL(IF(BW$2=$A$3:$A$864,ROW($B$3:$B$864) - MIN(ROW($B$3:$B$864))+1,""), ROW()-2)),"") -> Zone-1 | BX3: =IFERROR(INDEX($B$3:$B$864,SMALL(IF(BX$2=$A$3:$A$864,ROW($B$3:$B$864) - MIN(ROW($B$3:$B$864))+1,""), ROW()-2)),"") -> Zone-1 | BY3: =IFERROR(INDEX($B$3:$B$864,SMALL(IF(BY$2=$A$3:$A$864,ROW($B$3:$B$864) - MIN(ROW($B$3:$B$864))+1,""), ROW()-2)),"") -> Zone-1 | BZ3: =IFERROR(INDEX($B$3:$B$864,SMALL(IF(BZ$2=$A$3:$A$864,ROW($B$3:$B$864) - MIN(ROW($B$3:$B$864))+1,""), ROW()-2)),"") -> Zone-1 | CA3: =IFERROR(INDEX($B$3:$B$864,SMALL(IF(CA$2=$A$3:$A$864,ROW($B$3:$B$864) - MIN(ROW($B$3:$B$864))+1,""), ROW()-2)),"") -> Zone-1 | CB3: =IFERROR(INDEX($B$3:$B$864,SMALL(IF(CB$2=$A$3:$A$864,ROW($B$3:$B$864) - MIN(ROW($B$3:$B$864))+1,""), ROW()-2)),"") -> Zone-1 | CC3: =IFERROR(INDEX($B$3:$B$864,SMALL(IF(CC$2=$A$3:$A$864,ROW($B$3:$B$864) - MIN(ROW($B$3:$B$864))+1,""), ROW()-2)),"") -> Zone-1 | CD3: =IFERROR(INDEX($B$3:$B$864,SMALL(IF(CD$2=$A$3:$A$864,ROW($B$3:$B$864) - MIN(ROW($B$3:$B$864))+1,""), ROW()-2)),"") -> Zone-1 | CE3: =IFERROR(INDEX($B$3:$B$864,SMALL(IF(CE$2=$A$3:$A$864,ROW($B$3:$B$864) - MIN(ROW($B$3:$B$864))+1,""), ROW()-2)),"") -> Zone-1 | CF3: =IFERROR(INDEX($B$3:$B$864,SMALL(IF(CF$2=$A$3:$A$864,ROW($B$3:$B$864) - MIN(ROW($B$3:$B$864))+1,""), ROW()-2)),"") -> Zone-1 | CG3: =IFERROR(INDEX($B$3:$B$864,SMALL(IF(CG$2=$A$3:$A$864,ROW($B$3:$B$864) - MIN(ROW($B$3:$B$864))+1,""), ROW()-2)),"") -> Zone-1 | CH3: =IFERROR(INDEX($B$3:$B$864,SMALL(IF(CH$2=$A$3:$A$864,ROW($B$3:$B$864) - MIN(ROW($B$3:$B$864))+1,""), ROW()-2)),"") -> Zone-1 | CI3: =IFERROR(INDEX($B$3:$B$864,SMALL(IF(CI$2=$A$3:$A$864,ROW($B$3:$B$864) - MIN(ROW($B$3:$B$864))+1,""), ROW()-2)),"") -> Zone-1 | CJ3: =IFERROR(INDEX($B$3:$B$864,SMALL(IF(CJ$2=$A$3:$A$864,ROW($B$3:$B$864) - MIN(ROW($B$3:$B$864))+1,""), ROW()-2)),"") -> Zone-1 | CK3: =IFERROR(INDEX($B$3:$B$864,SMALL(IF(CK$2=$A$3:$A$864,ROW($B$3:$B$864) - MIN(ROW($B$3:$B$864))+1,""), ROW()-2)),"") -> Zone-1 | CL3: =IFERROR(INDEX($B$3:$B$864,SMALL(IF(CL$2=$A$3:$A$864,ROW($B$3:$B$864) - MIN(ROW($B$3:$B$864))+1,""), ROW()-2)),"") -> Zone-1 | CM3: =IFERROR(INDEX($B$3:$B$864,SMALL(IF(CM$2=$A$3:$A$864,ROW($B$3:$B$864) - MIN(ROW($B$3:$B$864))+1,""), ROW()-2)),"") -> Zone-1 | CN3: =IFERROR(INDEX($B$3:$B$864,SMALL(IF(CN$2=$A$3:$A$864,ROW($B$3:$B$864) - MIN(ROW($B$3:$B$864))+1,""), ROW()-2)),"") -> Zone-1 | CO3: =IFERROR(INDEX($B$3:$B$864,SMALL(IF(CO$2=$A$3:$A$864,ROW($B$3:$B$864) - MIN(ROW($B$3:$B$864))+1,""), ROW()-2)),"") -> Zone-1 | CP3: =IFERROR(INDEX($B$3:$B$864,SMALL(IF(CP$2=$A$3:$A$864,ROW($B$3:$B$864) - MIN(ROW($B$3:$B$864))+1,""), ROW()-2)),"") -> Zone-1 | CQ3: =IFERROR(INDEX($B$3:$B$864,SMALL(IF(CQ$2=$A$3:$A$864,ROW($B$3:$B$864) - MIN(ROW($B$3:$B$864))+1,""), ROW()-2)),"") -> Zone-1 | CR3: =IFERROR(INDEX($B$3:$B$864,SMALL(IF(CR$2=$A$3:$A$864,ROW($B$3:$B$864) - MIN(ROW($B$3:$B$864))+1,""), ROW()-2)),"") -> Zone-1 | CS3: =IFERROR(INDEX($B$3:$B$864,SMALL(IF(CS$2=$A$3:$A$864,ROW($B$3:$B$864) - MIN(ROW($B$3:$B$864))+1,""), ROW()-2)),"") -> Zone-1 | CT3: =IFERROR(INDEX($B$3:$B$864,SMALL(IF(CT$2=$A$3:$A$864,ROW($B$3:$B$864) - MIN(ROW($B$3:$B$864))+1,""), ROW()-2)),"") -> Zone-1 | CU3: =IFERROR(INDEX($B$3:$B$864,SMALL(IF(CU$2=$A$3:$A$864,ROW($B$3:$B$864) - MIN(ROW($B$3:$B$864))+1,""), ROW()-2)),"") -> Zone-1 | CV3: =IFERROR(INDEX($B$3:$B$864,SMALL(IF(CV$2=$A$3:$A$864,ROW($B$3:$B$864) - MIN(ROW($B$3:$B$864))+1,""), ROW()-2)),"") -> Zone-1 | CW3: =IFERROR(INDEX($B$3:$B$864,SMALL(IF(CW$2=$A$3:$A$864,ROW($B$3:$B$864) - MIN(ROW($B$3:$B$864))+1,""), ROW()-2)),"") -> Zone-1 | CX3: =IFERROR(INDEX($B$3:$B$864,SMALL(IF(CX$2=$A$3:$A$864,ROW($B$3:$B$864) - MIN(ROW($B$3:$B$864))+1,""), ROW()-2)),"") -> Zone-1 | CY3: =IFERROR(INDEX($B$3:$B$864,SMALL(IF(CY$2=$A$3:$A$864,ROW($B$3:$B$864) - MIN(ROW($B$3:$B$864))+1,""), ROW()-2)),"") -> Zone-1 | CZ3: =IFERROR(INDEX($B$3:$B$864,SMALL(IF(CZ$2=$A$3:$A$864,ROW($B$3:$B$864) - MIN(ROW($B$3:$B$864))+1,""), ROW()-2)),"") -> Zone-1 | DA3: =IFERROR(INDEX($B$3:$B$864,SMALL(IF(DA$2=$A$3:$A$864,ROW($B$3:$B$864) - MIN(ROW($B$3:$B$864))+1,""), ROW()-2)),"") -> Zone-1 | DB3: =IFERROR(INDEX($B$3:$B$864,SMALL(IF(DB$2=$A$3:$A$864,ROW($B$3:$B$864) - MIN(ROW($B$3:$B$864))+1,""), ROW()-2)),"") -> Zone-1 | DC3: =IFERROR(INDEX($B$3:$B$864,SMALL(IF(DC$2=$A$3:$A$864,ROW($B$3:$B$864) - MIN(ROW($B$3:$B$864))+1,""), ROW()-2)),"") -> Zone-1 | DD3: =IFERROR(INDEX($B$3:$B$864,SMALL(IF(DD$2=$A$3:$A$864,ROW($B$3:$B$864) - MIN(ROW($B$3:$B$864))+1,""), ROW()-2)),"") -> Zone-1 | DE3: =IFERROR(INDEX($B$3:$B$864,SMALL(IF(DE$2=$A$3:$A$864,ROW($B$3:$B$864) - MIN(ROW($B$3:$B$864))+1,""), ROW()-2)),"") -> Zone-1 | DF3: =IFERROR(INDEX($B$3:$B$864,SMALL(IF(DF$2=$A$3:$A$864,ROW($B$3:$B$864) - MIN(ROW($B$3:$B$864))+1,""), ROW()-2)),"") -> Zone-1 | DG3: =IFERROR(INDEX($B$3:$B$864,SMALL(IF(DG$2=$A$3:$A$864,ROW($B$3:$B$864) - MIN(ROW($B$3:$B$864))+1,""), ROW()-2)),"") -> Zone-1 | DH3: =IFERROR(INDEX($B$3:$B$864,SMALL(IF(DH$2=$A$3:$A$864,ROW($B$3:$B$864) - MIN(ROW($B$3:$B$864))+1,""), ROW()-2)),"") -> Zone-1 | DI3: =IFERROR(INDEX($B$3:$B$864,SMALL(IF(DI$2=$A$3:$A$864,ROW($B$3:$B$864) - MIN(ROW($B$3:$B$864))+1,""), ROW()-2)),"") -> Zone-1 | DJ3: =IFERROR(INDEX($B$3:$B$864,SMALL(IF(DJ$2=$A$3:$A$864,ROW($B$3:$B$864) - MIN(ROW($B$3:$B$864))+1,""), ROW()-2)),"") -> Zone-1 | DK3: =IFERROR(INDEX($B$3:$B$864,SMALL(IF(DK$2=$A$3:$A$864,ROW($B$3:$B$864) - MIN(ROW($B$3:$B$864))+1,""), ROW()-2)),"") -> Zone-1 | DL3: =IFERROR(INDEX($B$3:$B$864,SMALL(IF(DL$2=$A$3:$A$864,ROW($B$3:$B$864) - MIN(ROW($B$3:$B$864))+1,""), ROW()-2)),"") -> Zone-1 | DM3: =IFERROR(INDEX($B$3:$B$864,SMALL(IF(DM$2=$A$3:$A$864,ROW($B$3:$B$864) - MIN(ROW($B$3:$B$864))+1,""), ROW()-2)),"") -> Zone-1 | DN3: =IFERROR(INDEX($B$3:$B$864,SMALL(IF(DN$2=$A$3:$A$864,ROW($B$3:$B$864) - MIN(ROW($B$3:$B$864))+1,""), ROW()-2)),"") -> Zone-1 | DO3: =IFERROR(INDEX($B$3:$B$864,SMALL(IF(DO$2=$A$3:$A$864,ROW($B$3:$B$864) - MIN(ROW($B$3:$B$864))+1,""), ROW()-2)),"") -> Zone-1 | DP3: =IFERROR(INDEX($B$3:$B$864,SMALL(IF(DP$2=$A$3:$A$864,ROW($B$3:$B$864) - MIN(ROW($B$3:$B$864))+1,""), ROW()-2)),"") -> Zone-1 | DQ3: =IFERROR(INDEX($B$3:$B$864,SMALL(IF(DQ$2=$A$3:$A$864,ROW($B$3:$B$864) - MIN(ROW($B$3:$B$864))+1,""), ROW()-2)),"") -> Zone-1 | DR3: =IFERROR(INDEX($B$3:$B$864,SMALL(IF(DR$2=$A$3:$A$864,ROW($B$3:$B$864) - MIN(ROW($B$3:$B$864))+1,""), ROW()-2)),"") -> Zone-1 | DS3: =IFERROR(INDEX($B$3:$B$864,SMALL(IF(DS$2=$A$3:$A$864,ROW($B$3:$B$864) - MIN(ROW($B$3:$B$864))+1,""), ROW()-2)),"") -> Zone-1 | DT3: =IFERROR(INDEX($B$3:$B$864,SMALL(IF(DT$2=$A$3:$A$864,ROW($B$3:$B$864) - MIN(ROW($B$3:$B$864))+1,""), ROW()-2)),"") -> Zone-1 | DU3: =IFERROR(INDEX($B$3:$B$864,SMALL(IF(DU$2=$A$3:$A$864,ROW($B$3:$B$864) - MIN(ROW($B$3:$B$864))+1,""), ROW()-2)),"") -> Zone-1 | DV3: =IFERROR(INDEX($B$3:$B$864,SMALL(IF(DV$2=$A$3:$A$864,ROW($B$3:$B$864) - MIN(ROW($B$3:$B$864))+1,""), ROW()-2)),"") -> Zone-1 | DW3: =IFERROR(INDEX($B$3:$B$864,SMALL(IF(DW$2=$A$3:$A$864,ROW($B$3:$B$864) - MIN(ROW($B$3:$B$864))+1,""), ROW()-2)),"") -> Zone-1 | DX3: =IFERROR(INDEX($B$3:$B$864,SMALL(IF(DX$2=$A$3:$A$864,ROW($B$3:$B$864) - MIN(ROW($B$3:$B$864))+1,""), ROW()-2)),"") -> Zone-1 | DY3: =IFERROR(INDEX($B$3:$B$864,SMALL(IF(DY$2=$A$3:$A$864,ROW($B$3:$B$864) - MIN(ROW($B$3:$B$864))+1,""), ROW()-2)),"") -> Zone-1 | DZ3: =IFERROR(INDEX($B$3:$B$864,SMALL(IF(DZ$2=$A$3:$A$864,ROW($B$3:$B$864) - MIN(ROW($B$3:$B$864))+1,""), ROW()-2)),"") -> Zone-1 | EA3: =IFERROR(INDEX($B$3:$B$864,SMALL(IF(EA$2=$A$3:$A$864,ROW($B$3:$B$864) - MIN(ROW($B$3:$B$864))+1,""), ROW()-2)),"") -> Zone-1 | EB3: =IFERROR(INDEX($B$3:$B$864,SMALL(IF(EB$2=$A$3:$A$864,ROW($B$3:$B$864) - MIN(ROW($B$3:$B$864))+1,""), ROW()-2)),"") -> Zone-1 | EC3: =IFERROR(INDEX($B$3:$B$864,SMALL(IF(EC$2=$A$3:$A$864,ROW($B$3:$B$864) - MIN(ROW($B$3:$B$864))+1,""), ROW()-2)),"") -> Zone-1 | ED3: =IFERROR(INDEX($B$3:$B$864,SMALL(IF(ED$2=$A$3:$A$864,ROW($B$3:$B$864) - MIN(ROW($B$3:$B$864))+1,""), ROW()-2)),"") -> Zone-1 | EE3: =IFERROR(INDEX($B$3:$B$864,SMALL(IF(EE$2=$A$3:$A$864,ROW($B$3:$B$864) - MIN(ROW($B$3:$B$864))+1,""), ROW()-2)),"") -> Zone-1 | EF3: =IFERROR(INDEX($B$3:$B$864,SMALL(IF(EF$2=$A$3:$A$864,ROW($B$3:$B$864) - MIN(ROW($B$3:$B$864))+1,""), ROW()-2)),"") -> Zone-1 | EG3: =IFERROR(INDEX($B$3:$B$864,SMALL(IF(EG$2=$A$3:$A$864,ROW($B$3:$B$864) - MIN(ROW($B$3:$B$864))+1,""), ROW()-2)),"") -> Zone-1 | EH3: =IFERROR(INDEX($B$3:$B$864,SMALL(IF(EH$2=$A$3:$A$864,ROW($B$3:$B$864) - MIN(ROW($B$3:$B$864))+1,""), ROW()-2)),"") -> Zone-1 | EI3: =IFERROR(INDEX($B$3:$B$864,SMALL(IF(EI$2=$A$3:$A$864,ROW($B$3:$B$864) - MIN(ROW($B$3:$B$864))+1,""), ROW()-2)),"") -> Zone-1 | EJ3: =IFERROR(INDEX($B$3:$B$864,SMALL(IF(EJ$2=$A$3:$A$864,ROW($B$3:$B$864) - MIN(ROW($B$3:$B$864))+1,""), ROW()-2)),"") -> Zone-1 | EK3: =IFERROR(INDEX($B$3:$B$864,SMALL(IF(EK$2=$A$3:$A$864,ROW($B$3:$B$864) - MIN(ROW($B$3:$B$864))+1,""), ROW()-2)),"") -> Zone-1 | EL3: =IFERROR(INDEX($B$3:$B$864,SMALL(IF(EL$2=$A$3:$A$864,ROW($B$3:$B$864) - MIN(ROW($B$3:$B$864))+1,""), ROW()-2)),"") -> Zone-1 | EM3: =IFERROR(INDEX($B$3:$B$864,SMALL(IF(EM$2=$A$3:$A$864,ROW($B$3:$B$864) - MIN(ROW($B$3:$B$864))+1,""), ROW()-2)),"") -> Zone-1 | EN3: =IFERROR(INDEX($B$3:$B$864,SMALL(IF(EN$2=$A$3:$A$864,ROW($B$3:$B$864) - MIN(ROW($B$3:$B$864))+1,""), ROW()-2)),"") -> Zone-1 | EO3: =IFERROR(INDEX($B$3:$B$864,SMALL(IF(EO$2=$A$3:$A$864,ROW($B$3:$B$864) - MIN(ROW($B$3:$B$864))+1,""), ROW()-2)),"") -> Zone-1 | EP3: =IFERROR(INDEX($B$3:$B$864,SMALL(IF(EP$2=$A$3:$A$864,ROW($B$3:$B$864) - MIN(ROW($B$3:$B$864))+1,""), ROW()-2)),"") -> Zone-1 | EQ3: =IFERROR(INDEX($B$3:$B$864,SMALL(IF(EQ$2=$A$3:$A$864,ROW($B$3:$B$864) - MIN(ROW($B$3:$B$864))+1,""), ROW()-2)),"") -> Zone-1 | ER3: =IFERROR(INDEX($B$3:$B$864,SMALL(IF(ER$2=$A$3:$A$864,ROW($B$3:$B$864) - MIN(ROW($B$3:$B$864))+1,""), ROW()-2)),"") -> Zone-1 | ES3: =IFERROR(INDEX($B$3:$B$864,SMALL(IF(ES$2=$A$3:$A$864,ROW($B$3:$B$864) - MIN(ROW($B$3:$B$864))+1,""), ROW()-2)),"") -> Zone-1 | ET3: =IFERROR(INDEX($B$3:$B$864,SMALL(IF(ET$2=$A$3:$A$864,ROW($B$3:$B$864) - MIN(ROW($B$3:$B$864))+1,""), ROW()-2)),"") -> Zone-1 | EU3: =IFERROR(INDEX($B$3:$B$864,SMALL(IF(EU$2=$A$3:$A$864,ROW($B$3:$B$864) - MIN(ROW($B$3:$B$864))+1,""), ROW()-2)),"") -> Zone-1 | EV3: =IFERROR(INDEX($B$3:$B$864,SMALL(IF(EV$2=$A$3:$A$864,ROW($B$3:$B$864) - MIN(ROW($B$3:$B$864))+1,""), ROW()-2)),"") -> Zone-1 | EW3: =IFERROR(INDEX($B$3:$B$864,SMALL(IF(EW$2=$A$3:$A$864,ROW($B$3:$B$864) - MIN(ROW($B$3:$B$864))+1,""), ROW()-2)),"") -> Zone-1 | EX3: =IFERROR(INDEX($B$3:$B$864,SMALL(IF(EX$2=$A$3:$A$864,ROW($B$3:$B$864) - MIN(ROW($B$3:$B$864))+1,""), ROW()-2)),"") -> Zone-1 | EY3: =IFERROR(INDEX($B$3:$B$864,SMALL(IF(EY$2=$A$3:$A$864,ROW($B$3:$B$864) - MIN(ROW($B$3:$B$864))+1,""), ROW()-2)),"") -> Zone-1 | EZ3: =IFERROR(INDEX($B$3:$B$864,SMALL(IF(EZ$2=$A$3:$A$864,ROW($B$3:$B$864) - MIN(ROW($B$3:$B$864))+1,""), ROW()-2)),"") -> Zone-1 | FA3: =IFERROR(INDEX($B$3:$B$864,SMALL(IF(FA$2=$A$3:$A$864,ROW($B$3:$B$864) - MIN(ROW($B$3:$B$864))+1,""), ROW()-2)),"") -> Zone-1 | FB3: =IFERROR(INDEX($B$3:$B$864,SMALL(IF(FB$2=$A$3:$A$864,ROW($B$3:$B$864) - MIN(ROW($B$3:$B$864))+1,""), ROW()-2)),"") -> Zone-1 | FC3: =IFERROR(INDEX($B$3:$B$864,SMALL(IF(FC$2=$A$3:$A$864,ROW($B$3:$B$864) - MIN(ROW($B$3:$B$864))+1,""), ROW()-2)),"") -> Zone-1 | FD3: =IFERROR(INDEX($B$3:$B$864,SMALL(IF(FD$2=$A$3:$A$864,ROW($B$3:$B$864) - MIN(ROW($B$3:$B$864))+1,""), ROW()-2)),"") -> Zone-1 | FE3: =IFERROR(INDEX($B$3:$B$864,SMALL(IF(FE$2=$A$3:$A$864,ROW($B$3:$B$864) - MIN(ROW($B$3:$B$864))+1,""), ROW()-2)),"") -> Zone-1 | FF3: =IFERROR(INDEX($B$3:$B$864,SMALL(IF(FF$2=$A$3:$A$864,ROW($B$3:$B$864) - MIN(ROW($B$3:$B$864))+1,""), ROW()-2)),"") -> Zone-1 | FG3: =IFERROR(INDEX($B$3:$B$864,SMALL(IF(FG$2=$A$3:$A$864,ROW($B$3:$B$864) - MIN(ROW($B$3:$B$864))+1,""), ROW()-2)),"") -> Zone-1 | FH3: =IFERROR(INDEX($B$3:$B$864,SMALL(IF(FH$2=$A$3:$A$864,ROW($B$3:$B$864) - MIN(ROW($B$3:$B$864))+1,""), ROW()-2)),"") -> Zone-1 | FI3: =IFERROR(INDEX($B$3:$B$864,SMALL(IF(FI$2=$A$3:$A$864,ROW($B$3:$B$864) - MIN(ROW($B$3:$B$864))+1,""), ROW()-2)),"") -> Zone-1 | FJ3: =IFERROR(INDEX($B$3:$B$864,SMALL(IF(FJ$2=$A$3:$A$864,ROW($B$3:$B$864) - MIN(ROW($B$3:$B$864))+1,""), ROW()-2)),"") -> Zone-1 | FK3: =IFERROR(INDEX($B$3:$B$864,SMALL(IF(FK$2=$A$3:$A$864,ROW($B$3:$B$864) - MIN(ROW($B$3:$B$864))+1,""), ROW()-2)),"") -> Zone-1 | FL3: =IFERROR(INDEX($B$3:$B$864,SMALL(IF(FL$2=$A$3:$A$864,ROW($B$3:$B$864) - MIN(ROW($B$3:$B$864))+1,""), ROW()-2)),"") -> Zone-1 | FM3: =IFERROR(INDEX($B$3:$B$864,SMALL(IF(FM$2=$A$3:$A$864,ROW($B$3:$B$864) - MIN(ROW($B$3:$B$864))+1,""), ROW()-2)),"") -> Zone-1 | FN3: =IFERROR(INDEX($B$3:$B$864,SMALL(IF(FN$2=$A$3:$A$864,ROW($B$3:$B$864) - MIN(ROW($B$3:$B$864))+1,""), ROW()-2)),"") -> Zone-1 | FO3: =IFERROR(INDEX($B$3:$B$864,SMALL(IF(FO$2=$A$3:$A$864,ROW($B$3:$B$864) - MIN(ROW($B$3:$B$864))+1,""), ROW()-2)),"") -> Zone-1 | FP3: =IFERROR(INDEX($B$3:$B$864,SMALL(IF(FP$2=$A$3:$A$864,ROW($B$3:$B$864) - MIN(ROW($B$3:$B$864))+1,""), ROW()-2)),"") -> Zone-1 | FQ3: =IFERROR(INDEX($B$3:$B$864,SMALL(IF(FQ$2=$A$3:$A$864,ROW($B$3:$B$864) - MIN(ROW($B$3:$B$864))+1,""), ROW()-2)),"") -> Zone-1 | FR3: =IFERROR(INDEX($B$3:$B$864,SMALL(IF(FR$2=$A$3:$A$864,ROW($B$3:$B$864) - MIN(ROW($B$3:$B$864))+1,""), ROW()-2)),"") -> Zone-1 | FS3: =IFERROR(INDEX($B$3:$B$864,SMALL(IF(FS$2=$A$3:$A$864,ROW($B$3:$B$864) - MIN(ROW($B$3:$B$864))+1,""), ROW()-2)),"") -> Zone-1 | FT3: =IFERROR(INDEX($B$3:$B$864,SMALL(IF(FT$2=$A$3:$A$864,ROW($B$3:$B$864) - MIN(ROW($B$3:$B$864))+1,""), ROW()-2)),"") -> Zone-1 | FU3: =IFERROR(INDEX($B$3:$B$864,SMALL(IF(FU$2=$A$3:$A$864,ROW($B$3:$B$864) - MIN(ROW($B$3:$B$864))+1,""), ROW()-2)),"") -> Zone-1 | FV3: =IFERROR(INDEX($B$3:$B$864,SMALL(IF(FV$2=$A$3:$A$864,ROW($B$3:$B$864) - MIN(ROW($B$3:$B$864))+1,""), ROW()-2)),"") -> Zone-1 | FW3: =IFERROR(INDEX($B$3:$B$864,SMALL(IF(FW$2=$A$3:$A$864,ROW($B$3:$B$864) - MIN(ROW($B$3:$B$864))+1,""), ROW()-2)),"") -> Zone-1 | FX3: =IFERROR(INDEX($B$3:$B$864,SMALL(IF(FX$2=$A$3:$A$864,ROW($B$3:$B$864) - MIN(ROW($B$3:$B$864))+1,""), ROW()-2)),"") -> Zone-1 | FY3: =IFERROR(INDEX($B$3:$B$864,SMALL(IF(FY$2=$A$3:$A$864,ROW($B$3:$B$864) - MIN(ROW($B$3:$B$864))+1,""), ROW()-2)),"") -> Zone-1 | FZ3: =IFERROR(INDEX($B$3:$B$864,SMALL(IF(FZ$2=$A$3:$A$864,ROW($B$3:$B$864) - MIN(ROW($B$3:$B$864))+1,""), ROW()-2)),"") -> Zone-1 | GA3: =IFERROR(INDEX($B$3:$B$864,SMALL(IF(GA$2=$A$3:$A$864,ROW($B$3:$B$864) - MIN(ROW($B$3:$B$864))+1,""), ROW()-2)),"") -> Zone-1 | GB3: =IFERROR(INDEX($B$3:$B$864,SMALL(IF(GB$2=$A$3:$A$864,ROW($B$3:$B$864) - MIN(ROW($B$3:$B$864))+1,""), ROW()-2)),"") -> Zone-1 | GC3: =IFERROR(INDEX($B$3:$B$864,SMALL(IF(GC$2=$A$3:$A$864,ROW($B$3:$B$864) - MIN(ROW($B$3:$B$864))+1,""), ROW()-2)),"") -> Zone-1 | GD3: =IFERROR(INDEX($B$3:$B$864,SMALL(IF(GD$2=$A$3:$A$864,ROW($B$3:$B$864) - MIN(ROW($B$3:$B$864))+1,""), ROW()-2)),"") -> Zone-1 | GE3: =IFERROR(INDEX($B$3:$B$864,SMALL(IF(GE$2=$A$3:$A$864,ROW($B$3:$B$864) - MIN(ROW($B$3:$B$864))+1,""), ROW()-2)),"") -> Zone-1 | GF3: =IFERROR(INDEX($B$3:$B$864,SMALL(IF(GF$2=$A$3:$A$864,ROW($B$3:$B$864) - MIN(ROW($B$3:$B$864))+1,""), ROW()-2)),"") -> Zone-1 | GG3: =IFERROR(INDEX($B$3:$B$864,SMALL(IF(GG$2=$A$3:$A$864,ROW($B$3:$B$864) - MIN(ROW($B$3:$B$864))+1,""), ROW()-2)),"") -> Zone-1 | GH3: =IFERROR(INDEX($B$3:$B$864,SMALL(IF(GH$2=$A$3:$A$864,ROW($B$3:$B$864) - MIN(ROW($B$3:$B$864))+1,""), ROW()-2)),"") -> Zone-1 | GI3: =IFERROR(INDEX($B$3:$B$864,SMALL(IF(GI$2=$A$3:$A$864,ROW($B$3:$B$864) - MIN(ROW($B$3:$B$864))+1,""), ROW()-2)),"") -> Zone-1 | GJ3: =IFERROR(INDEX($B$3:$B$864,SMALL(IF(GJ$2=$A$3:$A$864,ROW($B$3:$B$864) - MIN(ROW($B$3:$B$864))+1,""), ROW()-2)),"") -> Zone-1 | GK3: =IFERROR(INDEX($B$3:$B$864,SMALL(IF(GK$2=$A$3:$A$864,ROW($B$3:$B$864) - MIN(ROW($B$3:$B$864))+1,""), ROW()-2)),"") -> Zone-1 | GL3: =IFERROR(INDEX($B$3:$B$864,SMALL(IF(GL$2=$A$3:$A$864,ROW($B$3:$B$864) - MIN(ROW($B$3:$B$864))+1,""), ROW()-2)),"") -> Zone-1 | GM3: =IFERROR(INDEX($B$3:$B$864,SMALL(IF(GM$2=$A$3:$A$864,ROW($B$3:$B$864) - MIN(ROW($B$3:$B$864))+1,""), ROW()-2)),"") -> Zone-1 | GN3: =IFERROR(INDEX($B$3:$B$864,SMALL(IF(GN$2=$A$3:$A$864,ROW($B$3:$B$864) - MIN(ROW($B$3:$B$864))+1,""), ROW()-2)),"") -> Zone-1 | GO3: =IFERROR(INDEX($B$3:$B$864,SMALL(IF(GO$2=$A$3:$A$864,ROW($B$3:$B$864) - MIN(ROW($B$3:$B$864))+1,""), ROW()-2)),"") -> Zone-1 | GP3: =IFERROR(INDEX($B$3:$B$864,SMALL(IF(GP$2=$A$3:$A$864,ROW($B$3:$B$864) - MIN(ROW($B$3:$B$864))+1,""), ROW()-2)),"") -> Zone-1 | GQ3: =IFERROR(INDEX($B$3:$B$864,SMALL(IF(GQ$2=$A$3:$A$864,ROW($B$3:$B$864) - MIN(ROW($B$3:$B$864))+1,""), ROW()-2)),"") -> Zone-1 | GR3: =IFERROR(INDEX($B$3:$B$864,SMALL(IF(GR$2=$A$3:$A$864,ROW($B$3:$B$864) - MIN(ROW($B$3:$B$864))+1,""), ROW()-2)),"") -> Zone-1 | GS3: =IFERROR(INDEX($B$3:$B$864,SMALL(IF(GS$2=$A$3:$A$864,ROW($B$3:$B$864) - MIN(ROW($B$3:$B$864))+1,""), ROW()-2)),"") -> Zone-1 | GT3: =IFERROR(INDEX($B$3:$B$864,SMALL(IF(GT$2=$A$3:$A$864,ROW($B$3:$B$864) - MIN(ROW($B$3:$B$864))+1,""), ROW()-2)),"") -> Zone-1 | GU3: =IFERROR(INDEX($B$3:$B$864,SMALL(IF(GU$2=$A$3:$A$864,ROW($B$3:$B$864) - MIN(ROW($B$3:$B$864))+1,""), ROW()-2)),"") -> Zone-1 | GV3: =IFERROR(INDEX($B$3:$B$864,SMALL(IF(GV$2=$A$3:$A$864,ROW($B$3:$B$864) - MIN(ROW($B$3:$B$864))+1,""), ROW()-2)),"") -> Zone-1 | GW3: =IFERROR(INDEX($B$3:$B$864,SMALL(IF(GW$2=$A$3:$A$864,ROW($B$3:$B$864) - MIN(ROW($B$3:$B$864))+1,""), ROW()-2)),"") -> Zone-1 | GX3: =IFERROR(INDEX($B$3:$B$864,SMALL(IF(GX$2=$A$3:$A$864,ROW($B$3:$B$864) - MIN(ROW($B$3:$B$864))+1,""), ROW()-2)),"") -> Zone-1 | GY3: =IFERROR(INDEX($B$3:$B$864,SMALL(IF(GY$2=$A$3:$A$864,ROW($B$3:$B$864) - MIN(ROW($B$3:$B$864))+1,""), ROW()-2)),"") -> Zone-1 | GZ3: =IFERROR(INDEX($B$3:$B$864,SMALL(IF(GZ$2=$A$3:$A$864,ROW($B$3:$B$864) - MIN(ROW($B$3:$B$864))+1,""), ROW()-2)),"") -> Zone-1 | HA3: =IFERROR(INDEX($B$3:$B$864,SMALL(IF(HA$2=$A$3:$A$864,ROW($B$3:$B$864) - MIN(ROW($B$3:$B$864))+1,""), ROW()-2)),"") -> Zone-1 | HB3: =IFERROR(INDEX($B$3:$B$864,SMALL(IF(HB$2=$A$3:$A$864,ROW($B$3:$B$864) - MIN(ROW($B$3:$B$864))+1,""), ROW()-2)),"") -> Zone-1 | HC3: =IFERROR(INDEX($B$3:$B$864,SMALL(IF(HC$2=$A$3:$A$864,ROW($B$3:$B$864) - MIN(ROW($B$3:$B$864))+1,""), ROW()-2)),"") -> Zone-1 | HD3: =IFERROR(INDEX($B$3:$B$864,SMALL(IF(HD$2=$A$3:$A$864,ROW($B$3:$B$864) - MIN(ROW($B$3:$B$864))+1,""), ROW()-2)),"") -> Zone-1 | HE3: =IFERROR(INDEX($B$3:$B$864,SMALL(IF(HE$2=$A$3:$A$864,ROW($B$3:$B$864) - MIN(ROW($B$3:$B$864))+1,""), ROW()-2)),"") -> Zone-1 | HF3: =IFERROR(INDEX($B$3:$B$864,SMALL(IF(HF$2=$A$3:$A$864,ROW($B$3:$B$864) - MIN(ROW($B$3:$B$864))+1,""), ROW()-2)),"") -> Zone-1 | HG3: =IFERROR(INDEX($B$3:$B$864,SMALL(IF(HG$2=$A$3:$A$864,ROW($B$3:$B$864) - MIN(ROW($B$3:$B$864))+1,""), ROW()-2)),"") -> Zone-1 | HH3: =IFERROR(INDEX($B$3:$B$864,SMALL(IF(HH$2=$A$3:$A$864,ROW($B$3:$B$864) - MIN(ROW($B$3:$B$864))+1,""), ROW()-2)),"") -> Zone-1 | HI3: =IFERROR(INDEX($B$3:$B$864,SMALL(IF(HI$2=$A$3:$A$864,ROW($B$3:$B$864) - MIN(ROW($B$3:$B$864))+1,""), ROW()-2)),"") -> Zone-1 | HJ3: =IFERROR(INDEX($B$3:$B$864,SMALL(IF(HJ$2=$A$3:$A$864,ROW($B$3:$B$864) - MIN(ROW($B$3:$B$864))+1,""), ROW()-2)),"") -> Zone-1 | HK3: =IFERROR(INDEX($B$3:$B$864,SMALL(IF(HK$2=$A$3:$A$864,ROW($B$3:$B$864) - MIN(ROW($B$3:$B$864))+1,""), ROW()-2)),"") -> Zone-1 | HL3: =IFERROR(INDEX($B$3:$B$864,SMALL(IF(HL$2=$A$3:$A$864,ROW($B$3:$B$864) - MIN(ROW($B$3:$B$864))+1,""), ROW()-2)),"") -> Zone-1 | HM3: =IFERROR(INDEX($B$3:$B$864,SMALL(IF(HM$2=$A$3:$A$864,ROW($B$3:$B$864) - MIN(ROW($B$3:$B$864))+1,""), ROW()-2)),"") -> Zone-1 | HN3: =IFERROR(INDEX($B$3:$B$864,SMALL(IF(HN$2=$A$3:$A$864,ROW($B$3:$B$864) - MIN(ROW($B$3:$B$864))+1,""), ROW()-2)),"") -> Zone-1 | HO3: =IFERROR(INDEX($B$3:$B$864,SMALL(IF(HO$2=$A$3:$A$864,ROW($B$3:$B$864) - MIN(ROW($B$3:$B$864))+1,""), ROW()-2)),"") -> Zone-1 | HP3: =IFERROR(INDEX($B$3:$B$864,SMALL(IF(HP$2=$A$3:$A$864,ROW($B$3:$B$864) - MIN(ROW($B$3:$B$864))+1,""), ROW()-2)),"") -> Zone-1 | HQ3: =IFERROR(INDEX($B$3:$B$864,SMALL(IF(HQ$2=$A$3:$A$864,ROW($B$3:$B$864) - MIN(ROW($B$3:$B$864))+1,""), ROW()-2)),"") -> Zone-1 | HR3: =IFERROR(INDEX($B$3:$B$864,SMALL(IF(HR$2=$A$3:$A$864,ROW($B$3:$B$864) - MIN(ROW($B$3:$B$864))+1,""), ROW()-2)),"") -> Zone-1 | HS3: =IFERROR(INDEX($B$3:$B$864,SMALL(IF(HS$2=$A$3:$A$864,ROW($B$3:$B$864) - MIN(ROW($B$3:$B$864))+1,""), ROW()-2)),"") -> Zone-1 | HT3: =IFERROR(INDEX($B$3:$B$864,SMALL(IF(HT$2=$A$3:$A$864,ROW($B$3:$B$864) - MIN(ROW($B$3:$B$864))+1,""), ROW()-2)),"") -> Zone-1 | HU3: =IFERROR(INDEX($B$3:$B$864,SMALL(IF(HU$2=$A$3:$A$864,ROW($B$3:$B$864) - MIN(ROW($B$3:$B$864))+1,""), ROW()-2)),"") -> Zone-1 | HV3: =IFERROR(INDEX($B$3:$B$864,SMALL(IF(HV$2=$A$3:$A$864,ROW($B$3:$B$864) - MIN(ROW($B$3:$B$864))+1,""), ROW()-2)),"") -> Zone-1 | HW3: =IFERROR(INDEX($B$3:$B$864,SMALL(IF(HW$2=$A$3:$A$864,ROW($B$3:$B$864) - MIN(ROW($B$3:$B$864))+1,""), ROW()-2)),"") -> Zone-1 | HX3: =IFERROR(INDEX($B$3:$B$864,SMALL(IF(HX$2=$A$3:$A$864,ROW($B$3:$B$864) - MIN(ROW($B$3:$B$864))+1,""), ROW()-2)),"") -> Zone-1 | HY3: =IFERROR(INDEX($B$3:$B$864,SMALL(IF(HY$2=$A$3:$A$864,ROW($B$3:$B$864) - MIN(ROW($B$3:$B$864))+1,""), ROW()-2)),"") -> Zone-1 | HZ3: =IFERROR(INDEX($B$3:$B$864,SMALL(IF(HZ$2=$A$3:$A$864,ROW($B$3:$B$864) - MIN(ROW($B$3:$B$864))+1,""), ROW()-2)),"") -> Zone-1 | IA3: =IFERROR(INDEX($B$3:$B$864,SMALL(IF(IA$2=$A$3:$A$864,ROW($B$3:$B$864) - MIN(ROW($B$3:$B$864))+1,""), ROW()-2)),"") -> Zone-1 | IB3: =IFERROR(INDEX($B$3:$B$864,SMALL(IF(IB$2=$A$3:$A$864,ROW($B$3:$B$864) - MIN(ROW($B$3:$B$864))+1,""), ROW()-2)),"") -> Zone-1 | IC3: =IFERROR(INDEX($B$3:$B$864,SMALL(IF(IC$2=$A$3:$A$864,ROW($B$3:$B$864) - MIN(ROW($B$3:$B$864))+1,""), ROW()-2)),"") -> Zone-1 | ID3: =IFERROR(INDEX($B$3:$B$864,SMALL(IF(ID$2=$A$3:$A$864,ROW($B$3:$B$864) - MIN(ROW($B$3:$B$864))+1,""), ROW()-2)),"") -> Zone-1 | IE3: =IFERROR(INDEX($B$3:$B$864,SMALL(IF(IE$2=$A$3:$A$864,ROW($B$3:$B$864) - MIN(ROW($B$3:$B$864))+1,""), ROW()-2)),"") -> Zone-1 | IF3: =IFERROR(INDEX($B$3:$B$864,SMALL(IF(IF$2=$A$3:$A$864,ROW($B$3:$B$864) - MIN(ROW($B$3:$B$864))+1,""), ROW()-2)),"") -> Zone-1 | IG3: =IFERROR(INDEX($B$3:$B$864,SMALL(IF(IG$2=$A$3:$A$864,ROW($B$3:$B$864) - MIN(ROW($B$3:$B$864))+1,""), ROW()-2)),"") -> Zone-1 | IH3: =IFERROR(INDEX($B$3:$B$864,SMALL(IF(IH$2=$A$3:$A$864,ROW($B$3:$B$864) - MIN(ROW($B$3:$B$864))+1,""), ROW()-2)),"") -> Zone-1 | II3: =IFERROR(INDEX($B$3:$B$864,SMALL(IF(II$2=$A$3:$A$864,ROW($B$3:$B$864) - MIN(ROW($B$3:$B$864))+1,""), ROW()-2)),"") -> Zone-1 | IJ3: =IFERROR(INDEX($B$3:$B$864,SMALL(IF(IJ$2=$A$3:$A$864,ROW($B$3:$B$864) - MIN(ROW($B$3:$B$864))+1,""), ROW()-2)),"") -> Zone-1 | IK3: =IFERROR(INDEX($B$3:$B$864,SMALL(IF(IK$2=$A$3:$A$864,ROW($B$3:$B$864) - MIN(ROW($B$3:$B$864))+1,""), ROW()-2)),"") -> Zone-1 | IL3: =IFERROR(INDEX($B$3:$B$864,SMALL(IF(IL$2=$A$3:$A$864,ROW($B$3:$B$864) - MIN(ROW($B$3:$B$864))+1,""), ROW()-2)),"") -> Zone-1 | IM3: =IFERROR(INDEX($B$3:$B$864,SMALL(IF(IM$2=$A$3:$A$864,ROW($B$3:$B$864) - MIN(ROW($B$3:$B$864))+1,""), ROW()-2)),"") -> Zone-1 | IN3: =IFERROR(INDEX($B$3:$B$864,SMALL(IF(IN$2=$A$3:$A$864,ROW($B$3:$B$864) - MIN(ROW($B$3:$B$864))+1,""), ROW()-2)),"") -> Zone-1 | IO3: =IFERROR(INDEX($B$3:$B$864,SMALL(IF(IO$2=$A$3:$A$864,ROW($B$3:$B$864) - MIN(ROW($B$3:$B$864))+1,""), ROW()-2)),"") -> Zone-1 | IP3: =IFERROR(INDEX($B$3:$B$864,SMALL(IF(IP$2=$A$3:$A$864,ROW($B$3:$B$864) - MIN(ROW($B$3:$B$864))+1,""), ROW()-2)),"") -> Zone-1 | IQ3: =IFERROR(INDEX($B$3:$B$864,SMALL(IF(IQ$2=$A$3:$A$864,ROW($B$3:$B$864) - MIN(ROW($B$3:$B$864))+1,""), ROW()-2)),"") -> Lake Creek | IR3: =IFERROR(INDEX($B$3:$B$864,SMALL(IF(IR$2=$A$3:$A$864,ROW($B$3:$B$864) - MIN(ROW($B$3:$B$864))+1,""), ROW()-2)),"") -> Zone-1 | IS3: =IFERROR(INDEX($B$3:$B$864,SMALL(IF(IS$2=$A$3:$A$864,ROW($B$3:$B$864) - MIN(ROW($B$3:$B$864))+1,""), ROW()-2)),"") -> Zone-1 | IT3: =IFERROR(INDEX($B$3:$B$864,SMALL(IF(IT$2=$A$3:$A$864,ROW($B$3:$B$864) - MIN(ROW($B$3:$B$864))+1,""), ROW()-2)),"") -> Zone-1 | IU3: =IFERROR(INDEX($B$3:$B$864,SMALL(IF(IU$2=$A$3:$A$864,ROW($B$3:$B$864) - MIN(ROW($B$3:$B$864))+1,""), ROW()-2)),"") -> Zone-1 | IV3: =IFERROR(INDEX($B$3:$B$864,SMALL(IF(IV$2=$A$3:$A$864,ROW($B$3:$B$864) - MIN(ROW($B$3:$B$864))+1,""), ROW()-2)),"") -> Zone-1 | IW3: =IFERROR(INDEX($B$3:$B$864,SMALL(IF(IW$2=$A$3:$A$864,ROW($B$3:$B$864) - MIN(ROW($B$3:$B$864))+1,""), ROW()-2)),"") -> Zone-1 | IX3: =IFERROR(INDEX($B$3:$B$864,SMALL(IF(IX$2=$A$3:$A$864,ROW($B$3:$B$864) - MIN(ROW($B$3:$B$864))+1,""), ROW()-2)),"") -> Zone-1 | IY3: =IFERROR(INDEX($B$3:$B$864,SMALL(IF(IY$2=$A$3:$A$864,ROW($B$3:$B$864) - MIN(ROW($B$3:$B$864))+1,""), ROW()-2)),"") -> Zone-1
A4: =IFERROR(ebd_Annual!A4," ") -> Andrews | B4: =IFERROR(ebd_Annual!B4," ") -> Zone-1 | C4: Andrews County has 1 rainfall zone. | F4: =IFERROR(INDEX($B$3:$B$864,SMALL(IF(F$2=$A$3:$A$864,ROW($B$3:$B$864) - MIN(ROW($B$3:$B$864))+1,""), ROW()-2)),"") ->  | G4: =IFERROR(INDEX($B$3:$B$864,SMALL(IF(G$2=$A$3:$A$864,ROW($B$3:$B$864) - MIN(ROW($B$3:$B$864))+1,""), ROW()-2)),"") ->  | H4: =IFERROR(INDEX($B$3:$B$864,SMALL(IF(H$2=$A$3:$A$864,ROW($B$3:$B$864) - MIN(ROW($B$3:$B$864))+1,""), ROW()-2)),"") ->  | I4: =IFERROR(INDEX($B$3:$B$864,SMALL(IF(I$2=$A$3:$A$864,ROW($B$3:$B$864) - MIN(ROW($B$3:$B$864))+1,""), ROW()-2)),"") ->  | J4: =IFERROR(INDEX($B$3:$B$864,SMALL(IF(J$2=$A$3:$A$864,ROW($B$3:$B$864) - MIN(ROW($B$3:$B$864))+1,""), ROW()-2)),"") ->  | K4: =IFERROR(INDEX($B$3:$B$864,SMALL(IF(K$2=$A$3:$A$864,ROW($B$3:$B$864) - MIN(ROW($B$3:$B$864))+1,""), ROW()-2)),"") ->  | L4: =IFERROR(INDEX($B$3:$B$864,SMALL(IF(L$2=$A$3:$A$864,ROW($B$3:$B$864) - MIN(ROW($B$3:$B$864))+1,""), ROW()-2)),"") ->  | M4: =IFERROR(INDEX($B$3:$B$864,SMALL(IF(M$2=$A$3:$A$864,ROW($B$3:$B$864) - MIN(ROW($B$3:$B$864))+1,""), ROW()-2)),"") ->  | N4: =IFERROR(INDEX($B$3:$B$864,SMALL(IF(N$2=$A$3:$A$864,ROW($B$3:$B$864) - MIN(ROW($B$3:$B$864))+1,""), ROW()-2)),"") ->  | O4: =IFERROR(INDEX($B$3:$B$864,SMALL(IF(O$2=$A$3:$A$864,ROW($B$3:$B$864) - MIN(ROW($B$3:$B$864))+1,""), ROW()-2)),"") ->  | P4: =IFERROR(INDEX($B$3:$B$864,SMALL(IF(P$2=$A$3:$A$864,ROW($B$3:$B$864) - MIN(ROW($B$3:$B$864))+1,""), ROW()-2)),"") ->  | Q4: =IFERROR(INDEX($B$3:$B$864,SMALL(IF(Q$2=$A$3:$A$864,ROW($B$3:$B$864) - MIN(ROW($B$3:$B$864))+1,""), ROW()-2)),"") ->  | R4: =IFERROR(INDEX($B$3:$B$864,SMALL(IF(R$2=$A$3:$A$864,ROW($B$3:$B$864) - MIN(ROW($B$3:$B$864))+1,""), ROW()-2)),"") ->  | S4: =IFERROR(INDEX($B$3:$B$864,SMALL(IF(S$2=$A$3:$A$864,ROW($B$3:$B$864) - MIN(ROW($B$3:$B$864))+1,""), ROW()-2)),"") ->  | T4: =IFERROR(INDEX($B$3:$B$864,SMALL(IF(T$2=$A$3:$A$864,ROW($B$3:$B$864) - MIN(ROW($B$3:$B$864))+1,""), ROW()-2)),"") -> PA-4 | U4: =IFERROR(INDEX($B$3:$B$864,SMALL(IF(U$2=$A$3:$A$864,ROW($B$3:$B$864) - MIN(ROW($B$3:$B$864))+1,""), ROW()-2)),"") ->  | V4: =IFERROR(INDEX($B$3:$B$864,SMALL(IF(V$2=$A$3:$A$864,ROW($B$3:$B$864) - MIN(ROW($B$3:$B$864))+1,""), ROW()-2)),"") ->  | W4: =IFERROR(INDEX($B$3:$B$864,SMALL(IF(W$2=$A$3:$A$864,ROW($B$3:$B$864) - MIN(ROW($B$3:$B$864))+1,""), ROW()-2)),"") ->  | X4: =IFERROR(INDEX($B$3:$B$864,SMALL(IF(X$2=$A$3:$A$864,ROW($B$3:$B$864) - MIN(ROW($B$3:$B$864))+1,""), ROW()-2)),"") ->  | Y4: =IFERROR(INDEX($B$3:$B$864,SMALL(IF(Y$2=$A$3:$A$864,ROW($B$3:$B$864) - MIN(ROW($B$3:$B$864))+1,""), ROW()-2)),"") ->  | Z4: =IFERROR(INDEX($B$3:$B$864,SMALL(IF(Z$2=$A$3:$A$864,ROW($B$3:$B$864) - MIN(ROW($B$3:$B$864))+1,""), ROW()-2)),"") -> Zone-2 | AA4: =IFERROR(INDEX($B$3:$B$864,SMALL(IF(AA$2=$A$3:$A$864,ROW($B$3:$B$864) - MIN(ROW($B$3:$B$864))+1,""), ROW()-2)),"") -> Zone-2 | AB4: =IFERROR(INDEX($B$3:$B$864,SMALL(IF(AB$2=$A$3:$A$864,ROW($B$3:$B$864) - MIN(ROW($B$3:$B$864))+1,""), ROW()-2)),"") ->  | AC4: =IFERROR(INDEX($B$3:$B$864,SMALL(IF(AC$2=$A$3:$A$864,ROW($B$3:$B$864) - MIN(ROW($B$3:$B$864))+1,""), ROW()-2)),"") ->  | AD4: =IFERROR(INDEX($B$3:$B$864,SMALL(IF(AD$2=$A$3:$A$864,ROW($B$3:$B$864) - MIN(ROW($B$3:$B$864))+1,""), ROW()-2)),"") ->  | AE4: =IFERROR(INDEX($B$3:$B$864,SMALL(IF(AE$2=$A$3:$A$864,ROW($B$3:$B$864) - MIN(ROW($B$3:$B$864))+1,""), ROW()-2)),"") ->  | AF4: =IFERROR(INDEX($B$3:$B$864,SMALL(IF(AF$2=$A$3:$A$864,ROW($B$3:$B$864) - MIN(ROW($B$3:$B$864))+1,""), ROW()-2)),"") -> Zone-2 | AG4: =IFERROR(INDEX($B$3:$B$864,SMALL(IF(AG$2=$A$3:$A$864,ROW($B$3:$B$864) - MIN(ROW($B$3:$B$864))+1,""), ROW()-2)),"") ->  | AH4: =IFERROR(INDEX($B$3:$B$864,SMALL(IF(AH$2=$A$3:$A$864,ROW($B$3:$B$864) - MIN(ROW($B$3:$B$864))+1,""), ROW()-2)),"") ->  | AI4: =IFERROR(INDEX($B$3:$B$864,SMALL(IF(AI$2=$A$3:$A$864,ROW($B$3:$B$864) - MIN(ROW($B$3:$B$864))+1,""), ROW()-2)),"") ->  | AJ4: =IFERROR(INDEX($B$3:$B$864,SMALL(IF(AJ$2=$A$3:$A$864,ROW($B$3:$B$864) - MIN(ROW($B$3:$B$864))+1,""), ROW()-2)),"") ->  | AK4: =IFERROR(INDEX($B$3:$B$864,SMALL(IF(AK$2=$A$3:$A$864,ROW($B$3:$B$864) - MIN(ROW($B$3:$B$864))+1,""), ROW()-2)),"") ->  | AL4: =IFERROR(INDEX($B$3:$B$864,SMALL(IF(AL$2=$A$3:$A$864,ROW($B$3:$B$864) - MIN(ROW($B$3:$B$864))+1,""), ROW()-2)),"") ->  | AM4: =IFERROR(INDEX($B$3:$B$864,SMALL(IF(AM$2=$A$3:$A$864,ROW($B$3:$B$864) - MIN(ROW($B$3:$B$864))+1,""), ROW()-2)),"") ->  | AN4: =IFERROR(INDEX($B$3:$B$864,SMALL(IF(AN$2=$A$3:$A$864,ROW($B$3:$B$864) - MIN(ROW($B$3:$B$864))+1,""), ROW()-2)),"") ->  | AO4: =IFERROR(INDEX($B$3:$B$864,SMALL(IF(AO$2=$A$3:$A$864,ROW($B$3:$B$864) - MIN(ROW($B$3:$B$864))+1,""), ROW()-2)),"") ->  | AP4: =IFERROR(INDEX($B$3:$B$864,SMALL(IF(AP$2=$A$3:$A$864,ROW($B$3:$B$864) - MIN(ROW($B$3:$B$864))+1,""), ROW()-2)),"") ->  | AQ4: =IFERROR(INDEX($B$3:$B$864,SMALL(IF(AQ$2=$A$3:$A$864,ROW($B$3:$B$864) - MIN(ROW($B$3:$B$864))+1,""), ROW()-2)),"") ->  | AR4: =IFERROR(INDEX($B$3:$B$864,SMALL(IF(AR$2=$A$3:$A$864,ROW($B$3:$B$864) - MIN(ROW($B$3:$B$864))+1,""), ROW()-2)),"") ->  | AS4: =IFERROR(INDEX($B$3:$B$864,SMALL(IF(AS$2=$A$3:$A$864,ROW($B$3:$B$864) - MIN(ROW($B$3:$B$864))+1,""), ROW()-2)),"") ->  | AT4: =IFERROR(INDEX($B$3:$B$864,SMALL(IF(AT$2=$A$3:$A$864,ROW($B$3:$B$864) - MIN(ROW($B$3:$B$864))+1,""), ROW()-2)),"") ->  | AU4: =IFERROR(INDEX($B$3:$B$864,SMALL(IF(AU$2=$A$3:$A$864,ROW($B$3:$B$864) - MIN(ROW($B$3:$B$864))+1,""), ROW()-2)),"") ->  | AV4: =IFERROR(INDEX($B$3:$B$864,SMALL(IF(AV$2=$A$3:$A$864,ROW($B$3:$B$864) - MIN(ROW($B$3:$B$864))+1,""), ROW()-2)),"") ->  | AW4: =IFERROR(INDEX($B$3:$B$864,SMALL(IF(AW$2=$A$3:$A$864,ROW($B$3:$B$864) - MIN(ROW($B$3:$B$864))+1,""), ROW()-2)),"") ->  | AX4: =IFERROR(INDEX($B$3:$B$864,SMALL(IF(AX$2=$A$3:$A$864,ROW($B$3:$B$864) - MIN(ROW($B$3:$B$864))+1,""), ROW()-2)),"") ->  | AY4: =IFERROR(INDEX($B$3:$B$864,SMALL(IF(AY$2=$A$3:$A$864,ROW($B$3:$B$864) - MIN(ROW($B$3:$B$864))+1,""), ROW()-2)),"") ->  | AZ4: =IFERROR(INDEX($B$3:$B$864,SMALL(IF(AZ$2=$A$3:$A$864,ROW($B$3:$B$864) - MIN(ROW($B$3:$B$864))+1,""), ROW()-2)),"") ->  | BA4: =IFERROR(INDEX($B$3:$B$864,SMALL(IF(BA$2=$A$3:$A$864,ROW($B$3:$B$864) - MIN(ROW($B$3:$B$864))+1,""), ROW()-2)),"") ->  | BB4: =IFERROR(INDEX($B$3:$B$864,SMALL(IF(BB$2=$A$3:$A$864,ROW($B$3:$B$864) - MIN(ROW($B$3:$B$864))+1,""), ROW()-2)),"") ->  | BC4: =IFERROR(INDEX($B$3:$B$864,SMALL(IF(BC$2=$A$3:$A$864,ROW($B$3:$B$864) - MIN(ROW($B$3:$B$864))+1,""), ROW()-2)),"") ->  | BD4: =IFERROR(INDEX($B$3:$B$864,SMALL(IF(BD$2=$A$3:$A$864,ROW($B$3:$B$864) - MIN(ROW($B$3:$B$864))+1,""), ROW()-2)),"") ->  | BE4: =IFERROR(INDEX($B$3:$B$864,SMALL(IF(BE$2=$A$3:$A$864,ROW($B$3:$B$864) - MIN(ROW($B$3:$B$864))+1,""), ROW()-2)),"") ->  | BF4: =IFERROR(INDEX($B$3:$B$864,SMALL(IF(BF$2=$A$3:$A$864,ROW($B$3:$B$864) - MIN(ROW($B$3:$B$864))+1,""), ROW()-2)),"") -> Zone-2 | BG4: =IFERROR(INDEX($B$3:$B$864,SMALL(IF(BG$2=$A$3:$A$864,ROW($B$3:$B$864) - MIN(ROW($B$3:$B$864))+1,""), ROW()-2)),"") ->  | BH4: =IFERROR(INDEX($B$3:$B$864,SMALL(IF(BH$2=$A$3:$A$864,ROW($B$3:$B$864) - MIN(ROW($B$3:$B$864))+1,""), ROW()-2)),"") -> Zone-2 | BI4: =IFERROR(INDEX($B$3:$B$864,SMALL(IF(BI$2=$A$3:$A$864,ROW($B$3:$B$864) - MIN(ROW($B$3:$B$864))+1,""), ROW()-2)),"") ->  | BJ4: =IFERROR(INDEX($B$3:$B$864,SMALL(IF(BJ$2=$A$3:$A$864,ROW($B$3:$B$864) - MIN(ROW($B$3:$B$864))+1,""), ROW()-2)),"") ->  | BK4: =IFERROR(INDEX($B$3:$B$864,SMALL(IF(BK$2=$A$3:$A$864,ROW($B$3:$B$864) - MIN(ROW($B$3:$B$864))+1,""), ROW()-2)),"") ->  | BL4: =IFERROR(INDEX($B$3:$B$864,SMALL(IF(BL$2=$A$3:$A$864,ROW($B$3:$B$864) - MIN(ROW($B$3:$B$864))+1,""), ROW()-2)),"") ->  | BM4: =IFERROR(INDEX($B$3:$B$864,SMALL(IF(BM$2=$A$3:$A$864,ROW($B$3:$B$864) - MIN(ROW($B$3:$B$864))+1,""), ROW()-2)),"") ->  | BN4: =IFERROR(INDEX($B$3:$B$864,SMALL(IF(BN$2=$A$3:$A$864,ROW($B$3:$B$864) - MIN(ROW($B$3:$B$864))+1,""), ROW()-2)),"") ->  | BO4: =IFERROR(INDEX($B$3:$B$864,SMALL(IF(BO$2=$A$3:$A$864,ROW($B$3:$B$864) - MIN(ROW($B$3:$B$864))+1,""), ROW()-2)),"") ->  | BP4: =IFERROR(INDEX($B$3:$B$864,SMALL(IF(BP$2=$A$3:$A$864,ROW($B$3:$B$864) - MIN(ROW($B$3:$B$864))+1,""), ROW()-2)),"") ->  | BQ4: =IFERROR(INDEX($B$3:$B$864,SMALL(IF(BQ$2=$A$3:$A$864,ROW($B$3:$B$864) - MIN(ROW($B$3:$B$864))+1,""), ROW()-2)),"") ->  | BR4: =IFERROR(INDEX($B$3:$B$864,SMALL(IF(BR$2=$A$3:$A$864,ROW($B$3:$B$864) - MIN(ROW($B$3:$B$864))+1,""), ROW()-2)),"") ->  | BS4: =IFERROR(INDEX($B$3:$B$864,SMALL(IF(BS$2=$A$3:$A$864,ROW($B$3:$B$864) - MIN(ROW($B$3:$B$864))+1,""), ROW()-2)),"") ->  | BT4: =IFERROR(INDEX($B$3:$B$864,SMALL(IF(BT$2=$A$3:$A$864,ROW($B$3:$B$864) - MIN(ROW($B$3:$B$864))+1,""), ROW()-2)),"") ->  | BU4: =IFERROR(INDEX($B$3:$B$864,SMALL(IF(BU$2=$A$3:$A$864,ROW($B$3:$B$864) - MIN(ROW($B$3:$B$864))+1,""), ROW()-2)),"") ->  | BV4: =IFERROR(INDEX($B$3:$B$864,SMALL(IF(BV$2=$A$3:$A$864,ROW($B$3:$B$864) - MIN(ROW($B$3:$B$864))+1,""), ROW()-2)),"") -> Zone-2 | BW4: =IFERROR(INDEX($B$3:$B$864,SMALL(IF(BW$2=$A$3:$A$864,ROW($B$3:$B$864) - MIN(ROW($B$3:$B$864))+1,""), ROW()-2)),"") -> Zone-2 | BX4: =IFERROR(INDEX($B$3:$B$864,SMALL(IF(BX$2=$A$3:$A$864,ROW($B$3:$B$864) - MIN(ROW($B$3:$B$864))+1,""), ROW()-2)),"") ->  | BY4: =IFERROR(INDEX($B$3:$B$864,SMALL(IF(BY$2=$A$3:$A$864,ROW($B$3:$B$864) - MIN(ROW($B$3:$B$864))+1,""), ROW()-2)),"") ->  | BZ4: =IFERROR(INDEX($B$3:$B$864,SMALL(IF(BZ$2=$A$3:$A$864,ROW($B$3:$B$864) - MIN(ROW($B$3:$B$864))+1,""), ROW()-2)),"") ->  | CA4: =IFERROR(INDEX($B$3:$B$864,SMALL(IF(CA$2=$A$3:$A$864,ROW($B$3:$B$864) - MIN(ROW($B$3:$B$864))+1,""), ROW()-2)),"") ->  | CB4: =IFERROR(INDEX($B$3:$B$864,SMALL(IF(CB$2=$A$3:$A$864,ROW($B$3:$B$864) - MIN(ROW($B$3:$B$864))+1,""), ROW()-2)),"") ->  | CC4: =IFERROR(INDEX($B$3:$B$864,SMALL(IF(CC$2=$A$3:$A$864,ROW($B$3:$B$864) - MIN(ROW($B$3:$B$864))+1,""), ROW()-2)),"") ->  | CD4: =IFERROR(INDEX($B$3:$B$864,SMALL(IF(CD$2=$A$3:$A$864,ROW($B$3:$B$864) - MIN(ROW($B$3:$B$864))+1,""), ROW()-2)),"") ->  | CE4: =IFERROR(INDEX($B$3:$B$864,SMALL(IF(CE$2=$A$3:$A$864,ROW($B$3:$B$864) - MIN(ROW($B$3:$B$864))+1,""), ROW()-2)),"") ->  | CF4: =IFERROR(INDEX($B$3:$B$864,SMALL(IF(CF$2=$A$3:$A$864,ROW($B$3:$B$864) - MIN(ROW($B$3:$B$864))+1,""), ROW()-2)),"") ->  | CG4: =IFERROR(INDEX($B$3:$B$864,SMALL(IF(CG$2=$A$3:$A$864,ROW($B$3:$B$864) - MIN(ROW($B$3:$B$864))+1,""), ROW()-2)),"") ->  | CH4: =IFERROR(INDEX($B$3:$B$864,SMALL(IF(CH$2=$A$3:$A$864,ROW($B$3:$B$864) - MIN(ROW($B$3:$B$864))+1,""), ROW()-2)),"") ->  | CI4: =IFERROR(INDEX($B$3:$B$864,SMALL(IF(CI$2=$A$3:$A$864,ROW($B$3:$B$864) - MIN(ROW($B$3:$B$864))+1,""), ROW()-2)),"") ->  | CJ4: =IFERROR(INDEX($B$3:$B$864,SMALL(IF(CJ$2=$A$3:$A$864,ROW($B$3:$B$864) - MIN(ROW($B$3:$B$864))+1,""), ROW()-2)),"") ->  | CK4: =IFERROR(INDEX($B$3:$B$864,SMALL(IF(CK$2=$A$3:$A$864,ROW($B$3:$B$864) - MIN(ROW($B$3:$B$864))+1,""), ROW()-2)),"") ->  | CL4: =IFERROR(INDEX($B$3:$B$864,SMALL(IF(CL$2=$A$3:$A$864,ROW($B$3:$B$864) - MIN(ROW($B$3:$B$864))+1,""), ROW()-2)),"") ->  | CM4: =IFERROR(INDEX($B$3:$B$864,SMALL(IF(CM$2=$A$3:$A$864,ROW($B$3:$B$864) - MIN(ROW($B$3:$B$864))+1,""), ROW()-2)),"") -> Zone-2 | CN4: =IFERROR(INDEX($B$3:$B$864,SMALL(IF(CN$2=$A$3:$A$864,ROW($B$3:$B$864) - MIN(ROW($B$3:$B$864))+1,""), ROW()-2)),"") ->  | CO4: =IFERROR(INDEX($B$3:$B$864,SMALL(IF(CO$2=$A$3:$A$864,ROW($B$3:$B$864) - MIN(ROW($B$3:$B$864))+1,""), ROW()-2)),"") ->  | CP4: =IFERROR(INDEX($B$3:$B$864,SMALL(IF(CP$2=$A$3:$A$864,ROW($B$3:$B$864) - MIN(ROW($B$3:$B$864))+1,""), ROW()-2)),"") ->  | CQ4: =IFERROR(INDEX($B$3:$B$864,SMALL(IF(CQ$2=$A$3:$A$864,ROW($B$3:$B$864) - MIN(ROW($B$3:$B$864))+1,""), ROW()-2)),"") ->  | CR4: =IFERROR(INDEX($B$3:$B$864,SMALL(IF(CR$2=$A$3:$A$864,ROW($B$3:$B$864) - MIN(ROW($B$3:$B$864))+1,""), ROW()-2)),"") ->  | CS4: =IFERROR(INDEX($B$3:$B$864,SMALL(IF(CS$2=$A$3:$A$864,ROW($B$3:$B$864) - MIN(ROW($B$3:$B$864))+1,""), ROW()-2)),"") ->  | CT4: =IFERROR(INDEX($B$3:$B$864,SMALL(IF(CT$2=$A$3:$A$864,ROW($B$3:$B$864) - MIN(ROW($B$3:$B$864))+1,""), ROW()-2)),"") -> Zone-2 | CU4: =IFERROR(INDEX($B$3:$B$864,SMALL(IF(CU$2=$A$3:$A$864,ROW($B$3:$B$864) - MIN(ROW($B$3:$B$864))+1,""), ROW()-2)),"") ->  | CV4: =IFERROR(INDEX($B$3:$B$864,SMALL(IF(CV$2=$A$3:$A$864,ROW($B$3:$B$864) - MIN(ROW($B$3:$B$864))+1,""), ROW()-2)),"") ->  | CW4: =IFERROR(INDEX($B$3:$B$864,SMALL(IF(CW$2=$A$3:$A$864,ROW($B$3:$B$864) - MIN(ROW($B$3:$B$864))+1,""), ROW()-2)),"") ->  | CX4: =IFERROR(INDEX($B$3:$B$864,SMALL(IF(CX$2=$A$3:$A$864,ROW($B$3:$B$864) - MIN(ROW($B$3:$B$864))+1,""), ROW()-2)),"") ->  | CY4: =IFERROR(INDEX($B$3:$B$864,SMALL(IF(CY$2=$A$3:$A$864,ROW($B$3:$B$864) - MIN(ROW($B$3:$B$864))+1,""), ROW()-2)),"") ->  | CZ4: =IFERROR(INDEX($B$3:$B$864,SMALL(IF(CZ$2=$A$3:$A$864,ROW($B$3:$B$864) - MIN(ROW($B$3:$B$864))+1,""), ROW()-2)),"") ->  | DA4: =IFERROR(INDEX($B$3:$B$864,SMALL(IF(DA$2=$A$3:$A$864,ROW($B$3:$B$864) - MIN(ROW($B$3:$B$864))+1,""), ROW()-2)),"") -> Zone-2 | DB4: =IFERROR(INDEX($B$3:$B$864,SMALL(IF(DB$2=$A$3:$A$864,ROW($B$3:$B$864) - MIN(ROW($B$3:$B$864))+1,""), ROW()-2)),"") ->  | DC4: =IFERROR(INDEX($B$3:$B$864,SMALL(IF(DC$2=$A$3:$A$864,ROW($B$3:$B$864) - MIN(ROW($B$3:$B$864))+1,""), ROW()-2)),"") ->  | DD4: =IFERROR(INDEX($B$3:$B$864,SMALL(IF(DD$2=$A$3:$A$864,ROW($B$3:$B$864) - MIN(ROW($B$3:$B$864))+1,""), ROW()-2)),"") ->  | DE4: =IFERROR(INDEX($B$3:$B$864,SMALL(IF(DE$2=$A$3:$A$864,ROW($B$3:$B$864) - MIN(ROW($B$3:$B$864))+1,""), ROW()-2)),"") ->  | DF4: =IFERROR(INDEX($B$3:$B$864,SMALL(IF(DF$2=$A$3:$A$864,ROW($B$3:$B$864) - MIN(ROW($B$3:$B$864))+1,""), ROW()-2)),"") ->  | DG4: =IFERROR(INDEX($B$3:$B$864,SMALL(IF(DG$2=$A$3:$A$864,ROW($B$3:$B$864) - MIN(ROW($B$3:$B$864))+1,""), ROW()-2)),"") ->  | DH4: =IFERROR(INDEX($B$3:$B$864,SMALL(IF(DH$2=$A$3:$A$864,ROW($B$3:$B$864) - MIN(ROW($B$3:$B$864))+1,""), ROW()-2)),"") ->  | DI4: =IFERROR(INDEX($B$3:$B$864,SMALL(IF(DI$2=$A$3:$A$864,ROW($B$3:$B$864) - MIN(ROW($B$3:$B$864))+1,""), ROW()-2)),"") ->  | DJ4: =IFERROR(INDEX($B$3:$B$864,SMALL(IF(DJ$2=$A$3:$A$864,ROW($B$3:$B$864) - MIN(ROW($B$3:$B$864))+1,""), ROW()-2)),"") ->  | DK4: =IFERROR(INDEX($B$3:$B$864,SMALL(IF(DK$2=$A$3:$A$864,ROW($B$3:$B$864) - MIN(ROW($B$3:$B$864))+1,""), ROW()-2)),"") ->  | DL4: =IFERROR(INDEX($B$3:$B$864,SMALL(IF(DL$2=$A$3:$A$864,ROW($B$3:$B$864) - MIN(ROW($B$3:$B$864))+1,""), ROW()-2)),"") ->  | DM4: =IFERROR(INDEX($B$3:$B$864,SMALL(IF(DM$2=$A$3:$A$864,ROW($B$3:$B$864) - MIN(ROW($B$3:$B$864))+1,""), ROW()-2)),"") ->  | DN4: =IFERROR(INDEX($B$3:$B$864,SMALL(IF(DN$2=$A$3:$A$864,ROW($B$3:$B$864) - MIN(ROW($B$3:$B$864))+1,""), ROW()-2)),"") ->  | DO4: =IFERROR(INDEX($B$3:$B$864,SMALL(IF(DO$2=$A$3:$A$864,ROW($B$3:$B$864) - MIN(ROW($B$3:$B$864))+1,""), ROW()-2)),"") ->  | DP4: =IFERROR(INDEX($B$3:$B$864,SMALL(IF(DP$2=$A$3:$A$864,ROW($B$3:$B$864) - MIN(ROW($B$3:$B$864))+1,""), ROW()-2)),"") -> Zone-2 | DQ4: =IFERROR(INDEX($B$3:$B$864,SMALL(IF(DQ$2=$A$3:$A$864,ROW($B$3:$B$864) - MIN(ROW($B$3:$B$864))+1,""), ROW()-2)),"") ->  | DR4: =IFERROR(INDEX($B$3:$B$864,SMALL(IF(DR$2=$A$3:$A$864,ROW($B$3:$B$864) - MIN(ROW($B$3:$B$864))+1,""), ROW()-2)),"") ->  | DS4: =IFERROR(INDEX($B$3:$B$864,SMALL(IF(DS$2=$A$3:$A$864,ROW($B$3:$B$864) - MIN(ROW($B$3:$B$864))+1,""), ROW()-2)),"") ->  | DT4: =IFERROR(INDEX($B$3:$B$864,SMALL(IF(DT$2=$A$3:$A$864,ROW($B$3:$B$864) - MIN(ROW($B$3:$B$864))+1,""), ROW()-2)),"") ->  | DU4: =IFERROR(INDEX($B$3:$B$864,SMALL(IF(DU$2=$A$3:$A$864,ROW($B$3:$B$864) - MIN(ROW($B$3:$B$864))+1,""), ROW()-2)),"") ->  | DV4: =IFERROR(INDEX($B$3:$B$864,SMALL(IF(DV$2=$A$3:$A$864,ROW($B$3:$B$864) - MIN(ROW($B$3:$B$864))+1,""), ROW()-2)),"") -> Zone-2 | DW4: =IFERROR(INDEX($B$3:$B$864,SMALL(IF(DW$2=$A$3:$A$864,ROW($B$3:$B$864) - MIN(ROW($B$3:$B$864))+1,""), ROW()-2)),"") ->  | DX4: =IFERROR(INDEX($B$3:$B$864,SMALL(IF(DX$2=$A$3:$A$864,ROW($B$3:$B$864) - MIN(ROW($B$3:$B$864))+1,""), ROW()-2)),"") ->  | DY4: =IFERROR(INDEX($B$3:$B$864,SMALL(IF(DY$2=$A$3:$A$864,ROW($B$3:$B$864) - MIN(ROW($B$3:$B$864))+1,""), ROW()-2)),"") ->  | DZ4: =IFERROR(INDEX($B$3:$B$864,SMALL(IF(DZ$2=$A$3:$A$864,ROW($B$3:$B$864) - MIN(ROW($B$3:$B$864))+1,""), ROW()-2)),"") ->  | EA4: =IFERROR(INDEX($B$3:$B$864,SMALL(IF(EA$2=$A$3:$A$864,ROW($B$3:$B$864) - MIN(ROW($B$3:$B$864))+1,""), ROW()-2)),"") ->  | EB4: =IFERROR(INDEX($B$3:$B$864,SMALL(IF(EB$2=$A$3:$A$864,ROW($B$3:$B$864) - MIN(ROW($B$3:$B$864))+1,""), ROW()-2)),"") ->  | EC4: =IFERROR(INDEX($B$3:$B$864,SMALL(IF(EC$2=$A$3:$A$864,ROW($B$3:$B$864) - MIN(ROW($B$3:$B$864))+1,""), ROW()-2)),"") ->  | ED4: =IFERROR(INDEX($B$3:$B$864,SMALL(IF(ED$2=$A$3:$A$864,ROW($B$3:$B$864) - MIN(ROW($B$3:$B$864))+1,""), ROW()-2)),"") ->  | EE4: =IFERROR(INDEX($B$3:$B$864,SMALL(IF(EE$2=$A$3:$A$864,ROW($B$3:$B$864) - MIN(ROW($B$3:$B$864))+1,""), ROW()-2)),"") ->  | EF4: =IFERROR(INDEX($B$3:$B$864,SMALL(IF(EF$2=$A$3:$A$864,ROW($B$3:$B$864) - MIN(ROW($B$3:$B$864))+1,""), ROW()-2)),"") ->  | EG4: =IFERROR(INDEX($B$3:$B$864,SMALL(IF(EG$2=$A$3:$A$864,ROW($B$3:$B$864) - MIN(ROW($B$3:$B$864))+1,""), ROW()-2)),"") ->  | EH4: =IFERROR(INDEX($B$3:$B$864,SMALL(IF(EH$2=$A$3:$A$864,ROW($B$3:$B$864) - MIN(ROW($B$3:$B$864))+1,""), ROW()-2)),"") -> Zone-2 | EI4: =IFERROR(INDEX($B$3:$B$864,SMALL(IF(EI$2=$A$3:$A$864,ROW($B$3:$B$864) - MIN(ROW($B$3:$B$864))+1,""), ROW()-2)),"") -> Zone-3 | EJ4: =IFERROR(INDEX($B$3:$B$864,SMALL(IF(EJ$2=$A$3:$A$864,ROW($B$3:$B$864) - MIN(ROW($B$3:$B$864))+1,""), ROW()-2)),"") ->  | EK4: =IFERROR(INDEX($B$3:$B$864,SMALL(IF(EK$2=$A$3:$A$864,ROW($B$3:$B$864) - MIN(ROW($B$3:$B$864))+1,""), ROW()-2)),"") ->  | EL4: =IFERROR(INDEX($B$3:$B$864,SMALL(IF(EL$2=$A$3:$A$864,ROW($B$3:$B$864) - MIN(ROW($B$3:$B$864))+1,""), ROW()-2)),"") ->  | EM4: =IFERROR(INDEX($B$3:$B$864,SMALL(IF(EM$2=$A$3:$A$864,ROW($B$3:$B$864) - MIN(ROW($B$3:$B$864))+1,""), ROW()-2)),"") ->  | EN4: =IFERROR(INDEX($B$3:$B$864,SMALL(IF(EN$2=$A$3:$A$864,ROW($B$3:$B$864) - MIN(ROW($B$3:$B$864))+1,""), ROW()-2)),"") ->  | EO4: =IFERROR(INDEX($B$3:$B$864,SMALL(IF(EO$2=$A$3:$A$864,ROW($B$3:$B$864) - MIN(ROW($B$3:$B$864))+1,""), ROW()-2)),"") ->  | EP4: =IFERROR(INDEX($B$3:$B$864,SMALL(IF(EP$2=$A$3:$A$864,ROW($B$3:$B$864) - MIN(ROW($B$3:$B$864))+1,""), ROW()-2)),"") ->  | EQ4: =IFERROR(INDEX($B$3:$B$864,SMALL(IF(EQ$2=$A$3:$A$864,ROW($B$3:$B$864) - MIN(ROW($B$3:$B$864))+1,""), ROW()-2)),"") ->  | ER4: =IFERROR(INDEX($B$3:$B$864,SMALL(IF(ER$2=$A$3:$A$864,ROW($B$3:$B$864) - MIN(ROW($B$3:$B$864))+1,""), ROW()-2)),"") ->  | ES4: =IFERROR(INDEX($B$3:$B$864,SMALL(IF(ES$2=$A$3:$A$864,ROW($B$3:$B$864) - MIN(ROW($B$3:$B$864))+1,""), ROW()-2)),"") ->  | ET4: =IFERROR(INDEX($B$3:$B$864,SMALL(IF(ET$2=$A$3:$A$864,ROW($B$3:$B$864) - MIN(ROW($B$3:$B$864))+1,""), ROW()-2)),"") ->  | EU4: =IFERROR(INDEX($B$3:$B$864,SMALL(IF(EU$2=$A$3:$A$864,ROW($B$3:$B$864) - MIN(ROW($B$3:$B$864))+1,""), ROW()-2)),"") ->  | EV4: =IFERROR(INDEX($B$3:$B$864,SMALL(IF(EV$2=$A$3:$A$864,ROW($B$3:$B$864) - MIN(ROW($B$3:$B$864))+1,""), ROW()-2)),"") ->  | EW4: =IFERROR(INDEX($B$3:$B$864,SMALL(IF(EW$2=$A$3:$A$864,ROW($B$3:$B$864) - MIN(ROW($B$3:$B$864))+1,""), ROW()-2)),"") ->  | EX4: =IFERROR(INDEX($B$3:$B$864,SMALL(IF(EX$2=$A$3:$A$864,ROW($B$3:$B$864) - MIN(ROW($B$3:$B$864))+1,""), ROW()-2)),"") ->  | EY4: =IFERROR(INDEX($B$3:$B$864,SMALL(IF(EY$2=$A$3:$A$864,ROW($B$3:$B$864) - MIN(ROW($B$3:$B$864))+1,""), ROW()-2)),"") ->  | EZ4: =IFERROR(INDEX($B$3:$B$864,SMALL(IF(EZ$2=$A$3:$A$864,ROW($B$3:$B$864) - MIN(ROW($B$3:$B$864))+1,""), ROW()-2)),"") ->  | FA4: =IFERROR(INDEX($B$3:$B$864,SMALL(IF(FA$2=$A$3:$A$864,ROW($B$3:$B$864) - MIN(ROW($B$3:$B$864))+1,""), ROW()-2)),"") ->  | FB4: =IFERROR(INDEX($B$3:$B$864,SMALL(IF(FB$2=$A$3:$A$864,ROW($B$3:$B$864) - MIN(ROW($B$3:$B$864))+1,""), ROW()-2)),"") ->  | FC4: =IFERROR(INDEX($B$3:$B$864,SMALL(IF(FC$2=$A$3:$A$864,ROW($B$3:$B$864) - MIN(ROW($B$3:$B$864))+1,""), ROW()-2)),"") ->  | FD4: =IFERROR(INDEX($B$3:$B$864,SMALL(IF(FD$2=$A$3:$A$864,ROW($B$3:$B$864) - MIN(ROW($B$3:$B$864))+1,""), ROW()-2)),"") ->  | FE4: =IFERROR(INDEX($B$3:$B$864,SMALL(IF(FE$2=$A$3:$A$864,ROW($B$3:$B$864) - MIN(ROW($B$3:$B$864))+1,""), ROW()-2)),"") ->  | FF4: =IFERROR(INDEX($B$3:$B$864,SMALL(IF(FF$2=$A$3:$A$864,ROW($B$3:$B$864) - MIN(ROW($B$3:$B$864))+1,""), ROW()-2)),"") -> Zone-2 | FG4: =IFERROR(INDEX($B$3:$B$864,SMALL(IF(FG$2=$A$3:$A$864,ROW($B$3:$B$864) - MIN(ROW($B$3:$B$864))+1,""), ROW()-2)),"") ->  | FH4: =IFERROR(INDEX($B$3:$B$864,SMALL(IF(FH$2=$A$3:$A$864,ROW($B$3:$B$864) - MIN(ROW($B$3:$B$864))+1,""), ROW()-2)),"") ->  | FI4: =IFERROR(INDEX($B$3:$B$864,SMALL(IF(FI$2=$A$3:$A$864,ROW($B$3:$B$864) - MIN(ROW($B$3:$B$864))+1,""), ROW()-2)),"") ->  | FJ4: =IFERROR(INDEX($B$3:$B$864,SMALL(IF(FJ$2=$A$3:$A$864,ROW($B$3:$B$864) - MIN(ROW($B$3:$B$864))+1,""), ROW()-2)),"") ->  | FK4: =IFERROR(INDEX($B$3:$B$864,SMALL(IF(FK$2=$A$3:$A$864,ROW($B$3:$B$864) - MIN(ROW($B$3:$B$864))+1,""), ROW()-2)),"") ->  | FL4: =IFERROR(INDEX($B$3:$B$864,SMALL(IF(FL$2=$A$3:$A$864,ROW($B$3:$B$864) - MIN(ROW($B$3:$B$864))+1,""), ROW()-2)),"") -> Zone-2 | FM4: =IFERROR(INDEX($B$3:$B$864,SMALL(IF(FM$2=$A$3:$A$864,ROW($B$3:$B$864) - MIN(ROW($B$3:$B$864))+1,""), ROW()-2)),"") ->  | FN4: =IFERROR(INDEX($B$3:$B$864,SMALL(IF(FN$2=$A$3:$A$864,ROW($B$3:$B$864) - MIN(ROW($B$3:$B$864))+1,""), ROW()-2)),"") ->  | FO4: =IFERROR(INDEX($B$3:$B$864,SMALL(IF(FO$2=$A$3:$A$864,ROW($B$3:$B$864) - MIN(ROW($B$3:$B$864))+1,""), ROW()-2)),"") ->  | FP4: =IFERROR(INDEX($B$3:$B$864,SMALL(IF(FP$2=$A$3:$A$864,ROW($B$3:$B$864) - MIN(ROW($B$3:$B$864))+1,""), ROW()-2)),"") ->  | FQ4: =IFERROR(INDEX($B$3:$B$864,SMALL(IF(FQ$2=$A$3:$A$864,ROW($B$3:$B$864) - MIN(ROW($B$3:$B$864))+1,""), ROW()-2)),"") ->  | FR4: =IFERROR(INDEX($B$3:$B$864,SMALL(IF(FR$2=$A$3:$A$864,ROW($B$3:$B$864) - MIN(ROW($B$3:$B$864))+1,""), ROW()-2)),"") ->  | FS4: =IFERROR(INDEX($B$3:$B$864,SMALL(IF(FS$2=$A$3:$A$864,ROW($B$3:$B$864) - MIN(ROW($B$3:$B$864))+1,""), ROW()-2)),"") -> Zone-2 | FT4: =IFERROR(INDEX($B$3:$B$864,SMALL(IF(FT$2=$A$3:$A$864,ROW($B$3:$B$864) - MIN(ROW($B$3:$B$864))+1,""), ROW()-2)),"") ->  | FU4: =IFERROR(INDEX($B$3:$B$864,SMALL(IF(FU$2=$A$3:$A$864,ROW($B$3:$B$864) - MIN(ROW($B$3:$B$864))+1,""), ROW()-2)),"") ->  | FV4: =IFERROR(INDEX($B$3:$B$864,SMALL(IF(FV$2=$A$3:$A$864,ROW($B$3:$B$864) - MIN(ROW($B$3:$B$864))+1,""), ROW()-2)),"") ->  | FW4: =IFERROR(INDEX($B$3:$B$864,SMALL(IF(FW$2=$A$3:$A$864,ROW($B$3:$B$864) - MIN(ROW($B$3:$B$864))+1,""), ROW()-2)),"") ->  | FX4: =IFERROR(INDEX($B$3:$B$864,SMALL(IF(FX$2=$A$3:$A$864,ROW($B$3:$B$864) - MIN(ROW($B$3:$B$864))+1,""), ROW()-2)),"") ->  | FY4: =IFERROR(INDEX($B$3:$B$864,SMALL(IF(FY$2=$A$3:$A$864,ROW($B$3:$B$864) - MIN(ROW($B$3:$B$864))+1,""), ROW()-2)),"") -> Zone-2 | FZ4: =IFERROR(INDEX($B$3:$B$864,SMALL(IF(FZ$2=$A$3:$A$864,ROW($B$3:$B$864) - MIN(ROW($B$3:$B$864))+1,""), ROW()-2)),"") ->  | GA4: =IFERROR(INDEX($B$3:$B$864,SMALL(IF(GA$2=$A$3:$A$864,ROW($B$3:$B$864) - MIN(ROW($B$3:$B$864))+1,""), ROW()-2)),"") ->  | GB4: =IFERROR(INDEX($B$3:$B$864,SMALL(IF(GB$2=$A$3:$A$864,ROW($B$3:$B$864) - MIN(ROW($B$3:$B$864))+1,""), ROW()-2)),"") ->  | GC4: =IFERROR(INDEX($B$3:$B$864,SMALL(IF(GC$2=$A$3:$A$864,ROW($B$3:$B$864) - MIN(ROW($B$3:$B$864))+1,""), ROW()-2)),"") ->  | GD4: =IFERROR(INDEX($B$3:$B$864,SMALL(IF(GD$2=$A$3:$A$864,ROW($B$3:$B$864) - MIN(ROW($B$3:$B$864))+1,""), ROW()-2)),"") ->  | GE4: =IFERROR(INDEX($B$3:$B$864,SMALL(IF(GE$2=$A$3:$A$864,ROW($B$3:$B$864) - MIN(ROW($B$3:$B$864))+1,""), ROW()-2)),"") ->  | GF4: =IFERROR(INDEX($B$3:$B$864,SMALL(IF(GF$2=$A$3:$A$864,ROW($B$3:$B$864) - MIN(ROW($B$3:$B$864))+1,""), ROW()-2)),"") ->  | GG4: =IFERROR(INDEX($B$3:$B$864,SMALL(IF(GG$2=$A$3:$A$864,ROW($B$3:$B$864) - MIN(ROW($B$3:$B$864))+1,""), ROW()-2)),"") ->  | GH4: =IFERROR(INDEX($B$3:$B$864,SMALL(IF(GH$2=$A$3:$A$864,ROW($B$3:$B$864) - MIN(ROW($B$3:$B$864))+1,""), ROW()-2)),"") ->  | GI4: =IFERROR(INDEX($B$3:$B$864,SMALL(IF(GI$2=$A$3:$A$864,ROW($B$3:$B$864) - MIN(ROW($B$3:$B$864))+1,""), ROW()-2)),"") -> Zone-2 | GJ4: =IFERROR(INDEX($B$3:$B$864,SMALL(IF(GJ$2=$A$3:$A$864,ROW($B$3:$B$864) - MIN(ROW($B$3:$B$864))+1,""), ROW()-2)),"") -> Zone-2 | GK4: =IFERROR(INDEX($B$3:$B$864,SMALL(IF(GK$2=$A$3:$A$864,ROW($B$3:$B$864) - MIN(ROW($B$3:$B$864))+1,""), ROW()-2)),"") ->  | GL4: =IFERROR(INDEX($B$3:$B$864,SMALL(IF(GL$2=$A$3:$A$864,ROW($B$3:$B$864) - MIN(ROW($B$3:$B$864))+1,""), ROW()-2)),"") -> Zone-2 | GM4: =IFERROR(INDEX($B$3:$B$864,SMALL(IF(GM$2=$A$3:$A$864,ROW($B$3:$B$864) - MIN(ROW($B$3:$B$864))+1,""), ROW()-2)),"") ->  | GN4: =IFERROR(INDEX($B$3:$B$864,SMALL(IF(GN$2=$A$3:$A$864,ROW($B$3:$B$864) - MIN(ROW($B$3:$B$864))+1,""), ROW()-2)),"") ->  | GO4: =IFERROR(INDEX($B$3:$B$864,SMALL(IF(GO$2=$A$3:$A$864,ROW($B$3:$B$864) - MIN(ROW($B$3:$B$864))+1,""), ROW()-2)),"") ->  | GP4: =IFERROR(INDEX($B$3:$B$864,SMALL(IF(GP$2=$A$3:$A$864,ROW($B$3:$B$864) - MIN(ROW($B$3:$B$864))+1,""), ROW()-2)),"") -> Zone-2 | GQ4: =IFERROR(INDEX($B$3:$B$864,SMALL(IF(GQ$2=$A$3:$A$864,ROW($B$3:$B$864) - MIN(ROW($B$3:$B$864))+1,""), ROW()-2)),"") ->  | GR4: =IFERROR(INDEX($B$3:$B$864,SMALL(IF(GR$2=$A$3:$A$864,ROW($B$3:$B$864) - MIN(ROW($B$3:$B$864))+1,""), ROW()-2)),"") ->  | GS4: =IFERROR(INDEX($B$3:$B$864,SMALL(IF(GS$2=$A$3:$A$864,ROW($B$3:$B$864) - MIN(ROW($B$3:$B$864))+1,""), ROW()-2)),"") ->  | GT4: =IFERROR(INDEX($B$3:$B$864,SMALL(IF(GT$2=$A$3:$A$864,ROW($B$3:$B$864) - MIN(ROW($B$3:$B$864))+1,""), ROW()-2)),"") ->  | GU4: =IFERROR(INDEX($B$3:$B$864,SMALL(IF(GU$2=$A$3:$A$864,ROW($B$3:$B$864) - MIN(ROW($B$3:$B$864))+1,""), ROW()-2)),"") ->  | GV4: =IFERROR(INDEX($B$3:$B$864,SMALL(IF(GV$2=$A$3:$A$864,ROW($B$3:$B$864) - MIN(ROW($B$3:$B$864))+1,""), ROW()-2)),"") ->  | GW4: =IFERROR(INDEX($B$3:$B$864,SMALL(IF(GW$2=$A$3:$A$864,ROW($B$3:$B$864) - MIN(ROW($B$3:$B$864))+1,""), ROW()-2)),"") ->  | GX4: =IFERROR(INDEX($B$3:$B$864,SMALL(IF(GX$2=$A$3:$A$864,ROW($B$3:$B$864) - MIN(ROW($B$3:$B$864))+1,""), ROW()-2)),"") ->  | GY4: =IFERROR(INDEX($B$3:$B$864,SMALL(IF(GY$2=$A$3:$A$864,ROW($B$3:$B$864) - MIN(ROW($B$3:$B$864))+1,""), ROW()-2)),"") ->  | GZ4: =IFERROR(INDEX($B$3:$B$864,SMALL(IF(GZ$2=$A$3:$A$864,ROW($B$3:$B$864) - MIN(ROW($B$3:$B$864))+1,""), ROW()-2)),"") ->  | HA4: =IFERROR(INDEX($B$3:$B$864,SMALL(IF(HA$2=$A$3:$A$864,ROW($B$3:$B$864) - MIN(ROW($B$3:$B$864))+1,""), ROW()-2)),"") -> Zone-2 | HB4: =IFERROR(INDEX($B$3:$B$864,SMALL(IF(HB$2=$A$3:$A$864,ROW($B$3:$B$864) - MIN(ROW($B$3:$B$864))+1,""), ROW()-2)),"") ->  | HC4: =IFERROR(INDEX($B$3:$B$864,SMALL(IF(HC$2=$A$3:$A$864,ROW($B$3:$B$864) - MIN(ROW($B$3:$B$864))+1,""), ROW()-2)),"") ->  | HD4: =IFERROR(INDEX($B$3:$B$864,SMALL(IF(HD$2=$A$3:$A$864,ROW($B$3:$B$864) - MIN(ROW($B$3:$B$864))+1,""), ROW()-2)),"") ->  | HE4: =IFERROR(INDEX($B$3:$B$864,SMALL(IF(HE$2=$A$3:$A$864,ROW($B$3:$B$864) - MIN(ROW($B$3:$B$864))+1,""), ROW()-2)),"") ->  | HF4: =IFERROR(INDEX($B$3:$B$864,SMALL(IF(HF$2=$A$3:$A$864,ROW($B$3:$B$864) - MIN(ROW($B$3:$B$864))+1,""), ROW()-2)),"") ->  | HG4: =IFERROR(INDEX($B$3:$B$864,SMALL(IF(HG$2=$A$3:$A$864,ROW($B$3:$B$864) - MIN(ROW($B$3:$B$864))+1,""), ROW()-2)),"") ->  | HH4: =IFERROR(INDEX($B$3:$B$864,SMALL(IF(HH$2=$A$3:$A$864,ROW($B$3:$B$864) - MIN(ROW($B$3:$B$864))+1,""), ROW()-2)),"") ->  | HI4: =IFERROR(INDEX($B$3:$B$864,SMALL(IF(HI$2=$A$3:$A$864,ROW($B$3:$B$864) - MIN(ROW($B$3:$B$864))+1,""), ROW()-2)),"") ->  | HJ4: =IFERROR(INDEX($B$3:$B$864,SMALL(IF(HJ$2=$A$3:$A$864,ROW($B$3:$B$864) - MIN(ROW($B$3:$B$864))+1,""), ROW()-2)),"") ->  | HK4: =IFERROR(INDEX($B$3:$B$864,SMALL(IF(HK$2=$A$3:$A$864,ROW($B$3:$B$864) - MIN(ROW($B$3:$B$864))+1,""), ROW()-2)),"") ->  | HL4: =IFERROR(INDEX($B$3:$B$864,SMALL(IF(HL$2=$A$3:$A$864,ROW($B$3:$B$864) - MIN(ROW($B$3:$B$864))+1,""), ROW()-2)),"") ->  | HM4: =IFERROR(INDEX($B$3:$B$864,SMALL(IF(HM$2=$A$3:$A$864,ROW($B$3:$B$864) - MIN(ROW($B$3:$B$864))+1,""), ROW()-2)),"") ->  | HN4: =IFERROR(INDEX($B$3:$B$864,SMALL(IF(HN$2=$A$3:$A$864,ROW($B$3:$B$864) - MIN(ROW($B$3:$B$864))+1,""), ROW()-2)),"") ->  | HO4: =IFERROR(INDEX($B$3:$B$864,SMALL(IF(HO$2=$A$3:$A$864,ROW($B$3:$B$864) - MIN(ROW($B$3:$B$864))+1,""), ROW()-2)),"") -> Zone-2 | HP4: =IFERROR(INDEX($B$3:$B$864,SMALL(IF(HP$2=$A$3:$A$864,ROW($B$3:$B$864) - MIN(ROW($B$3:$B$864))+1,""), ROW()-2)),"") ->  | HQ4: =IFERROR(INDEX($B$3:$B$864,SMALL(IF(HQ$2=$A$3:$A$864,ROW($B$3:$B$864) - MIN(ROW($B$3:$B$864))+1,""), ROW()-2)),"") ->  | HR4: =IFERROR(INDEX($B$3:$B$864,SMALL(IF(HR$2=$A$3:$A$864,ROW($B$3:$B$864) - MIN(ROW($B$3:$B$864))+1,""), ROW()-2)),"") ->  | HS4: =IFERROR(INDEX($B$3:$B$864,SMALL(IF(HS$2=$A$3:$A$864,ROW($B$3:$B$864) - MIN(ROW($B$3:$B$864))+1,""), ROW()-2)),"") -> Zone-2 | HT4: =IFERROR(INDEX($B$3:$B$864,SMALL(IF(HT$2=$A$3:$A$864,ROW($B$3:$B$864) - MIN(ROW($B$3:$B$864))+1,""), ROW()-2)),"") ->  | HU4: =IFERROR(INDEX($B$3:$B$864,SMALL(IF(HU$2=$A$3:$A$864,ROW($B$3:$B$864) - MIN(ROW($B$3:$B$864))+1,""), ROW()-2)),"") ->  | HV4: =IFERROR(INDEX($B$3:$B$864,SMALL(IF(HV$2=$A$3:$A$864,ROW($B$3:$B$864) - MIN(ROW($B$3:$B$864))+1,""), ROW()-2)),"") ->  | HW4: =IFERROR(INDEX($B$3:$B$864,SMALL(IF(HW$2=$A$3:$A$864,ROW($B$3:$B$864) - MIN(ROW($B$3:$B$864))+1,""), ROW()-2)),"") ->  | HX4: =IFERROR(INDEX($B$3:$B$864,SMALL(IF(HX$2=$A$3:$A$864,ROW($B$3:$B$864) - MIN(ROW($B$3:$B$864))+1,""), ROW()-2)),"") ->  | HY4: =IFERROR(INDEX($B$3:$B$864,SMALL(IF(HY$2=$A$3:$A$864,ROW($B$3:$B$864) - MIN(ROW($B$3:$B$864))+1,""), ROW()-2)),"") ->  | HZ4: =IFERROR(INDEX($B$3:$B$864,SMALL(IF(HZ$2=$A$3:$A$864,ROW($B$3:$B$864) - MIN(ROW($B$3:$B$864))+1,""), ROW()-2)),"") ->  | IA4: =IFERROR(INDEX($B$3:$B$864,SMALL(IF(IA$2=$A$3:$A$864,ROW($B$3:$B$864) - MIN(ROW($B$3:$B$864))+1,""), ROW()-2)),"") ->  | IB4: =IFERROR(INDEX($B$3:$B$864,SMALL(IF(IB$2=$A$3:$A$864,ROW($B$3:$B$864) - MIN(ROW($B$3:$B$864))+1,""), ROW()-2)),"") ->  | IC4: =IFERROR(INDEX($B$3:$B$864,SMALL(IF(IC$2=$A$3:$A$864,ROW($B$3:$B$864) - MIN(ROW($B$3:$B$864))+1,""), ROW()-2)),"") ->  | ID4: =IFERROR(INDEX($B$3:$B$864,SMALL(IF(ID$2=$A$3:$A$864,ROW($B$3:$B$864) - MIN(ROW($B$3:$B$864))+1,""), ROW()-2)),"") -> Zone-2 | IE4: =IFERROR(INDEX($B$3:$B$864,SMALL(IF(IE$2=$A$3:$A$864,ROW($B$3:$B$864) - MIN(ROW($B$3:$B$864))+1,""), ROW()-2)),"") ->  | IF4: =IFERROR(INDEX($B$3:$B$864,SMALL(IF(IF$2=$A$3:$A$864,ROW($B$3:$B$864) - MIN(ROW($B$3:$B$864))+1,""), ROW()-2)),"") ->  | IG4: =IFERROR(INDEX($B$3:$B$864,SMALL(IF(IG$2=$A$3:$A$864,ROW($B$3:$B$864) - MIN(ROW($B$3:$B$864))+1,""), ROW()-2)),"") -> Zone-2 | IH4: =IFERROR(INDEX($B$3:$B$864,SMALL(IF(IH$2=$A$3:$A$864,ROW($B$3:$B$864) - MIN(ROW($B$3:$B$864))+1,""), ROW()-2)),"") ->  | II4: =IFERROR(INDEX($B$3:$B$864,SMALL(IF(II$2=$A$3:$A$864,ROW($B$3:$B$864) - MIN(ROW($B$3:$B$864))+1,""), ROW()-2)),"") ->  | IJ4: =IFERROR(INDEX($B$3:$B$864,SMALL(IF(IJ$2=$A$3:$A$864,ROW($B$3:$B$864) - MIN(ROW($B$3:$B$864))+1,""), ROW()-2)),"") ->  | IK4: =IFERROR(INDEX($B$3:$B$864,SMALL(IF(IK$2=$A$3:$A$864,ROW($B$3:$B$864) - MIN(ROW($B$3:$B$864))+1,""), ROW()-2)),"") ->  | IL4: =IFERROR(INDEX($B$3:$B$864,SMALL(IF(IL$2=$A$3:$A$864,ROW($B$3:$B$864) - MIN(ROW($B$3:$B$864))+1,""), ROW()-2)),"") ->  | IM4: =IFERROR(INDEX($B$3:$B$864,SMALL(IF(IM$2=$A$3:$A$864,ROW($B$3:$B$864) - MIN(ROW($B$3:$B$864))+1,""), ROW()-2)),"") ->  | IN4: =IFERROR(INDEX($B$3:$B$864,SMALL(IF(IN$2=$A$3:$A$864,ROW($B$3:$B$864) - MIN(ROW($B$3:$B$864))+1,""), ROW()-2)),"") ->  | IO4: =IFERROR(INDEX($B$3:$B$864,SMALL(IF(IO$2=$A$3:$A$864,ROW($B$3:$B$864) - MIN(ROW($B$3:$B$864))+1,""), ROW()-2)),"") ->  | IP4: =IFERROR(INDEX($B$3:$B$864,SMALL(IF(IP$2=$A$3:$A$864,ROW($B$3:$B$864) - MIN(ROW($B$3:$B$864))+1,""), ROW()-2)),"") ->  | IQ4: =IFERROR(INDEX($B$3:$B$864,SMALL(IF(IQ$2=$A$3:$A$864,ROW($B$3:$B$864) - MIN(ROW($B$3:$B$864))+1,""), ROW()-2)),"") -> Brushy Creek | IR4: =IFERROR(INDEX($B$3:$B$864,SMALL(IF(IR$2=$A$3:$A$864,ROW($B$3:$B$864) - MIN(ROW($B$3:$B$864))+1,""), ROW()-2)),"") ->  | IS4: =IFERROR(INDEX($B$3:$B$864,SMALL(IF(IS$2=$A$3:$A$864,ROW($B$3:$B$864) - MIN(ROW($B$3:$B$864))+1,""), ROW()-2)),"") ->  | IT4: =IFERROR(INDEX($B$3:$B$864,SMALL(IF(IT$2=$A$3:$A$864,ROW($B$3:$B$864) - MIN(ROW($B$3:$B$864))+1,""), ROW()-2)),"") ->  | IU4: =IFERROR(INDEX($B$3:$B$864,SMALL(IF(IU$2=$A$3:$A$864,ROW($B$3:$B$864) - MIN(ROW($B$3:$B$864))+1,""), ROW()-2)),"") ->  | IV4: =IFERROR(INDEX($B$3:$B$864,SMALL(IF(IV$2=$A$3:$A$864,ROW($B$3:$B$864) - MIN(ROW($B$3:$B$864))+1,""), ROW()-2)),"") ->  | IW4: =IFERROR(INDEX($B$3:$B$864,SMALL(IF(IW$2=$A$3:$A$864,ROW($B$3:$B$864) - MIN(ROW($B$3:$B$864))+1,""), ROW()-2)),"") ->  | IX4: =IFERROR(INDEX($B$3:$B$864,SMALL(IF(IX$2=$A$3:$A$864,ROW($B$3:$B$864) - MIN(ROW($B$3:$B$864))+1,""), ROW()-2)),"") ->  | IY4: =IFERROR(INDEX($B$3:$B$864,SMALL(IF(IY$2=$A$3:$A$864,ROW($B$3:$B$864) - MIN(ROW($B$3:$B$864))+1,""), ROW()-2)),"") -> 
A5: =IFERROR(ebd_Annual!A5," ") -> Angelina | B5: =IFERROR(ebd_Annual!B5," ") -> Zone-1 | C5: Angelina County has 1 rainfall zone. | E5: Orange cells values may be changed manually | F5: =IFERROR(INDEX($B$3:$B$864,SMALL(IF(F$2=$A$3:$A$864,ROW($B$3:$B$864) - MIN(ROW($B$3:$B$864))+1,""), ROW()-2)),"") ->  | G5: =IFERROR(INDEX($B$3:$B$864,SMALL(IF(G$2=$A$3:$A$864,ROW($B$3:$B$864) - MIN(ROW($B$3:$B$864))+1,""), ROW()-2)),"") ->  | H5: =IFERROR(INDEX($B$3:$B$864,SMALL(IF(H$2=$A$3:$A$864,ROW($B$3:$B$864) - MIN(ROW($B$3:$B$864))+1,""), ROW()-2)),"") ->  | I5: =IFERROR(INDEX($B$3:$B$864,SMALL(IF(I$2=$A$3:$A$864,ROW($B$3:$B$864) - MIN(ROW($B$3:$B$864))+1,""), ROW()-2)),"") ->  | J5: =IFERROR(INDEX($B$3:$B$864,SMALL(IF(J$2=$A$3:$A$864,ROW($B$3:$B$864) - MIN(ROW($B$3:$B$864))+1,""), ROW()-2)),"") ->  | K5: =IFERROR(INDEX($B$3:$B$864,SMALL(IF(K$2=$A$3:$A$864,ROW($B$3:$B$864) - MIN(ROW($B$3:$B$864))+1,""), ROW()-2)),"") ->  | L5: =IFERROR(INDEX($B$3:$B$864,SMALL(IF(L$2=$A$3:$A$864,ROW($B$3:$B$864) - MIN(ROW($B$3:$B$864))+1,""), ROW()-2)),"") ->  | M5: =IFERROR(INDEX($B$3:$B$864,SMALL(IF(M$2=$A$3:$A$864,ROW($B$3:$B$864) - MIN(ROW($B$3:$B$864))+1,""), ROW()-2)),"") ->  | N5: =IFERROR(INDEX($B$3:$B$864,SMALL(IF(N$2=$A$3:$A$864,ROW($B$3:$B$864) - MIN(ROW($B$3:$B$864))+1,""), ROW()-2)),"") ->  | O5: =IFERROR(INDEX($B$3:$B$864,SMALL(IF(O$2=$A$3:$A$864,ROW($B$3:$B$864) - MIN(ROW($B$3:$B$864))+1,""), ROW()-2)),"") ->  | P5: =IFERROR(INDEX($B$3:$B$864,SMALL(IF(P$2=$A$3:$A$864,ROW($B$3:$B$864) - MIN(ROW($B$3:$B$864))+1,""), ROW()-2)),"") ->  | Q5: =IFERROR(INDEX($B$3:$B$864,SMALL(IF(Q$2=$A$3:$A$864,ROW($B$3:$B$864) - MIN(ROW($B$3:$B$864))+1,""), ROW()-2)),"") ->  | R5: =IFERROR(INDEX($B$3:$B$864,SMALL(IF(R$2=$A$3:$A$864,ROW($B$3:$B$864) - MIN(ROW($B$3:$B$864))+1,""), ROW()-2)),"") ->  | S5: =IFERROR(INDEX($B$3:$B$864,SMALL(IF(S$2=$A$3:$A$864,ROW($B$3:$B$864) - MIN(ROW($B$3:$B$864))+1,""), ROW()-2)),"") ->  | T5: =IFERROR(INDEX($B$3:$B$864,SMALL(IF(T$2=$A$3:$A$864,ROW($B$3:$B$864) - MIN(ROW($B$3:$B$864))+1,""), ROW()-2)),"") -> PA-3 | U5: =IFERROR(INDEX($B$3:$B$864,SMALL(IF(U$2=$A$3:$A$864,ROW($B$3:$B$864) - MIN(ROW($B$3:$B$864))+1,""), ROW()-2)),"") ->  | V5: =IFERROR(INDEX($B$3:$B$864,SMALL(IF(V$2=$A$3:$A$864,ROW($B$3:$B$864) - MIN(ROW($B$3:$B$864))+1,""), ROW()-2)),"") ->  | W5: =IFERROR(INDEX($B$3:$B$864,SMALL(IF(W$2=$A$3:$A$864,ROW($B$3:$B$864) - MIN(ROW($B$3:$B$864))+1,""), ROW()-2)),"") ->  | X5: =IFERROR(INDEX($B$3:$B$864,SMALL(IF(X$2=$A$3:$A$864,ROW($B$3:$B$864) - MIN(ROW($B$3:$B$864))+1,""), ROW()-2)),"") ->  | Y5: =IFERROR(INDEX($B$3:$B$864,SMALL(IF(Y$2=$A$3:$A$864,ROW($B$3:$B$864) - MIN(ROW($B$3:$B$864))+1,""), ROW()-2)),"") ->  | Z5: =IFERROR(INDEX($B$3:$B$864,SMALL(IF(Z$2=$A$3:$A$864,ROW($B$3:$B$864) - MIN(ROW($B$3:$B$864))+1,""), ROW()-2)),"") -> Zone-3 | AA5: =IFERROR(INDEX($B$3:$B$864,SMALL(IF(AA$2=$A$3:$A$864,ROW($B$3:$B$864) - MIN(ROW($B$3:$B$864))+1,""), ROW()-2)),"") -> Zone-3 | AB5: =IFERROR(INDEX($B$3:$B$864,SMALL(IF(AB$2=$A$3:$A$864,ROW($B$3:$B$864) - MIN(ROW($B$3:$B$864))+1,""), ROW()-2)),"") ->  | AC5: =IFERROR(INDEX($B$3:$B$864,SMALL(IF(AC$2=$A$3:$A$864,ROW($B$3:$B$864) - MIN(ROW($B$3:$B$864))+1,""), ROW()-2)),"") ->  | AD5: =IFERROR(INDEX($B$3:$B$864,SMALL(IF(AD$2=$A$3:$A$864,ROW($B$3:$B$864) - MIN(ROW($B$3:$B$864))+1,""), ROW()-2)),"") ->  | AE5: =IFERROR(INDEX($B$3:$B$864,SMALL(IF(AE$2=$A$3:$A$864,ROW($B$3:$B$864) - MIN(ROW($B$3:$B$864))+1,""), ROW()-2)),"") ->  | AF5: =IFERROR(INDEX($B$3:$B$864,SMALL(IF(AF$2=$A$3:$A$864,ROW($B$3:$B$864) - MIN(ROW($B$3:$B$864))+1,""), ROW()-2)),"") -> Zone-3 | AG5: =IFERROR(INDEX($B$3:$B$864,SMALL(IF(AG$2=$A$3:$A$864,ROW($B$3:$B$864) - MIN(ROW($B$3:$B$864))+1,""), ROW()-2)),"") ->  | AH5: =IFERROR(INDEX($B$3:$B$864,SMALL(IF(AH$2=$A$3:$A$864,ROW($B$3:$B$864) - MIN(ROW($B$3:$B$864))+1,""), ROW()-2)),"") ->  | AI5: =IFERROR(INDEX($B$3:$B$864,SMALL(IF(AI$2=$A$3:$A$864,ROW($B$3:$B$864) - MIN(ROW($B$3:$B$864))+1,""), ROW()-2)),"") ->  | AJ5: =IFERROR(INDEX($B$3:$B$864,SMALL(IF(AJ$2=$A$3:$A$864,ROW($B$3:$B$864) - MIN(ROW($B$3:$B$864))+1,""), ROW()-2)),"") ->  | AK5: =IFERROR(INDEX($B$3:$B$864,SMALL(IF(AK$2=$A$3:$A$864,ROW($B$3:$B$864) - MIN(ROW($B$3:$B$864))+1,""), ROW()-2)),"") ->  | AL5: =IFERROR(INDEX($B$3:$B$864,SMALL(IF(AL$2=$A$3:$A$864,ROW($B$3:$B$864) - MIN(ROW($B$3:$B$864))+1,""), ROW()-2)),"") ->  | AM5: =IFERROR(INDEX($B$3:$B$864,SMALL(IF(AM$2=$A$3:$A$864,ROW($B$3:$B$864) - MIN(ROW($B$3:$B$864))+1,""), ROW()-2)),"") ->  | AN5: =IFERROR(INDEX($B$3:$B$864,SMALL(IF(AN$2=$A$3:$A$864,ROW($B$3:$B$864) - MIN(ROW($B$3:$B$864))+1,""), ROW()-2)),"") ->  | AO5: =IFERROR(INDEX($B$3:$B$864,SMALL(IF(AO$2=$A$3:$A$864,ROW($B$3:$B$864) - MIN(ROW($B$3:$B$864))+1,""), ROW()-2)),"") ->  | AP5: =IFERROR(INDEX($B$3:$B$864,SMALL(IF(AP$2=$A$3:$A$864,ROW($B$3:$B$864) - MIN(ROW($B$3:$B$864))+1,""), ROW()-2)),"") ->  | AQ5: =IFERROR(INDEX($B$3:$B$864,SMALL(IF(AQ$2=$A$3:$A$864,ROW($B$3:$B$864) - MIN(ROW($B$3:$B$864))+1,""), ROW()-2)),"") ->  | AR5: =IFERROR(INDEX($B$3:$B$864,SMALL(IF(AR$2=$A$3:$A$864,ROW($B$3:$B$864) - MIN(ROW($B$3:$B$864))+1,""), ROW()-2)),"") ->  | AS5: =IFERROR(INDEX($B$3:$B$864,SMALL(IF(AS$2=$A$3:$A$864,ROW($B$3:$B$864) - MIN(ROW($B$3:$B$864))+1,""), ROW()-2)),"") ->  | AT5: =IFERROR(INDEX($B$3:$B$864,SMALL(IF(AT$2=$A$3:$A$864,ROW($B$3:$B$864) - MIN(ROW($B$3:$B$864))+1,""), ROW()-2)),"") ->  | AU5: =IFERROR(INDEX($B$3:$B$864,SMALL(IF(AU$2=$A$3:$A$864,ROW($B$3:$B$864) - MIN(ROW($B$3:$B$864))+1,""), ROW()-2)),"") ->  | AV5: =IFERROR(INDEX($B$3:$B$864,SMALL(IF(AV$2=$A$3:$A$864,ROW($B$3:$B$864) - MIN(ROW($B$3:$B$864))+1,""), ROW()-2)),"") ->  | AW5: =IFERROR(INDEX($B$3:$B$864,SMALL(IF(AW$2=$A$3:$A$864,ROW($B$3:$B$864) - MIN(ROW($B$3:$B$864))+1,""), ROW()-2)),"") ->  | AX5: =IFERROR(INDEX($B$3:$B$864,SMALL(IF(AX$2=$A$3:$A$864,ROW($B$3:$B$864) - MIN(ROW($B$3:$B$864))+1,""), ROW()-2)),"") ->  | AY5: =IFERROR(INDEX($B$3:$B$864,SMALL(IF(AY$2=$A$3:$A$864,ROW($B$3:$B$864) - MIN(ROW($B$3:$B$864))+1,""), ROW()-2)),"") ->  | AZ5: =IFERROR(INDEX($B$3:$B$864,SMALL(IF(AZ$2=$A$3:$A$864,ROW($B$3:$B$864) - MIN(ROW($B$3:$B$864))+1,""), ROW()-2)),"") ->  | BA5: =IFERROR(INDEX($B$3:$B$864,SMALL(IF(BA$2=$A$3:$A$864,ROW($B$3:$B$864) - MIN(ROW($B$3:$B$864))+1,""), ROW()-2)),"") ->  | BB5: =IFERROR(INDEX($B$3:$B$864,SMALL(IF(BB$2=$A$3:$A$864,ROW($B$3:$B$864) - MIN(ROW($B$3:$B$864))+1,""), ROW()-2)),"") ->  | BC5: =IFERROR(INDEX($B$3:$B$864,SMALL(IF(BC$2=$A$3:$A$864,ROW($B$3:$B$864) - MIN(ROW($B$3:$B$864))+1,""), ROW()-2)),"") ->  | BD5: =IFERROR(INDEX($B$3:$B$864,SMALL(IF(BD$2=$A$3:$A$864,ROW($B$3:$B$864) - MIN(ROW($B$3:$B$864))+1,""), ROW()-2)),"") ->  | BE5: =IFERROR(INDEX($B$3:$B$864,SMALL(IF(BE$2=$A$3:$A$864,ROW($B$3:$B$864) - MIN(ROW($B$3:$B$864))+1,""), ROW()-2)),"") ->  | BF5: =IFERROR(INDEX($B$3:$B$864,SMALL(IF(BF$2=$A$3:$A$864,ROW($B$3:$B$864) - MIN(ROW($B$3:$B$864))+1,""), ROW()-2)),"") -> Zone-3 | BG5: =IFERROR(INDEX($B$3:$B$864,SMALL(IF(BG$2=$A$3:$A$864,ROW($B$3:$B$864) - MIN(ROW($B$3:$B$864))+1,""), ROW()-2)),"") ->  | BH5: =IFERROR(INDEX($B$3:$B$864,SMALL(IF(BH$2=$A$3:$A$864,ROW($B$3:$B$864) - MIN(ROW($B$3:$B$864))+1,""), ROW()-2)),"") -> Zone-3 | BI5: =IFERROR(INDEX($B$3:$B$864,SMALL(IF(BI$2=$A$3:$A$864,ROW($B$3:$B$864) - MIN(ROW($B$3:$B$864))+1,""), ROW()-2)),"") ->  | BJ5: =IFERROR(INDEX($B$3:$B$864,SMALL(IF(BJ$2=$A$3:$A$864,ROW($B$3:$B$864) - MIN(ROW($B$3:$B$864))+1,""), ROW()-2)),"") ->  | BK5: =IFERROR(INDEX($B$3:$B$864,SMALL(IF(BK$2=$A$3:$A$864,ROW($B$3:$B$864) - MIN(ROW($B$3:$B$864))+1,""), ROW()-2)),"") ->  | BL5: =IFERROR(INDEX($B$3:$B$864,SMALL(IF(BL$2=$A$3:$A$864,ROW($B$3:$B$864) - MIN(ROW($B$3:$B$864))+1,""), ROW()-2)),"") ->  | BM5: =IFERROR(INDEX($B$3:$B$864,SMALL(IF(BM$2=$A$3:$A$864,ROW($B$3:$B$864) - MIN(ROW($B$3:$B$864))+1,""), ROW()-2)),"") ->  | BN5: =IFERROR(INDEX($B$3:$B$864,SMALL(IF(BN$2=$A$3:$A$864,ROW($B$3:$B$864) - MIN(ROW($B$3:$B$864))+1,""), ROW()-2)),"") ->  | BO5: =IFERROR(INDEX($B$3:$B$864,SMALL(IF(BO$2=$A$3:$A$864,ROW($B$3:$B$864) - MIN(ROW($B$3:$B$864))+1,""), ROW()-2)),"") ->  | BP5: =IFERROR(INDEX($B$3:$B$864,SMALL(IF(BP$2=$A$3:$A$864,ROW($B$3:$B$864) - MIN(ROW($B$3:$B$864))+1,""), ROW()-2)),"") ->  | BQ5: =IFERROR(INDEX($B$3:$B$864,SMALL(IF(BQ$2=$A$3:$A$864,ROW($B$3:$B$864) - MIN(ROW($B$3:$B$864))+1,""), ROW()-2)),"") ->  | BR5: =IFERROR(INDEX($B$3:$B$864,SMALL(IF(BR$2=$A$3:$A$864,ROW($B$3:$B$864) - MIN(ROW($B$3:$B$864))+1,""), ROW()-2)),"") ->  | BS5: =IFERROR(INDEX($B$3:$B$864,SMALL(IF(BS$2=$A$3:$A$864,ROW($B$3:$B$864) - MIN(ROW($B$3:$B$864))+1,""), ROW()-2)),"") ->  | BT5: =IFERROR(INDEX($B$3:$B$864,SMALL(IF(BT$2=$A$3:$A$864,ROW($B$3:$B$864) - MIN(ROW($B$3:$B$864))+1,""), ROW()-2)),"") ->  | BU5: =IFERROR(INDEX($B$3:$B$864,SMALL(IF(BU$2=$A$3:$A$864,ROW($B$3:$B$864) - MIN(ROW($B$3:$B$864))+1,""), ROW()-2)),"") ->  | BV5: =IFERROR(INDEX($B$3:$B$864,SMALL(IF(BV$2=$A$3:$A$864,ROW($B$3:$B$864) - MIN(ROW($B$3:$B$864))+1,""), ROW()-2)),"") -> Zone-3 | BW5: =IFERROR(INDEX($B$3:$B$864,SMALL(IF(BW$2=$A$3:$A$864,ROW($B$3:$B$864) - MIN(ROW($B$3:$B$864))+1,""), ROW()-2)),"") ->  | BX5: =IFERROR(INDEX($B$3:$B$864,SMALL(IF(BX$2=$A$3:$A$864,ROW($B$3:$B$864) - MIN(ROW($B$3:$B$864))+1,""), ROW()-2)),"") ->  | BY5: =IFERROR(INDEX($B$3:$B$864,SMALL(IF(BY$2=$A$3:$A$864,ROW($B$3:$B$864) - MIN(ROW($B$3:$B$864))+1,""), ROW()-2)),"") ->  | BZ5: =IFERROR(INDEX($B$3:$B$864,SMALL(IF(BZ$2=$A$3:$A$864,ROW($B$3:$B$864) - MIN(ROW($B$3:$B$864))+1,""), ROW()-2)),"") ->  | CA5: =IFERROR(INDEX($B$3:$B$864,SMALL(IF(CA$2=$A$3:$A$864,ROW($B$3:$B$864) - MIN(ROW($B$3:$B$864))+1,""), ROW()-2)),"") ->  | CB5: =IFERROR(INDEX($B$3:$B$864,SMALL(IF(CB$2=$A$3:$A$864,ROW($B$3:$B$864) - MIN(ROW($B$3:$B$864))+1,""), ROW()-2)),"") ->  | CC5: =IFERROR(INDEX($B$3:$B$864,SMALL(IF(CC$2=$A$3:$A$864,ROW($B$3:$B$864) - MIN(ROW($B$3:$B$864))+1,""), ROW()-2)),"") ->  | CD5: =IFERROR(INDEX($B$3:$B$864,SMALL(IF(CD$2=$A$3:$A$864,ROW($B$3:$B$864) - MIN(ROW($B$3:$B$864))+1,""), ROW()-2)),"") ->  | CE5: =IFERROR(INDEX($B$3:$B$864,SMALL(IF(CE$2=$A$3:$A$864,ROW($B$3:$B$864) - MIN(ROW($B$3:$B$864))+1,""), ROW()-2)),"") ->  | CF5: =IFERROR(INDEX($B$3:$B$864,SMALL(IF(CF$2=$A$3:$A$864,ROW($B$3:$B$864) - MIN(ROW($B$3:$B$864))+1,""), ROW()-2)),"") ->  | CG5: =IFERROR(INDEX($B$3:$B$864,SMALL(IF(CG$2=$A$3:$A$864,ROW($B$3:$B$864) - MIN(ROW($B$3:$B$864))+1,""), ROW()-2)),"") ->  | CH5: =IFERROR(INDEX($B$3:$B$864,SMALL(IF(CH$2=$A$3:$A$864,ROW($B$3:$B$864) - MIN(ROW($B$3:$B$864))+1,""), ROW()-2)),"") ->  | CI5: =IFERROR(INDEX($B$3:$B$864,SMALL(IF(CI$2=$A$3:$A$864,ROW($B$3:$B$864) - MIN(ROW($B$3:$B$864))+1,""), ROW()-2)),"") ->  | CJ5: =IFERROR(INDEX($B$3:$B$864,SMALL(IF(CJ$2=$A$3:$A$864,ROW($B$3:$B$864) - MIN(ROW($B$3:$B$864))+1,""), ROW()-2)),"") ->  | CK5: =IFERROR(INDEX($B$3:$B$864,SMALL(IF(CK$2=$A$3:$A$864,ROW($B$3:$B$864) - MIN(ROW($B$3:$B$864))+1,""), ROW()-2)),"") ->  | CL5: =IFERROR(INDEX($B$3:$B$864,SMALL(IF(CL$2=$A$3:$A$864,ROW($B$3:$B$864) - MIN(ROW($B$3:$B$864))+1,""), ROW()-2)),"") ->  | CM5: =IFERROR(INDEX($B$3:$B$864,SMALL(IF(CM$2=$A$3:$A$864,ROW($B$3:$B$864) - MIN(ROW($B$3:$B$864))+1,""), ROW()-2)),"") -> Zone-3 | CN5: =IFERROR(INDEX($B$3:$B$864,SMALL(IF(CN$2=$A$3:$A$864,ROW($B$3:$B$864) - MIN(ROW($B$3:$B$864))+1,""), ROW()-2)),"") ->  | CO5: =IFERROR(INDEX($B$3:$B$864,SMALL(IF(CO$2=$A$3:$A$864,ROW($B$3:$B$864) - MIN(ROW($B$3:$B$864))+1,""), ROW()-2)),"") ->  | CP5: =IFERROR(INDEX($B$3:$B$864,SMALL(IF(CP$2=$A$3:$A$864,ROW($B$3:$B$864) - MIN(ROW($B$3:$B$864))+1,""), ROW()-2)),"") ->  | CQ5: =IFERROR(INDEX($B$3:$B$864,SMALL(IF(CQ$2=$A$3:$A$864,ROW($B$3:$B$864) - MIN(ROW($B$3:$B$864))+1,""), ROW()-2)),"") ->  | CR5: =IFERROR(INDEX($B$3:$B$864,SMALL(IF(CR$2=$A$3:$A$864,ROW($B$3:$B$864) - MIN(ROW($B$3:$B$864))+1,""), ROW()-2)),"") ->  | CS5: =IFERROR(INDEX($B$3:$B$864,SMALL(IF(CS$2=$A$3:$A$864,ROW($B$3:$B$864) - MIN(ROW($B$3:$B$864))+1,""), ROW()-2)),"") ->  | CT5: =IFERROR(INDEX($B$3:$B$864,SMALL(IF(CT$2=$A$3:$A$864,ROW($B$3:$B$864) - MIN(ROW($B$3:$B$864))+1,""), ROW()-2)),"") -> Zone-3 | CU5: =IFERROR(INDEX($B$3:$B$864,SMALL(IF(CU$2=$A$3:$A$864,ROW($B$3:$B$864) - MIN(ROW($B$3:$B$864))+1,""), ROW()-2)),"") ->  | CV5: =IFERROR(INDEX($B$3:$B$864,SMALL(IF(CV$2=$A$3:$A$864,ROW($B$3:$B$864) - MIN(ROW($B$3:$B$864))+1,""), ROW()-2)),"") ->  | CW5: =IFERROR(INDEX($B$3:$B$864,SMALL(IF(CW$2=$A$3:$A$864,ROW($B$3:$B$864) - MIN(ROW($B$3:$B$864))+1,""), ROW()-2)),"") ->  | CX5: =IFERROR(INDEX($B$3:$B$864,SMALL(IF(CX$2=$A$3:$A$864,ROW($B$3:$B$864) - MIN(ROW($B$3:$B$864))+1,""), ROW()-2)),"") ->  | CY5: =IFERROR(INDEX($B$3:$B$864,SMALL(IF(CY$2=$A$3:$A$864,ROW($B$3:$B$864) - MIN(ROW($B$3:$B$864))+1,""), ROW()-2)),"") ->  | CZ5: =IFERROR(INDEX($B$3:$B$864,SMALL(IF(CZ$2=$A$3:$A$864,ROW($B$3:$B$864) - MIN(ROW($B$3:$B$864))+1,""), ROW()-2)),"") ->  | DA5: =IFERROR(INDEX($B$3:$B$864,SMALL(IF(DA$2=$A$3:$A$864,ROW($B$3:$B$864) - MIN(ROW($B$3:$B$864))+1,""), ROW()-2)),"") -> Zone-3 | DB5: =IFERROR(INDEX($B$3:$B$864,SMALL(IF(DB$2=$A$3:$A$864,ROW($B$3:$B$864) - MIN(ROW($B$3:$B$864))+1,""), ROW()-2)),"") ->  | DC5: =IFERROR(INDEX($B$3:$B$864,SMALL(IF(DC$2=$A$3:$A$864,ROW($B$3:$B$864) - MIN(ROW($B$3:$B$864))+1,""), ROW()-2)),"") ->  | DD5: =IFERROR(INDEX($B$3:$B$864,SMALL(IF(DD$2=$A$3:$A$864,ROW($B$3:$B$864) - MIN(ROW($B$3:$B$864))+1,""), ROW()-2)),"") ->  | DE5: =IFERROR(INDEX($B$3:$B$864,SMALL(IF(DE$2=$A$3:$A$864,ROW($B$3:$B$864) - MIN(ROW($B$3:$B$864))+1,""), ROW()-2)),"") ->  | DF5: =IFERROR(INDEX($B$3:$B$864,SMALL(IF(DF$2=$A$3:$A$864,ROW($B$3:$B$864) - MIN(ROW($B$3:$B$864))+1,""), ROW()-2)),"") ->  | DG5: =IFERROR(INDEX($B$3:$B$864,SMALL(IF(DG$2=$A$3:$A$864,ROW($B$3:$B$864) - MIN(ROW($B$3:$B$864))+1,""), ROW()-2)),"") ->  | DH5: =IFERROR(INDEX($B$3:$B$864,SMALL(IF(DH$2=$A$3:$A$864,ROW($B$3:$B$864) - MIN(ROW($B$3:$B$864))+1,""), ROW()-2)),"") ->  | DI5: =IFERROR(INDEX($B$3:$B$864,SMALL(IF(DI$2=$A$3:$A$864,ROW($B$3:$B$864) - MIN(ROW($B$3:$B$864))+1,""), ROW()-2)),"") ->  | DJ5: =IFERROR(INDEX($B$3:$B$864,SMALL(IF(DJ$2=$A$3:$A$864,ROW($B$3:$B$864) - MIN(ROW($B$3:$B$864))+1,""), ROW()-2)),"") ->  | DK5: =IFERROR(INDEX($B$3:$B$864,SMALL(IF(DK$2=$A$3:$A$864,ROW($B$3:$B$864) - MIN(ROW($B$3:$B$864))+1,""), ROW()-2)),"") ->  | DL5: =IFERROR(INDEX($B$3:$B$864,SMALL(IF(DL$2=$A$3:$A$864,ROW($B$3:$B$864) - MIN(ROW($B$3:$B$864))+1,""), ROW()-2)),"") ->  | DM5: =IFERROR(INDEX($B$3:$B$864,SMALL(IF(DM$2=$A$3:$A$864,ROW($B$3:$B$864) - MIN(ROW($B$3:$B$864))+1,""), ROW()-2)),"") ->  | DN5: =IFERROR(INDEX($B$3:$B$864,SMALL(IF(DN$2=$A$3:$A$864,ROW($B$3:$B$864) - MIN(ROW($B$3:$B$864))+1,""), ROW()-2)),"") ->  | DO5: =IFERROR(INDEX($B$3:$B$864,SMALL(IF(DO$2=$A$3:$A$864,ROW($B$3:$B$864) - MIN(ROW($B$3:$B$864))+1,""), ROW()-2)),"") ->  | DP5: =IFERROR(INDEX($B$3:$B$864,SMALL(IF(DP$2=$A$3:$A$864,ROW($B$3:$B$864) - MIN(ROW($B$3:$B$864))+1,""), ROW()-2)),"") -> Zone-3 | DQ5: =IFERROR(INDEX($B$3:$B$864,SMALL(IF(DQ$2=$A$3:$A$864,ROW($B$3:$B$864) - MIN(ROW($B$3:$B$864))+1,""), ROW()-2)),"") ->  | DR5: =IFERROR(INDEX($B$3:$B$864,SMALL(IF(DR$2=$A$3:$A$864,ROW($B$3:$B$864) - MIN(ROW($B$3:$B$864))+1,""), ROW()-2)),"") ->  | DS5: =IFERROR(INDEX($B$3:$B$864,SMALL(IF(DS$2=$A$3:$A$864,ROW($B$3:$B$864) - MIN(ROW($B$3:$B$864))+1,""), ROW()-2)),"") ->  | DT5: =IFERROR(INDEX($B$3:$B$864,SMALL(IF(DT$2=$A$3:$A$864,ROW($B$3:$B$864) - MIN(ROW($B$3:$B$864))+1,""), ROW()-2)),"") ->  | DU5: =IFERROR(INDEX($B$3:$B$864,SMALL(IF(DU$2=$A$3:$A$864,ROW($B$3:$B$864) - MIN(ROW($B$3:$B$864))+1,""), ROW()-2)),"") ->  | DV5: =IFERROR(INDEX($B$3:$B$864,SMALL(IF(DV$2=$A$3:$A$864,ROW($B$3:$B$864) - MIN(ROW($B$3:$B$864))+1,""), ROW()-2)),"") -> Zone-3 | DW5: =IFERROR(INDEX($B$3:$B$864,SMALL(IF(DW$2=$A$3:$A$864,ROW($B$3:$B$864) - MIN(ROW($B$3:$B$864))+1,""), ROW()-2)),"") ->  | DX5: =IFERROR(INDEX($B$3:$B$864,SMALL(IF(DX$2=$A$3:$A$864,ROW($B$3:$B$864) - MIN(ROW($B$3:$B$864))+1,""), ROW()-2)),"") ->  | DY5: =IFERROR(INDEX($B$3:$B$864,SMALL(IF(DY$2=$A$3:$A$864,ROW($B$3:$B$864) - MIN(ROW($B$3:$B$864))+1,""), ROW()-2)),"") ->  | DZ5: =IFERROR(INDEX($B$3:$B$864,SMALL(IF(DZ$2=$A$3:$A$864,ROW($B$3:$B$864) - MIN(ROW($B$3:$B$864))+1,""), ROW()-2)),"") ->  | EA5: =IFERROR(INDEX($B$3:$B$864,SMALL(IF(EA$2=$A$3:$A$864,ROW($B$3:$B$864) - MIN(ROW($B$3:$B$864))+1,""), ROW()-2)),"") ->  | EB5: =IFERROR(INDEX($B$3:$B$864,SMALL(IF(EB$2=$A$3:$A$864,ROW($B$3:$B$864) - MIN(ROW($B$3:$B$864))+1,""), ROW()-2)),"") ->  | EC5: =IFERROR(INDEX($B$3:$B$864,SMALL(IF(EC$2=$A$3:$A$864,ROW($B$3:$B$864) - MIN(ROW($B$3:$B$864))+1,""), ROW()-2)),"") ->  | ED5: =IFERROR(INDEX($B$3:$B$864,SMALL(IF(ED$2=$A$3:$A$864,ROW($B$3:$B$864) - MIN(ROW($B$3:$B$864))+1,""), ROW()-2)),"") ->  | EE5: =IFERROR(INDEX($B$3:$B$864,SMALL(IF(EE$2=$A$3:$A$864,ROW($B$3:$B$864) - MIN(ROW($B$3:$B$864))+1,""), ROW()-2)),"") ->  | EF5: =IFERROR(INDEX($B$3:$B$864,SMALL(IF(EF$2=$A$3:$A$864,ROW($B$3:$B$864) - MIN(ROW($B$3:$B$864))+1,""), ROW()-2)),"") ->  | EG5: =IFERROR(INDEX($B$3:$B$864,SMALL(IF(EG$2=$A$3:$A$864,ROW($B$3:$B$864) - MIN(ROW($B$3:$B$864))+1,""), ROW()-2)),"") ->  | EH5: =IFERROR(INDEX($B$3:$B$864,SMALL(IF(EH$2=$A$3:$A$864,ROW($B$3:$B$864) - MIN(ROW($B$3:$B$864))+1,""), ROW()-2)),"") -> Zone-3 | EI5: =IFERROR(INDEX($B$3:$B$864,SMALL(IF(EI$2=$A$3:$A$864,ROW($B$3:$B$864) - MIN(ROW($B$3:$B$864))+1,""), ROW()-2)),"") ->  | EJ5: =IFERROR(INDEX($B$3:$B$864,SMALL(IF(EJ$2=$A$3:$A$864,ROW($B$3:$B$864) - MIN(ROW($B$3:$B$864))+1,""), ROW()-2)),"") ->  | EK5: =IFERROR(INDEX($B$3:$B$864,SMALL(IF(EK$2=$A$3:$A$864,ROW($B$3:$B$864) - MIN(ROW($B$3:$B$864))+1,""), ROW()-2)),"") ->  | EL5: =IFERROR(INDEX($B$3:$B$864,SMALL(IF(EL$2=$A$3:$A$864,ROW($B$3:$B$864) - MIN(ROW($B$3:$B$864))+1,""), ROW()-2)),"") ->  | EM5: =IFERROR(INDEX($B$3:$B$864,SMALL(IF(EM$2=$A$3:$A$864,ROW($B$3:$B$864) - MIN(ROW($B$3:$B$864))+1,""), ROW()-2)),"") ->  | EN5: =IFERROR(INDEX($B$3:$B$864,SMALL(IF(EN$2=$A$3:$A$864,ROW($B$3:$B$864) - MIN(ROW($B$3:$B$864))+1,""), ROW()-2)),"") ->  | EO5: =IFERROR(INDEX($B$3:$B$864,SMALL(IF(EO$2=$A$3:$A$864,ROW($B$3:$B$864) - MIN(ROW($B$3:$B$864))+1,""), ROW()-2)),"") ->  | EP5: =IFERROR(INDEX($B$3:$B$864,SMALL(IF(EP$2=$A$3:$A$864,ROW($B$3:$B$864) - MIN(ROW($B$3:$B$864))+1,""), ROW()-2)),"") ->  | EQ5: =IFERROR(INDEX($B$3:$B$864,SMALL(IF(EQ$2=$A$3:$A$864,ROW($B$3:$B$864) - MIN(ROW($B$3:$B$864))+1,""), ROW()-2)),"") ->  | ER5: =IFERROR(INDEX($B$3:$B$864,SMALL(IF(ER$2=$A$3:$A$864,ROW($B$3:$B$864) - MIN(ROW($B$3:$B$864))+1,""), ROW()-2)),"") ->  | ES5: =IFERROR(INDEX($B$3:$B$864,SMALL(IF(ES$2=$A$3:$A$864,ROW($B$3:$B$864) - MIN(ROW($B$3:$B$864))+1,""), ROW()-2)),"") ->  | ET5: =IFERROR(INDEX($B$3:$B$864,SMALL(IF(ET$2=$A$3:$A$864,ROW($B$3:$B$864) - MIN(ROW($B$3:$B$864))+1,""), ROW()-2)),"") ->  | EU5: =IFERROR(INDEX($B$3:$B$864,SMALL(IF(EU$2=$A$3:$A$864,ROW($B$3:$B$864) - MIN(ROW($B$3:$B$864))+1,""), ROW()-2)),"") ->  | EV5: =IFERROR(INDEX($B$3:$B$864,SMALL(IF(EV$2=$A$3:$A$864,ROW($B$3:$B$864) - MIN(ROW($B$3:$B$864))+1,""), ROW()-2)),"") ->  | EW5: =IFERROR(INDEX($B$3:$B$864,SMALL(IF(EW$2=$A$3:$A$864,ROW($B$3:$B$864) - MIN(ROW($B$3:$B$864))+1,""), ROW()-2)),"") ->  | EX5: =IFERROR(INDEX($B$3:$B$864,SMALL(IF(EX$2=$A$3:$A$864,ROW($B$3:$B$864) - MIN(ROW($B$3:$B$864))+1,""), ROW()-2)),"") ->  | EY5: =IFERROR(INDEX($B$3:$B$864,SMALL(IF(EY$2=$A$3:$A$864,ROW($B$3:$B$864) - MIN(ROW($B$3:$B$864))+1,""), ROW()-2)),"") ->  | EZ5: =IFERROR(INDEX($B$3:$B$864,SMALL(IF(EZ$2=$A$3:$A$864,ROW($B$3:$B$864) - MIN(ROW($B$3:$B$864))+1,""), ROW()-2)),"") ->  | FA5: =IFERROR(INDEX($B$3:$B$864,SMALL(IF(FA$2=$A$3:$A$864,ROW($B$3:$B$864) - MIN(ROW($B$3:$B$864))+1,""), ROW()-2)),"") ->  | FB5: =IFERROR(INDEX($B$3:$B$864,SMALL(IF(FB$2=$A$3:$A$864,ROW($B$3:$B$864) - MIN(ROW($B$3:$B$864))+1,""), ROW()-2)),"") ->  | FC5: =IFERROR(INDEX($B$3:$B$864,SMALL(IF(FC$2=$A$3:$A$864,ROW($B$3:$B$864) - MIN(ROW($B$3:$B$864))+1,""), ROW()-2)),"") ->  | FD5: =IFERROR(INDEX($B$3:$B$864,SMALL(IF(FD$2=$A$3:$A$864,ROW($B$3:$B$864) - MIN(ROW($B$3:$B$864))+1,""), ROW()-2)),"") ->  | FE5: =IFERROR(INDEX($B$3:$B$864,SMALL(IF(FE$2=$A$3:$A$864,ROW($B$3:$B$864) - MIN(ROW($B$3:$B$864))+1,""), ROW()-2)),"") ->  | FF5: =IFERROR(INDEX($B$3:$B$864,SMALL(IF(FF$2=$A$3:$A$864,ROW($B$3:$B$864) - MIN(ROW($B$3:$B$864))+1,""), ROW()-2)),"") -> Zone-3 | FG5: =IFERROR(INDEX($B$3:$B$864,SMALL(IF(FG$2=$A$3:$A$864,ROW($B$3:$B$864) - MIN(ROW($B$3:$B$864))+1,""), ROW()-2)),"") ->  | FH5: =IFERROR(INDEX($B$3:$B$864,SMALL(IF(FH$2=$A$3:$A$864,ROW($B$3:$B$864) - MIN(ROW($B$3:$B$864))+1,""), ROW()-2)),"") ->  | FI5: =IFERROR(INDEX($B$3:$B$864,SMALL(IF(FI$2=$A$3:$A$864,ROW($B$3:$B$864) - MIN(ROW($B$3:$B$864))+1,""), ROW()-2)),"") ->  | FJ5: =IFERROR(INDEX($B$3:$B$864,SMALL(IF(FJ$2=$A$3:$A$864,ROW($B$3:$B$864) - MIN(ROW($B$3:$B$864))+1,""), ROW()-2)),"") ->  | FK5: =IFERROR(INDEX($B$3:$B$864,SMALL(IF(FK$2=$A$3:$A$864,ROW($B$3:$B$864) - MIN(ROW($B$3:$B$864))+1,""), ROW()-2)),"") ->  | FL5: =IFERROR(INDEX($B$3:$B$864,SMALL(IF(FL$2=$A$3:$A$864,ROW($B$3:$B$864) - MIN(ROW($B$3:$B$864))+1,""), ROW()-2)),"") -> Zone-3 | FM5: =IFERROR(INDEX($B$3:$B$864,SMALL(IF(FM$2=$A$3:$A$864,ROW($B$3:$B$864) - MIN(ROW($B$3:$B$864))+1,""), ROW()-2)),"") ->  | FN5: =IFERROR(INDEX($B$3:$B$864,SMALL(IF(FN$2=$A$3:$A$864,ROW($B$3:$B$864) - MIN(ROW($B$3:$B$864))+1,""), ROW()-2)),"") ->  | FO5: =IFERROR(INDEX($B$3:$B$864,SMALL(IF(FO$2=$A$3:$A$864,ROW($B$3:$B$864) - MIN(ROW($B$3:$B$864))+1,""), ROW()-2)),"") ->  | FP5: =IFERROR(INDEX($B$3:$B$864,SMALL(IF(FP$2=$A$3:$A$864,ROW($B$3:$B$864) - MIN(ROW($B$3:$B$864))+1,""), ROW()-2)),"") ->  | FQ5: =IFERROR(INDEX($B$3:$B$864,SMALL(IF(FQ$2=$A$3:$A$864,ROW($B$3:$B$864) - MIN(ROW($B$3:$B$864))+1,""), ROW()-2)),"") ->  | FR5: =IFERROR(INDEX($B$3:$B$864,SMALL(IF(FR$2=$A$3:$A$864,ROW($B$3:$B$864) - MIN(ROW($B$3:$B$864))+1,""), ROW()-2)),"") ->  | FS5: =IFERROR(INDEX($B$3:$B$864,SMALL(IF(FS$2=$A$3:$A$864,ROW($B$3:$B$864) - MIN(ROW($B$3:$B$864))+1,""), ROW()-2)),"") -> Zone-3 | FT5: =IFERROR(INDEX($B$3:$B$864,SMALL(IF(FT$2=$A$3:$A$864,ROW($B$3:$B$864) - MIN(ROW($B$3:$B$864))+1,""), ROW()-2)),"") ->  | FU5: =IFERROR(INDEX($B$3:$B$864,SMALL(IF(FU$2=$A$3:$A$864,ROW($B$3:$B$864) - MIN(ROW($B$3:$B$864))+1,""), ROW()-2)),"") ->  | FV5: =IFERROR(INDEX($B$3:$B$864,SMALL(IF(FV$2=$A$3:$A$864,ROW($B$3:$B$864) - MIN(ROW($B$3:$B$864))+1,""), ROW()-2)),"") ->  | FW5: =IFERROR(INDEX($B$3:$B$864,SMALL(IF(FW$2=$A$3:$A$864,ROW($B$3:$B$864) - MIN(ROW($B$3:$B$864))+1,""), ROW()-2)),"") ->  | FX5: =IFERROR(INDEX($B$3:$B$864,SMALL(IF(FX$2=$A$3:$A$864,ROW($B$3:$B$864) - MIN(ROW($B$3:$B$864))+1,""), ROW()-2)),"") ->  | FY5: =IFERROR(INDEX($B$3:$B$864,SMALL(IF(FY$2=$A$3:$A$864,ROW($B$3:$B$864) - MIN(ROW($B$3:$B$864))+1,""), ROW()-2)),"") -> Zone-3 | FZ5: =IFERROR(INDEX($B$3:$B$864,SMALL(IF(FZ$2=$A$3:$A$864,ROW($B$3:$B$864) - MIN(ROW($B$3:$B$864))+1,""), ROW()-2)),"") ->  | GA5: =IFERROR(INDEX($B$3:$B$864,SMALL(IF(GA$2=$A$3:$A$864,ROW($B$3:$B$864) - MIN(ROW($B$3:$B$864))+1,""), ROW()-2)),"") ->  | GB5: =IFERROR(INDEX($B$3:$B$864,SMALL(IF(GB$2=$A$3:$A$864,ROW($B$3:$B$864) - MIN(ROW($B$3:$B$864))+1,""), ROW()-2)),"") ->  | GC5: =IFERROR(INDEX($B$3:$B$864,SMALL(IF(GC$2=$A$3:$A$864,ROW($B$3:$B$864) - MIN(ROW($B$3:$B$864))+1,""), ROW()-2)),"") ->  | GD5: =IFERROR(INDEX($B$3:$B$864,SMALL(IF(GD$2=$A$3:$A$864,ROW($B$3:$B$864) - MIN(ROW($B$3:$B$864))+1,""), ROW()-2)),"") ->  | GE5: =IFERROR(INDEX($B$3:$B$864,SMALL(IF(GE$2=$A$3:$A$864,ROW($B$3:$B$864) - MIN(ROW($B$3:$B$864))+1,""), ROW()-2)),"") ->  | GF5: =IFERROR(INDEX($B$3:$B$864,SMALL(IF(GF$2=$A$3:$A$864,ROW($B$3:$B$864) - MIN(ROW($B$3:$B$864))+1,""), ROW()-2)),"") ->  | GG5: =IFERROR(INDEX($B$3:$B$864,SMALL(IF(GG$2=$A$3:$A$864,ROW($B$3:$B$864) - MIN(ROW($B$3:$B$864))+1,""), ROW()-2)),"") ->  | GH5: =IFERROR(INDEX($B$3:$B$864,SMALL(IF(GH$2=$A$3:$A$864,ROW($B$3:$B$864) - MIN(ROW($B$3:$B$864))+1,""), ROW()-2)),"") ->  | GI5: =IFERROR(INDEX($B$3:$B$864,SMALL(IF(GI$2=$A$3:$A$864,ROW($B$3:$B$864) - MIN(ROW($B$3:$B$864))+1,""), ROW()-2)),"") -> Zone-3 | GJ5: =IFERROR(INDEX($B$3:$B$864,SMALL(IF(GJ$2=$A$3:$A$864,ROW($B$3:$B$864) - MIN(ROW($B$3:$B$864))+1,""), ROW()-2)),"") -> Zone-3 | GK5: =IFERROR(INDEX($B$3:$B$864,SMALL(IF(GK$2=$A$3:$A$864,ROW($B$3:$B$864) - MIN(ROW($B$3:$B$864))+1,""), ROW()-2)),"") ->  | GL5: =IFERROR(INDEX($B$3:$B$864,SMALL(IF(GL$2=$A$3:$A$864,ROW($B$3:$B$864) - MIN(ROW($B$3:$B$864))+1,""), ROW()-2)),"") -> Zone-3 | GM5: =IFERROR(INDEX($B$3:$B$864,SMALL(IF(GM$2=$A$3:$A$864,ROW($B$3:$B$864) - MIN(ROW($B$3:$B$864))+1,""), ROW()-2)),"") ->  | GN5: =IFERROR(INDEX($B$3:$B$864,SMALL(IF(GN$2=$A$3:$A$864,ROW($B$3:$B$864) - MIN(ROW($B$3:$B$864))+1,""), ROW()-2)),"") ->  | GO5: =IFERROR(INDEX($B$3:$B$864,SMALL(IF(GO$2=$A$3:$A$864,ROW($B$3:$B$864) - MIN(ROW($B$3:$B$864))+1,""), ROW()-2)),"") ->  | GP5: =IFERROR(INDEX($B$3:$B$864,SMALL(IF(GP$2=$A$3:$A$864,ROW($B$3:$B$864) - MIN(ROW($B$3:$B$864))+1,""), ROW()-2)),"") -> Zone-3 | GQ5: =IFERROR(INDEX($B$3:$B$864,SMALL(IF(GQ$2=$A$3:$A$864,ROW($B$3:$B$864) - MIN(ROW($B$3:$B$864))+1,""), ROW()-2)),"") ->  | GR5: =IFERROR(INDEX($B$3:$B$864,SMALL(IF(GR$2=$A$3:$A$864,ROW($B$3:$B$864) - MIN(ROW($B$3:$B$864))+1,""), ROW()-2)),"") ->  | GS5: =IFERROR(INDEX($B$3:$B$864,SMALL(IF(GS$2=$A$3:$A$864,ROW($B$3:$B$864) - MIN(ROW($B$3:$B$864))+1,""), ROW()-2)),"") ->  | GT5: =IFERROR(INDEX($B$3:$B$864,SMALL(IF(GT$2=$A$3:$A$864,ROW($B$3:$B$864) - MIN(ROW($B$3:$B$864))+1,""), ROW()-2)),"") ->  | GU5: =IFERROR(INDEX($B$3:$B$864,SMALL(IF(GU$2=$A$3:$A$864,ROW($B$3:$B$864) - MIN(ROW($B$3:$B$864))+1,""), ROW()-2)),"") ->  | GV5: =IFERROR(INDEX($B$3:$B$864,SMALL(IF(GV$2=$A$3:$A$864,ROW($B$3:$B$864) - MIN(ROW($B$3:$B$864))+1,""), ROW()-2)),"") ->  | GW5: =IFERROR(INDEX($B$3:$B$864,SMALL(IF(GW$2=$A$3:$A$864,ROW($B$3:$B$864) - MIN(ROW($B$3:$B$864))+1,""), ROW()-2)),"") ->  | GX5: =IFERROR(INDEX($B$3:$B$864,SMALL(IF(GX$2=$A$3:$A$864,ROW($B$3:$B$864) - MIN(ROW($B$3:$B$864))+1,""), ROW()-2)),"") ->  | GY5: =IFERROR(INDEX($B$3:$B$864,SMALL(IF(GY$2=$A$3:$A$864,ROW($B$3:$B$864) - MIN(ROW($B$3:$B$864))+1,""), ROW()-2)),"") ->  | GZ5: =IFERROR(INDEX($B$3:$B$864,SMALL(IF(GZ$2=$A$3:$A$864,ROW($B$3:$B$864) - MIN(ROW($B$3:$B$864))+1,""), ROW()-2)),"") ->  | HA5: =IFERROR(INDEX($B$3:$B$864,SMALL(IF(HA$2=$A$3:$A$864,ROW($B$3:$B$864) - MIN(ROW($B$3:$B$864))+1,""), ROW()-2)),"") -> Zone-3 | HB5: =IFERROR(INDEX($B$3:$B$864,SMALL(IF(HB$2=$A$3:$A$864,ROW($B$3:$B$864) - MIN(ROW($B$3:$B$864))+1,""), ROW()-2)),"") ->  | HC5: =IFERROR(INDEX($B$3:$B$864,SMALL(IF(HC$2=$A$3:$A$864,ROW($B$3:$B$864) - MIN(ROW($B$3:$B$864))+1,""), ROW()-2)),"") ->  | HD5: =IFERROR(INDEX($B$3:$B$864,SMALL(IF(HD$2=$A$3:$A$864,ROW($B$3:$B$864) - MIN(ROW($B$3:$B$864))+1,""), ROW()-2)),"") ->  | HE5: =IFERROR(INDEX($B$3:$B$864,SMALL(IF(HE$2=$A$3:$A$864,ROW($B$3:$B$864) - MIN(ROW($B$3:$B$864))+1,""), ROW()-2)),"") ->  | HF5: =IFERROR(INDEX($B$3:$B$864,SMALL(IF(HF$2=$A$3:$A$864,ROW($B$3:$B$864) - MIN(ROW($B$3:$B$864))+1,""), ROW()-2)),"") ->  | HG5: =IFERROR(INDEX($B$3:$B$864,SMALL(IF(HG$2=$A$3:$A$864,ROW($B$3:$B$864) - MIN(ROW($B$3:$B$864))+1,""), ROW()-2)),"") ->  | HH5: =IFERROR(INDEX($B$3:$B$864,SMALL(IF(HH$2=$A$3:$A$864,ROW($B$3:$B$864) - MIN(ROW($B$3:$B$864))+1,""), ROW()-2)),"") ->  | HI5: =IFERROR(INDEX($B$3:$B$864,SMALL(IF(HI$2=$A$3:$A$864,ROW($B$3:$B$864) - MIN(ROW($B$3:$B$864))+1,""), ROW()-2)),"") ->  | HJ5: =IFERROR(INDEX($B$3:$B$864,SMALL(IF(HJ$2=$A$3:$A$864,ROW($B$3:$B$864) - MIN(ROW($B$3:$B$864))+1,""), ROW()-2)),"") ->  | HK5: =IFERROR(INDEX($B$3:$B$864,SMALL(IF(HK$2=$A$3:$A$864,ROW($B$3:$B$864) - MIN(ROW($B$3:$B$864))+1,""), ROW()-2)),"") ->  | HL5: =IFERROR(INDEX($B$3:$B$864,SMALL(IF(HL$2=$A$3:$A$864,ROW($B$3:$B$864) - MIN(ROW($B$3:$B$864))+1,""), ROW()-2)),"") ->  | HM5: =IFERROR(INDEX($B$3:$B$864,SMALL(IF(HM$2=$A$3:$A$864,ROW($B$3:$B$864) - MIN(ROW($B$3:$B$864))+1,""), ROW()-2)),"") ->  | HN5: =IFERROR(INDEX($B$3:$B$864,SMALL(IF(HN$2=$A$3:$A$864,ROW($B$3:$B$864) - MIN(ROW($B$3:$B$864))+1,""), ROW()-2)),"") ->  | HO5: =IFERROR(INDEX($B$3:$B$864,SMALL(IF(HO$2=$A$3:$A$864,ROW($B$3:$B$864) - MIN(ROW($B$3:$B$864))+1,""), ROW()-2)),"") -> Zone-3 | HP5: =IFERROR(INDEX($B$3:$B$864,SMALL(IF(HP$2=$A$3:$A$864,ROW($B$3:$B$864) - MIN(ROW($B$3:$B$864))+1,""), ROW()-2)),"") ->  | HQ5: =IFERROR(INDEX($B$3:$B$864,SMALL(IF(HQ$2=$A$3:$A$864,ROW($B$3:$B$864) - MIN(ROW($B$3:$B$864))+1,""), ROW()-2)),"") ->  | HR5: =IFERROR(INDEX($B$3:$B$864,SMALL(IF(HR$2=$A$3:$A$864,ROW($B$3:$B$864) - MIN(ROW($B$3:$B$864))+1,""), ROW()-2)),"") ->  | HS5: =IFERROR(INDEX($B$3:$B$864,SMALL(IF(HS$2=$A$3:$A$864,ROW($B$3:$B$864) - MIN(ROW($B$3:$B$864))+1,""), ROW()-2)),"") -> Zone-3 | HT5: =IFERROR(INDEX($B$3:$B$864,SMALL(IF(HT$2=$A$3:$A$864,ROW($B$3:$B$864) - MIN(ROW($B$3:$B$864))+1,""), ROW()-2)),"") ->  | HU5: =IFERROR(INDEX($B$3:$B$864,SMALL(IF(HU$2=$A$3:$A$864,ROW($B$3:$B$864) - MIN(ROW($B$3:$B$864))+1,""), ROW()-2)),"") ->  | HV5: =IFERROR(INDEX($B$3:$B$864,SMALL(IF(HV$2=$A$3:$A$864,ROW($B$3:$B$864) - MIN(ROW($B$3:$B$864))+1,""), ROW()-2)),"") ->  | HW5: =IFERROR(INDEX($B$3:$B$864,SMALL(IF(HW$2=$A$3:$A$864,ROW($B$3:$B$864) - MIN(ROW($B$3:$B$864))+1,""), ROW()-2)),"") ->  | HX5: =IFERROR(INDEX($B$3:$B$864,SMALL(IF(HX$2=$A$3:$A$864,ROW($B$3:$B$864) - MIN(ROW($B$3:$B$864))+1,""), ROW()-2)),"") ->  | HY5: =IFERROR(INDEX($B$3:$B$864,SMALL(IF(HY$2=$A$3:$A$864,ROW($B$3:$B$864) - MIN(ROW($B$3:$B$864))+1,""), ROW()-2)),"") ->  | HZ5: =IFERROR(INDEX($B$3:$B$864,SMALL(IF(HZ$2=$A$3:$A$864,ROW($B$3:$B$864) - MIN(ROW($B$3:$B$864))+1,""), ROW()-2)),"") ->  | IA5: =IFERROR(INDEX($B$3:$B$864,SMALL(IF(IA$2=$A$3:$A$864,ROW($B$3:$B$864) - MIN(ROW($B$3:$B$864))+1,""), ROW()-2)),"") ->  | IB5: =IFERROR(INDEX($B$3:$B$864,SMALL(IF(IB$2=$A$3:$A$864,ROW($B$3:$B$864) - MIN(ROW($B$3:$B$864))+1,""), ROW()-2)),"") ->  | IC5: =IFERROR(INDEX($B$3:$B$864,SMALL(IF(IC$2=$A$3:$A$864,ROW($B$3:$B$864) - MIN(ROW($B$3:$B$864))+1,""), ROW()-2)),"") ->  | ID5: =IFERROR(INDEX($B$3:$B$864,SMALL(IF(ID$2=$A$3:$A$864,ROW($B$3:$B$864) - MIN(ROW($B$3:$B$864))+1,""), ROW()-2)),"") -> Zone-3 | IE5: =IFERROR(INDEX($B$3:$B$864,SMALL(IF(IE$2=$A$3:$A$864,ROW($B$3:$B$864) - MIN(ROW($B$3:$B$864))+1,""), ROW()-2)),"") ->  | IF5: =IFERROR(INDEX($B$3:$B$864,SMALL(IF(IF$2=$A$3:$A$864,ROW($B$3:$B$864) - MIN(ROW($B$3:$B$864))+1,""), ROW()-2)),"") ->  | IG5: =IFERROR(INDEX($B$3:$B$864,SMALL(IF(IG$2=$A$3:$A$864,ROW($B$3:$B$864) - MIN(ROW($B$3:$B$864))+1,""), ROW()-2)),"") -> Zone-3 | IH5: =IFERROR(INDEX($B$3:$B$864,SMALL(IF(IH$2=$A$3:$A$864,ROW($B$3:$B$864) - MIN(ROW($B$3:$B$864))+1,""), ROW()-2)),"") ->  | II5: =IFERROR(INDEX($B$3:$B$864,SMALL(IF(II$2=$A$3:$A$864,ROW($B$3:$B$864) - MIN(ROW($B$3:$B$864))+1,""), ROW()-2)),"") ->  | IJ5: =IFERROR(INDEX($B$3:$B$864,SMALL(IF(IJ$2=$A$3:$A$864,ROW($B$3:$B$864) - MIN(ROW($B$3:$B$864))+1,""), ROW()-2)),"") ->  | IK5: =IFERROR(INDEX($B$3:$B$864,SMALL(IF(IK$2=$A$3:$A$864,ROW($B$3:$B$864) - MIN(ROW($B$3:$B$864))+1,""), ROW()-2)),"") ->  | IL5: =IFERROR(INDEX($B$3:$B$864,SMALL(IF(IL$2=$A$3:$A$864,ROW($B$3:$B$864) - MIN(ROW($B$3:$B$864))+1,""), ROW()-2)),"") ->  | IM5: =IFERROR(INDEX($B$3:$B$864,SMALL(IF(IM$2=$A$3:$A$864,ROW($B$3:$B$864) - MIN(ROW($B$3:$B$864))+1,""), ROW()-2)),"") ->  | IN5: =IFERROR(INDEX($B$3:$B$864,SMALL(IF(IN$2=$A$3:$A$864,ROW($B$3:$B$864) - MIN(ROW($B$3:$B$864))+1,""), ROW()-2)),"") ->  | IO5: =IFERROR(INDEX($B$3:$B$864,SMALL(IF(IO$2=$A$3:$A$864,ROW($B$3:$B$864) - MIN(ROW($B$3:$B$864))+1,""), ROW()-2)),"") ->  | IP5: =IFERROR(INDEX($B$3:$B$864,SMALL(IF(IP$2=$A$3:$A$864,ROW($B$3:$B$864) - MIN(ROW($B$3:$B$864))+1,""), ROW()-2)),"") ->  | IQ5: =IFERROR(INDEX($B$3:$B$864,SMALL(IF(IQ$2=$A$3:$A$864,ROW($B$3:$B$864) - MIN(ROW($B$3:$B$864))+1,""), ROW()-2)),"") -> San Gabriel River | IR5: =IFERROR(INDEX($B$3:$B$864,SMALL(IF(IR$2=$A$3:$A$864,ROW($B$3:$B$864) - MIN(ROW($B$3:$B$864))+1,""), ROW()-2)),"") ->  | IS5: =IFERROR(INDEX($B$3:$B$864,SMALL(IF(IS$2=$A$3:$A$864,ROW($B$3:$B$864) - MIN(ROW($B$3:$B$864))+1,""), ROW()-2)),"") ->  | IT5: =IFERROR(INDEX($B$3:$B$864,SMALL(IF(IT$2=$A$3:$A$864,ROW($B$3:$B$864) - MIN(ROW($B$3:$B$864))+1,""), ROW()-2)),"") ->  | IU5: =IFERROR(INDEX($B$3:$B$864,SMALL(IF(IU$2=$A$3:$A$864,ROW($B$3:$B$864) - MIN(ROW($B$3:$B$864))+1,""), ROW()-2)),"") ->  | IV5: =IFERROR(INDEX($B$3:$B$864,SMALL(IF(IV$2=$A$3:$A$864,ROW($B$3:$B$864) - MIN(ROW($B$3:$B$864))+1,""), ROW()-2)),"") ->  | IW5: =IFERROR(INDEX($B$3:$B$864,SMALL(IF(IW$2=$A$3:$A$864,ROW($B$3:$B$864) - MIN(ROW($B$3:$B$864))+1,""), ROW()-2)),"") ->  | IX5: =IFERROR(INDEX($B$3:$B$864,SMALL(IF(IX$2=$A$3:$A$864,ROW($B$3:$B$864) - MIN(ROW($B$3:$B$864))+1,""), ROW()-2)),"") ->  | IY5: =IFERROR(INDEX($B$3:$B$864,SMALL(IF(IY$2=$A$3:$A$864,ROW($B$3:$B$864) - MIN(ROW($B$3:$B$864))+1,""), ROW()-2)),"") -> 
A6: =IFERROR(ebd_Annual!A6," ") -> Aransas | B6: =IFERROR(ebd_Annual!B6," ") -> Zone-1 | C6: Aransas County has 1 rainfall zone. | F6: =IFERROR(INDEX($B$3:$B$864,SMALL(IF(F$2=$A$3:$A$864,ROW($B$3:$B$864) - MIN(ROW($B$3:$B$864))+1,""), ROW()-2)),"") ->  | G6: =IFERROR(INDEX($B$3:$B$864,SMALL(IF(G$2=$A$3:$A$864,ROW($B$3:$B$864) - MIN(ROW($B$3:$B$864))+1,""), ROW()-2)),"") ->  | H6: =IFERROR(INDEX($B$3:$B$864,SMALL(IF(H$2=$A$3:$A$864,ROW($B$3:$B$864) - MIN(ROW($B$3:$B$864))+1,""), ROW()-2)),"") ->  | I6: =IFERROR(INDEX($B$3:$B$864,SMALL(IF(I$2=$A$3:$A$864,ROW($B$3:$B$864) - MIN(ROW($B$3:$B$864))+1,""), ROW()-2)),"") ->  | J6: =IFERROR(INDEX($B$3:$B$864,SMALL(IF(J$2=$A$3:$A$864,ROW($B$3:$B$864) - MIN(ROW($B$3:$B$864))+1,""), ROW()-2)),"") ->  | K6: =IFERROR(INDEX($B$3:$B$864,SMALL(IF(K$2=$A$3:$A$864,ROW($B$3:$B$864) - MIN(ROW($B$3:$B$864))+1,""), ROW()-2)),"") ->  | L6: =IFERROR(INDEX($B$3:$B$864,SMALL(IF(L$2=$A$3:$A$864,ROW($B$3:$B$864) - MIN(ROW($B$3:$B$864))+1,""), ROW()-2)),"") ->  | M6: =IFERROR(INDEX($B$3:$B$864,SMALL(IF(M$2=$A$3:$A$864,ROW($B$3:$B$864) - MIN(ROW($B$3:$B$864))+1,""), ROW()-2)),"") ->  | N6: =IFERROR(INDEX($B$3:$B$864,SMALL(IF(N$2=$A$3:$A$864,ROW($B$3:$B$864) - MIN(ROW($B$3:$B$864))+1,""), ROW()-2)),"") ->  | O6: =IFERROR(INDEX($B$3:$B$864,SMALL(IF(O$2=$A$3:$A$864,ROW($B$3:$B$864) - MIN(ROW($B$3:$B$864))+1,""), ROW()-2)),"") ->  | P6: =IFERROR(INDEX($B$3:$B$864,SMALL(IF(P$2=$A$3:$A$864,ROW($B$3:$B$864) - MIN(ROW($B$3:$B$864))+1,""), ROW()-2)),"") ->  | Q6: =IFERROR(INDEX($B$3:$B$864,SMALL(IF(Q$2=$A$3:$A$864,ROW($B$3:$B$864) - MIN(ROW($B$3:$B$864))+1,""), ROW()-2)),"") ->  | R6: =IFERROR(INDEX($B$3:$B$864,SMALL(IF(R$2=$A$3:$A$864,ROW($B$3:$B$864) - MIN(ROW($B$3:$B$864))+1,""), ROW()-2)),"") ->  | S6: =IFERROR(INDEX($B$3:$B$864,SMALL(IF(S$2=$A$3:$A$864,ROW($B$3:$B$864) - MIN(ROW($B$3:$B$864))+1,""), ROW()-2)),"") ->  | T6: =IFERROR(INDEX($B$3:$B$864,SMALL(IF(T$2=$A$3:$A$864,ROW($B$3:$B$864) - MIN(ROW($B$3:$B$864))+1,""), ROW()-2)),"") -> PA-2 | U6: =IFERROR(INDEX($B$3:$B$864,SMALL(IF(U$2=$A$3:$A$864,ROW($B$3:$B$864) - MIN(ROW($B$3:$B$864))+1,""), ROW()-2)),"") ->  | V6: =IFERROR(INDEX($B$3:$B$864,SMALL(IF(V$2=$A$3:$A$864,ROW($B$3:$B$864) - MIN(ROW($B$3:$B$864))+1,""), ROW()-2)),"") ->  | W6: =IFERROR(INDEX($B$3:$B$864,SMALL(IF(W$2=$A$3:$A$864,ROW($B$3:$B$864) - MIN(ROW($B$3:$B$864))+1,""), ROW()-2)),"") ->  | X6: =IFERROR(INDEX($B$3:$B$864,SMALL(IF(X$2=$A$3:$A$864,ROW($B$3:$B$864) - MIN(ROW($B$3:$B$864))+1,""), ROW()-2)),"") ->  | Y6: =IFERROR(INDEX($B$3:$B$864,SMALL(IF(Y$2=$A$3:$A$864,ROW($B$3:$B$864) - MIN(ROW($B$3:$B$864))+1,""), ROW()-2)),"") ->  | Z6: =IFERROR(INDEX($B$3:$B$864,SMALL(IF(Z$2=$A$3:$A$864,ROW($B$3:$B$864) - MIN(ROW($B$3:$B$864))+1,""), ROW()-2)),"") ->  | AA6: =IFERROR(INDEX($B$3:$B$864,SMALL(IF(AA$2=$A$3:$A$864,ROW($B$3:$B$864) - MIN(ROW($B$3:$B$864))+1,""), ROW()-2)),"") -> Zone-4 | AB6: =IFERROR(INDEX($B$3:$B$864,SMALL(IF(AB$2=$A$3:$A$864,ROW($B$3:$B$864) - MIN(ROW($B$3:$B$864))+1,""), ROW()-2)),"") ->  | AC6: =IFERROR(INDEX($B$3:$B$864,SMALL(IF(AC$2=$A$3:$A$864,ROW($B$3:$B$864) - MIN(ROW($B$3:$B$864))+1,""), ROW()-2)),"") ->  | AD6: =IFERROR(INDEX($B$3:$B$864,SMALL(IF(AD$2=$A$3:$A$864,ROW($B$3:$B$864) - MIN(ROW($B$3:$B$864))+1,""), ROW()-2)),"") ->  | AE6: =IFERROR(INDEX($B$3:$B$864,SMALL(IF(AE$2=$A$3:$A$864,ROW($B$3:$B$864) - MIN(ROW($B$3:$B$864))+1,""), ROW()-2)),"") ->  | AF6: =IFERROR(INDEX($B$3:$B$864,SMALL(IF(AF$2=$A$3:$A$864,ROW($B$3:$B$864) - MIN(ROW($B$3:$B$864))+1,""), ROW()-2)),"") ->  | AG6: =IFERROR(INDEX($B$3:$B$864,SMALL(IF(AG$2=$A$3:$A$864,ROW($B$3:$B$864) - MIN(ROW($B$3:$B$864))+1,""), ROW()-2)),"") ->  | AH6: =IFERROR(INDEX($B$3:$B$864,SMALL(IF(AH$2=$A$3:$A$864,ROW($B$3:$B$864) - MIN(ROW($B$3:$B$864))+1,""), ROW()-2)),"") ->  | AI6: =IFERROR(INDEX($B$3:$B$864,SMALL(IF(AI$2=$A$3:$A$864,ROW($B$3:$B$864) - MIN(ROW($B$3:$B$864))+1,""), ROW()-2)),"") ->  | AJ6: =IFERROR(INDEX($B$3:$B$864,SMALL(IF(AJ$2=$A$3:$A$864,ROW($B$3:$B$864) - MIN(ROW($B$3:$B$864))+1,""), ROW()-2)),"") ->  | AK6: =IFERROR(INDEX($B$3:$B$864,SMALL(IF(AK$2=$A$3:$A$864,ROW($B$3:$B$864) - MIN(ROW($B$3:$B$864))+1,""), ROW()-2)),"") ->  | AL6: =IFERROR(INDEX($B$3:$B$864,SMALL(IF(AL$2=$A$3:$A$864,ROW($B$3:$B$864) - MIN(ROW($B$3:$B$864))+1,""), ROW()-2)),"") ->  | AM6: =IFERROR(INDEX($B$3:$B$864,SMALL(IF(AM$2=$A$3:$A$864,ROW($B$3:$B$864) - MIN(ROW($B$3:$B$864))+1,""), ROW()-2)),"") ->  | AN6: =IFERROR(INDEX($B$3:$B$864,SMALL(IF(AN$2=$A$3:$A$864,ROW($B$3:$B$864) - MIN(ROW($B$3:$B$864))+1,""), ROW()-2)),"") ->  | AO6: =IFERROR(INDEX($B$3:$B$864,SMALL(IF(AO$2=$A$3:$A$864,ROW($B$3:$B$864) - MIN(ROW($B$3:$B$864))+1,""), ROW()-2)),"") ->  | AP6: =IFERROR(INDEX($B$3:$B$864,SMALL(IF(AP$2=$A$3:$A$864,ROW($B$3:$B$864) - MIN(ROW($B$3:$B$864))+1,""), ROW()-2)),"") ->  | AQ6: =IFERROR(INDEX($B$3:$B$864,SMALL(IF(AQ$2=$A$3:$A$864,ROW($B$3:$B$864) - MIN(ROW($B$3:$B$864))+1,""), ROW()-2)),"") ->  | AR6: =IFERROR(INDEX($B$3:$B$864,SMALL(IF(AR$2=$A$3:$A$864,ROW($B$3:$B$864) - MIN(ROW($B$3:$B$864))+1,""), ROW()-2)),"") ->  | AS6: =IFERROR(INDEX($B$3:$B$864,SMALL(IF(AS$2=$A$3:$A$864,ROW($B$3:$B$864) - MIN(ROW($B$3:$B$864))+1,""), ROW()-2)),"") ->  | AT6: =IFERROR(INDEX($B$3:$B$864,SMALL(IF(AT$2=$A$3:$A$864,ROW($B$3:$B$864) - MIN(ROW($B$3:$B$864))+1,""), ROW()-2)),"") ->  | AU6: =IFERROR(INDEX($B$3:$B$864,SMALL(IF(AU$2=$A$3:$A$864,ROW($B$3:$B$864) - MIN(ROW($B$3:$B$864))+1,""), ROW()-2)),"") ->  | AV6: =IFERROR(INDEX($B$3:$B$864,SMALL(IF(AV$2=$A$3:$A$864,ROW($B$3:$B$864) - MIN(ROW($B$3:$B$864))+1,""), ROW()-2)),"") ->  | AW6: =IFERROR(INDEX($B$3:$B$864,SMALL(IF(AW$2=$A$3:$A$864,ROW($B$3:$B$864) - MIN(ROW($B$3:$B$864))+1,""), ROW()-2)),"") ->  | AX6: =IFERROR(INDEX($B$3:$B$864,SMALL(IF(AX$2=$A$3:$A$864,ROW($B$3:$B$864) - MIN(ROW($B$3:$B$864))+1,""), ROW()-2)),"") ->  | AY6: =IFERROR(INDEX($B$3:$B$864,SMALL(IF(AY$2=$A$3:$A$864,ROW($B$3:$B$864) - MIN(ROW($B$3:$B$864))+1,""), ROW()-2)),"") ->  | AZ6: =IFERROR(INDEX($B$3:$B$864,SMALL(IF(AZ$2=$A$3:$A$864,ROW($B$3:$B$864) - MIN(ROW($B$3:$B$864))+1,""), ROW()-2)),"") ->  | BA6: =IFERROR(INDEX($B$3:$B$864,SMALL(IF(BA$2=$A$3:$A$864,ROW($B$3:$B$864) - MIN(ROW($B$3:$B$864))+1,""), ROW()-2)),"") ->  | BB6: =IFERROR(INDEX($B$3:$B$864,SMALL(IF(BB$2=$A$3:$A$864,ROW($B$3:$B$864) - MIN(ROW($B$3:$B$864))+1,""), ROW()-2)),"") ->  | BC6: =IFERROR(INDEX($B$3:$B$864,SMALL(IF(BC$2=$A$3:$A$864,ROW($B$3:$B$864) - MIN(ROW($B$3:$B$864))+1,""), ROW()-2)),"") ->  | BD6: =IFERROR(INDEX($B$3:$B$864,SMALL(IF(BD$2=$A$3:$A$864,ROW($B$3:$B$864) - MIN(ROW($B$3:$B$864))+1,""), ROW()-2)),"") ->  | BE6: =IFERROR(INDEX($B$3:$B$864,SMALL(IF(BE$2=$A$3:$A$864,ROW($B$3:$B$864) - MIN(ROW($B$3:$B$864))+1,""), ROW()-2)),"") ->  | BF6: =IFERROR(INDEX($B$3:$B$864,SMALL(IF(BF$2=$A$3:$A$864,ROW($B$3:$B$864) - MIN(ROW($B$3:$B$864))+1,""), ROW()-2)),"") ->  | BG6: =IFERROR(INDEX($B$3:$B$864,SMALL(IF(BG$2=$A$3:$A$864,ROW($B$3:$B$864) - MIN(ROW($B$3:$B$864))+1,""), ROW()-2)),"") ->  | BH6: =IFERROR(INDEX($B$3:$B$864,SMALL(IF(BH$2=$A$3:$A$864,ROW($B$3:$B$864) - MIN(ROW($B$3:$B$864))+1,""), ROW()-2)),"") ->  | BI6: =IFERROR(INDEX($B$3:$B$864,SMALL(IF(BI$2=$A$3:$A$864,ROW($B$3:$B$864) - MIN(ROW($B$3:$B$864))+1,""), ROW()-2)),"") ->  | BJ6: =IFERROR(INDEX($B$3:$B$864,SMALL(IF(BJ$2=$A$3:$A$864,ROW($B$3:$B$864) - MIN(ROW($B$3:$B$864))+1,""), ROW()-2)),"") ->  | BK6: =IFERROR(INDEX($B$3:$B$864,SMALL(IF(BK$2=$A$3:$A$864,ROW($B$3:$B$864) - MIN(ROW($B$3:$B$864))+1,""), ROW()-2)),"") ->  | BL6: =IFERROR(INDEX($B$3:$B$864,SMALL(IF(BL$2=$A$3:$A$864,ROW($B$3:$B$864) - MIN(ROW($B$3:$B$864))+1,""), ROW()-2)),"") ->  | BM6: =IFERROR(INDEX($B$3:$B$864,SMALL(IF(BM$2=$A$3:$A$864,ROW($B$3:$B$864) - MIN(ROW($B$3:$B$864))+1,""), ROW()-2)),"") ->  | BN6: =IFERROR(INDEX($B$3:$B$864,SMALL(IF(BN$2=$A$3:$A$864,ROW($B$3:$B$864) - MIN(ROW($B$3:$B$864))+1,""), ROW()-2)),"") ->  | BO6: =IFERROR(INDEX($B$3:$B$864,SMALL(IF(BO$2=$A$3:$A$864,ROW($B$3:$B$864) - MIN(ROW($B$3:$B$864))+1,""), ROW()-2)),"") ->  | BP6: =IFERROR(INDEX($B$3:$B$864,SMALL(IF(BP$2=$A$3:$A$864,ROW($B$3:$B$864) - MIN(ROW($B$3:$B$864))+1,""), ROW()-2)),"") ->  | BQ6: =IFERROR(INDEX($B$3:$B$864,SMALL(IF(BQ$2=$A$3:$A$864,ROW($B$3:$B$864) - MIN(ROW($B$3:$B$864))+1,""), ROW()-2)),"") ->  | BR6: =IFERROR(INDEX($B$3:$B$864,SMALL(IF(BR$2=$A$3:$A$864,ROW($B$3:$B$864) - MIN(ROW($B$3:$B$864))+1,""), ROW()-2)),"") ->  | BS6: =IFERROR(INDEX($B$3:$B$864,SMALL(IF(BS$2=$A$3:$A$864,ROW($B$3:$B$864) - MIN(ROW($B$3:$B$864))+1,""), ROW()-2)),"") ->  | BT6: =IFERROR(INDEX($B$3:$B$864,SMALL(IF(BT$2=$A$3:$A$864,ROW($B$3:$B$864) - MIN(ROW($B$3:$B$864))+1,""), ROW()-2)),"") ->  | BU6: =IFERROR(INDEX($B$3:$B$864,SMALL(IF(BU$2=$A$3:$A$864,ROW($B$3:$B$864) - MIN(ROW($B$3:$B$864))+1,""), ROW()-2)),"") ->  | BV6: =IFERROR(INDEX($B$3:$B$864,SMALL(IF(BV$2=$A$3:$A$864,ROW($B$3:$B$864) - MIN(ROW($B$3:$B$864))+1,""), ROW()-2)),"") ->  | BW6: =IFERROR(INDEX($B$3:$B$864,SMALL(IF(BW$2=$A$3:$A$864,ROW($B$3:$B$864) - MIN(ROW($B$3:$B$864))+1,""), ROW()-2)),"") ->  | BX6: =IFERROR(INDEX($B$3:$B$864,SMALL(IF(BX$2=$A$3:$A$864,ROW($B$3:$B$864) - MIN(ROW($B$3:$B$864))+1,""), ROW()-2)),"") ->  | BY6: =IFERROR(INDEX($B$3:$B$864,SMALL(IF(BY$2=$A$3:$A$864,ROW($B$3:$B$864) - MIN(ROW($B$3:$B$864))+1,""), ROW()-2)),"") ->  | BZ6: =IFERROR(INDEX($B$3:$B$864,SMALL(IF(BZ$2=$A$3:$A$864,ROW($B$3:$B$864) - MIN(ROW($B$3:$B$864))+1,""), ROW()-2)),"") ->  | CA6: =IFERROR(INDEX($B$3:$B$864,SMALL(IF(CA$2=$A$3:$A$864,ROW($B$3:$B$864) - MIN(ROW($B$3:$B$864))+1,""), ROW()-2)),"") ->  | CB6: =IFERROR(INDEX($B$3:$B$864,SMALL(IF(CB$2=$A$3:$A$864,ROW($B$3:$B$864) - MIN(ROW($B$3:$B$864))+1,""), ROW()-2)),"") ->  | CC6: =IFERROR(INDEX($B$3:$B$864,SMALL(IF(CC$2=$A$3:$A$864,ROW($B$3:$B$864) - MIN(ROW($B$3:$B$864))+1,""), ROW()-2)),"") ->  | CD6: =IFERROR(INDEX($B$3:$B$864,SMALL(IF(CD$2=$A$3:$A$864,ROW($B$3:$B$864) - MIN(ROW($B$3:$B$864))+1,""), ROW()-2)),"") ->  | CE6: =IFERROR(INDEX($B$3:$B$864,SMALL(IF(CE$2=$A$3:$A$864,ROW($B$3:$B$864) - MIN(ROW($B$3:$B$864))+1,""), ROW()-2)),"") ->  | CF6: =IFERROR(INDEX($B$3:$B$864,SMALL(IF(CF$2=$A$3:$A$864,ROW($B$3:$B$864) - MIN(ROW($B$3:$B$864))+1,""), ROW()-2)),"") ->  | CG6: =IFERROR(INDEX($B$3:$B$864,SMALL(IF(CG$2=$A$3:$A$864,ROW($B$3:$B$864) - MIN(ROW($B$3:$B$864))+1,""), ROW()-2)),"") ->  | CH6: =IFERROR(INDEX($B$3:$B$864,SMALL(IF(CH$2=$A$3:$A$864,ROW($B$3:$B$864) - MIN(ROW($B$3:$B$864))+1,""), ROW()-2)),"") ->  | CI6: =IFERROR(INDEX($B$3:$B$864,SMALL(IF(CI$2=$A$3:$A$864,ROW($B$3:$B$864) - MIN(ROW($B$3:$B$864))+1,""), ROW()-2)),"") ->  | CJ6: =IFERROR(INDEX($B$3:$B$864,SMALL(IF(CJ$2=$A$3:$A$864,ROW($B$3:$B$864) - MIN(ROW($B$3:$B$864))+1,""), ROW()-2)),"") ->  | CK6: =IFERROR(INDEX($B$3:$B$864,SMALL(IF(CK$2=$A$3:$A$864,ROW($B$3:$B$864) - MIN(ROW($B$3:$B$864))+1,""), ROW()-2)),"") ->  | CL6: =IFERROR(INDEX($B$3:$B$864,SMALL(IF(CL$2=$A$3:$A$864,ROW($B$3:$B$864) - MIN(ROW($B$3:$B$864))+1,""), ROW()-2)),"") ->  | CM6: =IFERROR(INDEX($B$3:$B$864,SMALL(IF(CM$2=$A$3:$A$864,ROW($B$3:$B$864) - MIN(ROW($B$3:$B$864))+1,""), ROW()-2)),"") ->  | CN6: =IFERROR(INDEX($B$3:$B$864,SMALL(IF(CN$2=$A$3:$A$864,ROW($B$3:$B$864) - MIN(ROW($B$3:$B$864))+1,""), ROW()-2)),"") ->  | CO6: =IFERROR(INDEX($B$3:$B$864,SMALL(IF(CO$2=$A$3:$A$864,ROW($B$3:$B$864) - MIN(ROW($B$3:$B$864))+1,""), ROW()-2)),"") ->  | CP6: =IFERROR(INDEX($B$3:$B$864,SMALL(IF(CP$2=$A$3:$A$864,ROW($B$3:$B$864) - MIN(ROW($B$3:$B$864))+1,""), ROW()-2)),"") ->  | CQ6: =IFERROR(INDEX($B$3:$B$864,SMALL(IF(CQ$2=$A$3:$A$864,ROW($B$3:$B$864) - MIN(ROW($B$3:$B$864))+1,""), ROW()-2)),"") ->  | CR6: =IFERROR(INDEX($B$3:$B$864,SMALL(IF(CR$2=$A$3:$A$864,ROW($B$3:$B$864) - MIN(ROW($B$3:$B$864))+1,""), ROW()-2)),"") ->  | CS6: =IFERROR(INDEX($B$3:$B$864,SMALL(IF(CS$2=$A$3:$A$864,ROW($B$3:$B$864) - MIN(ROW($B$3:$B$864))+1,""), ROW()-2)),"") ->  | CT6: =IFERROR(INDEX($B$3:$B$864,SMALL(IF(CT$2=$A$3:$A$864,ROW($B$3:$B$864) - MIN(ROW($B$3:$B$864))+1,""), ROW()-2)),"") ->  | CU6: =IFERROR(INDEX($B$3:$B$864,SMALL(IF(CU$2=$A$3:$A$864,ROW($B$3:$B$864) - MIN(ROW($B$3:$B$864))+1,""), ROW()-2)),"") ->  | CV6: =IFERROR(INDEX($B$3:$B$864,SMALL(IF(CV$2=$A$3:$A$864,ROW($B$3:$B$864) - MIN(ROW($B$3:$B$864))+1,""), ROW()-2)),"") ->  | CW6: =IFERROR(INDEX($B$3:$B$864,SMALL(IF(CW$2=$A$3:$A$864,ROW($B$3:$B$864) - MIN(ROW($B$3:$B$864))+1,""), ROW()-2)),"") ->  | CX6: =IFERROR(INDEX($B$3:$B$864,SMALL(IF(CX$2=$A$3:$A$864,ROW($B$3:$B$864) - MIN(ROW($B$3:$B$864))+1,""), ROW()-2)),"") ->  | CY6: =IFERROR(INDEX($B$3:$B$864,SMALL(IF(CY$2=$A$3:$A$864,ROW($B$3:$B$864) - MIN(ROW($B$3:$B$864))+1,""), ROW()-2)),"") ->  | CZ6: =IFERROR(INDEX($B$3:$B$864,SMALL(IF(CZ$2=$A$3:$A$864,ROW($B$3:$B$864) - MIN(ROW($B$3:$B$864))+1,""), ROW()-2)),"") ->  | DA6: =IFERROR(INDEX($B$3:$B$864,SMALL(IF(DA$2=$A$3:$A$864,ROW($B$3:$B$864) - MIN(ROW($B$3:$B$864))+1,""), ROW()-2)),"") ->  | DB6: =IFERROR(INDEX($B$3:$B$864,SMALL(IF(DB$2=$A$3:$A$864,ROW($B$3:$B$864) - MIN(ROW($B$3:$B$864))+1,""), ROW()-2)),"") ->  | DC6: =IFERROR(INDEX($B$3:$B$864,SMALL(IF(DC$2=$A$3:$A$864,ROW($B$3:$B$864) - MIN(ROW($B$3:$B$864))+1,""), ROW()-2)),"") ->  | DD6: =IFERROR(INDEX($B$3:$B$864,SMALL(IF(DD$2=$A$3:$A$864,ROW($B$3:$B$864) - MIN(ROW($B$3:$B$864))+1,""), ROW()-2)),"") ->  | DE6: =IFERROR(INDEX($B$3:$B$864,SMALL(IF(DE$2=$A$3:$A$864,ROW($B$3:$B$864) - MIN(ROW($B$3:$B$864))+1,""), ROW()-2)),"") ->  | DF6: =IFERROR(INDEX($B$3:$B$864,SMALL(IF(DF$2=$A$3:$A$864,ROW($B$3:$B$864) - MIN(ROW($B$3:$B$864))+1,""), ROW()-2)),"") ->  | DG6: =IFERROR(INDEX($B$3:$B$864,SMALL(IF(DG$2=$A$3:$A$864,ROW($B$3:$B$864) - MIN(ROW($B$3:$B$864))+1,""), ROW()-2)),"") ->  | DH6: =IFERROR(INDEX($B$3:$B$864,SMALL(IF(DH$2=$A$3:$A$864,ROW($B$3:$B$864) - MIN(ROW($B$3:$B$864))+1,""), ROW()-2)),"") ->  | DI6: =IFERROR(INDEX($B$3:$B$864,SMALL(IF(DI$2=$A$3:$A$864,ROW($B$3:$B$864) - MIN(ROW($B$3:$B$864))+1,""), ROW()-2)),"") ->  | DJ6: =IFERROR(INDEX($B$3:$B$864,SMALL(IF(DJ$2=$A$3:$A$864,ROW($B$3:$B$864) - MIN(ROW($B$3:$B$864))+1,""), ROW()-2)),"") ->  | DK6: =IFERROR(INDEX($B$3:$B$864,SMALL(IF(DK$2=$A$3:$A$864,ROW($B$3:$B$864) - MIN(ROW($B$3:$B$864))+1,""), ROW()-2)),"") ->  | DL6: =IFERROR(INDEX($B$3:$B$864,SMALL(IF(DL$2=$A$3:$A$864,ROW($B$3:$B$864) - MIN(ROW($B$3:$B$864))+1,""), ROW()-2)),"") ->  | DM6: =IFERROR(INDEX($B$3:$B$864,SMALL(IF(DM$2=$A$3:$A$864,ROW($B$3:$B$864) - MIN(ROW($B$3:$B$864))+1,""), ROW()-2)),"") ->  | DN6: =IFERROR(INDEX($B$3:$B$864,SMALL(IF(DN$2=$A$3:$A$864,ROW($B$3:$B$864) - MIN(ROW($B$3:$B$864))+1,""), ROW()-2)),"") ->  | DO6: =IFERROR(INDEX($B$3:$B$864,SMALL(IF(DO$2=$A$3:$A$864,ROW($B$3:$B$864) - MIN(ROW($B$3:$B$864))+1,""), ROW()-2)),"") ->  | DP6: =IFERROR(INDEX($B$3:$B$864,SMALL(IF(DP$2=$A$3:$A$864,ROW($B$3:$B$864) - MIN(ROW($B$3:$B$864))+1,""), ROW()-2)),"") ->  | DQ6: =IFERROR(INDEX($B$3:$B$864,SMALL(IF(DQ$2=$A$3:$A$864,ROW($B$3:$B$864) - MIN(ROW($B$3:$B$864))+1,""), ROW()-2)),"") ->  | DR6: =IFERROR(INDEX($B$3:$B$864,SMALL(IF(DR$2=$A$3:$A$864,ROW($B$3:$B$864) - MIN(ROW($B$3:$B$864))+1,""), ROW()-2)),"") ->  | DS6: =IFERROR(INDEX($B$3:$B$864,SMALL(IF(DS$2=$A$3:$A$864,ROW($B$3:$B$864) - MIN(ROW($B$3:$B$864))+1,""), ROW()-2)),"") ->  | DT6: =IFERROR(INDEX($B$3:$B$864,SMALL(IF(DT$2=$A$3:$A$864,ROW($B$3:$B$864) - MIN(ROW($B$3:$B$864))+1,""), ROW()-2)),"") ->  | DU6: =IFERROR(INDEX($B$3:$B$864,SMALL(IF(DU$2=$A$3:$A$864,ROW($B$3:$B$864) - MIN(ROW($B$3:$B$864))+1,""), ROW()-2)),"") ->  | DV6: =IFERROR(INDEX($B$3:$B$864,SMALL(IF(DV$2=$A$3:$A$864,ROW($B$3:$B$864) - MIN(ROW($B$3:$B$864))+1,""), ROW()-2)),"") -> Zone-4 | DW6: =IFERROR(INDEX($B$3:$B$864,SMALL(IF(DW$2=$A$3:$A$864,ROW($B$3:$B$864) - MIN(ROW($B$3:$B$864))+1,""), ROW()-2)),"") ->  | DX6: =IFERROR(INDEX($B$3:$B$864,SMALL(IF(DX$2=$A$3:$A$864,ROW($B$3:$B$864) - MIN(ROW($B$3:$B$864))+1,""), ROW()-2)),"") ->  | DY6: =IFERROR(INDEX($B$3:$B$864,SMALL(IF(DY$2=$A$3:$A$864,ROW($B$3:$B$864) - MIN(ROW($B$3:$B$864))+1,""), ROW()-2)),"") ->  | DZ6: =IFERROR(INDEX($B$3:$B$864,SMALL(IF(DZ$2=$A$3:$A$864,ROW($B$3:$B$864) - MIN(ROW($B$3:$B$864))+1,""), ROW()-2)),"") ->  | EA6: =IFERROR(INDEX($B$3:$B$864,SMALL(IF(EA$2=$A$3:$A$864,ROW($B$3:$B$864) - MIN(ROW($B$3:$B$864))+1,""), ROW()-2)),"") ->  | EB6: =IFERROR(INDEX($B$3:$B$864,SMALL(IF(EB$2=$A$3:$A$864,ROW($B$3:$B$864) - MIN(ROW($B$3:$B$864))+1,""), ROW()-2)),"") ->  | EC6: =IFERROR(INDEX($B$3:$B$864,SMALL(IF(EC$2=$A$3:$A$864,ROW($B$3:$B$864) - MIN(ROW($B$3:$B$864))+1,""), ROW()-2)),"") ->  | ED6: =IFERROR(INDEX($B$3:$B$864,SMALL(IF(ED$2=$A$3:$A$864,ROW($B$3:$B$864) - MIN(ROW($B$3:$B$864))+1,""), ROW()-2)),"") ->  | EE6: =IFERROR(INDEX($B$3:$B$864,SMALL(IF(EE$2=$A$3:$A$864,ROW($B$3:$B$864) - MIN(ROW($B$3:$B$864))+1,""), ROW()-2)),"") ->  | EF6: =IFERROR(INDEX($B$3:$B$864,SMALL(IF(EF$2=$A$3:$A$864,ROW($B$3:$B$864) - MIN(ROW($B$3:$B$864))+1,""), ROW()-2)),"") ->  | EG6: =IFERROR(INDEX($B$3:$B$864,SMALL(IF(EG$2=$A$3:$A$864,ROW($B$3:$B$864) - MIN(ROW($B$3:$B$864))+1,""), ROW()-2)),"") ->  | EH6: =IFERROR(INDEX($B$3:$B$864,SMALL(IF(EH$2=$A$3:$A$864,ROW($B$3:$B$864) - MIN(ROW($B$3:$B$864))+1,""), ROW()-2)),"") ->  | EI6: =IFERROR(INDEX($B$3:$B$864,SMALL(IF(EI$2=$A$3:$A$864,ROW($B$3:$B$864) - MIN(ROW($B$3:$B$864))+1,""), ROW()-2)),"") ->  | EJ6: =IFERROR(INDEX($B$3:$B$864,SMALL(IF(EJ$2=$A$3:$A$864,ROW($B$3:$B$864) - MIN(ROW($B$3:$B$864))+1,""), ROW()-2)),"") ->  | EK6: =IFERROR(INDEX($B$3:$B$864,SMALL(IF(EK$2=$A$3:$A$864,ROW($B$3:$B$864) - MIN(ROW($B$3:$B$864))+1,""), ROW()-2)),"") ->  | EL6: =IFERROR(INDEX($B$3:$B$864,SMALL(IF(EL$2=$A$3:$A$864,ROW($B$3:$B$864) - MIN(ROW($B$3:$B$864))+1,""), ROW()-2)),"") ->  | EM6: =IFERROR(INDEX($B$3:$B$864,SMALL(IF(EM$2=$A$3:$A$864,ROW($B$3:$B$864) - MIN(ROW($B$3:$B$864))+1,""), ROW()-2)),"") ->  | EN6: =IFERROR(INDEX($B$3:$B$864,SMALL(IF(EN$2=$A$3:$A$864,ROW($B$3:$B$864) - MIN(ROW($B$3:$B$864))+1,""), ROW()-2)),"") ->  | EO6: =IFERROR(INDEX($B$3:$B$864,SMALL(IF(EO$2=$A$3:$A$864,ROW($B$3:$B$864) - MIN(ROW($B$3:$B$864))+1,""), ROW()-2)),"") ->  | EP6: =IFERROR(INDEX($B$3:$B$864,SMALL(IF(EP$2=$A$3:$A$864,ROW($B$3:$B$864) - MIN(ROW($B$3:$B$864))+1,""), ROW()-2)),"") ->  | EQ6: =IFERROR(INDEX($B$3:$B$864,SMALL(IF(EQ$2=$A$3:$A$864,ROW($B$3:$B$864) - MIN(ROW($B$3:$B$864))+1,""), ROW()-2)),"") ->  | ER6: =IFERROR(INDEX($B$3:$B$864,SMALL(IF(ER$2=$A$3:$A$864,ROW($B$3:$B$864) - MIN(ROW($B$3:$B$864))+1,""), ROW()-2)),"") ->  | ES6: =IFERROR(INDEX($B$3:$B$864,SMALL(IF(ES$2=$A$3:$A$864,ROW($B$3:$B$864) - MIN(ROW($B$3:$B$864))+1,""), ROW()-2)),"") ->  | ET6: =IFERROR(INDEX($B$3:$B$864,SMALL(IF(ET$2=$A$3:$A$864,ROW($B$3:$B$864) - MIN(ROW($B$3:$B$864))+1,""), ROW()-2)),"") ->  | EU6: =IFERROR(INDEX($B$3:$B$864,SMALL(IF(EU$2=$A$3:$A$864,ROW($B$3:$B$864) - MIN(ROW($B$3:$B$864))+1,""), ROW()-2)),"") ->  | EV6: =IFERROR(INDEX($B$3:$B$864,SMALL(IF(EV$2=$A$3:$A$864,ROW($B$3:$B$864) - MIN(ROW($B$3:$B$864))+1,""), ROW()-2)),"") ->  | EW6: =IFERROR(INDEX($B$3:$B$864,SMALL(IF(EW$2=$A$3:$A$864,ROW($B$3:$B$864) - MIN(ROW($B$3:$B$864))+1,""), ROW()-2)),"") ->  | EX6: =IFERROR(INDEX($B$3:$B$864,SMALL(IF(EX$2=$A$3:$A$864,ROW($B$3:$B$864) - MIN(ROW($B$3:$B$864))+1,""), ROW()-2)),"") ->  | EY6: =IFERROR(INDEX($B$3:$B$864,SMALL(IF(EY$2=$A$3:$A$864,ROW($B$3:$B$864) - MIN(ROW($B$3:$B$864))+1,""), ROW()-2)),"") ->  | EZ6: =IFERROR(INDEX($B$3:$B$864,SMALL(IF(EZ$2=$A$3:$A$864,ROW($B$3:$B$864) - MIN(ROW($B$3:$B$864))+1,""), ROW()-2)),"") ->  | FA6: =IFERROR(INDEX($B$3:$B$864,SMALL(IF(FA$2=$A$3:$A$864,ROW($B$3:$B$864) - MIN(ROW($B$3:$B$864))+1,""), ROW()-2)),"") ->  | FB6: =IFERROR(INDEX($B$3:$B$864,SMALL(IF(FB$2=$A$3:$A$864,ROW($B$3:$B$864) - MIN(ROW($B$3:$B$864))+1,""), ROW()-2)),"") ->  | FC6: =IFERROR(INDEX($B$3:$B$864,SMALL(IF(FC$2=$A$3:$A$864,ROW($B$3:$B$864) - MIN(ROW($B$3:$B$864))+1,""), ROW()-2)),"") ->  | FD6: =IFERROR(INDEX($B$3:$B$864,SMALL(IF(FD$2=$A$3:$A$864,ROW($B$3:$B$864) - MIN(ROW($B$3:$B$864))+1,""), ROW()-2)),"") ->  | FE6: =IFERROR(INDEX($B$3:$B$864,SMALL(IF(FE$2=$A$3:$A$864,ROW($B$3:$B$864) - MIN(ROW($B$3:$B$864))+1,""), ROW()-2)),"") ->  | FF6: =IFERROR(INDEX($B$3:$B$864,SMALL(IF(FF$2=$A$3:$A$864,ROW($B$3:$B$864) - MIN(ROW($B$3:$B$864))+1,""), ROW()-2)),"") ->  | FG6: =IFERROR(INDEX($B$3:$B$864,SMALL(IF(FG$2=$A$3:$A$864,ROW($B$3:$B$864) - MIN(ROW($B$3:$B$864))+1,""), ROW()-2)),"") ->  | FH6: =IFERROR(INDEX($B$3:$B$864,SMALL(IF(FH$2=$A$3:$A$864,ROW($B$3:$B$864) - MIN(ROW($B$3:$B$864))+1,""), ROW()-2)),"") ->  | FI6: =IFERROR(INDEX($B$3:$B$864,SMALL(IF(FI$2=$A$3:$A$864,ROW($B$3:$B$864) - MIN(ROW($B$3:$B$864))+1,""), ROW()-2)),"") ->  | FJ6: =IFERROR(INDEX($B$3:$B$864,SMALL(IF(FJ$2=$A$3:$A$864,ROW($B$3:$B$864) - MIN(ROW($B$3:$B$864))+1,""), ROW()-2)),"") ->  | FK6: =IFERROR(INDEX($B$3:$B$864,SMALL(IF(FK$2=$A$3:$A$864,ROW($B$3:$B$864) - MIN(ROW($B$3:$B$864))+1,""), ROW()-2)),"") ->  | FL6: =IFERROR(INDEX($B$3:$B$864,SMALL(IF(FL$2=$A$3:$A$864,ROW($B$3:$B$864) - MIN(ROW($B$3:$B$864))+1,""), ROW()-2)),"") ->  | FM6: =IFERROR(INDEX($B$3:$B$864,SMALL(IF(FM$2=$A$3:$A$864,ROW($B$3:$B$864) - MIN(ROW($B$3:$B$864))+1,""), ROW()-2)),"") ->  | FN6: =IFERROR(INDEX($B$3:$B$864,SMALL(IF(FN$2=$A$3:$A$864,ROW($B$3:$B$864) - MIN(ROW($B$3:$B$864))+1,""), ROW()-2)),"") ->  | FO6: =IFERROR(INDEX($B$3:$B$864,SMALL(IF(FO$2=$A$3:$A$864,ROW($B$3:$B$864) - MIN(ROW($B$3:$B$864))+1,""), ROW()-2)),"") ->  | FP6: =IFERROR(INDEX($B$3:$B$864,SMALL(IF(FP$2=$A$3:$A$864,ROW($B$3:$B$864) - MIN(ROW($B$3:$B$864))+1,""), ROW()-2)),"") ->  | FQ6: =IFERROR(INDEX($B$3:$B$864,SMALL(IF(FQ$2=$A$3:$A$864,ROW($B$3:$B$864) - MIN(ROW($B$3:$B$864))+1,""), ROW()-2)),"") ->  | FR6: =IFERROR(INDEX($B$3:$B$864,SMALL(IF(FR$2=$A$3:$A$864,ROW($B$3:$B$864) - MIN(ROW($B$3:$B$864))+1,""), ROW()-2)),"") ->  | FS6: =IFERROR(INDEX($B$3:$B$864,SMALL(IF(FS$2=$A$3:$A$864,ROW($B$3:$B$864) - MIN(ROW($B$3:$B$864))+1,""), ROW()-2)),"") ->  | FT6: =IFERROR(INDEX($B$3:$B$864,SMALL(IF(FT$2=$A$3:$A$864,ROW($B$3:$B$864) - MIN(ROW($B$3:$B$864))+1,""), ROW()-2)),"") ->  | FU6: =IFERROR(INDEX($B$3:$B$864,SMALL(IF(FU$2=$A$3:$A$864,ROW($B$3:$B$864) - MIN(ROW($B$3:$B$864))+1,""), ROW()-2)),"") ->  | FV6: =IFERROR(INDEX($B$3:$B$864,SMALL(IF(FV$2=$A$3:$A$864,ROW($B$3:$B$864) - MIN(ROW($B$3:$B$864))+1,""), ROW()-2)),"") ->  | FW6: =IFERROR(INDEX($B$3:$B$864,SMALL(IF(FW$2=$A$3:$A$864,ROW($B$3:$B$864) - MIN(ROW($B$3:$B$864))+1,""), ROW()-2)),"") ->  | FX6: =IFERROR(INDEX($B$3:$B$864,SMALL(IF(FX$2=$A$3:$A$864,ROW($B$3:$B$864) - MIN(ROW($B$3:$B$864))+1,""), ROW()-2)),"") ->  | FY6: =IFERROR(INDEX($B$3:$B$864,SMALL(IF(FY$2=$A$3:$A$864,ROW($B$3:$B$864) - MIN(ROW($B$3:$B$864))+1,""), ROW()-2)),"") -> Zone-4 | FZ6: =IFERROR(INDEX($B$3:$B$864,SMALL(IF(FZ$2=$A$3:$A$864,ROW($B$3:$B$864) - MIN(ROW($B$3:$B$864))+1,""), ROW()-2)),"") ->  | GA6: =IFERROR(INDEX($B$3:$B$864,SMALL(IF(GA$2=$A$3:$A$864,ROW($B$3:$B$864) - MIN(ROW($B$3:$B$864))+1,""), ROW()-2)),"") ->  | GB6: =IFERROR(INDEX($B$3:$B$864,SMALL(IF(GB$2=$A$3:$A$864,ROW($B$3:$B$864) - MIN(ROW($B$3:$B$864))+1,""), ROW()-2)),"") ->  | GC6: =IFERROR(INDEX($B$3:$B$864,SMALL(IF(GC$2=$A$3:$A$864,ROW($B$3:$B$864) - MIN(ROW($B$3:$B$864))+1,""), ROW()-2)),"") ->  | GD6: =IFERROR(INDEX($B$3:$B$864,SMALL(IF(GD$2=$A$3:$A$864,ROW($B$3:$B$864) - MIN(ROW($B$3:$B$864))+1,""), ROW()-2)),"") ->  | GE6: =IFERROR(INDEX($B$3:$B$864,SMALL(IF(GE$2=$A$3:$A$864,ROW($B$3:$B$864) - MIN(ROW($B$3:$B$864))+1,""), ROW()-2)),"") ->  | GF6: =IFERROR(INDEX($B$3:$B$864,SMALL(IF(GF$2=$A$3:$A$864,ROW($B$3:$B$864) - MIN(ROW($B$3:$B$864))+1,""), ROW()-2)),"") ->  | GG6: =IFERROR(INDEX($B$3:$B$864,SMALL(IF(GG$2=$A$3:$A$864,ROW($B$3:$B$864) - MIN(ROW($B$3:$B$864))+1,""), ROW()-2)),"") ->  | GH6: =IFERROR(INDEX($B$3:$B$864,SMALL(IF(GH$2=$A$3:$A$864,ROW($B$3:$B$864) - MIN(ROW($B$3:$B$864))+1,""), ROW()-2)),"") ->  | GI6: =IFERROR(INDEX($B$3:$B$864,SMALL(IF(GI$2=$A$3:$A$864,ROW($B$3:$B$864) - MIN(ROW($B$3:$B$864))+1,""), ROW()-2)),"") ->  | GJ6: =IFERROR(INDEX($B$3:$B$864,SMALL(IF(GJ$2=$A$3:$A$864,ROW($B$3:$B$864) - MIN(ROW($B$3:$B$864))+1,""), ROW()-2)),"") ->  | GK6: =IFERROR(INDEX($B$3:$B$864,SMALL(IF(GK$2=$A$3:$A$864,ROW($B$3:$B$864) - MIN(ROW($B$3:$B$864))+1,""), ROW()-2)),"") ->  | GL6: =IFERROR(INDEX($B$3:$B$864,SMALL(IF(GL$2=$A$3:$A$864,ROW($B$3:$B$864) - MIN(ROW($B$3:$B$864))+1,""), ROW()-2)),"") ->  | GM6: =IFERROR(INDEX($B$3:$B$864,SMALL(IF(GM$2=$A$3:$A$864,ROW($B$3:$B$864) - MIN(ROW($B$3:$B$864))+1,""), ROW()-2)),"") ->  | GN6: =IFERROR(INDEX($B$3:$B$864,SMALL(IF(GN$2=$A$3:$A$864,ROW($B$3:$B$864) - MIN(ROW($B$3:$B$864))+1,""), ROW()-2)),"") ->  | GO6: =IFERROR(INDEX($B$3:$B$864,SMALL(IF(GO$2=$A$3:$A$864,ROW($B$3:$B$864) - MIN(ROW($B$3:$B$864))+1,""), ROW()-2)),"") ->  | GP6: =IFERROR(INDEX($B$3:$B$864,SMALL(IF(GP$2=$A$3:$A$864,ROW($B$3:$B$864) - MIN(ROW($B$3:$B$864))+1,""), ROW()-2)),"") ->  | GQ6: =IFERROR(INDEX($B$3:$B$864,SMALL(IF(GQ$2=$A$3:$A$864,ROW($B$3:$B$864) - MIN(ROW($B$3:$B$864))+1,""), ROW()-2)),"") ->  | GR6: =IFERROR(INDEX($B$3:$B$864,SMALL(IF(GR$2=$A$3:$A$864,ROW($B$3:$B$864) - MIN(ROW($B$3:$B$864))+1,""), ROW()-2)),"") ->  | GS6: =IFERROR(INDEX($B$3:$B$864,SMALL(IF(GS$2=$A$3:$A$864,ROW($B$3:$B$864) - MIN(ROW($B$3:$B$864))+1,""), ROW()-2)),"") ->  | GT6: =IFERROR(INDEX($B$3:$B$864,SMALL(IF(GT$2=$A$3:$A$864,ROW($B$3:$B$864) - MIN(ROW($B$3:$B$864))+1,""), ROW()-2)),"") ->  | GU6: =IFERROR(INDEX($B$3:$B$864,SMALL(IF(GU$2=$A$3:$A$864,ROW($B$3:$B$864) - MIN(ROW($B$3:$B$864))+1,""), ROW()-2)),"") ->  | GV6: =IFERROR(INDEX($B$3:$B$864,SMALL(IF(GV$2=$A$3:$A$864,ROW($B$3:$B$864) - MIN(ROW($B$3:$B$864))+1,""), ROW()-2)),"") ->  | GW6: =IFERROR(INDEX($B$3:$B$864,SMALL(IF(GW$2=$A$3:$A$864,ROW($B$3:$B$864) - MIN(ROW($B$3:$B$864))+1,""), ROW()-2)),"") ->  | GX6: =IFERROR(INDEX($B$3:$B$864,SMALL(IF(GX$2=$A$3:$A$864,ROW($B$3:$B$864) - MIN(ROW($B$3:$B$864))+1,""), ROW()-2)),"") ->  | GY6: =IFERROR(INDEX($B$3:$B$864,SMALL(IF(GY$2=$A$3:$A$864,ROW($B$3:$B$864) - MIN(ROW($B$3:$B$864))+1,""), ROW()-2)),"") ->  | GZ6: =IFERROR(INDEX($B$3:$B$864,SMALL(IF(GZ$2=$A$3:$A$864,ROW($B$3:$B$864) - MIN(ROW($B$3:$B$864))+1,""), ROW()-2)),"") ->  | HA6: =IFERROR(INDEX($B$3:$B$864,SMALL(IF(HA$2=$A$3:$A$864,ROW($B$3:$B$864) - MIN(ROW($B$3:$B$864))+1,""), ROW()-2)),"") ->  | HB6: =IFERROR(INDEX($B$3:$B$864,SMALL(IF(HB$2=$A$3:$A$864,ROW($B$3:$B$864) - MIN(ROW($B$3:$B$864))+1,""), ROW()-2)),"") ->  | HC6: =IFERROR(INDEX($B$3:$B$864,SMALL(IF(HC$2=$A$3:$A$864,ROW($B$3:$B$864) - MIN(ROW($B$3:$B$864))+1,""), ROW()-2)),"") ->  | HD6: =IFERROR(INDEX($B$3:$B$864,SMALL(IF(HD$2=$A$3:$A$864,ROW($B$3:$B$864) - MIN(ROW($B$3:$B$864))+1,""), ROW()-2)),"") ->  | HE6: =IFERROR(INDEX($B$3:$B$864,SMALL(IF(HE$2=$A$3:$A$864,ROW($B$3:$B$864) - MIN(ROW($B$3:$B$864))+1,""), ROW()-2)),"") ->  | HF6: =IFERROR(INDEX($B$3:$B$864,SMALL(IF(HF$2=$A$3:$A$864,ROW($B$3:$B$864) - MIN(ROW($B$3:$B$864))+1,""), ROW()-2)),"") ->  | HG6: =IFERROR(INDEX($B$3:$B$864,SMALL(IF(HG$2=$A$3:$A$864,ROW($B$3:$B$864) - MIN(ROW($B$3:$B$864))+1,""), ROW()-2)),"") ->  | HH6: =IFERROR(INDEX($B$3:$B$864,SMALL(IF(HH$2=$A$3:$A$864,ROW($B$3:$B$864) - MIN(ROW($B$3:$B$864))+1,""), ROW()-2)),"") ->  | HI6: =IFERROR(INDEX($B$3:$B$864,SMALL(IF(HI$2=$A$3:$A$864,ROW($B$3:$B$864) - MIN(ROW($B$3:$B$864))+1,""), ROW()-2)),"") ->  | HJ6: =IFERROR(INDEX($B$3:$B$864,SMALL(IF(HJ$2=$A$3:$A$864,ROW($B$3:$B$864) - MIN(ROW($B$3:$B$864))+1,""), ROW()-2)),"") ->  | HK6: =IFERROR(INDEX($B$3:$B$864,SMALL(IF(HK$2=$A$3:$A$864,ROW($B$3:$B$864) - MIN(ROW($B$3:$B$864))+1,""), ROW()-2)),"") ->  | HL6: =IFERROR(INDEX($B$3:$B$864,SMALL(IF(HL$2=$A$3:$A$864,ROW($B$3:$B$864) - MIN(ROW($B$3:$B$864))+1,""), ROW()-2)),"") ->  | HM6: =IFERROR(INDEX($B$3:$B$864,SMALL(IF(HM$2=$A$3:$A$864,ROW($B$3:$B$864) - MIN(ROW($B$3:$B$864))+1,""), ROW()-2)),"") ->  | HN6: =IFERROR(INDEX($B$3:$B$864,SMALL(IF(HN$2=$A$3:$A$864,ROW($B$3:$B$864) - MIN(ROW($B$3:$B$864))+1,""), ROW()-2)),"") ->  | HO6: =IFERROR(INDEX($B$3:$B$864,SMALL(IF(HO$2=$A$3:$A$864,ROW($B$3:$B$864) - MIN(ROW($B$3:$B$864))+1,""), ROW()-2)),"") ->  | HP6: =IFERROR(INDEX($B$3:$B$864,SMALL(IF(HP$2=$A$3:$A$864,ROW($B$3:$B$864) - MIN(ROW($B$3:$B$864))+1,""), ROW()-2)),"") ->  | HQ6: =IFERROR(INDEX($B$3:$B$864,SMALL(IF(HQ$2=$A$3:$A$864,ROW($B$3:$B$864) - MIN(ROW($B$3:$B$864))+1,""), ROW()-2)),"") ->  | HR6: =IFERROR(INDEX($B$3:$B$864,SMALL(IF(HR$2=$A$3:$A$864,ROW($B$3:$B$864) - MIN(ROW($B$3:$B$864))+1,""), ROW()-2)),"") ->  | HS6: =IFERROR(INDEX($B$3:$B$864,SMALL(IF(HS$2=$A$3:$A$864,ROW($B$3:$B$864) - MIN(ROW($B$3:$B$864))+1,""), ROW()-2)),"") ->  | HT6: =IFERROR(INDEX($B$3:$B$864,SMALL(IF(HT$2=$A$3:$A$864,ROW($B$3:$B$864) - MIN(ROW($B$3:$B$864))+1,""), ROW()-2)),"") ->  | HU6: =IFERROR(INDEX($B$3:$B$864,SMALL(IF(HU$2=$A$3:$A$864,ROW($B$3:$B$864) - MIN(ROW($B$3:$B$864))+1,""), ROW()-2)),"") ->  | HV6: =IFERROR(INDEX($B$3:$B$864,SMALL(IF(HV$2=$A$3:$A$864,ROW($B$3:$B$864) - MIN(ROW($B$3:$B$864))+1,""), ROW()-2)),"") ->  | HW6: =IFERROR(INDEX($B$3:$B$864,SMALL(IF(HW$2=$A$3:$A$864,ROW($B$3:$B$864) - MIN(ROW($B$3:$B$864))+1,""), ROW()-2)),"") ->  | HX6: =IFERROR(INDEX($B$3:$B$864,SMALL(IF(HX$2=$A$3:$A$864,ROW($B$3:$B$864) - MIN(ROW($B$3:$B$864))+1,""), ROW()-2)),"") ->  | HY6: =IFERROR(INDEX($B$3:$B$864,SMALL(IF(HY$2=$A$3:$A$864,ROW($B$3:$B$864) - MIN(ROW($B$3:$B$864))+1,""), ROW()-2)),"") ->  | HZ6: =IFERROR(INDEX($B$3:$B$864,SMALL(IF(HZ$2=$A$3:$A$864,ROW($B$3:$B$864) - MIN(ROW($B$3:$B$864))+1,""), ROW()-2)),"") ->  | IA6: =IFERROR(INDEX($B$3:$B$864,SMALL(IF(IA$2=$A$3:$A$864,ROW($B$3:$B$864) - MIN(ROW($B$3:$B$864))+1,""), ROW()-2)),"") ->  | IB6: =IFERROR(INDEX($B$3:$B$864,SMALL(IF(IB$2=$A$3:$A$864,ROW($B$3:$B$864) - MIN(ROW($B$3:$B$864))+1,""), ROW()-2)),"") ->  | IC6: =IFERROR(INDEX($B$3:$B$864,SMALL(IF(IC$2=$A$3:$A$864,ROW($B$3:$B$864) - MIN(ROW($B$3:$B$864))+1,""), ROW()-2)),"") ->  | ID6: =IFERROR(INDEX($B$3:$B$864,SMALL(IF(ID$2=$A$3:$A$864,ROW($B$3:$B$864) - MIN(ROW($B$3:$B$864))+1,""), ROW()-2)),"") ->  | IE6: =IFERROR(INDEX($B$3:$B$864,SMALL(IF(IE$2=$A$3:$A$864,ROW($B$3:$B$864) - MIN(ROW($B$3:$B$864))+1,""), ROW()-2)),"") ->  | IF6: =IFERROR(INDEX($B$3:$B$864,SMALL(IF(IF$2=$A$3:$A$864,ROW($B$3:$B$864) - MIN(ROW($B$3:$B$864))+1,""), ROW()-2)),"") ->  | IG6: =IFERROR(INDEX($B$3:$B$864,SMALL(IF(IG$2=$A$3:$A$864,ROW($B$3:$B$864) - MIN(ROW($B$3:$B$864))+1,""), ROW()-2)),"") ->  | IH6: =IFERROR(INDEX($B$3:$B$864,SMALL(IF(IH$2=$A$3:$A$864,ROW($B$3:$B$864) - MIN(ROW($B$3:$B$864))+1,""), ROW()-2)),"") ->  | II6: =IFERROR(INDEX($B$3:$B$864,SMALL(IF(II$2=$A$3:$A$864,ROW($B$3:$B$864) - MIN(ROW($B$3:$B$864))+1,""), ROW()-2)),"") ->  | IJ6: =IFERROR(INDEX($B$3:$B$864,SMALL(IF(IJ$2=$A$3:$A$864,ROW($B$3:$B$864) - MIN(ROW($B$3:$B$864))+1,""), ROW()-2)),"") ->  | IK6: =IFERROR(INDEX($B$3:$B$864,SMALL(IF(IK$2=$A$3:$A$864,ROW($B$3:$B$864) - MIN(ROW($B$3:$B$864))+1,""), ROW()-2)),"") ->  | IL6: =IFERROR(INDEX($B$3:$B$864,SMALL(IF(IL$2=$A$3:$A$864,ROW($B$3:$B$864) - MIN(ROW($B$3:$B$864))+1,""), ROW()-2)),"") ->  | IM6: =IFERROR(INDEX($B$3:$B$864,SMALL(IF(IM$2=$A$3:$A$864,ROW($B$3:$B$864) - MIN(ROW($B$3:$B$864))+1,""), ROW()-2)),"") ->  | IN6: =IFERROR(INDEX($B$3:$B$864,SMALL(IF(IN$2=$A$3:$A$864,ROW($B$3:$B$864) - MIN(ROW($B$3:$B$864))+1,""), ROW()-2)),"") ->  | IO6: =IFERROR(INDEX($B$3:$B$864,SMALL(IF(IO$2=$A$3:$A$864,ROW($B$3:$B$864) - MIN(ROW($B$3:$B$864))+1,""), ROW()-2)),"") ->  | IP6: =IFERROR(INDEX($B$3:$B$864,SMALL(IF(IP$2=$A$3:$A$864,ROW($B$3:$B$864) - MIN(ROW($B$3:$B$864))+1,""), ROW()-2)),"") ->  | IQ6: =IFERROR(INDEX($B$3:$B$864,SMALL(IF(IQ$2=$A$3:$A$864,ROW($B$3:$B$864) - MIN(ROW($B$3:$B$864))+1,""), ROW()-2)),"") -> Salado Creek | IR6: =IFERROR(INDEX($B$3:$B$864,SMALL(IF(IR$2=$A$3:$A$864,ROW($B$3:$B$864) - MIN(ROW($B$3:$B$864))+1,""), ROW()-2)),"") ->  | IS6: =IFERROR(INDEX($B$3:$B$864,SMALL(IF(IS$2=$A$3:$A$864,ROW($B$3:$B$864) - MIN(ROW($B$3:$B$864))+1,""), ROW()-2)),"") ->  | IT6: =IFERROR(INDEX($B$3:$B$864,SMALL(IF(IT$2=$A$3:$A$864,ROW($B$3:$B$864) - MIN(ROW($B$3:$B$864))+1,""), ROW()-2)),"") ->  | IU6: =IFERROR(INDEX($B$3:$B$864,SMALL(IF(IU$2=$A$3:$A$864,ROW($B$3:$B$864) - MIN(ROW($B$3:$B$864))+1,""), ROW()-2)),"") ->  | IV6: =IFERROR(INDEX($B$3:$B$864,SMALL(IF(IV$2=$A$3:$A$864,ROW($B$3:$B$864) - MIN(ROW($B$3:$B$864))+1,""), ROW()-2)),"") ->  | IW6: =IFERROR(INDEX($B$3:$B$864,SMALL(IF(IW$2=$A$3:$A$864,ROW($B$3:$B$864) - MIN(ROW($B$3:$B$864))+1,""), ROW()-2)),"") ->  | IX6: =IFERROR(INDEX($B$3:$B$864,SMALL(IF(IX$2=$A$3:$A$864,ROW($B$3:$B$864) - MIN(ROW($B$3:$B$864))+1,""), ROW()-2)),"") ->  | IY6: =IFERROR(INDEX($B$3:$B$864,SMALL(IF(IY$2=$A$3:$A$864,ROW($B$3:$B$864) - MIN(ROW($B$3:$B$864))+1,""), ROW()-2)),"") -> 
A7: =IFERROR(ebd_Annual!A7," ") -> Archer | B7: =IFERROR(ebd_Annual!B7," ") -> Zone-1 | C7: Archer County has 1 rainfall zone. | F7: =IFERROR(INDEX($B$3:$B$864,SMALL(IF(F$2=$A$3:$A$864,ROW($B$3:$B$864) - MIN(ROW($B$3:$B$864))+1,""), ROW()-2)),"") ->  | G7: =IFERROR(INDEX($B$3:$B$864,SMALL(IF(G$2=$A$3:$A$864,ROW($B$3:$B$864) - MIN(ROW($B$3:$B$864))+1,""), ROW()-2)),"") ->  | H7: =IFERROR(INDEX($B$3:$B$864,SMALL(IF(H$2=$A$3:$A$864,ROW($B$3:$B$864) - MIN(ROW($B$3:$B$864))+1,""), ROW()-2)),"") ->  | I7: =IFERROR(INDEX($B$3:$B$864,SMALL(IF(I$2=$A$3:$A$864,ROW($B$3:$B$864) - MIN(ROW($B$3:$B$864))+1,""), ROW()-2)),"") ->  | J7: =IFERROR(INDEX($B$3:$B$864,SMALL(IF(J$2=$A$3:$A$864,ROW($B$3:$B$864) - MIN(ROW($B$3:$B$864))+1,""), ROW()-2)),"") ->  | K7: =IFERROR(INDEX($B$3:$B$864,SMALL(IF(K$2=$A$3:$A$864,ROW($B$3:$B$864) - MIN(ROW($B$3:$B$864))+1,""), ROW()-2)),"") ->  | L7: =IFERROR(INDEX($B$3:$B$864,SMALL(IF(L$2=$A$3:$A$864,ROW($B$3:$B$864) - MIN(ROW($B$3:$B$864))+1,""), ROW()-2)),"") ->  | M7: =IFERROR(INDEX($B$3:$B$864,SMALL(IF(M$2=$A$3:$A$864,ROW($B$3:$B$864) - MIN(ROW($B$3:$B$864))+1,""), ROW()-2)),"") ->  | N7: =IFERROR(INDEX($B$3:$B$864,SMALL(IF(N$2=$A$3:$A$864,ROW($B$3:$B$864) - MIN(ROW($B$3:$B$864))+1,""), ROW()-2)),"") ->  | O7: =IFERROR(INDEX($B$3:$B$864,SMALL(IF(O$2=$A$3:$A$864,ROW($B$3:$B$864) - MIN(ROW($B$3:$B$864))+1,""), ROW()-2)),"") ->  | P7: =IFERROR(INDEX($B$3:$B$864,SMALL(IF(P$2=$A$3:$A$864,ROW($B$3:$B$864) - MIN(ROW($B$3:$B$864))+1,""), ROW()-2)),"") ->  | Q7: =IFERROR(INDEX($B$3:$B$864,SMALL(IF(Q$2=$A$3:$A$864,ROW($B$3:$B$864) - MIN(ROW($B$3:$B$864))+1,""), ROW()-2)),"") ->  | R7: =IFERROR(INDEX($B$3:$B$864,SMALL(IF(R$2=$A$3:$A$864,ROW($B$3:$B$864) - MIN(ROW($B$3:$B$864))+1,""), ROW()-2)),"") ->  | S7: =IFERROR(INDEX($B$3:$B$864,SMALL(IF(S$2=$A$3:$A$864,ROW($B$3:$B$864) - MIN(ROW($B$3:$B$864))+1,""), ROW()-2)),"") ->  | T7: =IFERROR(INDEX($B$3:$B$864,SMALL(IF(T$2=$A$3:$A$864,ROW($B$3:$B$864) - MIN(ROW($B$3:$B$864))+1,""), ROW()-2)),"") -> PA-1 | U7: =IFERROR(INDEX($B$3:$B$864,SMALL(IF(U$2=$A$3:$A$864,ROW($B$3:$B$864) - MIN(ROW($B$3:$B$864))+1,""), ROW()-2)),"") ->  | V7: =IFERROR(INDEX($B$3:$B$864,SMALL(IF(V$2=$A$3:$A$864,ROW($B$3:$B$864) - MIN(ROW($B$3:$B$864))+1,""), ROW()-2)),"") ->  | W7: =IFERROR(INDEX($B$3:$B$864,SMALL(IF(W$2=$A$3:$A$864,ROW($B$3:$B$864) - MIN(ROW($B$3:$B$864))+1,""), ROW()-2)),"") ->  | X7: =IFERROR(INDEX($B$3:$B$864,SMALL(IF(X$2=$A$3:$A$864,ROW($B$3:$B$864) - MIN(ROW($B$3:$B$864))+1,""), ROW()-2)),"") ->  | Y7: =IFERROR(INDEX($B$3:$B$864,SMALL(IF(Y$2=$A$3:$A$864,ROW($B$3:$B$864) - MIN(ROW($B$3:$B$864))+1,""), ROW()-2)),"") ->  | Z7: =IFERROR(INDEX($B$3:$B$864,SMALL(IF(Z$2=$A$3:$A$864,ROW($B$3:$B$864) - MIN(ROW($B$3:$B$864))+1,""), ROW()-2)),"") ->  | AA7: =IFERROR(INDEX($B$3:$B$864,SMALL(IF(AA$2=$A$3:$A$864,ROW($B$3:$B$864) - MIN(ROW($B$3:$B$864))+1,""), ROW()-2)),"") -> Zone-5 | AB7: =IFERROR(INDEX($B$3:$B$864,SMALL(IF(AB$2=$A$3:$A$864,ROW($B$3:$B$864) - MIN(ROW($B$3:$B$864))+1,""), ROW()-2)),"") ->  | AC7: =IFERROR(INDEX($B$3:$B$864,SMALL(IF(AC$2=$A$3:$A$864,ROW($B$3:$B$864) - MIN(ROW($B$3:$B$864))+1,""), ROW()-2)),"") ->  | AD7: =IFERROR(INDEX($B$3:$B$864,SMALL(IF(AD$2=$A$3:$A$864,ROW($B$3:$B$864) - MIN(ROW($B$3:$B$864))+1,""), ROW()-2)),"") ->  | AE7: =IFERROR(INDEX($B$3:$B$864,SMALL(IF(AE$2=$A$3:$A$864,ROW($B$3:$B$864) - MIN(ROW($B$3:$B$864))+1,""), ROW()-2)),"") ->  | AF7: =IFERROR(INDEX($B$3:$B$864,SMALL(IF(AF$2=$A$3:$A$864,ROW($B$3:$B$864) - MIN(ROW($B$3:$B$864))+1,""), ROW()-2)),"") ->  | AG7: =IFERROR(INDEX($B$3:$B$864,SMALL(IF(AG$2=$A$3:$A$864,ROW($B$3:$B$864) - MIN(ROW($B$3:$B$864))+1,""), ROW()-2)),"") ->  | AH7: =IFERROR(INDEX($B$3:$B$864,SMALL(IF(AH$2=$A$3:$A$864,ROW($B$3:$B$864) - MIN(ROW($B$3:$B$864))+1,""), ROW()-2)),"") ->  | AI7: =IFERROR(INDEX($B$3:$B$864,SMALL(IF(AI$2=$A$3:$A$864,ROW($B$3:$B$864) - MIN(ROW($B$3:$B$864))+1,""), ROW()-2)),"") ->  | AJ7: =IFERROR(INDEX($B$3:$B$864,SMALL(IF(AJ$2=$A$3:$A$864,ROW($B$3:$B$864) - MIN(ROW($B$3:$B$864))+1,""), ROW()-2)),"") ->  | AK7: =IFERROR(INDEX($B$3:$B$864,SMALL(IF(AK$2=$A$3:$A$864,ROW($B$3:$B$864) - MIN(ROW($B$3:$B$864))+1,""), ROW()-2)),"") ->  | AL7: =IFERROR(INDEX($B$3:$B$864,SMALL(IF(AL$2=$A$3:$A$864,ROW($B$3:$B$864) - MIN(ROW($B$3:$B$864))+1,""), ROW()-2)),"") ->  | AM7: =IFERROR(INDEX($B$3:$B$864,SMALL(IF(AM$2=$A$3:$A$864,ROW($B$3:$B$864) - MIN(ROW($B$3:$B$864))+1,""), ROW()-2)),"") ->  | AN7: =IFERROR(INDEX($B$3:$B$864,SMALL(IF(AN$2=$A$3:$A$864,ROW($B$3:$B$864) - MIN(ROW($B$3:$B$864))+1,""), ROW()-2)),"") ->  | AO7: =IFERROR(INDEX($B$3:$B$864,SMALL(IF(AO$2=$A$3:$A$864,ROW($B$3:$B$864) - MIN(ROW($B$3:$B$864))+1,""), ROW()-2)),"") ->  | AP7: =IFERROR(INDEX($B$3:$B$864,SMALL(IF(AP$2=$A$3:$A$864,ROW($B$3:$B$864) - MIN(ROW($B$3:$B$864))+1,""), ROW()-2)),"") ->  | AQ7: =IFERROR(INDEX($B$3:$B$864,SMALL(IF(AQ$2=$A$3:$A$864,ROW($B$3:$B$864) - MIN(ROW($B$3:$B$864))+1,""), ROW()-2)),"") ->  | AR7: =IFERROR(INDEX($B$3:$B$864,SMALL(IF(AR$2=$A$3:$A$864,ROW($B$3:$B$864) - MIN(ROW($B$3:$B$864))+1,""), ROW()-2)),"") ->  | AS7: =IFERROR(INDEX($B$3:$B$864,SMALL(IF(AS$2=$A$3:$A$864,ROW($B$3:$B$864) - MIN(ROW($B$3:$B$864))+1,""), ROW()-2)),"") ->  | AT7: =IFERROR(INDEX($B$3:$B$864,SMALL(IF(AT$2=$A$3:$A$864,ROW($B$3:$B$864) - MIN(ROW($B$3:$B$864))+1,""), ROW()-2)),"") ->  | AU7: =IFERROR(INDEX($B$3:$B$864,SMALL(IF(AU$2=$A$3:$A$864,ROW($B$3:$B$864) - MIN(ROW($B$3:$B$864))+1,""), ROW()-2)),"") ->  | AV7: =IFERROR(INDEX($B$3:$B$864,SMALL(IF(AV$2=$A$3:$A$864,ROW($B$3:$B$864) - MIN(ROW($B$3:$B$864))+1,""), ROW()-2)),"") ->  | AW7: =IFERROR(INDEX($B$3:$B$864,SMALL(IF(AW$2=$A$3:$A$864,ROW($B$3:$B$864) - MIN(ROW($B$3:$B$864))+1,""), ROW()-2)),"") ->  | AX7: =IFERROR(INDEX($B$3:$B$864,SMALL(IF(AX$2=$A$3:$A$864,ROW($B$3:$B$864) - MIN(ROW($B$3:$B$864))+1,""), ROW()-2)),"") ->  | AY7: =IFERROR(INDEX($B$3:$B$864,SMALL(IF(AY$2=$A$3:$A$864,ROW($B$3:$B$864) - MIN(ROW($B$3:$B$864))+1,""), ROW()-2)),"") ->  | AZ7: =IFERROR(INDEX($B$3:$B$864,SMALL(IF(AZ$2=$A$3:$A$864,ROW($B$3:$B$864) - MIN(ROW($B$3:$B$864))+1,""), ROW()-2)),"") ->  | BA7: =IFERROR(INDEX($B$3:$B$864,SMALL(IF(BA$2=$A$3:$A$864,ROW($B$3:$B$864) - MIN(ROW($B$3:$B$864))+1,""), ROW()-2)),"") ->  | BB7: =IFERROR(INDEX($B$3:$B$864,SMALL(IF(BB$2=$A$3:$A$864,ROW($B$3:$B$864) - MIN(ROW($B$3:$B$864))+1,""), ROW()-2)),"") ->  | BC7: =IFERROR(INDEX($B$3:$B$864,SMALL(IF(BC$2=$A$3:$A$864,ROW($B$3:$B$864) - MIN(ROW($B$3:$B$864))+1,""), ROW()-2)),"") ->  | BD7: =IFERROR(INDEX($B$3:$B$864,SMALL(IF(BD$2=$A$3:$A$864,ROW($B$3:$B$864) - MIN(ROW($B$3:$B$864))+1,""), ROW()-2)),"") ->  | BE7: =IFERROR(INDEX($B$3:$B$864,SMALL(IF(BE$2=$A$3:$A$864,ROW($B$3:$B$864) - MIN(ROW($B$3:$B$864))+1,""), ROW()-2)),"") ->  | BF7: =IFERROR(INDEX($B$3:$B$864,SMALL(IF(BF$2=$A$3:$A$864,ROW($B$3:$B$864) - MIN(ROW($B$3:$B$864))+1,""), ROW()-2)),"") ->  | BG7: =IFERROR(INDEX($B$3:$B$864,SMALL(IF(BG$2=$A$3:$A$864,ROW($B$3:$B$864) - MIN(ROW($B$3:$B$864))+1,""), ROW()-2)),"") ->  | BH7: =IFERROR(INDEX($B$3:$B$864,SMALL(IF(BH$2=$A$3:$A$864,ROW($B$3:$B$864) - MIN(ROW($B$3:$B$864))+1,""), ROW()-2)),"") ->  | BI7: =IFERROR(INDEX($B$3:$B$864,SMALL(IF(BI$2=$A$3:$A$864,ROW($B$3:$B$864) - MIN(ROW($B$3:$B$864))+1,""), ROW()-2)),"") ->  | BJ7: =IFERROR(INDEX($B$3:$B$864,SMALL(IF(BJ$2=$A$3:$A$864,ROW($B$3:$B$864) - MIN(ROW($B$3:$B$864))+1,""), ROW()-2)),"") ->  | BK7: =IFERROR(INDEX($B$3:$B$864,SMALL(IF(BK$2=$A$3:$A$864,ROW($B$3:$B$864) - MIN(ROW($B$3:$B$864))+1,""), ROW()-2)),"") ->  | BL7: =IFERROR(INDEX($B$3:$B$864,SMALL(IF(BL$2=$A$3:$A$864,ROW($B$3:$B$864) - MIN(ROW($B$3:$B$864))+1,""), ROW()-2)),"") ->  | BM7: =IFERROR(INDEX($B$3:$B$864,SMALL(IF(BM$2=$A$3:$A$864,ROW($B$3:$B$864) - MIN(ROW($B$3:$B$864))+1,""), ROW()-2)),"") ->  | BN7: =IFERROR(INDEX($B$3:$B$864,SMALL(IF(BN$2=$A$3:$A$864,ROW($B$3:$B$864) - MIN(ROW($B$3:$B$864))+1,""), ROW()-2)),"") ->  | BO7: =IFERROR(INDEX($B$3:$B$864,SMALL(IF(BO$2=$A$3:$A$864,ROW($B$3:$B$864) - MIN(ROW($B$3:$B$864))+1,""), ROW()-2)),"") ->  | BP7: =IFERROR(INDEX($B$3:$B$864,SMALL(IF(BP$2=$A$3:$A$864,ROW($B$3:$B$864) - MIN(ROW($B$3:$B$864))+1,""), ROW()-2)),"") ->  | BQ7: =IFERROR(INDEX($B$3:$B$864,SMALL(IF(BQ$2=$A$3:$A$864,ROW($B$3:$B$864) - MIN(ROW($B$3:$B$864))+1,""), ROW()-2)),"") ->  | BR7: =IFERROR(INDEX($B$3:$B$864,SMALL(IF(BR$2=$A$3:$A$864,ROW($B$3:$B$864) - MIN(ROW($B$3:$B$864))+1,""), ROW()-2)),"") ->  | BS7: =IFERROR(INDEX($B$3:$B$864,SMALL(IF(BS$2=$A$3:$A$864,ROW($B$3:$B$864) - MIN(ROW($B$3:$B$864))+1,""), ROW()-2)),"") ->  | BT7: =IFERROR(INDEX($B$3:$B$864,SMALL(IF(BT$2=$A$3:$A$864,ROW($B$3:$B$864) - MIN(ROW($B$3:$B$864))+1,""), ROW()-2)),"") ->  | BU7: =IFERROR(INDEX($B$3:$B$864,SMALL(IF(BU$2=$A$3:$A$864,ROW($B$3:$B$864) - MIN(ROW($B$3:$B$864))+1,""), ROW()-2)),"") ->  | BV7: =IFERROR(INDEX($B$3:$B$864,SMALL(IF(BV$2=$A$3:$A$864,ROW($B$3:$B$864) - MIN(ROW($B$3:$B$864))+1,""), ROW()-2)),"") ->  | BW7: =IFERROR(INDEX($B$3:$B$864,SMALL(IF(BW$2=$A$3:$A$864,ROW($B$3:$B$864) - MIN(ROW($B$3:$B$864))+1,""), ROW()-2)),"") ->  | BX7: =IFERROR(INDEX($B$3:$B$864,SMALL(IF(BX$2=$A$3:$A$864,ROW($B$3:$B$864) - MIN(ROW($B$3:$B$864))+1,""), ROW()-2)),"") ->  | BY7: =IFERROR(INDEX($B$3:$B$864,SMALL(IF(BY$2=$A$3:$A$864,ROW($B$3:$B$864) - MIN(ROW($B$3:$B$864))+1,""), ROW()-2)),"") ->  | BZ7: =IFERROR(INDEX($B$3:$B$864,SMALL(IF(BZ$2=$A$3:$A$864,ROW($B$3:$B$864) - MIN(ROW($B$3:$B$864))+1,""), ROW()-2)),"") ->  | CA7: =IFERROR(INDEX($B$3:$B$864,SMALL(IF(CA$2=$A$3:$A$864,ROW($B$3:$B$864) - MIN(ROW($B$3:$B$864))+1,""), ROW()-2)),"") ->  | CB7: =IFERROR(INDEX($B$3:$B$864,SMALL(IF(CB$2=$A$3:$A$864,ROW($B$3:$B$864) - MIN(ROW($B$3:$B$864))+1,""), ROW()-2)),"") ->  | CC7: =IFERROR(INDEX($B$3:$B$864,SMALL(IF(CC$2=$A$3:$A$864,ROW($B$3:$B$864) - MIN(ROW($B$3:$B$864))+1,""), ROW()-2)),"") ->  | CD7: =IFERROR(INDEX($B$3:$B$864,SMALL(IF(CD$2=$A$3:$A$864,ROW($B$3:$B$864) - MIN(ROW($B$3:$B$864))+1,""), ROW()-2)),"") ->  | CE7: =IFERROR(INDEX($B$3:$B$864,SMALL(IF(CE$2=$A$3:$A$864,ROW($B$3:$B$864) - MIN(ROW($B$3:$B$864))+1,""), ROW()-2)),"") ->  | CF7: =IFERROR(INDEX($B$3:$B$864,SMALL(IF(CF$2=$A$3:$A$864,ROW($B$3:$B$864) - MIN(ROW($B$3:$B$864))+1,""), ROW()-2)),"") ->  | CG7: =IFERROR(INDEX($B$3:$B$864,SMALL(IF(CG$2=$A$3:$A$864,ROW($B$3:$B$864) - MIN(ROW($B$3:$B$864))+1,""), ROW()-2)),"") ->  | CH7: =IFERROR(INDEX($B$3:$B$864,SMALL(IF(CH$2=$A$3:$A$864,ROW($B$3:$B$864) - MIN(ROW($B$3:$B$864))+1,""), ROW()-2)),"") ->  | CI7: =IFERROR(INDEX($B$3:$B$864,SMALL(IF(CI$2=$A$3:$A$864,ROW($B$3:$B$864) - MIN(ROW($B$3:$B$864))+1,""), ROW()-2)),"") ->  | CJ7: =IFERROR(INDEX($B$3:$B$864,SMALL(IF(CJ$2=$A$3:$A$864,ROW($B$3:$B$864) - MIN(ROW($B$3:$B$864))+1,""), ROW()-2)),"") ->  | CK7: =IFERROR(INDEX($B$3:$B$864,SMALL(IF(CK$2=$A$3:$A$864,ROW($B$3:$B$864) - MIN(ROW($B$3:$B$864))+1,""), ROW()-2)),"") ->  | CL7: =IFERROR(INDEX($B$3:$B$864,SMALL(IF(CL$2=$A$3:$A$864,ROW($B$3:$B$864) - MIN(ROW($B$3:$B$864))+1,""), ROW()-2)),"") ->  | CM7: =IFERROR(INDEX($B$3:$B$864,SMALL(IF(CM$2=$A$3:$A$864,ROW($B$3:$B$864) - MIN(ROW($B$3:$B$864))+1,""), ROW()-2)),"") ->  | CN7: =IFERROR(INDEX($B$3:$B$864,SMALL(IF(CN$2=$A$3:$A$864,ROW($B$3:$B$864) - MIN(ROW($B$3:$B$864))+1,""), ROW()-2)),"") ->  | CO7: =IFERROR(INDEX($B$3:$B$864,SMALL(IF(CO$2=$A$3:$A$864,ROW($B$3:$B$864) - MIN(ROW($B$3:$B$864))+1,""), ROW()-2)),"") ->  | CP7: =IFERROR(INDEX($B$3:$B$864,SMALL(IF(CP$2=$A$3:$A$864,ROW($B$3:$B$864) - MIN(ROW($B$3:$B$864))+1,""), ROW()-2)),"") ->  | CQ7: =IFERROR(INDEX($B$3:$B$864,SMALL(IF(CQ$2=$A$3:$A$864,ROW($B$3:$B$864) - MIN(ROW($B$3:$B$864))+1,""), ROW()-2)),"") ->  | CR7: =IFERROR(INDEX($B$3:$B$864,SMALL(IF(CR$2=$A$3:$A$864,ROW($B$3:$B$864) - MIN(ROW($B$3:$B$864))+1,""), ROW()-2)),"") ->  | CS7: =IFERROR(INDEX($B$3:$B$864,SMALL(IF(CS$2=$A$3:$A$864,ROW($B$3:$B$864) - MIN(ROW($B$3:$B$864))+1,""), ROW()-2)),"") ->  | CT7: =IFERROR(INDEX($B$3:$B$864,SMALL(IF(CT$2=$A$3:$A$864,ROW($B$3:$B$864) - MIN(ROW($B$3:$B$864))+1,""), ROW()-2)),"") ->  | CU7: =IFERROR(INDEX($B$3:$B$864,SMALL(IF(CU$2=$A$3:$A$864,ROW($B$3:$B$864) - MIN(ROW($B$3:$B$864))+1,""), ROW()-2)),"") ->  | CV7: =IFERROR(INDEX($B$3:$B$864,SMALL(IF(CV$2=$A$3:$A$864,ROW($B$3:$B$864) - MIN(ROW($B$3:$B$864))+1,""), ROW()-2)),"") ->  | CW7: =IFERROR(INDEX($B$3:$B$864,SMALL(IF(CW$2=$A$3:$A$864,ROW($B$3:$B$864) - MIN(ROW($B$3:$B$864))+1,""), ROW()-2)),"") ->  | CX7: =IFERROR(INDEX($B$3:$B$864,SMALL(IF(CX$2=$A$3:$A$864,ROW($B$3:$B$864) - MIN(ROW($B$3:$B$864))+1,""), ROW()-2)),"") ->  | CY7: =IFERROR(INDEX($B$3:$B$864,SMALL(IF(CY$2=$A$3:$A$864,ROW($B$3:$B$864) - MIN(ROW($B$3:$B$864))+1,""), ROW()-2)),"") ->  | CZ7: =IFERROR(INDEX($B$3:$B$864,SMALL(IF(CZ$2=$A$3:$A$864,ROW($B$3:$B$864) - MIN(ROW($B$3:$B$864))+1,""), ROW()-2)),"") ->  | DA7: =IFERROR(INDEX($B$3:$B$864,SMALL(IF(DA$2=$A$3:$A$864,ROW($B$3:$B$864) - MIN(ROW($B$3:$B$864))+1,""), ROW()-2)),"") ->  | DB7: =IFERROR(INDEX($B$3:$B$864,SMALL(IF(DB$2=$A$3:$A$864,ROW($B$3:$B$864) - MIN(ROW($B$3:$B$864))+1,""), ROW()-2)),"") ->  | DC7: =IFERROR(INDEX($B$3:$B$864,SMALL(IF(DC$2=$A$3:$A$864,ROW($B$3:$B$864) - MIN(ROW($B$3:$B$864))+1,""), ROW()-2)),"") ->  | DD7: =IFERROR(INDEX($B$3:$B$864,SMALL(IF(DD$2=$A$3:$A$864,ROW($B$3:$B$864) - MIN(ROW($B$3:$B$864))+1,""), ROW()-2)),"") ->  | DE7: =IFERROR(INDEX($B$3:$B$864,SMALL(IF(DE$2=$A$3:$A$864,ROW($B$3:$B$864) - MIN(ROW($B$3:$B$864))+1,""), ROW()-2)),"") ->  | DF7: =IFERROR(INDEX($B$3:$B$864,SMALL(IF(DF$2=$A$3:$A$864,ROW($B$3:$B$864) - MIN(ROW($B$3:$B$864))+1,""), ROW()-2)),"") ->  | DG7: =IFERROR(INDEX($B$3:$B$864,SMALL(IF(DG$2=$A$3:$A$864,ROW($B$3:$B$864) - MIN(ROW($B$3:$B$864))+1,""), ROW()-2)),"") ->  | DH7: =IFERROR(INDEX($B$3:$B$864,SMALL(IF(DH$2=$A$3:$A$864,ROW($B$3:$B$864) - MIN(ROW($B$3:$B$864))+1,""), ROW()-2)),"") ->  | DI7: =IFERROR(INDEX($B$3:$B$864,SMALL(IF(DI$2=$A$3:$A$864,ROW($B$3:$B$864) - MIN(ROW($B$3:$B$864))+1,""), ROW()-2)),"") ->  | DJ7: =IFERROR(INDEX($B$3:$B$864,SMALL(IF(DJ$2=$A$3:$A$864,ROW($B$3:$B$864) - MIN(ROW($B$3:$B$864))+1,""), ROW()-2)),"") ->  | DK7: =IFERROR(INDEX($B$3:$B$864,SMALL(IF(DK$2=$A$3:$A$864,ROW($B$3:$B$864) - MIN(ROW($B$3:$B$864))+1,""), ROW()-2)),"") ->  | DL7: =IFERROR(INDEX($B$3:$B$864,SMALL(IF(DL$2=$A$3:$A$864,ROW($B$3:$B$864) - MIN(ROW($B$3:$B$864))+1,""), ROW()-2)),"") ->  | DM7: =IFERROR(INDEX($B$3:$B$864,SMALL(IF(DM$2=$A$3:$A$864,ROW($B$3:$B$864) - MIN(ROW($B$3:$B$864))+1,""), ROW()-2)),"") ->  | DN7: =IFERROR(INDEX($B$3:$B$864,SMALL(IF(DN$2=$A$3:$A$864,ROW($B$3:$B$864) - MIN(ROW($B$3:$B$864))+1,""), ROW()-2)),"") ->  | DO7: =IFERROR(INDEX($B$3:$B$864,SMALL(IF(DO$2=$A$3:$A$864,ROW($B$3:$B$864) - MIN(ROW($B$3:$B$864))+1,""), ROW()-2)),"") ->  | DP7: =IFERROR(INDEX($B$3:$B$864,SMALL(IF(DP$2=$A$3:$A$864,ROW($B$3:$B$864) - MIN(ROW($B$3:$B$864))+1,""), ROW()-2)),"") ->  | DQ7: =IFERROR(INDEX($B$3:$B$864,SMALL(IF(DQ$2=$A$3:$A$864,ROW($B$3:$B$864) - MIN(ROW($B$3:$B$864))+1,""), ROW()-2)),"") ->  | DR7: =IFERROR(INDEX($B$3:$B$864,SMALL(IF(DR$2=$A$3:$A$864,ROW($B$3:$B$864) - MIN(ROW($B$3:$B$864))+1,""), ROW()-2)),"") ->  | DS7: =IFERROR(INDEX($B$3:$B$864,SMALL(IF(DS$2=$A$3:$A$864,ROW($B$3:$B$864) - MIN(ROW($B$3:$B$864))+1,""), ROW()-2)),"") ->  | DT7: =IFERROR(INDEX($B$3:$B$864,SMALL(IF(DT$2=$A$3:$A$864,ROW($B$3:$B$864) - MIN(ROW($B$3:$B$864))+1,""), ROW()-2)),"") ->  | DU7: =IFERROR(INDEX($B$3:$B$864,SMALL(IF(DU$2=$A$3:$A$864,ROW($B$3:$B$864) - MIN(ROW($B$3:$B$864))+1,""), ROW()-2)),"") ->  | DV7: =IFERROR(INDEX($B$3:$B$864,SMALL(IF(DV$2=$A$3:$A$864,ROW($B$3:$B$864) - MIN(ROW($B$3:$B$864))+1,""), ROW()-2)),"") ->  | DW7: =IFERROR(INDEX($B$3:$B$864,SMALL(IF(DW$2=$A$3:$A$864,ROW($B$3:$B$864) - MIN(ROW($B$3:$B$864))+1,""), ROW()-2)),"") ->  | DX7: =IFERROR(INDEX($B$3:$B$864,SMALL(IF(DX$2=$A$3:$A$864,ROW($B$3:$B$864) - MIN(ROW($B$3:$B$864))+1,""), ROW()-2)),"") ->  | DY7: =IFERROR(INDEX($B$3:$B$864,SMALL(IF(DY$2=$A$3:$A$864,ROW($B$3:$B$864) - MIN(ROW($B$3:$B$864))+1,""), ROW()-2)),"") ->  | DZ7: =IFERROR(INDEX($B$3:$B$864,SMALL(IF(DZ$2=$A$3:$A$864,ROW($B$3:$B$864) - MIN(ROW($B$3:$B$864))+1,""), ROW()-2)),"") ->  | EA7: =IFERROR(INDEX($B$3:$B$864,SMALL(IF(EA$2=$A$3:$A$864,ROW($B$3:$B$864) - MIN(ROW($B$3:$B$864))+1,""), ROW()-2)),"") ->  | EB7: =IFERROR(INDEX($B$3:$B$864,SMALL(IF(EB$2=$A$3:$A$864,ROW($B$3:$B$864) - MIN(ROW($B$3:$B$864))+1,""), ROW()-2)),"") ->  | EC7: =IFERROR(INDEX($B$3:$B$864,SMALL(IF(EC$2=$A$3:$A$864,ROW($B$3:$B$864) - MIN(ROW($B$3:$B$864))+1,""), ROW()-2)),"") ->  | ED7: =IFERROR(INDEX($B$3:$B$864,SMALL(IF(ED$2=$A$3:$A$864,ROW($B$3:$B$864) - MIN(ROW($B$3:$B$864))+1,""), ROW()-2)),"") ->  | EE7: =IFERROR(INDEX($B$3:$B$864,SMALL(IF(EE$2=$A$3:$A$864,ROW($B$3:$B$864) - MIN(ROW($B$3:$B$864))+1,""), ROW()-2)),"") ->  | EF7: =IFERROR(INDEX($B$3:$B$864,SMALL(IF(EF$2=$A$3:$A$864,ROW($B$3:$B$864) - MIN(ROW($B$3:$B$864))+1,""), ROW()-2)),"") ->  | EG7: =IFERROR(INDEX($B$3:$B$864,SMALL(IF(EG$2=$A$3:$A$864,ROW($B$3:$B$864) - MIN(ROW($B$3:$B$864))+1,""), ROW()-2)),"") ->  | EH7: =IFERROR(INDEX($B$3:$B$864,SMALL(IF(EH$2=$A$3:$A$864,ROW($B$3:$B$864) - MIN(ROW($B$3:$B$864))+1,""), ROW()-2)),"") ->  | EI7: =IFERROR(INDEX($B$3:$B$864,SMALL(IF(EI$2=$A$3:$A$864,ROW($B$3:$B$864) - MIN(ROW($B$3:$B$864))+1,""), ROW()-2)),"") ->  | EJ7: =IFERROR(INDEX($B$3:$B$864,SMALL(IF(EJ$2=$A$3:$A$864,ROW($B$3:$B$864) - MIN(ROW($B$3:$B$864))+1,""), ROW()-2)),"") ->  | EK7: =IFERROR(INDEX($B$3:$B$864,SMALL(IF(EK$2=$A$3:$A$864,ROW($B$3:$B$864) - MIN(ROW($B$3:$B$864))+1,""), ROW()-2)),"") ->  | EL7: =IFERROR(INDEX($B$3:$B$864,SMALL(IF(EL$2=$A$3:$A$864,ROW($B$3:$B$864) - MIN(ROW($B$3:$B$864))+1,""), ROW()-2)),"") ->  | EM7: =IFERROR(INDEX($B$3:$B$864,SMALL(IF(EM$2=$A$3:$A$864,ROW($B$3:$B$864) - MIN(ROW($B$3:$B$864))+1,""), ROW()-2)),"") ->  | EN7: =IFERROR(INDEX($B$3:$B$864,SMALL(IF(EN$2=$A$3:$A$864,ROW($B$3:$B$864) - MIN(ROW($B$3:$B$864))+1,""), ROW()-2)),"") ->  | EO7: =IFERROR(INDEX($B$3:$B$864,SMALL(IF(EO$2=$A$3:$A$864,ROW($B$3:$B$864) - MIN(ROW($B$3:$B$864))+1,""), ROW()-2)),"") ->  | EP7: =IFERROR(INDEX($B$3:$B$864,SMALL(IF(EP$2=$A$3:$A$864,ROW($B$3:$B$864) - MIN(ROW($B$3:$B$864))+1,""), ROW()-2)),"") ->  | EQ7: =IFERROR(INDEX($B$3:$B$864,SMALL(IF(EQ$2=$A$3:$A$864,ROW($B$3:$B$864) - MIN(ROW($B$3:$B$864))+1,""), ROW()-2)),"") ->  | ER7: =IFERROR(INDEX($B$3:$B$864,SMALL(IF(ER$2=$A$3:$A$864,ROW($B$3:$B$864) - MIN(ROW($B$3:$B$864))+1,""), ROW()-2)),"") ->  | ES7: =IFERROR(INDEX($B$3:$B$864,SMALL(IF(ES$2=$A$3:$A$864,ROW($B$3:$B$864) - MIN(ROW($B$3:$B$864))+1,""), ROW()-2)),"") ->  | ET7: =IFERROR(INDEX($B$3:$B$864,SMALL(IF(ET$2=$A$3:$A$864,ROW($B$3:$B$864) - MIN(ROW($B$3:$B$864))+1,""), ROW()-2)),"") ->  | EU7: =IFERROR(INDEX($B$3:$B$864,SMALL(IF(EU$2=$A$3:$A$864,ROW($B$3:$B$864) - MIN(ROW($B$3:$B$864))+1,""), ROW()-2)),"") ->  | EV7: =IFERROR(INDEX($B$3:$B$864,SMALL(IF(EV$2=$A$3:$A$864,ROW($B$3:$B$864) - MIN(ROW($B$3:$B$864))+1,""), ROW()-2)),"") ->  | EW7: =IFERROR(INDEX($B$3:$B$864,SMALL(IF(EW$2=$A$3:$A$864,ROW($B$3:$B$864) - MIN(ROW($B$3:$B$864))+1,""), ROW()-2)),"") ->  | EX7: =IFERROR(INDEX($B$3:$B$864,SMALL(IF(EX$2=$A$3:$A$864,ROW($B$3:$B$864) - MIN(ROW($B$3:$B$864))+1,""), ROW()-2)),"") ->  | EY7: =IFERROR(INDEX($B$3:$B$864,SMALL(IF(EY$2=$A$3:$A$864,ROW($B$3:$B$864) - MIN(ROW($B$3:$B$864))+1,""), ROW()-2)),"") ->  | EZ7: =IFERROR(INDEX($B$3:$B$864,SMALL(IF(EZ$2=$A$3:$A$864,ROW($B$3:$B$864) - MIN(ROW($B$3:$B$864))+1,""), ROW()-2)),"") ->  | FA7: =IFERROR(INDEX($B$3:$B$864,SMALL(IF(FA$2=$A$3:$A$864,ROW($B$3:$B$864) - MIN(ROW($B$3:$B$864))+1,""), ROW()-2)),"") ->  | FB7: =IFERROR(INDEX($B$3:$B$864,SMALL(IF(FB$2=$A$3:$A$864,ROW($B$3:$B$864) - MIN(ROW($B$3:$B$864))+1,""), ROW()-2)),"") ->  | FC7: =IFERROR(INDEX($B$3:$B$864,SMALL(IF(FC$2=$A$3:$A$864,ROW($B$3:$B$864) - MIN(ROW($B$3:$B$864))+1,""), ROW()-2)),"") ->  | FD7: =IFERROR(INDEX($B$3:$B$864,SMALL(IF(FD$2=$A$3:$A$864,ROW($B$3:$B$864) - MIN(ROW($B$3:$B$864))+1,""), ROW()-2)),"") ->  | FE7: =IFERROR(INDEX($B$3:$B$864,SMALL(IF(FE$2=$A$3:$A$864,ROW($B$3:$B$864) - MIN(ROW($B$3:$B$864))+1,""), ROW()-2)),"") ->  | FF7: =IFERROR(INDEX($B$3:$B$864,SMALL(IF(FF$2=$A$3:$A$864,ROW($B$3:$B$864) - MIN(ROW($B$3:$B$864))+1,""), ROW()-2)),"") ->  | FG7: =IFERROR(INDEX($B$3:$B$864,SMALL(IF(FG$2=$A$3:$A$864,ROW($B$3:$B$864) - MIN(ROW($B$3:$B$864))+1,""), ROW()-2)),"") ->  | FH7: =IFERROR(INDEX($B$3:$B$864,SMALL(IF(FH$2=$A$3:$A$864,ROW($B$3:$B$864) - MIN(ROW($B$3:$B$864))+1,""), ROW()-2)),"") ->  | FI7: =IFERROR(INDEX($B$3:$B$864,SMALL(IF(FI$2=$A$3:$A$864,ROW($B$3:$B$864) - MIN(ROW($B$3:$B$864))+1,""), ROW()-2)),"") ->  | FJ7: =IFERROR(INDEX($B$3:$B$864,SMALL(IF(FJ$2=$A$3:$A$864,ROW($B$3:$B$864) - MIN(ROW($B$3:$B$864))+1,""), ROW()-2)),"") ->  | FK7: =IFERROR(INDEX($B$3:$B$864,SMALL(IF(FK$2=$A$3:$A$864,ROW($B$3:$B$864) - MIN(ROW($B$3:$B$864))+1,""), ROW()-2)),"") ->  | FL7: =IFERROR(INDEX($B$3:$B$864,SMALL(IF(FL$2=$A$3:$A$864,ROW($B$3:$B$864) - MIN(ROW($B$3:$B$864))+1,""), ROW()-2)),"") ->  | FM7: =IFERROR(INDEX($B$3:$B$864,SMALL(IF(FM$2=$A$3:$A$864,ROW($B$3:$B$864) - MIN(ROW($B$3:$B$864))+1,""), ROW()-2)),"") ->  | FN7: =IFERROR(INDEX($B$3:$B$864,SMALL(IF(FN$2=$A$3:$A$864,ROW($B$3:$B$864) - MIN(ROW($B$3:$B$864))+1,""), ROW()-2)),"") ->  | FO7: =IFERROR(INDEX($B$3:$B$864,SMALL(IF(FO$2=$A$3:$A$864,ROW($B$3:$B$864) - MIN(ROW($B$3:$B$864))+1,""), ROW()-2)),"") ->  | FP7: =IFERROR(INDEX($B$3:$B$864,SMALL(IF(FP$2=$A$3:$A$864,ROW($B$3:$B$864) - MIN(ROW($B$3:$B$864))+1,""), ROW()-2)),"") ->  | FQ7: =IFERROR(INDEX($B$3:$B$864,SMALL(IF(FQ$2=$A$3:$A$864,ROW($B$3:$B$864) - MIN(ROW($B$3:$B$864))+1,""), ROW()-2)),"") ->  | FR7: =IFERROR(INDEX($B$3:$B$864,SMALL(IF(FR$2=$A$3:$A$864,ROW($B$3:$B$864) - MIN(ROW($B$3:$B$864))+1,""), ROW()-2)),"") ->  | FS7: =IFERROR(INDEX($B$3:$B$864,SMALL(IF(FS$2=$A$3:$A$864,ROW($B$3:$B$864) - MIN(ROW($B$3:$B$864))+1,""), ROW()-2)),"") ->  | FT7: =IFERROR(INDEX($B$3:$B$864,SMALL(IF(FT$2=$A$3:$A$864,ROW($B$3:$B$864) - MIN(ROW($B$3:$B$864))+1,""), ROW()-2)),"") ->  | FU7: =IFERROR(INDEX($B$3:$B$864,SMALL(IF(FU$2=$A$3:$A$864,ROW($B$3:$B$864) - MIN(ROW($B$3:$B$864))+1,""), ROW()-2)),"") ->  | FV7: =IFERROR(INDEX($B$3:$B$864,SMALL(IF(FV$2=$A$3:$A$864,ROW($B$3:$B$864) - MIN(ROW($B$3:$B$864))+1,""), ROW()-2)),"") ->  | FW7: =IFERROR(INDEX($B$3:$B$864,SMALL(IF(FW$2=$A$3:$A$864,ROW($B$3:$B$864) - MIN(ROW($B$3:$B$864))+1,""), ROW()-2)),"") ->  | FX7: =IFERROR(INDEX($B$3:$B$864,SMALL(IF(FX$2=$A$3:$A$864,ROW($B$3:$B$864) - MIN(ROW($B$3:$B$864))+1,""), ROW()-2)),"") ->  | FY7: =IFERROR(INDEX($B$3:$B$864,SMALL(IF(FY$2=$A$3:$A$864,ROW($B$3:$B$864) - MIN(ROW($B$3:$B$864))+1,""), ROW()-2)),"") -> Zone-5 | FZ7: =IFERROR(INDEX($B$3:$B$864,SMALL(IF(FZ$2=$A$3:$A$864,ROW($B$3:$B$864) - MIN(ROW($B$3:$B$864))+1,""), ROW()-2)),"") ->  | GA7: =IFERROR(INDEX($B$3:$B$864,SMALL(IF(GA$2=$A$3:$A$864,ROW($B$3:$B$864) - MIN(ROW($B$3:$B$864))+1,""), ROW()-2)),"") ->  | GB7: =IFERROR(INDEX($B$3:$B$864,SMALL(IF(GB$2=$A$3:$A$864,ROW($B$3:$B$864) - MIN(ROW($B$3:$B$864))+1,""), ROW()-2)),"") ->  | GC7: =IFERROR(INDEX($B$3:$B$864,SMALL(IF(GC$2=$A$3:$A$864,ROW($B$3:$B$864) - MIN(ROW($B$3:$B$864))+1,""), ROW()-2)),"") ->  | GD7: =IFERROR(INDEX($B$3:$B$864,SMALL(IF(GD$2=$A$3:$A$864,ROW($B$3:$B$864) - MIN(ROW($B$3:$B$864))+1,""), ROW()-2)),"") ->  | GE7: =IFERROR(INDEX($B$3:$B$864,SMALL(IF(GE$2=$A$3:$A$864,ROW($B$3:$B$864) - MIN(ROW($B$3:$B$864))+1,""), ROW()-2)),"") ->  | GF7: =IFERROR(INDEX($B$3:$B$864,SMALL(IF(GF$2=$A$3:$A$864,ROW($B$3:$B$864) - MIN(ROW($B$3:$B$864))+1,""), ROW()-2)),"") ->  | GG7: =IFERROR(INDEX($B$3:$B$864,SMALL(IF(GG$2=$A$3:$A$864,ROW($B$3:$B$864) - MIN(ROW($B$3:$B$864))+1,""), ROW()-2)),"") ->  | GH7: =IFERROR(INDEX($B$3:$B$864,SMALL(IF(GH$2=$A$3:$A$864,ROW($B$3:$B$864) - MIN(ROW($B$3:$B$864))+1,""), ROW()-2)),"") ->  | GI7: =IFERROR(INDEX($B$3:$B$864,SMALL(IF(GI$2=$A$3:$A$864,ROW($B$3:$B$864) - MIN(ROW($B$3:$B$864))+1,""), ROW()-2)),"") ->  | GJ7: =IFERROR(INDEX($B$3:$B$864,SMALL(IF(GJ$2=$A$3:$A$864,ROW($B$3:$B$864) - MIN(ROW($B$3:$B$864))+1,""), ROW()-2)),"") ->  | GK7: =IFERROR(INDEX($B$3:$B$864,SMALL(IF(GK$2=$A$3:$A$864,ROW($B$3:$B$864) - MIN(ROW($B$3:$B$864))+1,""), ROW()-2)),"") ->  | GL7: =IFERROR(INDEX($B$3:$B$864,SMALL(IF(GL$2=$A$3:$A$864,ROW($B$3:$B$864) - MIN(ROW($B$3:$B$864))+1,""), ROW()-2)),"") ->  | GM7: =IFERROR(INDEX($B$3:$B$864,SMALL(IF(GM$2=$A$3:$A$864,ROW($B$3:$B$864) - MIN(ROW($B$3:$B$864))+1,""), ROW()-2)),"") ->  | GN7: =IFERROR(INDEX($B$3:$B$864,SMALL(IF(GN$2=$A$3:$A$864,ROW($B$3:$B$864) - MIN(ROW($B$3:$B$864))+1,""), ROW()-2)),"") ->  | GO7: =IFERROR(INDEX($B$3:$B$864,SMALL(IF(GO$2=$A$3:$A$864,ROW($B$3:$B$864) - MIN(ROW($B$3:$B$864))+1,""), ROW()-2)),"") ->  | GP7: =IFERROR(INDEX($B$3:$B$864,SMALL(IF(GP$2=$A$3:$A$864,ROW($B$3:$B$864) - MIN(ROW($B$3:$B$864))+1,""), ROW()-2)),"") ->  | GQ7: =IFERROR(INDEX($B$3:$B$864,SMALL(IF(GQ$2=$A$3:$A$864,ROW($B$3:$B$864) - MIN(ROW($B$3:$B$864))+1,""), ROW()-2)),"") ->  | GR7: =IFERROR(INDEX($B$3:$B$864,SMALL(IF(GR$2=$A$3:$A$864,ROW($B$3:$B$864) - MIN(ROW($B$3:$B$864))+1,""), ROW()-2)),"") ->  | GS7: =IFERROR(INDEX($B$3:$B$864,SMALL(IF(GS$2=$A$3:$A$864,ROW($B$3:$B$864) - MIN(ROW($B$3:$B$864))+1,""), ROW()-2)),"") ->  | GT7: =IFERROR(INDEX($B$3:$B$864,SMALL(IF(GT$2=$A$3:$A$864,ROW($B$3:$B$864) - MIN(ROW($B$3:$B$864))+1,""), ROW()-2)),"") ->  | GU7: =IFERROR(INDEX($B$3:$B$864,SMALL(IF(GU$2=$A$3:$A$864,ROW($B$3:$B$864) - MIN(ROW($B$3:$B$864))+1,""), ROW()-2)),"") ->  | GV7: =IFERROR(INDEX($B$3:$B$864,SMALL(IF(GV$2=$A$3:$A$864,ROW($B$3:$B$864) - MIN(ROW($B$3:$B$864))+1,""), ROW()-2)),"") ->  | GW7: =IFERROR(INDEX($B$3:$B$864,SMALL(IF(GW$2=$A$3:$A$864,ROW($B$3:$B$864) - MIN(ROW($B$3:$B$864))+1,""), ROW()-2)),"") ->  | GX7: =IFERROR(INDEX($B$3:$B$864,SMALL(IF(GX$2=$A$3:$A$864,ROW($B$3:$B$864) - MIN(ROW($B$3:$B$864))+1,""), ROW()-2)),"") ->  | GY7: =IFERROR(INDEX($B$3:$B$864,SMALL(IF(GY$2=$A$3:$A$864,ROW($B$3:$B$864) - MIN(ROW($B$3:$B$864))+1,""), ROW()-2)),"") ->  | GZ7: =IFERROR(INDEX($B$3:$B$864,SMALL(IF(GZ$2=$A$3:$A$864,ROW($B$3:$B$864) - MIN(ROW($B$3:$B$864))+1,""), ROW()-2)),"") ->  | HA7: =IFERROR(INDEX($B$3:$B$864,SMALL(IF(HA$2=$A$3:$A$864,ROW($B$3:$B$864) - MIN(ROW($B$3:$B$864))+1,""), ROW()-2)),"") ->  | HB7: =IFERROR(INDEX($B$3:$B$864,SMALL(IF(HB$2=$A$3:$A$864,ROW($B$3:$B$864) - MIN(ROW($B$3:$B$864))+1,""), ROW()-2)),"") ->  | HC7: =IFERROR(INDEX($B$3:$B$864,SMALL(IF(HC$2=$A$3:$A$864,ROW($B$3:$B$864) - MIN(ROW($B$3:$B$864))+1,""), ROW()-2)),"") ->  | HD7: =IFERROR(INDEX($B$3:$B$864,SMALL(IF(HD$2=$A$3:$A$864,ROW($B$3:$B$864) - MIN(ROW($B$3:$B$864))+1,""), ROW()-2)),"") ->  | HE7: =IFERROR(INDEX($B$3:$B$864,SMALL(IF(HE$2=$A$3:$A$864,ROW($B$3:$B$864) - MIN(ROW($B$3:$B$864))+1,""), ROW()-2)),"") ->  | HF7: =IFERROR(INDEX($B$3:$B$864,SMALL(IF(HF$2=$A$3:$A$864,ROW($B$3:$B$864) - MIN(ROW($B$3:$B$864))+1,""), ROW()-2)),"") ->  | HG7: =IFERROR(INDEX($B$3:$B$864,SMALL(IF(HG$2=$A$3:$A$864,ROW($B$3:$B$864) - MIN(ROW($B$3:$B$864))+1,""), ROW()-2)),"") ->  | HH7: =IFERROR(INDEX($B$3:$B$864,SMALL(IF(HH$2=$A$3:$A$864,ROW($B$3:$B$864) - MIN(ROW($B$3:$B$864))+1,""), ROW()-2)),"") ->  | HI7: =IFERROR(INDEX($B$3:$B$864,SMALL(IF(HI$2=$A$3:$A$864,ROW($B$3:$B$864) - MIN(ROW($B$3:$B$864))+1,""), ROW()-2)),"") ->  | HJ7: =IFERROR(INDEX($B$3:$B$864,SMALL(IF(HJ$2=$A$3:$A$864,ROW($B$3:$B$864) - MIN(ROW($B$3:$B$864))+1,""), ROW()-2)),"") ->  | HK7: =IFERROR(INDEX($B$3:$B$864,SMALL(IF(HK$2=$A$3:$A$864,ROW($B$3:$B$864) - MIN(ROW($B$3:$B$864))+1,""), ROW()-2)),"") ->  | HL7: =IFERROR(INDEX($B$3:$B$864,SMALL(IF(HL$2=$A$3:$A$864,ROW($B$3:$B$864) - MIN(ROW($B$3:$B$864))+1,""), ROW()-2)),"") ->  | HM7: =IFERROR(INDEX($B$3:$B$864,SMALL(IF(HM$2=$A$3:$A$864,ROW($B$3:$B$864) - MIN(ROW($B$3:$B$864))+1,""), ROW()-2)),"") ->  | HN7: =IFERROR(INDEX($B$3:$B$864,SMALL(IF(HN$2=$A$3:$A$864,ROW($B$3:$B$864) - MIN(ROW($B$3:$B$864))+1,""), ROW()-2)),"") ->  | HO7: =IFERROR(INDEX($B$3:$B$864,SMALL(IF(HO$2=$A$3:$A$864,ROW($B$3:$B$864) - MIN(ROW($B$3:$B$864))+1,""), ROW()-2)),"") ->  | HP7: =IFERROR(INDEX($B$3:$B$864,SMALL(IF(HP$2=$A$3:$A$864,ROW($B$3:$B$864) - MIN(ROW($B$3:$B$864))+1,""), ROW()-2)),"") ->  | HQ7: =IFERROR(INDEX($B$3:$B$864,SMALL(IF(HQ$2=$A$3:$A$864,ROW($B$3:$B$864) - MIN(ROW($B$3:$B$864))+1,""), ROW()-2)),"") ->  | HR7: =IFERROR(INDEX($B$3:$B$864,SMALL(IF(HR$2=$A$3:$A$864,ROW($B$3:$B$864) - MIN(ROW($B$3:$B$864))+1,""), ROW()-2)),"") ->  | HS7: =IFERROR(INDEX($B$3:$B$864,SMALL(IF(HS$2=$A$3:$A$864,ROW($B$3:$B$864) - MIN(ROW($B$3:$B$864))+1,""), ROW()-2)),"") ->  | HT7: =IFERROR(INDEX($B$3:$B$864,SMALL(IF(HT$2=$A$3:$A$864,ROW($B$3:$B$864) - MIN(ROW($B$3:$B$864))+1,""), ROW()-2)),"") ->  | HU7: =IFERROR(INDEX($B$3:$B$864,SMALL(IF(HU$2=$A$3:$A$864,ROW($B$3:$B$864) - MIN(ROW($B$3:$B$864))+1,""), ROW()-2)),"") ->  | HV7: =IFERROR(INDEX($B$3:$B$864,SMALL(IF(HV$2=$A$3:$A$864,ROW($B$3:$B$864) - MIN(ROW($B$3:$B$864))+1,""), ROW()-2)),"") ->  | HW7: =IFERROR(INDEX($B$3:$B$864,SMALL(IF(HW$2=$A$3:$A$864,ROW($B$3:$B$864) - MIN(ROW($B$3:$B$864))+1,""), ROW()-2)),"") ->  | HX7: =IFERROR(INDEX($B$3:$B$864,SMALL(IF(HX$2=$A$3:$A$864,ROW($B$3:$B$864) - MIN(ROW($B$3:$B$864))+1,""), ROW()-2)),"") ->  | HY7: =IFERROR(INDEX($B$3:$B$864,SMALL(IF(HY$2=$A$3:$A$864,ROW($B$3:$B$864) - MIN(ROW($B$3:$B$864))+1,""), ROW()-2)),"") ->  | HZ7: =IFERROR(INDEX($B$3:$B$864,SMALL(IF(HZ$2=$A$3:$A$864,ROW($B$3:$B$864) - MIN(ROW($B$3:$B$864))+1,""), ROW()-2)),"") ->  | IA7: =IFERROR(INDEX($B$3:$B$864,SMALL(IF(IA$2=$A$3:$A$864,ROW($B$3:$B$864) - MIN(ROW($B$3:$B$864))+1,""), ROW()-2)),"") ->  | IB7: =IFERROR(INDEX($B$3:$B$864,SMALL(IF(IB$2=$A$3:$A$864,ROW($B$3:$B$864) - MIN(ROW($B$3:$B$864))+1,""), ROW()-2)),"") ->  | IC7: =IFERROR(INDEX($B$3:$B$864,SMALL(IF(IC$2=$A$3:$A$864,ROW($B$3:$B$864) - MIN(ROW($B$3:$B$864))+1,""), ROW()-2)),"") ->  | ID7: =IFERROR(INDEX($B$3:$B$864,SMALL(IF(ID$2=$A$3:$A$864,ROW($B$3:$B$864) - MIN(ROW($B$3:$B$864))+1,""), ROW()-2)),"") ->  | IE7: =IFERROR(INDEX($B$3:$B$864,SMALL(IF(IE$2=$A$3:$A$864,ROW($B$3:$B$864) - MIN(ROW($B$3:$B$864))+1,""), ROW()-2)),"") ->  | IF7: =IFERROR(INDEX($B$3:$B$864,SMALL(IF(IF$2=$A$3:$A$864,ROW($B$3:$B$864) - MIN(ROW($B$3:$B$864))+1,""), ROW()-2)),"") ->  | IG7: =IFERROR(INDEX($B$3:$B$864,SMALL(IF(IG$2=$A$3:$A$864,ROW($B$3:$B$864) - MIN(ROW($B$3:$B$864))+1,""), ROW()-2)),"") ->  | IH7: =IFERROR(INDEX($B$3:$B$864,SMALL(IF(IH$2=$A$3:$A$864,ROW($B$3:$B$864) - MIN(ROW($B$3:$B$864))+1,""), ROW()-2)),"") ->  | II7: =IFERROR(INDEX($B$3:$B$864,SMALL(IF(II$2=$A$3:$A$864,ROW($B$3:$B$864) - MIN(ROW($B$3:$B$864))+1,""), ROW()-2)),"") ->  | IJ7: =IFERROR(INDEX($B$3:$B$864,SMALL(IF(IJ$2=$A$3:$A$864,ROW($B$3:$B$864) - MIN(ROW($B$3:$B$864))+1,""), ROW()-2)),"") ->  | IK7: =IFERROR(INDEX($B$3:$B$864,SMALL(IF(IK$2=$A$3:$A$864,ROW($B$3:$B$864) - MIN(ROW($B$3:$B$864))+1,""), ROW()-2)),"") ->  | IL7: =IFERROR(INDEX($B$3:$B$864,SMALL(IF(IL$2=$A$3:$A$864,ROW($B$3:$B$864) - MIN(ROW($B$3:$B$864))+1,""), ROW()-2)),"") ->  | IM7: =IFERROR(INDEX($B$3:$B$864,SMALL(IF(IM$2=$A$3:$A$864,ROW($B$3:$B$864) - MIN(ROW($B$3:$B$864))+1,""), ROW()-2)),"") ->  | IN7: =IFERROR(INDEX($B$3:$B$864,SMALL(IF(IN$2=$A$3:$A$864,ROW($B$3:$B$864) - MIN(ROW($B$3:$B$864))+1,""), ROW()-2)),"") ->  | IO7: =IFERROR(INDEX($B$3:$B$864,SMALL(IF(IO$2=$A$3:$A$864,ROW($B$3:$B$864) - MIN(ROW($B$3:$B$864))+1,""), ROW()-2)),"") ->  | IP7: =IFERROR(INDEX($B$3:$B$864,SMALL(IF(IP$2=$A$3:$A$864,ROW($B$3:$B$864) - MIN(ROW($B$3:$B$864))+1,""), ROW()-2)),"") ->  | IQ7: =IFERROR(INDEX($B$3:$B$864,SMALL(IF(IQ$2=$A$3:$A$864,ROW($B$3:$B$864) - MIN(ROW($B$3:$B$864))+1,""), ROW()-2)),"") ->  | IR7: =IFERROR(INDEX($B$3:$B$864,SMALL(IF(IR$2=$A$3:$A$864,ROW($B$3:$B$864) - MIN(ROW($B$3:$B$864))+1,""), ROW()-2)),"") ->  | IS7: =IFERROR(INDEX($B$3:$B$864,SMALL(IF(IS$2=$A$3:$A$864,ROW($B$3:$B$864) - MIN(ROW($B$3:$B$864))+1,""), ROW()-2)),"") ->  | IT7: =IFERROR(INDEX($B$3:$B$864,SMALL(IF(IT$2=$A$3:$A$864,ROW($B$3:$B$864) - MIN(ROW($B$3:$B$864))+1,""), ROW()-2)),"") ->  | IU7: =IFERROR(INDEX($B$3:$B$864,SMALL(IF(IU$2=$A$3:$A$864,ROW($B$3:$B$864) - MIN(ROW($B$3:$B$864))+1,""), ROW()-2)),"") ->  | IV7: =IFERROR(INDEX($B$3:$B$864,SMALL(IF(IV$2=$A$3:$A$864,ROW($B$3:$B$864) - MIN(ROW($B$3:$B$864))+1,""), ROW()-2)),"") ->  | IW7: =IFERROR(INDEX($B$3:$B$864,SMALL(IF(IW$2=$A$3:$A$864,ROW($B$3:$B$864) - MIN(ROW($B$3:$B$864))+1,""), ROW()-2)),"") ->  | IX7: =IFERROR(INDEX($B$3:$B$864,SMALL(IF(IX$2=$A$3:$A$864,ROW($B$3:$B$864) - MIN(ROW($B$3:$B$864))+1,""), ROW()-2)),"") ->  | IY7: =IFERROR(INDEX($B$3:$B$864,SMALL(IF(IY$2=$A$3:$A$864,ROW($B$3:$B$864) - MIN(ROW($B$3:$B$864))+1,""), ROW()-2)),"") -> 
A8: =IFERROR(ebd_Annual!A8," ") -> Armstrong | B8: =IFERROR(ebd_Annual!B8," ") -> Zone-1 | C8: Armstrong County has 1 rainfall zone. | F8: =IFERROR(INDEX($B$3:$B$864,SMALL(IF(F$2=$A$3:$A$864,ROW($B$3:$B$864) - MIN(ROW($B$3:$B$864))+1,""), ROW()-2)),"") ->  | G8: =IFERROR(INDEX($B$3:$B$864,SMALL(IF(G$2=$A$3:$A$864,ROW($B$3:$B$864) - MIN(ROW($B$3:$B$864))+1,""), ROW()-2)),"") ->  | H8: =IFERROR(INDEX($B$3:$B$864,SMALL(IF(H$2=$A$3:$A$864,ROW($B$3:$B$864) - MIN(ROW($B$3:$B$864))+1,""), ROW()-2)),"") ->  | I8: =IFERROR(INDEX($B$3:$B$864,SMALL(IF(I$2=$A$3:$A$864,ROW($B$3:$B$864) - MIN(ROW($B$3:$B$864))+1,""), ROW()-2)),"") ->  | J8: =IFERROR(INDEX($B$3:$B$864,SMALL(IF(J$2=$A$3:$A$864,ROW($B$3:$B$864) - MIN(ROW($B$3:$B$864))+1,""), ROW()-2)),"") ->  | K8: =IFERROR(INDEX($B$3:$B$864,SMALL(IF(K$2=$A$3:$A$864,ROW($B$3:$B$864) - MIN(ROW($B$3:$B$864))+1,""), ROW()-2)),"") ->  | L8: =IFERROR(INDEX($B$3:$B$864,SMALL(IF(L$2=$A$3:$A$864,ROW($B$3:$B$864) - MIN(ROW($B$3:$B$864))+1,""), ROW()-2)),"") ->  | M8: =IFERROR(INDEX($B$3:$B$864,SMALL(IF(M$2=$A$3:$A$864,ROW($B$3:$B$864) - MIN(ROW($B$3:$B$864))+1,""), ROW()-2)),"") ->  | N8: =IFERROR(INDEX($B$3:$B$864,SMALL(IF(N$2=$A$3:$A$864,ROW($B$3:$B$864) - MIN(ROW($B$3:$B$864))+1,""), ROW()-2)),"") ->  | O8: =IFERROR(INDEX($B$3:$B$864,SMALL(IF(O$2=$A$3:$A$864,ROW($B$3:$B$864) - MIN(ROW($B$3:$B$864))+1,""), ROW()-2)),"") ->  | P8: =IFERROR(INDEX($B$3:$B$864,SMALL(IF(P$2=$A$3:$A$864,ROW($B$3:$B$864) - MIN(ROW($B$3:$B$864))+1,""), ROW()-2)),"") ->  | Q8: =IFERROR(INDEX($B$3:$B$864,SMALL(IF(Q$2=$A$3:$A$864,ROW($B$3:$B$864) - MIN(ROW($B$3:$B$864))+1,""), ROW()-2)),"") ->  | R8: =IFERROR(INDEX($B$3:$B$864,SMALL(IF(R$2=$A$3:$A$864,ROW($B$3:$B$864) - MIN(ROW($B$3:$B$864))+1,""), ROW()-2)),"") ->  | S8: =IFERROR(INDEX($B$3:$B$864,SMALL(IF(S$2=$A$3:$A$864,ROW($B$3:$B$864) - MIN(ROW($B$3:$B$864))+1,""), ROW()-2)),"") ->  | T8: =IFERROR(INDEX($B$3:$B$864,SMALL(IF(T$2=$A$3:$A$864,ROW($B$3:$B$864) - MIN(ROW($B$3:$B$864))+1,""), ROW()-2)),"") ->  | U8: =IFERROR(INDEX($B$3:$B$864,SMALL(IF(U$2=$A$3:$A$864,ROW($B$3:$B$864) - MIN(ROW($B$3:$B$864))+1,""), ROW()-2)),"") ->  | V8: =IFERROR(INDEX($B$3:$B$864,SMALL(IF(V$2=$A$3:$A$864,ROW($B$3:$B$864) - MIN(ROW($B$3:$B$864))+1,""), ROW()-2)),"") ->  | W8: =IFERROR(INDEX($B$3:$B$864,SMALL(IF(W$2=$A$3:$A$864,ROW($B$3:$B$864) - MIN(ROW($B$3:$B$864))+1,""), ROW()-2)),"") ->  | X8: =IFERROR(INDEX($B$3:$B$864,SMALL(IF(X$2=$A$3:$A$864,ROW($B$3:$B$864) - MIN(ROW($B$3:$B$864))+1,""), ROW()-2)),"") ->  | Y8: =IFERROR(INDEX($B$3:$B$864,SMALL(IF(Y$2=$A$3:$A$864,ROW($B$3:$B$864) - MIN(ROW($B$3:$B$864))+1,""), ROW()-2)),"") ->  | Z8: =IFERROR(INDEX($B$3:$B$864,SMALL(IF(Z$2=$A$3:$A$864,ROW($B$3:$B$864) - MIN(ROW($B$3:$B$864))+1,""), ROW()-2)),"") ->  | AA8: =IFERROR(INDEX($B$3:$B$864,SMALL(IF(AA$2=$A$3:$A$864,ROW($B$3:$B$864) - MIN(ROW($B$3:$B$864))+1,""), ROW()-2)),"") ->  | AB8: =IFERROR(INDEX($B$3:$B$864,SMALL(IF(AB$2=$A$3:$A$864,ROW($B$3:$B$864) - MIN(ROW($B$3:$B$864))+1,""), ROW()-2)),"") ->  | AC8: =IFERROR(INDEX($B$3:$B$864,SMALL(IF(AC$2=$A$3:$A$864,ROW($B$3:$B$864) - MIN(ROW($B$3:$B$864))+1,""), ROW()-2)),"") ->  | AD8: =IFERROR(INDEX($B$3:$B$864,SMALL(IF(AD$2=$A$3:$A$864,ROW($B$3:$B$864) - MIN(ROW($B$3:$B$864))+1,""), ROW()-2)),"") ->  | AE8: =IFERROR(INDEX($B$3:$B$864,SMALL(IF(AE$2=$A$3:$A$864,ROW($B$3:$B$864) - MIN(ROW($B$3:$B$864))+1,""), ROW()-2)),"") ->  | AF8: =IFERROR(INDEX($B$3:$B$864,SMALL(IF(AF$2=$A$3:$A$864,ROW($B$3:$B$864) - MIN(ROW($B$3:$B$864))+1,""), ROW()-2)),"") ->  | AG8: =IFERROR(INDEX($B$3:$B$864,SMALL(IF(AG$2=$A$3:$A$864,ROW($B$3:$B$864) - MIN(ROW($B$3:$B$864))+1,""), ROW()-2)),"") ->  | AH8: =IFERROR(INDEX($B$3:$B$864,SMALL(IF(AH$2=$A$3:$A$864,ROW($B$3:$B$864) - MIN(ROW($B$3:$B$864))+1,""), ROW()-2)),"") ->  | AI8: =IFERROR(INDEX($B$3:$B$864,SMALL(IF(AI$2=$A$3:$A$864,ROW($B$3:$B$864) - MIN(ROW($B$3:$B$864))+1,""), ROW()-2)),"") ->  | AJ8: =IFERROR(INDEX($B$3:$B$864,SMALL(IF(AJ$2=$A$3:$A$864,ROW($B$3:$B$864) - MIN(ROW($B$3:$B$864))+1,""), ROW()-2)),"") ->  | AK8: =IFERROR(INDEX($B$3:$B$864,SMALL(IF(AK$2=$A$3:$A$864,ROW($B$3:$B$864) - MIN(ROW($B$3:$B$864))+1,""), ROW()-2)),"") ->  | AL8: =IFERROR(INDEX($B$3:$B$864,SMALL(IF(AL$2=$A$3:$A$864,ROW($B$3:$B$864) - MIN(ROW($B$3:$B$864))+1,""), ROW()-2)),"") ->  | AM8: =IFERROR(INDEX($B$3:$B$864,SMALL(IF(AM$2=$A$3:$A$864,ROW($B$3:$B$864) - MIN(ROW($B$3:$B$864))+1,""), ROW()-2)),"") ->  | AN8: =IFERROR(INDEX($B$3:$B$864,SMALL(IF(AN$2=$A$3:$A$864,ROW($B$3:$B$864) - MIN(ROW($B$3:$B$864))+1,""), ROW()-2)),"") ->  | AO8: =IFERROR(INDEX($B$3:$B$864,SMALL(IF(AO$2=$A$3:$A$864,ROW($B$3:$B$864) - MIN(ROW($B$3:$B$864))+1,""), ROW()-2)),"") ->  | AP8: =IFERROR(INDEX($B$3:$B$864,SMALL(IF(AP$2=$A$3:$A$864,ROW($B$3:$B$864) - MIN(ROW($B$3:$B$864))+1,""), ROW()-2)),"") ->  | AQ8: =IFERROR(INDEX($B$3:$B$864,SMALL(IF(AQ$2=$A$3:$A$864,ROW($B$3:$B$864) - MIN(ROW($B$3:$B$864))+1,""), ROW()-2)),"") ->  | AR8: =IFERROR(INDEX($B$3:$B$864,SMALL(IF(AR$2=$A$3:$A$864,ROW($B$3:$B$864) - MIN(ROW($B$3:$B$864))+1,""), ROW()-2)),"") ->  | AS8: =IFERROR(INDEX($B$3:$B$864,SMALL(IF(AS$2=$A$3:$A$864,ROW($B$3:$B$864) - MIN(ROW($B$3:$B$864))+1,""), ROW()-2)),"") ->  | AT8: =IFERROR(INDEX($B$3:$B$864,SMALL(IF(AT$2=$A$3:$A$864,ROW($B$3:$B$864) - MIN(ROW($B$3:$B$864))+1,""), ROW()-2)),"") ->  | AU8: =IFERROR(INDEX($B$3:$B$864,SMALL(IF(AU$2=$A$3:$A$864,ROW($B$3:$B$864) - MIN(ROW($B$3:$B$864))+1,""), ROW()-2)),"") ->  | AV8: =IFERROR(INDEX($B$3:$B$864,SMALL(IF(AV$2=$A$3:$A$864,ROW($B$3:$B$864) - MIN(ROW($B$3:$B$864))+1,""), ROW()-2)),"") ->  | AW8: =IFERROR(INDEX($B$3:$B$864,SMALL(IF(AW$2=$A$3:$A$864,ROW($B$3:$B$864) - MIN(ROW($B$3:$B$864))+1,""), ROW()-2)),"") ->  | AX8: =IFERROR(INDEX($B$3:$B$864,SMALL(IF(AX$2=$A$3:$A$864,ROW($B$3:$B$864) - MIN(ROW($B$3:$B$864))+1,""), ROW()-2)),"") ->  | AY8: =IFERROR(INDEX($B$3:$B$864,SMALL(IF(AY$2=$A$3:$A$864,ROW($B$3:$B$864) - MIN(ROW($B$3:$B$864))+1,""), ROW()-2)),"") ->  | AZ8: =IFERROR(INDEX($B$3:$B$864,SMALL(IF(AZ$2=$A$3:$A$864,ROW($B$3:$B$864) - MIN(ROW($B$3:$B$864))+1,""), ROW()-2)),"") ->  | BA8: =IFERROR(INDEX($B$3:$B$864,SMALL(IF(BA$2=$A$3:$A$864,ROW($B$3:$B$864) - MIN(ROW($B$3:$B$864))+1,""), ROW()-2)),"") ->  | BB8: =IFERROR(INDEX($B$3:$B$864,SMALL(IF(BB$2=$A$3:$A$864,ROW($B$3:$B$864) - MIN(ROW($B$3:$B$864))+1,""), ROW()-2)),"") ->  | BC8: =IFERROR(INDEX($B$3:$B$864,SMALL(IF(BC$2=$A$3:$A$864,ROW($B$3:$B$864) - MIN(ROW($B$3:$B$864))+1,""), ROW()-2)),"") ->  | BD8: =IFERROR(INDEX($B$3:$B$864,SMALL(IF(BD$2=$A$3:$A$864,ROW($B$3:$B$864) - MIN(ROW($B$3:$B$864))+1,""), ROW()-2)),"") ->  | BE8: =IFERROR(INDEX($B$3:$B$864,SMALL(IF(BE$2=$A$3:$A$864,ROW($B$3:$B$864) - MIN(ROW($B$3:$B$864))+1,""), ROW()-2)),"") ->  | BF8: =IFERROR(INDEX($B$3:$B$864,SMALL(IF(BF$2=$A$3:$A$864,ROW($B$3:$B$864) - MIN(ROW($B$3:$B$864))+1,""), ROW()-2)),"") ->  | BG8: =IFERROR(INDEX($B$3:$B$864,SMALL(IF(BG$2=$A$3:$A$864,ROW($B$3:$B$864) - MIN(ROW($B$3:$B$864))+1,""), ROW()-2)),"") ->  | BH8: =IFERROR(INDEX($B$3:$B$864,SMALL(IF(BH$2=$A$3:$A$864,ROW($B$3:$B$864) - MIN(ROW($B$3:$B$864))+1,""), ROW()-2)),"") ->  | BI8: =IFERROR(INDEX($B$3:$B$864,SMALL(IF(BI$2=$A$3:$A$864,ROW($B$3:$B$864) - MIN(ROW($B$3:$B$864))+1,""), ROW()-2)),"") ->  | BJ8: =IFERROR(INDEX($B$3:$B$864,SMALL(IF(BJ$2=$A$3:$A$864,ROW($B$3:$B$864) - MIN(ROW($B$3:$B$864))+1,""), ROW()-2)),"") ->  | BK8: =IFERROR(INDEX($B$3:$B$864,SMALL(IF(BK$2=$A$3:$A$864,ROW($B$3:$B$864) - MIN(ROW($B$3:$B$864))+1,""), ROW()-2)),"") ->  | BL8: =IFERROR(INDEX($B$3:$B$864,SMALL(IF(BL$2=$A$3:$A$864,ROW($B$3:$B$864) - MIN(ROW($B$3:$B$864))+1,""), ROW()-2)),"") ->  | BM8: =IFERROR(INDEX($B$3:$B$864,SMALL(IF(BM$2=$A$3:$A$864,ROW($B$3:$B$864) - MIN(ROW($B$3:$B$864))+1,""), ROW()-2)),"") ->  | BN8: =IFERROR(INDEX($B$3:$B$864,SMALL(IF(BN$2=$A$3:$A$864,ROW($B$3:$B$864) - MIN(ROW($B$3:$B$864))+1,""), ROW()-2)),"") ->  | BO8: =IFERROR(INDEX($B$3:$B$864,SMALL(IF(BO$2=$A$3:$A$864,ROW($B$3:$B$864) - MIN(ROW($B$3:$B$864))+1,""), ROW()-2)),"") ->  | BP8: =IFERROR(INDEX($B$3:$B$864,SMALL(IF(BP$2=$A$3:$A$864,ROW($B$3:$B$864) - MIN(ROW($B$3:$B$864))+1,""), ROW()-2)),"") ->  | BQ8: =IFERROR(INDEX($B$3:$B$864,SMALL(IF(BQ$2=$A$3:$A$864,ROW($B$3:$B$864) - MIN(ROW($B$3:$B$864))+1,""), ROW()-2)),"") ->  | BR8: =IFERROR(INDEX($B$3:$B$864,SMALL(IF(BR$2=$A$3:$A$864,ROW($B$3:$B$864) - MIN(ROW($B$3:$B$864))+1,""), ROW()-2)),"") ->  | BS8: =IFERROR(INDEX($B$3:$B$864,SMALL(IF(BS$2=$A$3:$A$864,ROW($B$3:$B$864) - MIN(ROW($B$3:$B$864))+1,""), ROW()-2)),"") ->  | BT8: =IFERROR(INDEX($B$3:$B$864,SMALL(IF(BT$2=$A$3:$A$864,ROW($B$3:$B$864) - MIN(ROW($B$3:$B$864))+1,""), ROW()-2)),"") ->  | BU8: =IFERROR(INDEX($B$3:$B$864,SMALL(IF(BU$2=$A$3:$A$864,ROW($B$3:$B$864) - MIN(ROW($B$3:$B$864))+1,""), ROW()-2)),"") ->  | BV8: =IFERROR(INDEX($B$3:$B$864,SMALL(IF(BV$2=$A$3:$A$864,ROW($B$3:$B$864) - MIN(ROW($B$3:$B$864))+1,""), ROW()-2)),"") ->  | BW8: =IFERROR(INDEX($B$3:$B$864,SMALL(IF(BW$2=$A$3:$A$864,ROW($B$3:$B$864) - MIN(ROW($B$3:$B$864))+1,""), ROW()-2)),"") ->  | BX8: =IFERROR(INDEX($B$3:$B$864,SMALL(IF(BX$2=$A$3:$A$864,ROW($B$3:$B$864) - MIN(ROW($B$3:$B$864))+1,""), ROW()-2)),"") ->  | BY8: =IFERROR(INDEX($B$3:$B$864,SMALL(IF(BY$2=$A$3:$A$864,ROW($B$3:$B$864) - MIN(ROW($B$3:$B$864))+1,""), ROW()-2)),"") ->  | BZ8: =IFERROR(INDEX($B$3:$B$864,SMALL(IF(BZ$2=$A$3:$A$864,ROW($B$3:$B$864) - MIN(ROW($B$3:$B$864))+1,""), ROW()-2)),"") ->  | CA8: =IFERROR(INDEX($B$3:$B$864,SMALL(IF(CA$2=$A$3:$A$864,ROW($B$3:$B$864) - MIN(ROW($B$3:$B$864))+1,""), ROW()-2)),"") ->  | CB8: =IFERROR(INDEX($B$3:$B$864,SMALL(IF(CB$2=$A$3:$A$864,ROW($B$3:$B$864) - MIN(ROW($B$3:$B$864))+1,""), ROW()-2)),"") ->  | CC8: =IFERROR(INDEX($B$3:$B$864,SMALL(IF(CC$2=$A$3:$A$864,ROW($B$3:$B$864) - MIN(ROW($B$3:$B$864))+1,""), ROW()-2)),"") ->  | CD8: =IFERROR(INDEX($B$3:$B$864,SMALL(IF(CD$2=$A$3:$A$864,ROW($B$3:$B$864) - MIN(ROW($B$3:$B$864))+1,""), ROW()-2)),"") ->  | CE8: =IFERROR(INDEX($B$3:$B$864,SMALL(IF(CE$2=$A$3:$A$864,ROW($B$3:$B$864) - MIN(ROW($B$3:$B$864))+1,""), ROW()-2)),"") ->  | CF8: =IFERROR(INDEX($B$3:$B$864,SMALL(IF(CF$2=$A$3:$A$864,ROW($B$3:$B$864) - MIN(ROW($B$3:$B$864))+1,""), ROW()-2)),"") ->  | CG8: =IFERROR(INDEX($B$3:$B$864,SMALL(IF(CG$2=$A$3:$A$864,ROW($B$3:$B$864) - MIN(ROW($B$3:$B$864))+1,""), ROW()-2)),"") ->  | CH8: =IFERROR(INDEX($B$3:$B$864,SMALL(IF(CH$2=$A$3:$A$864,ROW($B$3:$B$864) - MIN(ROW($B$3:$B$864))+1,""), ROW()-2)),"") ->  | CI8: =IFERROR(INDEX($B$3:$B$864,SMALL(IF(CI$2=$A$3:$A$864,ROW($B$3:$B$864) - MIN(ROW($B$3:$B$864))+1,""), ROW()-2)),"") ->  | CJ8: =IFERROR(INDEX($B$3:$B$864,SMALL(IF(CJ$2=$A$3:$A$864,ROW($B$3:$B$864) - MIN(ROW($B$3:$B$864))+1,""), ROW()-2)),"") ->  | CK8: =IFERROR(INDEX($B$3:$B$864,SMALL(IF(CK$2=$A$3:$A$864,ROW($B$3:$B$864) - MIN(ROW($B$3:$B$864))+1,""), ROW()-2)),"") ->  | CL8: =IFERROR(INDEX($B$3:$B$864,SMALL(IF(CL$2=$A$3:$A$864,ROW($B$3:$B$864) - MIN(ROW($B$3:$B$864))+1,""), ROW()-2)),"") ->  | CM8: =IFERROR(INDEX($B$3:$B$864,SMALL(IF(CM$2=$A$3:$A$864,ROW($B$3:$B$864) - MIN(ROW($B$3:$B$864))+1,""), ROW()-2)),"") ->  | CN8: =IFERROR(INDEX($B$3:$B$864,SMALL(IF(CN$2=$A$3:$A$864,ROW($B$3:$B$864) - MIN(ROW($B$3:$B$864))+1,""), ROW()-2)),"") ->  | CO8: =IFERROR(INDEX($B$3:$B$864,SMALL(IF(CO$2=$A$3:$A$864,ROW($B$3:$B$864) - MIN(ROW($B$3:$B$864))+1,""), ROW()-2)),"") ->  | CP8: =IFERROR(INDEX($B$3:$B$864,SMALL(IF(CP$2=$A$3:$A$864,ROW($B$3:$B$864) - MIN(ROW($B$3:$B$864))+1,""), ROW()-2)),"") ->  | CQ8: =IFERROR(INDEX($B$3:$B$864,SMALL(IF(CQ$2=$A$3:$A$864,ROW($B$3:$B$864) - MIN(ROW($B$3:$B$864))+1,""), ROW()-2)),"") ->  | CR8: =IFERROR(INDEX($B$3:$B$864,SMALL(IF(CR$2=$A$3:$A$864,ROW($B$3:$B$864) - MIN(ROW($B$3:$B$864))+1,""), ROW()-2)),"") ->  | CS8: =IFERROR(INDEX($B$3:$B$864,SMALL(IF(CS$2=$A$3:$A$864,ROW($B$3:$B$864) - MIN(ROW($B$3:$B$864))+1,""), ROW()-2)),"") ->  | CT8: =IFERROR(INDEX($B$3:$B$864,SMALL(IF(CT$2=$A$3:$A$864,ROW($B$3:$B$864) - MIN(ROW($B$3:$B$864))+1,""), ROW()-2)),"") ->  | CU8: =IFERROR(INDEX($B$3:$B$864,SMALL(IF(CU$2=$A$3:$A$864,ROW($B$3:$B$864) - MIN(ROW($B$3:$B$864))+1,""), ROW()-2)),"") ->  | CV8: =IFERROR(INDEX($B$3:$B$864,SMALL(IF(CV$2=$A$3:$A$864,ROW($B$3:$B$864) - MIN(ROW($B$3:$B$864))+1,""), ROW()-2)),"") ->  | CW8: =IFERROR(INDEX($B$3:$B$864,SMALL(IF(CW$2=$A$3:$A$864,ROW($B$3:$B$864) - MIN(ROW($B$3:$B$864))+1,""), ROW()-2)),"") ->  | CX8: =IFERROR(INDEX($B$3:$B$864,SMALL(IF(CX$2=$A$3:$A$864,ROW($B$3:$B$864) - MIN(ROW($B$3:$B$864))+1,""), ROW()-2)),"") ->  | CY8: =IFERROR(INDEX($B$3:$B$864,SMALL(IF(CY$2=$A$3:$A$864,ROW($B$3:$B$864) - MIN(ROW($B$3:$B$864))+1,""), ROW()-2)),"") ->  | CZ8: =IFERROR(INDEX($B$3:$B$864,SMALL(IF(CZ$2=$A$3:$A$864,ROW($B$3:$B$864) - MIN(ROW($B$3:$B$864))+1,""), ROW()-2)),"") ->  | DA8: =IFERROR(INDEX($B$3:$B$864,SMALL(IF(DA$2=$A$3:$A$864,ROW($B$3:$B$864) - MIN(ROW($B$3:$B$864))+1,""), ROW()-2)),"") ->  | DB8: =IFERROR(INDEX($B$3:$B$864,SMALL(IF(DB$2=$A$3:$A$864,ROW($B$3:$B$864) - MIN(ROW($B$3:$B$864))+1,""), ROW()-2)),"") ->  | DC8: =IFERROR(INDEX($B$3:$B$864,SMALL(IF(DC$2=$A$3:$A$864,ROW($B$3:$B$864) - MIN(ROW($B$3:$B$864))+1,""), ROW()-2)),"") ->  | DD8: =IFERROR(INDEX($B$3:$B$864,SMALL(IF(DD$2=$A$3:$A$864,ROW($B$3:$B$864) - MIN(ROW($B$3:$B$864))+1,""), ROW()-2)),"") ->  | DE8: =IFERROR(INDEX($B$3:$B$864,SMALL(IF(DE$2=$A$3:$A$864,ROW($B$3:$B$864) - MIN(ROW($B$3:$B$864))+1,""), ROW()-2)),"") ->  | DF8: =IFERROR(INDEX($B$3:$B$864,SMALL(IF(DF$2=$A$3:$A$864,ROW($B$3:$B$864) - MIN(ROW($B$3:$B$864))+1,""), ROW()-2)),"") ->  | DG8: =IFERROR(INDEX($B$3:$B$864,SMALL(IF(DG$2=$A$3:$A$864,ROW($B$3:$B$864) - MIN(ROW($B$3:$B$864))+1,""), ROW()-2)),"") ->  | DH8: =IFERROR(INDEX($B$3:$B$864,SMALL(IF(DH$2=$A$3:$A$864,ROW($B$3:$B$864) - MIN(ROW($B$3:$B$864))+1,""), ROW()-2)),"") ->  | DI8: =IFERROR(INDEX($B$3:$B$864,SMALL(IF(DI$2=$A$3:$A$864,ROW($B$3:$B$864) - MIN(ROW($B$3:$B$864))+1,""), ROW()-2)),"") ->  | DJ8: =IFERROR(INDEX($B$3:$B$864,SMALL(IF(DJ$2=$A$3:$A$864,ROW($B$3:$B$864) - MIN(ROW($B$3:$B$864))+1,""), ROW()-2)),"") ->  | DK8: =IFERROR(INDEX($B$3:$B$864,SMALL(IF(DK$2=$A$3:$A$864,ROW($B$3:$B$864) - MIN(ROW($B$3:$B$864))+1,""), ROW()-2)),"") ->  | DL8: =IFERROR(INDEX($B$3:$B$864,SMALL(IF(DL$2=$A$3:$A$864,ROW($B$3:$B$864) - MIN(ROW($B$3:$B$864))+1,""), ROW()-2)),"") ->  | DM8: =IFERROR(INDEX($B$3:$B$864,SMALL(IF(DM$2=$A$3:$A$864,ROW($B$3:$B$864) - MIN(ROW($B$3:$B$864))+1,""), ROW()-2)),"") ->  | DN8: =IFERROR(INDEX($B$3:$B$864,SMALL(IF(DN$2=$A$3:$A$864,ROW($B$3:$B$864) - MIN(ROW($B$3:$B$864))+1,""), ROW()-2)),"") ->  | DO8: =IFERROR(INDEX($B$3:$B$864,SMALL(IF(DO$2=$A$3:$A$864,ROW($B$3:$B$864) - MIN(ROW($B$3:$B$864))+1,""), ROW()-2)),"") ->  | DP8: =IFERROR(INDEX($B$3:$B$864,SMALL(IF(DP$2=$A$3:$A$864,ROW($B$3:$B$864) - MIN(ROW($B$3:$B$864))+1,""), ROW()-2)),"") ->  | DQ8: =IFERROR(INDEX($B$3:$B$864,SMALL(IF(DQ$2=$A$3:$A$864,ROW($B$3:$B$864) - MIN(ROW($B$3:$B$864))+1,""), ROW()-2)),"") ->  | DR8: =IFERROR(INDEX($B$3:$B$864,SMALL(IF(DR$2=$A$3:$A$864,ROW($B$3:$B$864) - MIN(ROW($B$3:$B$864))+1,""), ROW()-2)),"") ->  | DS8: =IFERROR(INDEX($B$3:$B$864,SMALL(IF(DS$2=$A$3:$A$864,ROW($B$3:$B$864) - MIN(ROW($B$3:$B$864))+1,""), ROW()-2)),"") ->  | DT8: =IFERROR(INDEX($B$3:$B$864,SMALL(IF(DT$2=$A$3:$A$864,ROW($B$3:$B$864) - MIN(ROW($B$3:$B$864))+1,""), ROW()-2)),"") ->  | DU8: =IFERROR(INDEX($B$3:$B$864,SMALL(IF(DU$2=$A$3:$A$864,ROW($B$3:$B$864) - MIN(ROW($B$3:$B$864))+1,""), ROW()-2)),"") ->  | DV8: =IFERROR(INDEX($B$3:$B$864,SMALL(IF(DV$2=$A$3:$A$864,ROW($B$3:$B$864) - MIN(ROW($B$3:$B$864))+1,""), ROW()-2)),"") ->  | DW8: =IFERROR(INDEX($B$3:$B$864,SMALL(IF(DW$2=$A$3:$A$864,ROW($B$3:$B$864) - MIN(ROW($B$3:$B$864))+1,""), ROW()-2)),"") ->  | DX8: =IFERROR(INDEX($B$3:$B$864,SMALL(IF(DX$2=$A$3:$A$864,ROW($B$3:$B$864) - MIN(ROW($B$3:$B$864))+1,""), ROW()-2)),"") ->  | DY8: =IFERROR(INDEX($B$3:$B$864,SMALL(IF(DY$2=$A$3:$A$864,ROW($B$3:$B$864) - MIN(ROW($B$3:$B$864))+1,""), ROW()-2)),"") ->  | DZ8: =IFERROR(INDEX($B$3:$B$864,SMALL(IF(DZ$2=$A$3:$A$864,ROW($B$3:$B$864) - MIN(ROW($B$3:$B$864))+1,""), ROW()-2)),"") ->  | EA8: =IFERROR(INDEX($B$3:$B$864,SMALL(IF(EA$2=$A$3:$A$864,ROW($B$3:$B$864) - MIN(ROW($B$3:$B$864))+1,""), ROW()-2)),"") ->  | EB8: =IFERROR(INDEX($B$3:$B$864,SMALL(IF(EB$2=$A$3:$A$864,ROW($B$3:$B$864) - MIN(ROW($B$3:$B$864))+1,""), ROW()-2)),"") ->  | EC8: =IFERROR(INDEX($B$3:$B$864,SMALL(IF(EC$2=$A$3:$A$864,ROW($B$3:$B$864) - MIN(ROW($B$3:$B$864))+1,""), ROW()-2)),"") ->  | ED8: =IFERROR(INDEX($B$3:$B$864,SMALL(IF(ED$2=$A$3:$A$864,ROW($B$3:$B$864) - MIN(ROW($B$3:$B$864))+1,""), ROW()-2)),"") ->  | EE8: =IFERROR(INDEX($B$3:$B$864,SMALL(IF(EE$2=$A$3:$A$864,ROW($B$3:$B$864) - MIN(ROW($B$3:$B$864))+1,""), ROW()-2)),"") ->  | EF8: =IFERROR(INDEX($B$3:$B$864,SMALL(IF(EF$2=$A$3:$A$864,ROW($B$3:$B$864) - MIN(ROW($B$3:$B$864))+1,""), ROW()-2)),"") ->  | EG8: =IFERROR(INDEX($B$3:$B$864,SMALL(IF(EG$2=$A$3:$A$864,ROW($B$3:$B$864) - MIN(ROW($B$3:$B$864))+1,""), ROW()-2)),"") ->  | EH8: =IFERROR(INDEX($B$3:$B$864,SMALL(IF(EH$2=$A$3:$A$864,ROW($B$3:$B$864) - MIN(ROW($B$3:$B$864))+1,""), ROW()-2)),"") ->  | EI8: =IFERROR(INDEX($B$3:$B$864,SMALL(IF(EI$2=$A$3:$A$864,ROW($B$3:$B$864) - MIN(ROW($B$3:$B$864))+1,""), ROW()-2)),"") ->  | EJ8: =IFERROR(INDEX($B$3:$B$864,SMALL(IF(EJ$2=$A$3:$A$864,ROW($B$3:$B$864) - MIN(ROW($B$3:$B$864))+1,""), ROW()-2)),"") ->  | EK8: =IFERROR(INDEX($B$3:$B$864,SMALL(IF(EK$2=$A$3:$A$864,ROW($B$3:$B$864) - MIN(ROW($B$3:$B$864))+1,""), ROW()-2)),"") ->  | EL8: =IFERROR(INDEX($B$3:$B$864,SMALL(IF(EL$2=$A$3:$A$864,ROW($B$3:$B$864) - MIN(ROW($B$3:$B$864))+1,""), ROW()-2)),"") ->  | EM8: =IFERROR(INDEX($B$3:$B$864,SMALL(IF(EM$2=$A$3:$A$864,ROW($B$3:$B$864) - MIN(ROW($B$3:$B$864))+1,""), ROW()-2)),"") ->  | EN8: =IFERROR(INDEX($B$3:$B$864,SMALL(IF(EN$2=$A$3:$A$864,ROW($B$3:$B$864) - MIN(ROW($B$3:$B$864))+1,""), ROW()-2)),"") ->  | EO8: =IFERROR(INDEX($B$3:$B$864,SMALL(IF(EO$2=$A$3:$A$864,ROW($B$3:$B$864) - MIN(ROW($B$3:$B$864))+1,""), ROW()-2)),"") ->  | EP8: =IFERROR(INDEX($B$3:$B$864,SMALL(IF(EP$2=$A$3:$A$864,ROW($B$3:$B$864) - MIN(ROW($B$3:$B$864))+1,""), ROW()-2)),"") ->  | EQ8: =IFERROR(INDEX($B$3:$B$864,SMALL(IF(EQ$2=$A$3:$A$864,ROW($B$3:$B$864) - MIN(ROW($B$3:$B$864))+1,""), ROW()-2)),"") ->  | ER8: =IFERROR(INDEX($B$3:$B$864,SMALL(IF(ER$2=$A$3:$A$864,ROW($B$3:$B$864) - MIN(ROW($B$3:$B$864))+1,""), ROW()-2)),"") ->  | ES8: =IFERROR(INDEX($B$3:$B$864,SMALL(IF(ES$2=$A$3:$A$864,ROW($B$3:$B$864) - MIN(ROW($B$3:$B$864))+1,""), ROW()-2)),"") ->  | ET8: =IFERROR(INDEX($B$3:$B$864,SMALL(IF(ET$2=$A$3:$A$864,ROW($B$3:$B$864) - MIN(ROW($B$3:$B$864))+1,""), ROW()-2)),"") ->  | EU8: =IFERROR(INDEX($B$3:$B$864,SMALL(IF(EU$2=$A$3:$A$864,ROW($B$3:$B$864) - MIN(ROW($B$3:$B$864))+1,""), ROW()-2)),"") ->  | EV8: =IFERROR(INDEX($B$3:$B$864,SMALL(IF(EV$2=$A$3:$A$864,ROW($B$3:$B$864) - MIN(ROW($B$3:$B$864))+1,""), ROW()-2)),"") ->  | EW8: =IFERROR(INDEX($B$3:$B$864,SMALL(IF(EW$2=$A$3:$A$864,ROW($B$3:$B$864) - MIN(ROW($B$3:$B$864))+1,""), ROW()-2)),"") ->  | EX8: =IFERROR(INDEX($B$3:$B$864,SMALL(IF(EX$2=$A$3:$A$864,ROW($B$3:$B$864) - MIN(ROW($B$3:$B$864))+1,""), ROW()-2)),"") ->  | EY8: =IFERROR(INDEX($B$3:$B$864,SMALL(IF(EY$2=$A$3:$A$864,ROW($B$3:$B$864) - MIN(ROW($B$3:$B$864))+1,""), ROW()-2)),"") ->  | EZ8: =IFERROR(INDEX($B$3:$B$864,SMALL(IF(EZ$2=$A$3:$A$864,ROW($B$3:$B$864) - MIN(ROW($B$3:$B$864))+1,""), ROW()-2)),"") ->  | FA8: =IFERROR(INDEX($B$3:$B$864,SMALL(IF(FA$2=$A$3:$A$864,ROW($B$3:$B$864) - MIN(ROW($B$3:$B$864))+1,""), ROW()-2)),"") ->  | FB8: =IFERROR(INDEX($B$3:$B$864,SMALL(IF(FB$2=$A$3:$A$864,ROW($B$3:$B$864) - MIN(ROW($B$3:$B$864))+1,""), ROW()-2)),"") ->  | FC8: =IFERROR(INDEX($B$3:$B$864,SMALL(IF(FC$2=$A$3:$A$864,ROW($B$3:$B$864) - MIN(ROW($B$3:$B$864))+1,""), ROW()-2)),"") ->  | FD8: =IFERROR(INDEX($B$3:$B$864,SMALL(IF(FD$2=$A$3:$A$864,ROW($B$3:$B$864) - MIN(ROW($B$3:$B$864))+1,""), ROW()-2)),"") ->  | FE8: =IFERROR(INDEX($B$3:$B$864,SMALL(IF(FE$2=$A$3:$A$864,ROW($B$3:$B$864) - MIN(ROW($B$3:$B$864))+1,""), ROW()-2)),"") ->  | FF8: =IFERROR(INDEX($B$3:$B$864,SMALL(IF(FF$2=$A$3:$A$864,ROW($B$3:$B$864) - MIN(ROW($B$3:$B$864))+1,""), ROW()-2)),"") ->  | FG8: =IFERROR(INDEX($B$3:$B$864,SMALL(IF(FG$2=$A$3:$A$864,ROW($B$3:$B$864) - MIN(ROW($B$3:$B$864))+1,""), ROW()-2)),"") ->  | FH8: =IFERROR(INDEX($B$3:$B$864,SMALL(IF(FH$2=$A$3:$A$864,ROW($B$3:$B$864) - MIN(ROW($B$3:$B$864))+1,""), ROW()-2)),"") ->  | FI8: =IFERROR(INDEX($B$3:$B$864,SMALL(IF(FI$2=$A$3:$A$864,ROW($B$3:$B$864) - MIN(ROW($B$3:$B$864))+1,""), ROW()-2)),"") ->  | FJ8: =IFERROR(INDEX($B$3:$B$864,SMALL(IF(FJ$2=$A$3:$A$864,ROW($B$3:$B$864) - MIN(ROW($B$3:$B$864))+1,""), ROW()-2)),"") ->  | FK8: =IFERROR(INDEX($B$3:$B$864,SMALL(IF(FK$2=$A$3:$A$864,ROW($B$3:$B$864) - MIN(ROW($B$3:$B$864))+1,""), ROW()-2)),"") ->  | FL8: =IFERROR(INDEX($B$3:$B$864,SMALL(IF(FL$2=$A$3:$A$864,ROW($B$3:$B$864) - MIN(ROW($B$3:$B$864))+1,""), ROW()-2)),"") ->  | FM8: =IFERROR(INDEX($B$3:$B$864,SMALL(IF(FM$2=$A$3:$A$864,ROW($B$3:$B$864) - MIN(ROW($B$3:$B$864))+1,""), ROW()-2)),"") ->  | FN8: =IFERROR(INDEX($B$3:$B$864,SMALL(IF(FN$2=$A$3:$A$864,ROW($B$3:$B$864) - MIN(ROW($B$3:$B$864))+1,""), ROW()-2)),"") ->  | FO8: =IFERROR(INDEX($B$3:$B$864,SMALL(IF(FO$2=$A$3:$A$864,ROW($B$3:$B$864) - MIN(ROW($B$3:$B$864))+1,""), ROW()-2)),"") ->  | FP8: =IFERROR(INDEX($B$3:$B$864,SMALL(IF(FP$2=$A$3:$A$864,ROW($B$3:$B$864) - MIN(ROW($B$3:$B$864))+1,""), ROW()-2)),"") ->  | FQ8: =IFERROR(INDEX($B$3:$B$864,SMALL(IF(FQ$2=$A$3:$A$864,ROW($B$3:$B$864) - MIN(ROW($B$3:$B$864))+1,""), ROW()-2)),"") ->  | FR8: =IFERROR(INDEX($B$3:$B$864,SMALL(IF(FR$2=$A$3:$A$864,ROW($B$3:$B$864) - MIN(ROW($B$3:$B$864))+1,""), ROW()-2)),"") ->  | FS8: =IFERROR(INDEX($B$3:$B$864,SMALL(IF(FS$2=$A$3:$A$864,ROW($B$3:$B$864) - MIN(ROW($B$3:$B$864))+1,""), ROW()-2)),"") ->  | FT8: =IFERROR(INDEX($B$3:$B$864,SMALL(IF(FT$2=$A$3:$A$864,ROW($B$3:$B$864) - MIN(ROW($B$3:$B$864))+1,""), ROW()-2)),"") ->  | FU8: =IFERROR(INDEX($B$3:$B$864,SMALL(IF(FU$2=$A$3:$A$864,ROW($B$3:$B$864) - MIN(ROW($B$3:$B$864))+1,""), ROW()-2)),"") ->  | FV8: =IFERROR(INDEX($B$3:$B$864,SMALL(IF(FV$2=$A$3:$A$864,ROW($B$3:$B$864) - MIN(ROW($B$3:$B$864))+1,""), ROW()-2)),"") ->  | FW8: =IFERROR(INDEX($B$3:$B$864,SMALL(IF(FW$2=$A$3:$A$864,ROW($B$3:$B$864) - MIN(ROW($B$3:$B$864))+1,""), ROW()-2)),"") ->  | FX8: =IFERROR(INDEX($B$3:$B$864,SMALL(IF(FX$2=$A$3:$A$864,ROW($B$3:$B$864) - MIN(ROW($B$3:$B$864))+1,""), ROW()-2)),"") ->  | FY8: =IFERROR(INDEX($B$3:$B$864,SMALL(IF(FY$2=$A$3:$A$864,ROW($B$3:$B$864) - MIN(ROW($B$3:$B$864))+1,""), ROW()-2)),"") ->  | FZ8: =IFERROR(INDEX($B$3:$B$864,SMALL(IF(FZ$2=$A$3:$A$864,ROW($B$3:$B$864) - MIN(ROW($B$3:$B$864))+1,""), ROW()-2)),"") ->  | GA8: =IFERROR(INDEX($B$3:$B$864,SMALL(IF(GA$2=$A$3:$A$864,ROW($B$3:$B$864) - MIN(ROW($B$3:$B$864))+1,""), ROW()-2)),"") ->  | GB8: =IFERROR(INDEX($B$3:$B$864,SMALL(IF(GB$2=$A$3:$A$864,ROW($B$3:$B$864) - MIN(ROW($B$3:$B$864))+1,""), ROW()-2)),"") ->  | GC8: =IFERROR(INDEX($B$3:$B$864,SMALL(IF(GC$2=$A$3:$A$864,ROW($B$3:$B$864) - MIN(ROW($B$3:$B$864))+1,""), ROW()-2)),"") ->  | GD8: =IFERROR(INDEX($B$3:$B$864,SMALL(IF(GD$2=$A$3:$A$864,ROW($B$3:$B$864) - MIN(ROW($B$3:$B$864))+1,""), ROW()-2)),"") ->  | GE8: =IFERROR(INDEX($B$3:$B$864,SMALL(IF(GE$2=$A$3:$A$864,ROW($B$3:$B$864) - MIN(ROW($B$3:$B$864))+1,""), ROW()-2)),"") ->  | GF8: =IFERROR(INDEX($B$3:$B$864,SMALL(IF(GF$2=$A$3:$A$864,ROW($B$3:$B$864) - MIN(ROW($B$3:$B$864))+1,""), ROW()-2)),"") ->  | GG8: =IFERROR(INDEX($B$3:$B$864,SMALL(IF(GG$2=$A$3:$A$864,ROW($B$3:$B$864) - MIN(ROW($B$3:$B$864))+1,""), ROW()-2)),"") ->  | GH8: =IFERROR(INDEX($B$3:$B$864,SMALL(IF(GH$2=$A$3:$A$864,ROW($B$3:$B$864) - MIN(ROW($B$3:$B$864))+1,""), ROW()-2)),"") ->  | GI8: =IFERROR(INDEX($B$3:$B$864,SMALL(IF(GI$2=$A$3:$A$864,ROW($B$3:$B$864) - MIN(ROW($B$3:$B$864))+1,""), ROW()-2)),"") ->  | GJ8: =IFERROR(INDEX($B$3:$B$864,SMALL(IF(GJ$2=$A$3:$A$864,ROW($B$3:$B$864) - MIN(ROW($B$3:$B$864))+1,""), ROW()-2)),"") ->  | GK8: =IFERROR(INDEX($B$3:$B$864,SMALL(IF(GK$2=$A$3:$A$864,ROW($B$3:$B$864) - MIN(ROW($B$3:$B$864))+1,""), ROW()-2)),"") ->  | GL8: =IFERROR(INDEX($B$3:$B$864,SMALL(IF(GL$2=$A$3:$A$864,ROW($B$3:$B$864) - MIN(ROW($B$3:$B$864))+1,""), ROW()-2)),"") ->  | GM8: =IFERROR(INDEX($B$3:$B$864,SMALL(IF(GM$2=$A$3:$A$864,ROW($B$3:$B$864) - MIN(ROW($B$3:$B$864))+1,""), ROW()-2)),"") ->  | GN8: =IFERROR(INDEX($B$3:$B$864,SMALL(IF(GN$2=$A$3:$A$864,ROW($B$3:$B$864) - MIN(ROW($B$3:$B$864))+1,""), ROW()-2)),"") ->  | GO8: =IFERROR(INDEX($B$3:$B$864,SMALL(IF(GO$2=$A$3:$A$864,ROW($B$3:$B$864) - MIN(ROW($B$3:$B$864))+1,""), ROW()-2)),"") ->  | GP8: =IFERROR(INDEX($B$3:$B$864,SMALL(IF(GP$2=$A$3:$A$864,ROW($B$3:$B$864) - MIN(ROW($B$3:$B$864))+1,""), ROW()-2)),"") ->  | GQ8: =IFERROR(INDEX($B$3:$B$864,SMALL(IF(GQ$2=$A$3:$A$864,ROW($B$3:$B$864) - MIN(ROW($B$3:$B$864))+1,""), ROW()-2)),"") ->  | GR8: =IFERROR(INDEX($B$3:$B$864,SMALL(IF(GR$2=$A$3:$A$864,ROW($B$3:$B$864) - MIN(ROW($B$3:$B$864))+1,""), ROW()-2)),"") ->  | GS8: =IFERROR(INDEX($B$3:$B$864,SMALL(IF(GS$2=$A$3:$A$864,ROW($B$3:$B$864) - MIN(ROW($B$3:$B$864))+1,""), ROW()-2)),"") ->  | GT8: =IFERROR(INDEX($B$3:$B$864,SMALL(IF(GT$2=$A$3:$A$864,ROW($B$3:$B$864) - MIN(ROW($B$3:$B$864))+1,""), ROW()-2)),"") ->  | GU8: =IFERROR(INDEX($B$3:$B$864,SMALL(IF(GU$2=$A$3:$A$864,ROW($B$3:$B$864) - MIN(ROW($B$3:$B$864))+1,""), ROW()-2)),"") ->  | GV8: =IFERROR(INDEX($B$3:$B$864,SMALL(IF(GV$2=$A$3:$A$864,ROW($B$3:$B$864) - MIN(ROW($B$3:$B$864))+1,""), ROW()-2)),"") ->  | GW8: =IFERROR(INDEX($B$3:$B$864,SMALL(IF(GW$2=$A$3:$A$864,ROW($B$3:$B$864) - MIN(ROW($B$3:$B$864))+1,""), ROW()-2)),"") ->  | GX8: =IFERROR(INDEX($B$3:$B$864,SMALL(IF(GX$2=$A$3:$A$864,ROW($B$3:$B$864) - MIN(ROW($B$3:$B$864))+1,""), ROW()-2)),"") ->  | GY8: =IFERROR(INDEX($B$3:$B$864,SMALL(IF(GY$2=$A$3:$A$864,ROW($B$3:$B$864) - MIN(ROW($B$3:$B$864))+1,""), ROW()-2)),"") ->  | GZ8: =IFERROR(INDEX($B$3:$B$864,SMALL(IF(GZ$2=$A$3:$A$864,ROW($B$3:$B$864) - MIN(ROW($B$3:$B$864))+1,""), ROW()-2)),"") ->  | HA8: =IFERROR(INDEX($B$3:$B$864,SMALL(IF(HA$2=$A$3:$A$864,ROW($B$3:$B$864) - MIN(ROW($B$3:$B$864))+1,""), ROW()-2)),"") ->  | HB8: =IFERROR(INDEX($B$3:$B$864,SMALL(IF(HB$2=$A$3:$A$864,ROW($B$3:$B$864) - MIN(ROW($B$3:$B$864))+1,""), ROW()-2)),"") ->  | HC8: =IFERROR(INDEX($B$3:$B$864,SMALL(IF(HC$2=$A$3:$A$864,ROW($B$3:$B$864) - MIN(ROW($B$3:$B$864))+1,""), ROW()-2)),"") ->  | HD8: =IFERROR(INDEX($B$3:$B$864,SMALL(IF(HD$2=$A$3:$A$864,ROW($B$3:$B$864) - MIN(ROW($B$3:$B$864))+1,""), ROW()-2)),"") ->  | HE8: =IFERROR(INDEX($B$3:$B$864,SMALL(IF(HE$2=$A$3:$A$864,ROW($B$3:$B$864) - MIN(ROW($B$3:$B$864))+1,""), ROW()-2)),"") ->  | HF8: =IFERROR(INDEX($B$3:$B$864,SMALL(IF(HF$2=$A$3:$A$864,ROW($B$3:$B$864) - MIN(ROW($B$3:$B$864))+1,""), ROW()-2)),"") ->  | HG8: =IFERROR(INDEX($B$3:$B$864,SMALL(IF(HG$2=$A$3:$A$864,ROW($B$3:$B$864) - MIN(ROW($B$3:$B$864))+1,""), ROW()-2)),"") ->  | HH8: =IFERROR(INDEX($B$3:$B$864,SMALL(IF(HH$2=$A$3:$A$864,ROW($B$3:$B$864) - MIN(ROW($B$3:$B$864))+1,""), ROW()-2)),"") ->  | HI8: =IFERROR(INDEX($B$3:$B$864,SMALL(IF(HI$2=$A$3:$A$864,ROW($B$3:$B$864) - MIN(ROW($B$3:$B$864))+1,""), ROW()-2)),"") ->  | HJ8: =IFERROR(INDEX($B$3:$B$864,SMALL(IF(HJ$2=$A$3:$A$864,ROW($B$3:$B$864) - MIN(ROW($B$3:$B$864))+1,""), ROW()-2)),"") ->  | HK8: =IFERROR(INDEX($B$3:$B$864,SMALL(IF(HK$2=$A$3:$A$864,ROW($B$3:$B$864) - MIN(ROW($B$3:$B$864))+1,""), ROW()-2)),"") ->  | HL8: =IFERROR(INDEX($B$3:$B$864,SMALL(IF(HL$2=$A$3:$A$864,ROW($B$3:$B$864) - MIN(ROW($B$3:$B$864))+1,""), ROW()-2)),"") ->  | HM8: =IFERROR(INDEX($B$3:$B$864,SMALL(IF(HM$2=$A$3:$A$864,ROW($B$3:$B$864) - MIN(ROW($B$3:$B$864))+1,""), ROW()-2)),"") ->  | HN8: =IFERROR(INDEX($B$3:$B$864,SMALL(IF(HN$2=$A$3:$A$864,ROW($B$3:$B$864) - MIN(ROW($B$3:$B$864))+1,""), ROW()-2)),"") ->  | HO8: =IFERROR(INDEX($B$3:$B$864,SMALL(IF(HO$2=$A$3:$A$864,ROW($B$3:$B$864) - MIN(ROW($B$3:$B$864))+1,""), ROW()-2)),"") ->  | HP8: =IFERROR(INDEX($B$3:$B$864,SMALL(IF(HP$2=$A$3:$A$864,ROW($B$3:$B$864) - MIN(ROW($B$3:$B$864))+1,""), ROW()-2)),"") ->  | HQ8: =IFERROR(INDEX($B$3:$B$864,SMALL(IF(HQ$2=$A$3:$A$864,ROW($B$3:$B$864) - MIN(ROW($B$3:$B$864))+1,""), ROW()-2)),"") ->  | HR8: =IFERROR(INDEX($B$3:$B$864,SMALL(IF(HR$2=$A$3:$A$864,ROW($B$3:$B$864) - MIN(ROW($B$3:$B$864))+1,""), ROW()-2)),"") ->  | HS8: =IFERROR(INDEX($B$3:$B$864,SMALL(IF(HS$2=$A$3:$A$864,ROW($B$3:$B$864) - MIN(ROW($B$3:$B$864))+1,""), ROW()-2)),"") ->  | HT8: =IFERROR(INDEX($B$3:$B$864,SMALL(IF(HT$2=$A$3:$A$864,ROW($B$3:$B$864) - MIN(ROW($B$3:$B$864))+1,""), ROW()-2)),"") ->  | HU8: =IFERROR(INDEX($B$3:$B$864,SMALL(IF(HU$2=$A$3:$A$864,ROW($B$3:$B$864) - MIN(ROW($B$3:$B$864))+1,""), ROW()-2)),"") ->  | HV8: =IFERROR(INDEX($B$3:$B$864,SMALL(IF(HV$2=$A$3:$A$864,ROW($B$3:$B$864) - MIN(ROW($B$3:$B$864))+1,""), ROW()-2)),"") ->  | HW8: =IFERROR(INDEX($B$3:$B$864,SMALL(IF(HW$2=$A$3:$A$864,ROW($B$3:$B$864) - MIN(ROW($B$3:$B$864))+1,""), ROW()-2)),"") ->  | HX8: =IFERROR(INDEX($B$3:$B$864,SMALL(IF(HX$2=$A$3:$A$864,ROW($B$3:$B$864) - MIN(ROW($B$3:$B$864))+1,""), ROW()-2)),"") ->  | HY8: =IFERROR(INDEX($B$3:$B$864,SMALL(IF(HY$2=$A$3:$A$864,ROW($B$3:$B$864) - MIN(ROW($B$3:$B$864))+1,""), ROW()-2)),"") ->  | HZ8: =IFERROR(INDEX($B$3:$B$864,SMALL(IF(HZ$2=$A$3:$A$864,ROW($B$3:$B$864) - MIN(ROW($B$3:$B$864))+1,""), ROW()-2)),"") ->  | IA8: =IFERROR(INDEX($B$3:$B$864,SMALL(IF(IA$2=$A$3:$A$864,ROW($B$3:$B$864) - MIN(ROW($B$3:$B$864))+1,""), ROW()-2)),"") ->  | IB8: =IFERROR(INDEX($B$3:$B$864,SMALL(IF(IB$2=$A$3:$A$864,ROW($B$3:$B$864) - MIN(ROW($B$3:$B$864))+1,""), ROW()-2)),"") ->  | IC8: =IFERROR(INDEX($B$3:$B$864,SMALL(IF(IC$2=$A$3:$A$864,ROW($B$3:$B$864) - MIN(ROW($B$3:$B$864))+1,""), ROW()-2)),"") ->  | ID8: =IFERROR(INDEX($B$3:$B$864,SMALL(IF(ID$2=$A$3:$A$864,ROW($B$3:$B$864) - MIN(ROW($B$3:$B$864))+1,""), ROW()-2)),"") ->  | IE8: =IFERROR(INDEX($B$3:$B$864,SMALL(IF(IE$2=$A$3:$A$864,ROW($B$3:$B$864) - MIN(ROW($B$3:$B$864))+1,""), ROW()-2)),"") ->  | IF8: =IFERROR(INDEX($B$3:$B$864,SMALL(IF(IF$2=$A$3:$A$864,ROW($B$3:$B$864) - MIN(ROW($B$3:$B$864))+1,""), ROW()-2)),"") ->  | IG8: =IFERROR(INDEX($B$3:$B$864,SMALL(IF(IG$2=$A$3:$A$864,ROW($B$3:$B$864) - MIN(ROW($B$3:$B$864))+1,""), ROW()-2)),"") ->  | IH8: =IFERROR(INDEX($B$3:$B$864,SMALL(IF(IH$2=$A$3:$A$864,ROW($B$3:$B$864) - MIN(ROW($B$3:$B$864))+1,""), ROW()-2)),"") ->  | II8: =IFERROR(INDEX($B$3:$B$864,SMALL(IF(II$2=$A$3:$A$864,ROW($B$3:$B$864) - MIN(ROW($B$3:$B$864))+1,""), ROW()-2)),"") ->  | IJ8: =IFERROR(INDEX($B$3:$B$864,SMALL(IF(IJ$2=$A$3:$A$864,ROW($B$3:$B$864) - MIN(ROW($B$3:$B$864))+1,""), ROW()-2)),"") ->  | IK8: =IFERROR(INDEX($B$3:$B$864,SMALL(IF(IK$2=$A$3:$A$864,ROW($B$3:$B$864) - MIN(ROW($B$3:$B$864))+1,""), ROW()-2)),"") ->  | IL8: =IFERROR(INDEX($B$3:$B$864,SMALL(IF(IL$2=$A$3:$A$864,ROW($B$3:$B$864) - MIN(ROW($B$3:$B$864))+1,""), ROW()-2)),"") ->  | IM8: =IFERROR(INDEX($B$3:$B$864,SMALL(IF(IM$2=$A$3:$A$864,ROW($B$3:$B$864) - MIN(ROW($B$3:$B$864))+1,""), ROW()-2)),"") ->  | IN8: =IFERROR(INDEX($B$3:$B$864,SMALL(IF(IN$2=$A$3:$A$864,ROW($B$3:$B$864) - MIN(ROW($B$3:$B$864))+1,""), ROW()-2)),"") ->  | IO8: =IFERROR(INDEX($B$3:$B$864,SMALL(IF(IO$2=$A$3:$A$864,ROW($B$3:$B$864) - MIN(ROW($B$3:$B$864))+1,""), ROW()-2)),"") ->  | IP8: =IFERROR(INDEX($B$3:$B$864,SMALL(IF(IP$2=$A$3:$A$864,ROW($B$3:$B$864) - MIN(ROW($B$3:$B$864))+1,""), ROW()-2)),"") ->  | IQ8: =IFERROR(INDEX($B$3:$B$864,SMALL(IF(IQ$2=$A$3:$A$864,ROW($B$3:$B$864) - MIN(ROW($B$3:$B$864))+1,""), ROW()-2)),"") ->  | IR8: =IFERROR(INDEX($B$3:$B$864,SMALL(IF(IR$2=$A$3:$A$864,ROW($B$3:$B$864) - MIN(ROW($B$3:$B$864))+1,""), ROW()-2)),"") ->  | IS8: =IFERROR(INDEX($B$3:$B$864,SMALL(IF(IS$2=$A$3:$A$864,ROW($B$3:$B$864) - MIN(ROW($B$3:$B$864))+1,""), ROW()-2)),"") ->  | IT8: =IFERROR(INDEX($B$3:$B$864,SMALL(IF(IT$2=$A$3:$A$864,ROW($B$3:$B$864) - MIN(ROW($B$3:$B$864))+1,""), ROW()-2)),"") ->  | IU8: =IFERROR(INDEX($B$3:$B$864,SMALL(IF(IU$2=$A$3:$A$864,ROW($B$3:$B$864) - MIN(ROW($B$3:$B$864))+1,""), ROW()-2)),"") ->  | IV8: =IFERROR(INDEX($B$3:$B$864,SMALL(IF(IV$2=$A$3:$A$864,ROW($B$3:$B$864) - MIN(ROW($B$3:$B$864))+1,""), ROW()-2)),"") ->  | IW8: =IFERROR(INDEX($B$3:$B$864,SMALL(IF(IW$2=$A$3:$A$864,ROW($B$3:$B$864) - MIN(ROW($B$3:$B$864))+1,""), ROW()-2)),"") ->  | IX8: =IFERROR(INDEX($B$3:$B$864,SMALL(IF(IX$2=$A$3:$A$864,ROW($B$3:$B$864) - MIN(ROW($B$3:$B$864))+1,""), ROW()-2)),"") ->  | IY8: =IFERROR(INDEX($B$3:$B$864,SMALL(IF(IY$2=$A$3:$A$864,ROW($B$3:$B$864) - MIN(ROW($B$3:$B$864))+1,""), ROW()-2)),"") -> 
A9: =IFERROR(ebd_Annual!A9," ") -> Atascosa | B9: =IFERROR(ebd_Annual!B9," ") -> Zone-1 | C9: Atascosa County has 1 rainfall zone. | F9: =IFERROR(INDEX($B$3:$B$864,SMALL(IF(F$2=$A$3:$A$864,ROW($B$3:$B$864) - MIN(ROW($B$3:$B$864))+1,""), ROW()-2)),"") ->  | G9: =IFERROR(INDEX($B$3:$B$864,SMALL(IF(G$2=$A$3:$A$864,ROW($B$3:$B$864) - MIN(ROW($B$3:$B$864))+1,""), ROW()-2)),"") ->  | H9: =IFERROR(INDEX($B$3:$B$864,SMALL(IF(H$2=$A$3:$A$864,ROW($B$3:$B$864) - MIN(ROW($B$3:$B$864))+1,""), ROW()-2)),"") ->  | I9: =IFERROR(INDEX($B$3:$B$864,SMALL(IF(I$2=$A$3:$A$864,ROW($B$3:$B$864) - MIN(ROW($B$3:$B$864))+1,""), ROW()-2)),"") ->  | J9: =IFERROR(INDEX($B$3:$B$864,SMALL(IF(J$2=$A$3:$A$864,ROW($B$3:$B$864) - MIN(ROW($B$3:$B$864))+1,""), ROW()-2)),"") ->  | K9: =IFERROR(INDEX($B$3:$B$864,SMALL(IF(K$2=$A$3:$A$864,ROW($B$3:$B$864) - MIN(ROW($B$3:$B$864))+1,""), ROW()-2)),"") ->  | L9: =IFERROR(INDEX($B$3:$B$864,SMALL(IF(L$2=$A$3:$A$864,ROW($B$3:$B$864) - MIN(ROW($B$3:$B$864))+1,""), ROW()-2)),"") ->  | M9: =IFERROR(INDEX($B$3:$B$864,SMALL(IF(M$2=$A$3:$A$864,ROW($B$3:$B$864) - MIN(ROW($B$3:$B$864))+1,""), ROW()-2)),"") ->  | N9: =IFERROR(INDEX($B$3:$B$864,SMALL(IF(N$2=$A$3:$A$864,ROW($B$3:$B$864) - MIN(ROW($B$3:$B$864))+1,""), ROW()-2)),"") ->  | O9: =IFERROR(INDEX($B$3:$B$864,SMALL(IF(O$2=$A$3:$A$864,ROW($B$3:$B$864) - MIN(ROW($B$3:$B$864))+1,""), ROW()-2)),"") ->  | P9: =IFERROR(INDEX($B$3:$B$864,SMALL(IF(P$2=$A$3:$A$864,ROW($B$3:$B$864) - MIN(ROW($B$3:$B$864))+1,""), ROW()-2)),"") ->  | Q9: =IFERROR(INDEX($B$3:$B$864,SMALL(IF(Q$2=$A$3:$A$864,ROW($B$3:$B$864) - MIN(ROW($B$3:$B$864))+1,""), ROW()-2)),"") ->  | R9: =IFERROR(INDEX($B$3:$B$864,SMALL(IF(R$2=$A$3:$A$864,ROW($B$3:$B$864) - MIN(ROW($B$3:$B$864))+1,""), ROW()-2)),"") ->  | S9: =IFERROR(INDEX($B$3:$B$864,SMALL(IF(S$2=$A$3:$A$864,ROW($B$3:$B$864) - MIN(ROW($B$3:$B$864))+1,""), ROW()-2)),"") ->  | T9: =IFERROR(INDEX($B$3:$B$864,SMALL(IF(T$2=$A$3:$A$864,ROW($B$3:$B$864) - MIN(ROW($B$3:$B$864))+1,""), ROW()-2)),"") ->  | U9: =IFERROR(INDEX($B$3:$B$864,SMALL(IF(U$2=$A$3:$A$864,ROW($B$3:$B$864) - MIN(ROW($B$3:$B$864))+1,""), ROW()-2)),"") ->  | V9: =IFERROR(INDEX($B$3:$B$864,SMALL(IF(V$2=$A$3:$A$864,ROW($B$3:$B$864) - MIN(ROW($B$3:$B$864))+1,""), ROW()-2)),"") ->  | W9: =IFERROR(INDEX($B$3:$B$864,SMALL(IF(W$2=$A$3:$A$864,ROW($B$3:$B$864) - MIN(ROW($B$3:$B$864))+1,""), ROW()-2)),"") ->  | X9: =IFERROR(INDEX($B$3:$B$864,SMALL(IF(X$2=$A$3:$A$864,ROW($B$3:$B$864) - MIN(ROW($B$3:$B$864))+1,""), ROW()-2)),"") ->  | Y9: =IFERROR(INDEX($B$3:$B$864,SMALL(IF(Y$2=$A$3:$A$864,ROW($B$3:$B$864) - MIN(ROW($B$3:$B$864))+1,""), ROW()-2)),"") ->  | Z9: =IFERROR(INDEX($B$3:$B$864,SMALL(IF(Z$2=$A$3:$A$864,ROW($B$3:$B$864) - MIN(ROW($B$3:$B$864))+1,""), ROW()-2)),"") ->  | AA9: =IFERROR(INDEX($B$3:$B$864,SMALL(IF(AA$2=$A$3:$A$864,ROW($B$3:$B$864) - MIN(ROW($B$3:$B$864))+1,""), ROW()-2)),"") ->  | AB9: =IFERROR(INDEX($B$3:$B$864,SMALL(IF(AB$2=$A$3:$A$864,ROW($B$3:$B$864) - MIN(ROW($B$3:$B$864))+1,""), ROW()-2)),"") ->  | AC9: =IFERROR(INDEX($B$3:$B$864,SMALL(IF(AC$2=$A$3:$A$864,ROW($B$3:$B$864) - MIN(ROW($B$3:$B$864))+1,""), ROW()-2)),"") ->  | AD9: =IFERROR(INDEX($B$3:$B$864,SMALL(IF(AD$2=$A$3:$A$864,ROW($B$3:$B$864) - MIN(ROW($B$3:$B$864))+1,""), ROW()-2)),"") ->  | AE9: =IFERROR(INDEX($B$3:$B$864,SMALL(IF(AE$2=$A$3:$A$864,ROW($B$3:$B$864) - MIN(ROW($B$3:$B$864))+1,""), ROW()-2)),"") ->  | AF9: =IFERROR(INDEX($B$3:$B$864,SMALL(IF(AF$2=$A$3:$A$864,ROW($B$3:$B$864) - MIN(ROW($B$3:$B$864))+1,""), ROW()-2)),"") ->  | AG9: =IFERROR(INDEX($B$3:$B$864,SMALL(IF(AG$2=$A$3:$A$864,ROW($B$3:$B$864) - MIN(ROW($B$3:$B$864))+1,""), ROW()-2)),"") ->  | AH9: =IFERROR(INDEX($B$3:$B$864,SMALL(IF(AH$2=$A$3:$A$864,ROW($B$3:$B$864) - MIN(ROW($B$3:$B$864))+1,""), ROW()-2)),"") ->  | AI9: =IFERROR(INDEX($B$3:$B$864,SMALL(IF(AI$2=$A$3:$A$864,ROW($B$3:$B$864) - MIN(ROW($B$3:$B$864))+1,""), ROW()-2)),"") ->  | AJ9: =IFERROR(INDEX($B$3:$B$864,SMALL(IF(AJ$2=$A$3:$A$864,ROW($B$3:$B$864) - MIN(ROW($B$3:$B$864))+1,""), ROW()-2)),"") ->  | AK9: =IFERROR(INDEX($B$3:$B$864,SMALL(IF(AK$2=$A$3:$A$864,ROW($B$3:$B$864) - MIN(ROW($B$3:$B$864))+1,""), ROW()-2)),"") ->  | AL9: =IFERROR(INDEX($B$3:$B$864,SMALL(IF(AL$2=$A$3:$A$864,ROW($B$3:$B$864) - MIN(ROW($B$3:$B$864))+1,""), ROW()-2)),"") ->  | AM9: =IFERROR(INDEX($B$3:$B$864,SMALL(IF(AM$2=$A$3:$A$864,ROW($B$3:$B$864) - MIN(ROW($B$3:$B$864))+1,""), ROW()-2)),"") ->  | AN9: =IFERROR(INDEX($B$3:$B$864,SMALL(IF(AN$2=$A$3:$A$864,ROW($B$3:$B$864) - MIN(ROW($B$3:$B$864))+1,""), ROW()-2)),"") ->  | AO9: =IFERROR(INDEX($B$3:$B$864,SMALL(IF(AO$2=$A$3:$A$864,ROW($B$3:$B$864) - MIN(ROW($B$3:$B$864))+1,""), ROW()-2)),"") ->  | AP9: =IFERROR(INDEX($B$3:$B$864,SMALL(IF(AP$2=$A$3:$A$864,ROW($B$3:$B$864) - MIN(ROW($B$3:$B$864))+1,""), ROW()-2)),"") ->  | AQ9: =IFERROR(INDEX($B$3:$B$864,SMALL(IF(AQ$2=$A$3:$A$864,ROW($B$3:$B$864) - MIN(ROW($B$3:$B$864))+1,""), ROW()-2)),"") ->  | AR9: =IFERROR(INDEX($B$3:$B$864,SMALL(IF(AR$2=$A$3:$A$864,ROW($B$3:$B$864) - MIN(ROW($B$3:$B$864))+1,""), ROW()-2)),"") ->  | AS9: =IFERROR(INDEX($B$3:$B$864,SMALL(IF(AS$2=$A$3:$A$864,ROW($B$3:$B$864) - MIN(ROW($B$3:$B$864))+1,""), ROW()-2)),"") ->  | AT9: =IFERROR(INDEX($B$3:$B$864,SMALL(IF(AT$2=$A$3:$A$864,ROW($B$3:$B$864) - MIN(ROW($B$3:$B$864))+1,""), ROW()-2)),"") ->  | AU9: =IFERROR(INDEX($B$3:$B$864,SMALL(IF(AU$2=$A$3:$A$864,ROW($B$3:$B$864) - MIN(ROW($B$3:$B$864))+1,""), ROW()-2)),"") ->  | AV9: =IFERROR(INDEX($B$3:$B$864,SMALL(IF(AV$2=$A$3:$A$864,ROW($B$3:$B$864) - MIN(ROW($B$3:$B$864))+1,""), ROW()-2)),"") ->  | AW9: =IFERROR(INDEX($B$3:$B$864,SMALL(IF(AW$2=$A$3:$A$864,ROW($B$3:$B$864) - MIN(ROW($B$3:$B$864))+1,""), ROW()-2)),"") ->  | AX9: =IFERROR(INDEX($B$3:$B$864,SMALL(IF(AX$2=$A$3:$A$864,ROW($B$3:$B$864) - MIN(ROW($B$3:$B$864))+1,""), ROW()-2)),"") ->  | AY9: =IFERROR(INDEX($B$3:$B$864,SMALL(IF(AY$2=$A$3:$A$864,ROW($B$3:$B$864) - MIN(ROW($B$3:$B$864))+1,""), ROW()-2)),"") ->  | AZ9: =IFERROR(INDEX($B$3:$B$864,SMALL(IF(AZ$2=$A$3:$A$864,ROW($B$3:$B$864) - MIN(ROW($B$3:$B$864))+1,""), ROW()-2)),"") ->  | BA9: =IFERROR(INDEX($B$3:$B$864,SMALL(IF(BA$2=$A$3:$A$864,ROW($B$3:$B$864) - MIN(ROW($B$3:$B$864))+1,""), ROW()-2)),"") ->  | BB9: =IFERROR(INDEX($B$3:$B$864,SMALL(IF(BB$2=$A$3:$A$864,ROW($B$3:$B$864) - MIN(ROW($B$3:$B$864))+1,""), ROW()-2)),"") ->  | BC9: =IFERROR(INDEX($B$3:$B$864,SMALL(IF(BC$2=$A$3:$A$864,ROW($B$3:$B$864) - MIN(ROW($B$3:$B$864))+1,""), ROW()-2)),"") ->  | BD9: =IFERROR(INDEX($B$3:$B$864,SMALL(IF(BD$2=$A$3:$A$864,ROW($B$3:$B$864) - MIN(ROW($B$3:$B$864))+1,""), ROW()-2)),"") ->  | BE9: =IFERROR(INDEX($B$3:$B$864,SMALL(IF(BE$2=$A$3:$A$864,ROW($B$3:$B$864) - MIN(ROW($B$3:$B$864))+1,""), ROW()-2)),"") ->  | BF9: =IFERROR(INDEX($B$3:$B$864,SMALL(IF(BF$2=$A$3:$A$864,ROW($B$3:$B$864) - MIN(ROW($B$3:$B$864))+1,""), ROW()-2)),"") ->  | BG9: =IFERROR(INDEX($B$3:$B$864,SMALL(IF(BG$2=$A$3:$A$864,ROW($B$3:$B$864) - MIN(ROW($B$3:$B$864))+1,""), ROW()-2)),"") ->  | BH9: =IFERROR(INDEX($B$3:$B$864,SMALL(IF(BH$2=$A$3:$A$864,ROW($B$3:$B$864) - MIN(ROW($B$3:$B$864))+1,""), ROW()-2)),"") ->  | BI9: =IFERROR(INDEX($B$3:$B$864,SMALL(IF(BI$2=$A$3:$A$864,ROW($B$3:$B$864) - MIN(ROW($B$3:$B$864))+1,""), ROW()-2)),"") ->  | BJ9: =IFERROR(INDEX($B$3:$B$864,SMALL(IF(BJ$2=$A$3:$A$864,ROW($B$3:$B$864) - MIN(ROW($B$3:$B$864))+1,""), ROW()-2)),"") ->  | BK9: =IFERROR(INDEX($B$3:$B$864,SMALL(IF(BK$2=$A$3:$A$864,ROW($B$3:$B$864) - MIN(ROW($B$3:$B$864))+1,""), ROW()-2)),"") ->  | BL9: =IFERROR(INDEX($B$3:$B$864,SMALL(IF(BL$2=$A$3:$A$864,ROW($B$3:$B$864) - MIN(ROW($B$3:$B$864))+1,""), ROW()-2)),"") ->  | BM9: =IFERROR(INDEX($B$3:$B$864,SMALL(IF(BM$2=$A$3:$A$864,ROW($B$3:$B$864) - MIN(ROW($B$3:$B$864))+1,""), ROW()-2)),"") ->  | BN9: =IFERROR(INDEX($B$3:$B$864,SMALL(IF(BN$2=$A$3:$A$864,ROW($B$3:$B$864) - MIN(ROW($B$3:$B$864))+1,""), ROW()-2)),"") ->  | BO9: =IFERROR(INDEX($B$3:$B$864,SMALL(IF(BO$2=$A$3:$A$864,ROW($B$3:$B$864) - MIN(ROW($B$3:$B$864))+1,""), ROW()-2)),"") ->  | BP9: =IFERROR(INDEX($B$3:$B$864,SMALL(IF(BP$2=$A$3:$A$864,ROW($B$3:$B$864) - MIN(ROW($B$3:$B$864))+1,""), ROW()-2)),"") ->  | BQ9: =IFERROR(INDEX($B$3:$B$864,SMALL(IF(BQ$2=$A$3:$A$864,ROW($B$3:$B$864) - MIN(ROW($B$3:$B$864))+1,""), ROW()-2)),"") ->  | BR9: =IFERROR(INDEX($B$3:$B$864,SMALL(IF(BR$2=$A$3:$A$864,ROW($B$3:$B$864) - MIN(ROW($B$3:$B$864))+1,""), ROW()-2)),"") ->  | BS9: =IFERROR(INDEX($B$3:$B$864,SMALL(IF(BS$2=$A$3:$A$864,ROW($B$3:$B$864) - MIN(ROW($B$3:$B$864))+1,""), ROW()-2)),"") ->  | BT9: =IFERROR(INDEX($B$3:$B$864,SMALL(IF(BT$2=$A$3:$A$864,ROW($B$3:$B$864) - MIN(ROW($B$3:$B$864))+1,""), ROW()-2)),"") ->  | BU9: =IFERROR(INDEX($B$3:$B$864,SMALL(IF(BU$2=$A$3:$A$864,ROW($B$3:$B$864) - MIN(ROW($B$3:$B$864))+1,""), ROW()-2)),"") ->  | BV9: =IFERROR(INDEX($B$3:$B$864,SMALL(IF(BV$2=$A$3:$A$864,ROW($B$3:$B$864) - MIN(ROW($B$3:$B$864))+1,""), ROW()-2)),"") ->  | BW9: =IFERROR(INDEX($B$3:$B$864,SMALL(IF(BW$2=$A$3:$A$864,ROW($B$3:$B$864) - MIN(ROW($B$3:$B$864))+1,""), ROW()-2)),"") ->  | BX9: =IFERROR(INDEX($B$3:$B$864,SMALL(IF(BX$2=$A$3:$A$864,ROW($B$3:$B$864) - MIN(ROW($B$3:$B$864))+1,""), ROW()-2)),"") ->  | BY9: =IFERROR(INDEX($B$3:$B$864,SMALL(IF(BY$2=$A$3:$A$864,ROW($B$3:$B$864) - MIN(ROW($B$3:$B$864))+1,""), ROW()-2)),"") ->  | BZ9: =IFERROR(INDEX($B$3:$B$864,SMALL(IF(BZ$2=$A$3:$A$864,ROW($B$3:$B$864) - MIN(ROW($B$3:$B$864))+1,""), ROW()-2)),"") ->  | CA9: =IFERROR(INDEX($B$3:$B$864,SMALL(IF(CA$2=$A$3:$A$864,ROW($B$3:$B$864) - MIN(ROW($B$3:$B$864))+1,""), ROW()-2)),"") ->  | CB9: =IFERROR(INDEX($B$3:$B$864,SMALL(IF(CB$2=$A$3:$A$864,ROW($B$3:$B$864) - MIN(ROW($B$3:$B$864))+1,""), ROW()-2)),"") ->  | CC9: =IFERROR(INDEX($B$3:$B$864,SMALL(IF(CC$2=$A$3:$A$864,ROW($B$3:$B$864) - MIN(ROW($B$3:$B$864))+1,""), ROW()-2)),"") ->  | CD9: =IFERROR(INDEX($B$3:$B$864,SMALL(IF(CD$2=$A$3:$A$864,ROW($B$3:$B$864) - MIN(ROW($B$3:$B$864))+1,""), ROW()-2)),"") ->  | CE9: =IFERROR(INDEX($B$3:$B$864,SMALL(IF(CE$2=$A$3:$A$864,ROW($B$3:$B$864) - MIN(ROW($B$3:$B$864))+1,""), ROW()-2)),"") ->  | CF9: =IFERROR(INDEX($B$3:$B$864,SMALL(IF(CF$2=$A$3:$A$864,ROW($B$3:$B$864) - MIN(ROW($B$3:$B$864))+1,""), ROW()-2)),"") ->  | CG9: =IFERROR(INDEX($B$3:$B$864,SMALL(IF(CG$2=$A$3:$A$864,ROW($B$3:$B$864) - MIN(ROW($B$3:$B$864))+1,""), ROW()-2)),"") ->  | CH9: =IFERROR(INDEX($B$3:$B$864,SMALL(IF(CH$2=$A$3:$A$864,ROW($B$3:$B$864) - MIN(ROW($B$3:$B$864))+1,""), ROW()-2)),"") ->  | CI9: =IFERROR(INDEX($B$3:$B$864,SMALL(IF(CI$2=$A$3:$A$864,ROW($B$3:$B$864) - MIN(ROW($B$3:$B$864))+1,""), ROW()-2)),"") ->  | CJ9: =IFERROR(INDEX($B$3:$B$864,SMALL(IF(CJ$2=$A$3:$A$864,ROW($B$3:$B$864) - MIN(ROW($B$3:$B$864))+1,""), ROW()-2)),"") ->  | CK9: =IFERROR(INDEX($B$3:$B$864,SMALL(IF(CK$2=$A$3:$A$864,ROW($B$3:$B$864) - MIN(ROW($B$3:$B$864))+1,""), ROW()-2)),"") ->  | CL9: =IFERROR(INDEX($B$3:$B$864,SMALL(IF(CL$2=$A$3:$A$864,ROW($B$3:$B$864) - MIN(ROW($B$3:$B$864))+1,""), ROW()-2)),"") ->  | CM9: =IFERROR(INDEX($B$3:$B$864,SMALL(IF(CM$2=$A$3:$A$864,ROW($B$3:$B$864) - MIN(ROW($B$3:$B$864))+1,""), ROW()-2)),"") ->  | CN9: =IFERROR(INDEX($B$3:$B$864,SMALL(IF(CN$2=$A$3:$A$864,ROW($B$3:$B$864) - MIN(ROW($B$3:$B$864))+1,""), ROW()-2)),"") ->  | CO9: =IFERROR(INDEX($B$3:$B$864,SMALL(IF(CO$2=$A$3:$A$864,ROW($B$3:$B$864) - MIN(ROW($B$3:$B$864))+1,""), ROW()-2)),"") ->  | CP9: =IFERROR(INDEX($B$3:$B$864,SMALL(IF(CP$2=$A$3:$A$864,ROW($B$3:$B$864) - MIN(ROW($B$3:$B$864))+1,""), ROW()-2)),"") ->  | CQ9: =IFERROR(INDEX($B$3:$B$864,SMALL(IF(CQ$2=$A$3:$A$864,ROW($B$3:$B$864) - MIN(ROW($B$3:$B$864))+1,""), ROW()-2)),"") ->  | CR9: =IFERROR(INDEX($B$3:$B$864,SMALL(IF(CR$2=$A$3:$A$864,ROW($B$3:$B$864) - MIN(ROW($B$3:$B$864))+1,""), ROW()-2)),"") ->  | CS9: =IFERROR(INDEX($B$3:$B$864,SMALL(IF(CS$2=$A$3:$A$864,ROW($B$3:$B$864) - MIN(ROW($B$3:$B$864))+1,""), ROW()-2)),"") ->  | CT9: =IFERROR(INDEX($B$3:$B$864,SMALL(IF(CT$2=$A$3:$A$864,ROW($B$3:$B$864) - MIN(ROW($B$3:$B$864))+1,""), ROW()-2)),"") ->  | CU9: =IFERROR(INDEX($B$3:$B$864,SMALL(IF(CU$2=$A$3:$A$864,ROW($B$3:$B$864) - MIN(ROW($B$3:$B$864))+1,""), ROW()-2)),"") ->  | CV9: =IFERROR(INDEX($B$3:$B$864,SMALL(IF(CV$2=$A$3:$A$864,ROW($B$3:$B$864) - MIN(ROW($B$3:$B$864))+1,""), ROW()-2)),"") ->  | CW9: =IFERROR(INDEX($B$3:$B$864,SMALL(IF(CW$2=$A$3:$A$864,ROW($B$3:$B$864) - MIN(ROW($B$3:$B$864))+1,""), ROW()-2)),"") ->  | CX9: =IFERROR(INDEX($B$3:$B$864,SMALL(IF(CX$2=$A$3:$A$864,ROW($B$3:$B$864) - MIN(ROW($B$3:$B$864))+1,""), ROW()-2)),"") ->  | CY9: =IFERROR(INDEX($B$3:$B$864,SMALL(IF(CY$2=$A$3:$A$864,ROW($B$3:$B$864) - MIN(ROW($B$3:$B$864))+1,""), ROW()-2)),"") ->  | CZ9: =IFERROR(INDEX($B$3:$B$864,SMALL(IF(CZ$2=$A$3:$A$864,ROW($B$3:$B$864) - MIN(ROW($B$3:$B$864))+1,""), ROW()-2)),"") ->  | DA9: =IFERROR(INDEX($B$3:$B$864,SMALL(IF(DA$2=$A$3:$A$864,ROW($B$3:$B$864) - MIN(ROW($B$3:$B$864))+1,""), ROW()-2)),"") ->  | DB9: =IFERROR(INDEX($B$3:$B$864,SMALL(IF(DB$2=$A$3:$A$864,ROW($B$3:$B$864) - MIN(ROW($B$3:$B$864))+1,""), ROW()-2)),"") ->  | DC9: =IFERROR(INDEX($B$3:$B$864,SMALL(IF(DC$2=$A$3:$A$864,ROW($B$3:$B$864) - MIN(ROW($B$3:$B$864))+1,""), ROW()-2)),"") ->  | DD9: =IFERROR(INDEX($B$3:$B$864,SMALL(IF(DD$2=$A$3:$A$864,ROW($B$3:$B$864) - MIN(ROW($B$3:$B$864))+1,""), ROW()-2)),"") ->  | DE9: =IFERROR(INDEX($B$3:$B$864,SMALL(IF(DE$2=$A$3:$A$864,ROW($B$3:$B$864) - MIN(ROW($B$3:$B$864))+1,""), ROW()-2)),"") ->  | DF9: =IFERROR(INDEX($B$3:$B$864,SMALL(IF(DF$2=$A$3:$A$864,ROW($B$3:$B$864) - MIN(ROW($B$3:$B$864))+1,""), ROW()-2)),"") ->  | DG9: =IFERROR(INDEX($B$3:$B$864,SMALL(IF(DG$2=$A$3:$A$864,ROW($B$3:$B$864) - MIN(ROW($B$3:$B$864))+1,""), ROW()-2)),"") ->  | DH9: =IFERROR(INDEX($B$3:$B$864,SMALL(IF(DH$2=$A$3:$A$864,ROW($B$3:$B$864) - MIN(ROW($B$3:$B$864))+1,""), ROW()-2)),"") ->  | DI9: =IFERROR(INDEX($B$3:$B$864,SMALL(IF(DI$2=$A$3:$A$864,ROW($B$3:$B$864) - MIN(ROW($B$3:$B$864))+1,""), ROW()-2)),"") ->  | DJ9: =IFERROR(INDEX($B$3:$B$864,SMALL(IF(DJ$2=$A$3:$A$864,ROW($B$3:$B$864) - MIN(ROW($B$3:$B$864))+1,""), ROW()-2)),"") ->  | DK9: =IFERROR(INDEX($B$3:$B$864,SMALL(IF(DK$2=$A$3:$A$864,ROW($B$3:$B$864) - MIN(ROW($B$3:$B$864))+1,""), ROW()-2)),"") ->  | DL9: =IFERROR(INDEX($B$3:$B$864,SMALL(IF(DL$2=$A$3:$A$864,ROW($B$3:$B$864) - MIN(ROW($B$3:$B$864))+1,""), ROW()-2)),"") ->  | DM9: =IFERROR(INDEX($B$3:$B$864,SMALL(IF(DM$2=$A$3:$A$864,ROW($B$3:$B$864) - MIN(ROW($B$3:$B$864))+1,""), ROW()-2)),"") ->  | DN9: =IFERROR(INDEX($B$3:$B$864,SMALL(IF(DN$2=$A$3:$A$864,ROW($B$3:$B$864) - MIN(ROW($B$3:$B$864))+1,""), ROW()-2)),"") ->  | DO9: =IFERROR(INDEX($B$3:$B$864,SMALL(IF(DO$2=$A$3:$A$864,ROW($B$3:$B$864) - MIN(ROW($B$3:$B$864))+1,""), ROW()-2)),"") ->  | DP9: =IFERROR(INDEX($B$3:$B$864,SMALL(IF(DP$2=$A$3:$A$864,ROW($B$3:$B$864) - MIN(ROW($B$3:$B$864))+1,""), ROW()-2)),"") ->  | DQ9: =IFERROR(INDEX($B$3:$B$864,SMALL(IF(DQ$2=$A$3:$A$864,ROW($B$3:$B$864) - MIN(ROW($B$3:$B$864))+1,""), ROW()-2)),"") ->  | DR9: =IFERROR(INDEX($B$3:$B$864,SMALL(IF(DR$2=$A$3:$A$864,ROW($B$3:$B$864) - MIN(ROW($B$3:$B$864))+1,""), ROW()-2)),"") ->  | DS9: =IFERROR(INDEX($B$3:$B$864,SMALL(IF(DS$2=$A$3:$A$864,ROW($B$3:$B$864) - MIN(ROW($B$3:$B$864))+1,""), ROW()-2)),"") ->  | DT9: =IFERROR(INDEX($B$3:$B$864,SMALL(IF(DT$2=$A$3:$A$864,ROW($B$3:$B$864) - MIN(ROW($B$3:$B$864))+1,""), ROW()-2)),"") ->  | DU9: =IFERROR(INDEX($B$3:$B$864,SMALL(IF(DU$2=$A$3:$A$864,ROW($B$3:$B$864) - MIN(ROW($B$3:$B$864))+1,""), ROW()-2)),"") ->  | DV9: =IFERROR(INDEX($B$3:$B$864,SMALL(IF(DV$2=$A$3:$A$864,ROW($B$3:$B$864) - MIN(ROW($B$3:$B$864))+1,""), ROW()-2)),"") ->  | DW9: =IFERROR(INDEX($B$3:$B$864,SMALL(IF(DW$2=$A$3:$A$864,ROW($B$3:$B$864) - MIN(ROW($B$3:$B$864))+1,""), ROW()-2)),"") ->  | DX9: =IFERROR(INDEX($B$3:$B$864,SMALL(IF(DX$2=$A$3:$A$864,ROW($B$3:$B$864) - MIN(ROW($B$3:$B$864))+1,""), ROW()-2)),"") ->  | DY9: =IFERROR(INDEX($B$3:$B$864,SMALL(IF(DY$2=$A$3:$A$864,ROW($B$3:$B$864) - MIN(ROW($B$3:$B$864))+1,""), ROW()-2)),"") ->  | DZ9: =IFERROR(INDEX($B$3:$B$864,SMALL(IF(DZ$2=$A$3:$A$864,ROW($B$3:$B$864) - MIN(ROW($B$3:$B$864))+1,""), ROW()-2)),"") ->  | EA9: =IFERROR(INDEX($B$3:$B$864,SMALL(IF(EA$2=$A$3:$A$864,ROW($B$3:$B$864) - MIN(ROW($B$3:$B$864))+1,""), ROW()-2)),"") ->  | EB9: =IFERROR(INDEX($B$3:$B$864,SMALL(IF(EB$2=$A$3:$A$864,ROW($B$3:$B$864) - MIN(ROW($B$3:$B$864))+1,""), ROW()-2)),"") ->  | EC9: =IFERROR(INDEX($B$3:$B$864,SMALL(IF(EC$2=$A$3:$A$864,ROW($B$3:$B$864) - MIN(ROW($B$3:$B$864))+1,""), ROW()-2)),"") ->  | ED9: =IFERROR(INDEX($B$3:$B$864,SMALL(IF(ED$2=$A$3:$A$864,ROW($B$3:$B$864) - MIN(ROW($B$3:$B$864))+1,""), ROW()-2)),"") ->  | EE9: =IFERROR(INDEX($B$3:$B$864,SMALL(IF(EE$2=$A$3:$A$864,ROW($B$3:$B$864) - MIN(ROW($B$3:$B$864))+1,""), ROW()-2)),"") ->  | EF9: =IFERROR(INDEX($B$3:$B$864,SMALL(IF(EF$2=$A$3:$A$864,ROW($B$3:$B$864) - MIN(ROW($B$3:$B$864))+1,""), ROW()-2)),"") ->  | EG9: =IFERROR(INDEX($B$3:$B$864,SMALL(IF(EG$2=$A$3:$A$864,ROW($B$3:$B$864) - MIN(ROW($B$3:$B$864))+1,""), ROW()-2)),"") ->  | EH9: =IFERROR(INDEX($B$3:$B$864,SMALL(IF(EH$2=$A$3:$A$864,ROW($B$3:$B$864) - MIN(ROW($B$3:$B$864))+1,""), ROW()-2)),"") ->  | EI9: =IFERROR(INDEX($B$3:$B$864,SMALL(IF(EI$2=$A$3:$A$864,ROW($B$3:$B$864) - MIN(ROW($B$3:$B$864))+1,""), ROW()-2)),"") ->  | EJ9: =IFERROR(INDEX($B$3:$B$864,SMALL(IF(EJ$2=$A$3:$A$864,ROW($B$3:$B$864) - MIN(ROW($B$3:$B$864))+1,""), ROW()-2)),"") ->  | EK9: =IFERROR(INDEX($B$3:$B$864,SMALL(IF(EK$2=$A$3:$A$864,ROW($B$3:$B$864) - MIN(ROW($B$3:$B$864))+1,""), ROW()-2)),"") ->  | EL9: =IFERROR(INDEX($B$3:$B$864,SMALL(IF(EL$2=$A$3:$A$864,ROW($B$3:$B$864) - MIN(ROW($B$3:$B$864))+1,""), ROW()-2)),"") ->  | EM9: =IFERROR(INDEX($B$3:$B$864,SMALL(IF(EM$2=$A$3:$A$864,ROW($B$3:$B$864) - MIN(ROW($B$3:$B$864))+1,""), ROW()-2)),"") ->  | EN9: =IFERROR(INDEX($B$3:$B$864,SMALL(IF(EN$2=$A$3:$A$864,ROW($B$3:$B$864) - MIN(ROW($B$3:$B$864))+1,""), ROW()-2)),"") ->  | EO9: =IFERROR(INDEX($B$3:$B$864,SMALL(IF(EO$2=$A$3:$A$864,ROW($B$3:$B$864) - MIN(ROW($B$3:$B$864))+1,""), ROW()-2)),"") ->  | EP9: =IFERROR(INDEX($B$3:$B$864,SMALL(IF(EP$2=$A$3:$A$864,ROW($B$3:$B$864) - MIN(ROW($B$3:$B$864))+1,""), ROW()-2)),"") ->  | EQ9: =IFERROR(INDEX($B$3:$B$864,SMALL(IF(EQ$2=$A$3:$A$864,ROW($B$3:$B$864) - MIN(ROW($B$3:$B$864))+1,""), ROW()-2)),"") ->  | ER9: =IFERROR(INDEX($B$3:$B$864,SMALL(IF(ER$2=$A$3:$A$864,ROW($B$3:$B$864) - MIN(ROW($B$3:$B$864))+1,""), ROW()-2)),"") ->  | ES9: =IFERROR(INDEX($B$3:$B$864,SMALL(IF(ES$2=$A$3:$A$864,ROW($B$3:$B$864) - MIN(ROW($B$3:$B$864))+1,""), ROW()-2)),"") ->  | ET9: =IFERROR(INDEX($B$3:$B$864,SMALL(IF(ET$2=$A$3:$A$864,ROW($B$3:$B$864) - MIN(ROW($B$3:$B$864))+1,""), ROW()-2)),"") ->  | EU9: =IFERROR(INDEX($B$3:$B$864,SMALL(IF(EU$2=$A$3:$A$864,ROW($B$3:$B$864) - MIN(ROW($B$3:$B$864))+1,""), ROW()-2)),"") ->  | EV9: =IFERROR(INDEX($B$3:$B$864,SMALL(IF(EV$2=$A$3:$A$864,ROW($B$3:$B$864) - MIN(ROW($B$3:$B$864))+1,""), ROW()-2)),"") ->  | EW9: =IFERROR(INDEX($B$3:$B$864,SMALL(IF(EW$2=$A$3:$A$864,ROW($B$3:$B$864) - MIN(ROW($B$3:$B$864))+1,""), ROW()-2)),"") ->  | EX9: =IFERROR(INDEX($B$3:$B$864,SMALL(IF(EX$2=$A$3:$A$864,ROW($B$3:$B$864) - MIN(ROW($B$3:$B$864))+1,""), ROW()-2)),"") ->  | EY9: =IFERROR(INDEX($B$3:$B$864,SMALL(IF(EY$2=$A$3:$A$864,ROW($B$3:$B$864) - MIN(ROW($B$3:$B$864))+1,""), ROW()-2)),"") ->  | EZ9: =IFERROR(INDEX($B$3:$B$864,SMALL(IF(EZ$2=$A$3:$A$864,ROW($B$3:$B$864) - MIN(ROW($B$3:$B$864))+1,""), ROW()-2)),"") ->  | FA9: =IFERROR(INDEX($B$3:$B$864,SMALL(IF(FA$2=$A$3:$A$864,ROW($B$3:$B$864) - MIN(ROW($B$3:$B$864))+1,""), ROW()-2)),"") ->  | FB9: =IFERROR(INDEX($B$3:$B$864,SMALL(IF(FB$2=$A$3:$A$864,ROW($B$3:$B$864) - MIN(ROW($B$3:$B$864))+1,""), ROW()-2)),"") ->  | FC9: =IFERROR(INDEX($B$3:$B$864,SMALL(IF(FC$2=$A$3:$A$864,ROW($B$3:$B$864) - MIN(ROW($B$3:$B$864))+1,""), ROW()-2)),"") ->  | FD9: =IFERROR(INDEX($B$3:$B$864,SMALL(IF(FD$2=$A$3:$A$864,ROW($B$3:$B$864) - MIN(ROW($B$3:$B$864))+1,""), ROW()-2)),"") ->  | FE9: =IFERROR(INDEX($B$3:$B$864,SMALL(IF(FE$2=$A$3:$A$864,ROW($B$3:$B$864) - MIN(ROW($B$3:$B$864))+1,""), ROW()-2)),"") ->  | FF9: =IFERROR(INDEX($B$3:$B$864,SMALL(IF(FF$2=$A$3:$A$864,ROW($B$3:$B$864) - MIN(ROW($B$3:$B$864))+1,""), ROW()-2)),"") ->  | FG9: =IFERROR(INDEX($B$3:$B$864,SMALL(IF(FG$2=$A$3:$A$864,ROW($B$3:$B$864) - MIN(ROW($B$3:$B$864))+1,""), ROW()-2)),"") ->  | FH9: =IFERROR(INDEX($B$3:$B$864,SMALL(IF(FH$2=$A$3:$A$864,ROW($B$3:$B$864) - MIN(ROW($B$3:$B$864))+1,""), ROW()-2)),"") ->  | FI9: =IFERROR(INDEX($B$3:$B$864,SMALL(IF(FI$2=$A$3:$A$864,ROW($B$3:$B$864) - MIN(ROW($B$3:$B$864))+1,""), ROW()-2)),"") ->  | FJ9: =IFERROR(INDEX($B$3:$B$864,SMALL(IF(FJ$2=$A$3:$A$864,ROW($B$3:$B$864) - MIN(ROW($B$3:$B$864))+1,""), ROW()-2)),"") ->  | FK9: =IFERROR(INDEX($B$3:$B$864,SMALL(IF(FK$2=$A$3:$A$864,ROW($B$3:$B$864) - MIN(ROW($B$3:$B$864))+1,""), ROW()-2)),"") ->  | FL9: =IFERROR(INDEX($B$3:$B$864,SMALL(IF(FL$2=$A$3:$A$864,ROW($B$3:$B$864) - MIN(ROW($B$3:$B$864))+1,""), ROW()-2)),"") ->  | FM9: =IFERROR(INDEX($B$3:$B$864,SMALL(IF(FM$2=$A$3:$A$864,ROW($B$3:$B$864) - MIN(ROW($B$3:$B$864))+1,""), ROW()-2)),"") ->  | FN9: =IFERROR(INDEX($B$3:$B$864,SMALL(IF(FN$2=$A$3:$A$864,ROW($B$3:$B$864) - MIN(ROW($B$3:$B$864))+1,""), ROW()-2)),"") ->  | FO9: =IFERROR(INDEX($B$3:$B$864,SMALL(IF(FO$2=$A$3:$A$864,ROW($B$3:$B$864) - MIN(ROW($B$3:$B$864))+1,""), ROW()-2)),"") ->  | FP9: =IFERROR(INDEX($B$3:$B$864,SMALL(IF(FP$2=$A$3:$A$864,ROW($B$3:$B$864) - MIN(ROW($B$3:$B$864))+1,""), ROW()-2)),"") ->  | FQ9: =IFERROR(INDEX($B$3:$B$864,SMALL(IF(FQ$2=$A$3:$A$864,ROW($B$3:$B$864) - MIN(ROW($B$3:$B$864))+1,""), ROW()-2)),"") ->  | FR9: =IFERROR(INDEX($B$3:$B$864,SMALL(IF(FR$2=$A$3:$A$864,ROW($B$3:$B$864) - MIN(ROW($B$3:$B$864))+1,""), ROW()-2)),"") ->  | FS9: =IFERROR(INDEX($B$3:$B$864,SMALL(IF(FS$2=$A$3:$A$864,ROW($B$3:$B$864) - MIN(ROW($B$3:$B$864))+1,""), ROW()-2)),"") ->  | FT9: =IFERROR(INDEX($B$3:$B$864,SMALL(IF(FT$2=$A$3:$A$864,ROW($B$3:$B$864) - MIN(ROW($B$3:$B$864))+1,""), ROW()-2)),"") ->  | FU9: =IFERROR(INDEX($B$3:$B$864,SMALL(IF(FU$2=$A$3:$A$864,ROW($B$3:$B$864) - MIN(ROW($B$3:$B$864))+1,""), ROW()-2)),"") ->  | FV9: =IFERROR(INDEX($B$3:$B$864,SMALL(IF(FV$2=$A$3:$A$864,ROW($B$3:$B$864) - MIN(ROW($B$3:$B$864))+1,""), ROW()-2)),"") ->  | FW9: =IFERROR(INDEX($B$3:$B$864,SMALL(IF(FW$2=$A$3:$A$864,ROW($B$3:$B$864) - MIN(ROW($B$3:$B$864))+1,""), ROW()-2)),"") ->  | FX9: =IFERROR(INDEX($B$3:$B$864,SMALL(IF(FX$2=$A$3:$A$864,ROW($B$3:$B$864) - MIN(ROW($B$3:$B$864))+1,""), ROW()-2)),"") ->  | FY9: =IFERROR(INDEX($B$3:$B$864,SMALL(IF(FY$2=$A$3:$A$864,ROW($B$3:$B$864) - MIN(ROW($B$3:$B$864))+1,""), ROW()-2)),"") ->  | FZ9: =IFERROR(INDEX($B$3:$B$864,SMALL(IF(FZ$2=$A$3:$A$864,ROW($B$3:$B$864) - MIN(ROW($B$3:$B$864))+1,""), ROW()-2)),"") ->  | GA9: =IFERROR(INDEX($B$3:$B$864,SMALL(IF(GA$2=$A$3:$A$864,ROW($B$3:$B$864) - MIN(ROW($B$3:$B$864))+1,""), ROW()-2)),"") ->  | GB9: =IFERROR(INDEX($B$3:$B$864,SMALL(IF(GB$2=$A$3:$A$864,ROW($B$3:$B$864) - MIN(ROW($B$3:$B$864))+1,""), ROW()-2)),"") ->  | GC9: =IFERROR(INDEX($B$3:$B$864,SMALL(IF(GC$2=$A$3:$A$864,ROW($B$3:$B$864) - MIN(ROW($B$3:$B$864))+1,""), ROW()-2)),"") ->  | GD9: =IFERROR(INDEX($B$3:$B$864,SMALL(IF(GD$2=$A$3:$A$864,ROW($B$3:$B$864) - MIN(ROW($B$3:$B$864))+1,""), ROW()-2)),"") ->  | GE9: =IFERROR(INDEX($B$3:$B$864,SMALL(IF(GE$2=$A$3:$A$864,ROW($B$3:$B$864) - MIN(ROW($B$3:$B$864))+1,""), ROW()-2)),"") ->  | GF9: =IFERROR(INDEX($B$3:$B$864,SMALL(IF(GF$2=$A$3:$A$864,ROW($B$3:$B$864) - MIN(ROW($B$3:$B$864))+1,""), ROW()-2)),"") ->  | GG9: =IFERROR(INDEX($B$3:$B$864,SMALL(IF(GG$2=$A$3:$A$864,ROW($B$3:$B$864) - MIN(ROW($B$3:$B$864))+1,""), ROW()-2)),"") ->  | GH9: =IFERROR(INDEX($B$3:$B$864,SMALL(IF(GH$2=$A$3:$A$864,ROW($B$3:$B$864) - MIN(ROW($B$3:$B$864))+1,""), ROW()-2)),"") ->  | GI9: =IFERROR(INDEX($B$3:$B$864,SMALL(IF(GI$2=$A$3:$A$864,ROW($B$3:$B$864) - MIN(ROW($B$3:$B$864))+1,""), ROW()-2)),"") ->  | GJ9: =IFERROR(INDEX($B$3:$B$864,SMALL(IF(GJ$2=$A$3:$A$864,ROW($B$3:$B$864) - MIN(ROW($B$3:$B$864))+1,""), ROW()-2)),"") ->  | GK9: =IFERROR(INDEX($B$3:$B$864,SMALL(IF(GK$2=$A$3:$A$864,ROW($B$3:$B$864) - MIN(ROW($B$3:$B$864))+1,""), ROW()-2)),"") ->  | GL9: =IFERROR(INDEX($B$3:$B$864,SMALL(IF(GL$2=$A$3:$A$864,ROW($B$3:$B$864) - MIN(ROW($B$3:$B$864))+1,""), ROW()-2)),"") ->  | GM9: =IFERROR(INDEX($B$3:$B$864,SMALL(IF(GM$2=$A$3:$A$864,ROW($B$3:$B$864) - MIN(ROW($B$3:$B$864))+1,""), ROW()-2)),"") ->  | GN9: =IFERROR(INDEX($B$3:$B$864,SMALL(IF(GN$2=$A$3:$A$864,ROW($B$3:$B$864) - MIN(ROW($B$3:$B$864))+1,""), ROW()-2)),"") ->  | GO9: =IFERROR(INDEX($B$3:$B$864,SMALL(IF(GO$2=$A$3:$A$864,ROW($B$3:$B$864) - MIN(ROW($B$3:$B$864))+1,""), ROW()-2)),"") ->  | GP9: =IFERROR(INDEX($B$3:$B$864,SMALL(IF(GP$2=$A$3:$A$864,ROW($B$3:$B$864) - MIN(ROW($B$3:$B$864))+1,""), ROW()-2)),"") ->  | GQ9: =IFERROR(INDEX($B$3:$B$864,SMALL(IF(GQ$2=$A$3:$A$864,ROW($B$3:$B$864) - MIN(ROW($B$3:$B$864))+1,""), ROW()-2)),"") ->  | GR9: =IFERROR(INDEX($B$3:$B$864,SMALL(IF(GR$2=$A$3:$A$864,ROW($B$3:$B$864) - MIN(ROW($B$3:$B$864))+1,""), ROW()-2)),"") ->  | GS9: =IFERROR(INDEX($B$3:$B$864,SMALL(IF(GS$2=$A$3:$A$864,ROW($B$3:$B$864) - MIN(ROW($B$3:$B$864))+1,""), ROW()-2)),"") ->  | GT9: =IFERROR(INDEX($B$3:$B$864,SMALL(IF(GT$2=$A$3:$A$864,ROW($B$3:$B$864) - MIN(ROW($B$3:$B$864))+1,""), ROW()-2)),"") ->  | GU9: =IFERROR(INDEX($B$3:$B$864,SMALL(IF(GU$2=$A$3:$A$864,ROW($B$3:$B$864) - MIN(ROW($B$3:$B$864))+1,""), ROW()-2)),"") ->  | GV9: =IFERROR(INDEX($B$3:$B$864,SMALL(IF(GV$2=$A$3:$A$864,ROW($B$3:$B$864) - MIN(ROW($B$3:$B$864))+1,""), ROW()-2)),"") ->  | GW9: =IFERROR(INDEX($B$3:$B$864,SMALL(IF(GW$2=$A$3:$A$864,ROW($B$3:$B$864) - MIN(ROW($B$3:$B$864))+1,""), ROW()-2)),"") ->  | GX9: =IFERROR(INDEX($B$3:$B$864,SMALL(IF(GX$2=$A$3:$A$864,ROW($B$3:$B$864) - MIN(ROW($B$3:$B$864))+1,""), ROW()-2)),"") ->  | GY9: =IFERROR(INDEX($B$3:$B$864,SMALL(IF(GY$2=$A$3:$A$864,ROW($B$3:$B$864) - MIN(ROW($B$3:$B$864))+1,""), ROW()-2)),"") ->  | GZ9: =IFERROR(INDEX($B$3:$B$864,SMALL(IF(GZ$2=$A$3:$A$864,ROW($B$3:$B$864) - MIN(ROW($B$3:$B$864))+1,""), ROW()-2)),"") ->  | HA9: =IFERROR(INDEX($B$3:$B$864,SMALL(IF(HA$2=$A$3:$A$864,ROW($B$3:$B$864) - MIN(ROW($B$3:$B$864))+1,""), ROW()-2)),"") ->  | HB9: =IFERROR(INDEX($B$3:$B$864,SMALL(IF(HB$2=$A$3:$A$864,ROW($B$3:$B$864) - MIN(ROW($B$3:$B$864))+1,""), ROW()-2)),"") ->  | HC9: =IFERROR(INDEX($B$3:$B$864,SMALL(IF(HC$2=$A$3:$A$864,ROW($B$3:$B$864) - MIN(ROW($B$3:$B$864))+1,""), ROW()-2)),"") ->  | HD9: =IFERROR(INDEX($B$3:$B$864,SMALL(IF(HD$2=$A$3:$A$864,ROW($B$3:$B$864) - MIN(ROW($B$3:$B$864))+1,""), ROW()-2)),"") ->  | HE9: =IFERROR(INDEX($B$3:$B$864,SMALL(IF(HE$2=$A$3:$A$864,ROW($B$3:$B$864) - MIN(ROW($B$3:$B$864))+1,""), ROW()-2)),"") ->  | HF9: =IFERROR(INDEX($B$3:$B$864,SMALL(IF(HF$2=$A$3:$A$864,ROW($B$3:$B$864) - MIN(ROW($B$3:$B$864))+1,""), ROW()-2)),"") ->  | HG9: =IFERROR(INDEX($B$3:$B$864,SMALL(IF(HG$2=$A$3:$A$864,ROW($B$3:$B$864) - MIN(ROW($B$3:$B$864))+1,""), ROW()-2)),"") ->  | HH9: =IFERROR(INDEX($B$3:$B$864,SMALL(IF(HH$2=$A$3:$A$864,ROW($B$3:$B$864) - MIN(ROW($B$3:$B$864))+1,""), ROW()-2)),"") ->  | HI9: =IFERROR(INDEX($B$3:$B$864,SMALL(IF(HI$2=$A$3:$A$864,ROW($B$3:$B$864) - MIN(ROW($B$3:$B$864))+1,""), ROW()-2)),"") ->  | HJ9: =IFERROR(INDEX($B$3:$B$864,SMALL(IF(HJ$2=$A$3:$A$864,ROW($B$3:$B$864) - MIN(ROW($B$3:$B$864))+1,""), ROW()-2)),"") ->  | HK9: =IFERROR(INDEX($B$3:$B$864,SMALL(IF(HK$2=$A$3:$A$864,ROW($B$3:$B$864) - MIN(ROW($B$3:$B$864))+1,""), ROW()-2)),"") ->  | HL9: =IFERROR(INDEX($B$3:$B$864,SMALL(IF(HL$2=$A$3:$A$864,ROW($B$3:$B$864) - MIN(ROW($B$3:$B$864))+1,""), ROW()-2)),"") ->  | HM9: =IFERROR(INDEX($B$3:$B$864,SMALL(IF(HM$2=$A$3:$A$864,ROW($B$3:$B$864) - MIN(ROW($B$3:$B$864))+1,""), ROW()-2)),"") ->  | HN9: =IFERROR(INDEX($B$3:$B$864,SMALL(IF(HN$2=$A$3:$A$864,ROW($B$3:$B$864) - MIN(ROW($B$3:$B$864))+1,""), ROW()-2)),"") ->  | HO9: =IFERROR(INDEX($B$3:$B$864,SMALL(IF(HO$2=$A$3:$A$864,ROW($B$3:$B$864) - MIN(ROW($B$3:$B$864))+1,""), ROW()-2)),"") ->  | HP9: =IFERROR(INDEX($B$3:$B$864,SMALL(IF(HP$2=$A$3:$A$864,ROW($B$3:$B$864) - MIN(ROW($B$3:$B$864))+1,""), ROW()-2)),"") ->  | HQ9: =IFERROR(INDEX($B$3:$B$864,SMALL(IF(HQ$2=$A$3:$A$864,ROW($B$3:$B$864) - MIN(ROW($B$3:$B$864))+1,""), ROW()-2)),"") ->  | HR9: =IFERROR(INDEX($B$3:$B$864,SMALL(IF(HR$2=$A$3:$A$864,ROW($B$3:$B$864) - MIN(ROW($B$3:$B$864))+1,""), ROW()-2)),"") ->  | HS9: =IFERROR(INDEX($B$3:$B$864,SMALL(IF(HS$2=$A$3:$A$864,ROW($B$3:$B$864) - MIN(ROW($B$3:$B$864))+1,""), ROW()-2)),"") ->  | HT9: =IFERROR(INDEX($B$3:$B$864,SMALL(IF(HT$2=$A$3:$A$864,ROW($B$3:$B$864) - MIN(ROW($B$3:$B$864))+1,""), ROW()-2)),"") ->  | HU9: =IFERROR(INDEX($B$3:$B$864,SMALL(IF(HU$2=$A$3:$A$864,ROW($B$3:$B$864) - MIN(ROW($B$3:$B$864))+1,""), ROW()-2)),"") ->  | HV9: =IFERROR(INDEX($B$3:$B$864,SMALL(IF(HV$2=$A$3:$A$864,ROW($B$3:$B$864) - MIN(ROW($B$3:$B$864))+1,""), ROW()-2)),"") ->  | HW9: =IFERROR(INDEX($B$3:$B$864,SMALL(IF(HW$2=$A$3:$A$864,ROW($B$3:$B$864) - MIN(ROW($B$3:$B$864))+1,""), ROW()-2)),"") ->  | HX9: =IFERROR(INDEX($B$3:$B$864,SMALL(IF(HX$2=$A$3:$A$864,ROW($B$3:$B$864) - MIN(ROW($B$3:$B$864))+1,""), ROW()-2)),"") ->  | HY9: =IFERROR(INDEX($B$3:$B$864,SMALL(IF(HY$2=$A$3:$A$864,ROW($B$3:$B$864) - MIN(ROW($B$3:$B$864))+1,""), ROW()-2)),"") ->  | HZ9: =IFERROR(INDEX($B$3:$B$864,SMALL(IF(HZ$2=$A$3:$A$864,ROW($B$3:$B$864) - MIN(ROW($B$3:$B$864))+1,""), ROW()-2)),"") ->  | IA9: =IFERROR(INDEX($B$3:$B$864,SMALL(IF(IA$2=$A$3:$A$864,ROW($B$3:$B$864) - MIN(ROW($B$3:$B$864))+1,""), ROW()-2)),"") ->  | IB9: =IFERROR(INDEX($B$3:$B$864,SMALL(IF(IB$2=$A$3:$A$864,ROW($B$3:$B$864) - MIN(ROW($B$3:$B$864))+1,""), ROW()-2)),"") ->  | IC9: =IFERROR(INDEX($B$3:$B$864,SMALL(IF(IC$2=$A$3:$A$864,ROW($B$3:$B$864) - MIN(ROW($B$3:$B$864))+1,""), ROW()-2)),"") ->  | ID9: =IFERROR(INDEX($B$3:$B$864,SMALL(IF(ID$2=$A$3:$A$864,ROW($B$3:$B$864) - MIN(ROW($B$3:$B$864))+1,""), ROW()-2)),"") ->  | IE9: =IFERROR(INDEX($B$3:$B$864,SMALL(IF(IE$2=$A$3:$A$864,ROW($B$3:$B$864) - MIN(ROW($B$3:$B$864))+1,""), ROW()-2)),"") ->  | IF9: =IFERROR(INDEX($B$3:$B$864,SMALL(IF(IF$2=$A$3:$A$864,ROW($B$3:$B$864) - MIN(ROW($B$3:$B$864))+1,""), ROW()-2)),"") ->  | IG9: =IFERROR(INDEX($B$3:$B$864,SMALL(IF(IG$2=$A$3:$A$864,ROW($B$3:$B$864) - MIN(ROW($B$3:$B$864))+1,""), ROW()-2)),"") ->  | IH9: =IFERROR(INDEX($B$3:$B$864,SMALL(IF(IH$2=$A$3:$A$864,ROW($B$3:$B$864) - MIN(ROW($B$3:$B$864))+1,""), ROW()-2)),"") ->  | II9: =IFERROR(INDEX($B$3:$B$864,SMALL(IF(II$2=$A$3:$A$864,ROW($B$3:$B$864) - MIN(ROW($B$3:$B$864))+1,""), ROW()-2)),"") ->  | IJ9: =IFERROR(INDEX($B$3:$B$864,SMALL(IF(IJ$2=$A$3:$A$864,ROW($B$3:$B$864) - MIN(ROW($B$3:$B$864))+1,""), ROW()-2)),"") ->  | IK9: =IFERROR(INDEX($B$3:$B$864,SMALL(IF(IK$2=$A$3:$A$864,ROW($B$3:$B$864) - MIN(ROW($B$3:$B$864))+1,""), ROW()-2)),"") ->  | IL9: =IFERROR(INDEX($B$3:$B$864,SMALL(IF(IL$2=$A$3:$A$864,ROW($B$3:$B$864) - MIN(ROW($B$3:$B$864))+1,""), ROW()-2)),"") ->  | IM9: =IFERROR(INDEX($B$3:$B$864,SMALL(IF(IM$2=$A$3:$A$864,ROW($B$3:$B$864) - MIN(ROW($B$3:$B$864))+1,""), ROW()-2)),"") ->  | IN9: =IFERROR(INDEX($B$3:$B$864,SMALL(IF(IN$2=$A$3:$A$864,ROW($B$3:$B$864) - MIN(ROW($B$3:$B$864))+1,""), ROW()-2)),"") ->  | IO9: =IFERROR(INDEX($B$3:$B$864,SMALL(IF(IO$2=$A$3:$A$864,ROW($B$3:$B$864) - MIN(ROW($B$3:$B$864))+1,""), ROW()-2)),"") ->  | IP9: =IFERROR(INDEX($B$3:$B$864,SMALL(IF(IP$2=$A$3:$A$864,ROW($B$3:$B$864) - MIN(ROW($B$3:$B$864))+1,""), ROW()-2)),"") ->  | IQ9: =IFERROR(INDEX($B$3:$B$864,SMALL(IF(IQ$2=$A$3:$A$864,ROW($B$3:$B$864) - MIN(ROW($B$3:$B$864))+1,""), ROW()-2)),"") ->  | IR9: =IFERROR(INDEX($B$3:$B$864,SMALL(IF(IR$2=$A$3:$A$864,ROW($B$3:$B$864) - MIN(ROW($B$3:$B$864))+1,""), ROW()-2)),"") ->  | IS9: =IFERROR(INDEX($B$3:$B$864,SMALL(IF(IS$2=$A$3:$A$864,ROW($B$3:$B$864) - MIN(ROW($B$3:$B$864))+1,""), ROW()-2)),"") ->  | IT9: =IFERROR(INDEX($B$3:$B$864,SMALL(IF(IT$2=$A$3:$A$864,ROW($B$3:$B$864) - MIN(ROW($B$3:$B$864))+1,""), ROW()-2)),"") ->  | IU9: =IFERROR(INDEX($B$3:$B$864,SMALL(IF(IU$2=$A$3:$A$864,ROW($B$3:$B$864) - MIN(ROW($B$3:$B$864))+1,""), ROW()-2)),"") ->  | IV9: =IFERROR(INDEX($B$3:$B$864,SMALL(IF(IV$2=$A$3:$A$864,ROW($B$3:$B$864) - MIN(ROW($B$3:$B$864))+1,""), ROW()-2)),"") ->  | IW9: =IFERROR(INDEX($B$3:$B$864,SMALL(IF(IW$2=$A$3:$A$864,ROW($B$3:$B$864) - MIN(ROW($B$3:$B$864))+1,""), ROW()-2)),"") ->  | IX9: =IFERROR(INDEX($B$3:$B$864,SMALL(IF(IX$2=$A$3:$A$864,ROW($B$3:$B$864) - MIN(ROW($B$3:$B$864))+1,""), ROW()-2)),"") ->  | IY9: =IFERROR(INDEX($B$3:$B$864,SMALL(IF(IY$2=$A$3:$A$864,ROW($B$3:$B$864) - MIN(ROW($B$3:$B$864))+1,""), ROW()-2)),"") -> 
A10: =IFERROR(ebd_Annual!A10," ") -> Austin | B10: =IFERROR(ebd_Annual!B10," ") -> Zone-1 | C10: Austin County has 1 rainfall zone. | D10: Configuration Variables | F10: =IFERROR(INDEX($B$3:$B$864,SMALL(IF(F$2=$A$3:$A$864,ROW($B$3:$B$864) - MIN(ROW($B$3:$B$864))+1,""), ROW()-2)),"") ->  | G10: =IFERROR(INDEX($B$3:$B$864,SMALL(IF(G$2=$A$3:$A$864,ROW($B$3:$B$864) - MIN(ROW($B$3:$B$864))+1,""), ROW()-2)),"") ->  | H10: =IFERROR(INDEX($B$3:$B$864,SMALL(IF(H$2=$A$3:$A$864,ROW($B$3:$B$864) - MIN(ROW($B$3:$B$864))+1,""), ROW()-2)),"") ->  | I10: =IFERROR(INDEX($B$3:$B$864,SMALL(IF(I$2=$A$3:$A$864,ROW($B$3:$B$864) - MIN(ROW($B$3:$B$864))+1,""), ROW()-2)),"") ->  | J10: =IFERROR(INDEX($B$3:$B$864,SMALL(IF(J$2=$A$3:$A$864,ROW($B$3:$B$864) - MIN(ROW($B$3:$B$864))+1,""), ROW()-2)),"") ->  | K10: =IFERROR(INDEX($B$3:$B$864,SMALL(IF(K$2=$A$3:$A$864,ROW($B$3:$B$864) - MIN(ROW($B$3:$B$864))+1,""), ROW()-2)),"") ->  | L10: =IFERROR(INDEX($B$3:$B$864,SMALL(IF(L$2=$A$3:$A$864,ROW($B$3:$B$864) - MIN(ROW($B$3:$B$864))+1,""), ROW()-2)),"") ->  | M10: =IFERROR(INDEX($B$3:$B$864,SMALL(IF(M$2=$A$3:$A$864,ROW($B$3:$B$864) - MIN(ROW($B$3:$B$864))+1,""), ROW()-2)),"") ->  | N10: =IFERROR(INDEX($B$3:$B$864,SMALL(IF(N$2=$A$3:$A$864,ROW($B$3:$B$864) - MIN(ROW($B$3:$B$864))+1,""), ROW()-2)),"") ->  | O10: =IFERROR(INDEX($B$3:$B$864,SMALL(IF(O$2=$A$3:$A$864,ROW($B$3:$B$864) - MIN(ROW($B$3:$B$864))+1,""), ROW()-2)),"") ->  | P10: =IFERROR(INDEX($B$3:$B$864,SMALL(IF(P$2=$A$3:$A$864,ROW($B$3:$B$864) - MIN(ROW($B$3:$B$864))+1,""), ROW()-2)),"") ->  | Q10: =IFERROR(INDEX($B$3:$B$864,SMALL(IF(Q$2=$A$3:$A$864,ROW($B$3:$B$864) - MIN(ROW($B$3:$B$864))+1,""), ROW()-2)),"") ->  | R10: =IFERROR(INDEX($B$3:$B$864,SMALL(IF(R$2=$A$3:$A$864,ROW($B$3:$B$864) - MIN(ROW($B$3:$B$864))+1,""), ROW()-2)),"") ->  | S10: =IFERROR(INDEX($B$3:$B$864,SMALL(IF(S$2=$A$3:$A$864,ROW($B$3:$B$864) - MIN(ROW($B$3:$B$864))+1,""), ROW()-2)),"") ->  | T10: =IFERROR(INDEX($B$3:$B$864,SMALL(IF(T$2=$A$3:$A$864,ROW($B$3:$B$864) - MIN(ROW($B$3:$B$864))+1,""), ROW()-2)),"") ->  | U10: =IFERROR(INDEX($B$3:$B$864,SMALL(IF(U$2=$A$3:$A$864,ROW($B$3:$B$864) - MIN(ROW($B$3:$B$864))+1,""), ROW()-2)),"") ->  | V10: =IFERROR(INDEX($B$3:$B$864,SMALL(IF(V$2=$A$3:$A$864,ROW($B$3:$B$864) - MIN(ROW($B$3:$B$864))+1,""), ROW()-2)),"") ->  | W10: =IFERROR(INDEX($B$3:$B$864,SMALL(IF(W$2=$A$3:$A$864,ROW($B$3:$B$864) - MIN(ROW($B$3:$B$864))+1,""), ROW()-2)),"") ->  | X10: =IFERROR(INDEX($B$3:$B$864,SMALL(IF(X$2=$A$3:$A$864,ROW($B$3:$B$864) - MIN(ROW($B$3:$B$864))+1,""), ROW()-2)),"") ->  | Y10: =IFERROR(INDEX($B$3:$B$864,SMALL(IF(Y$2=$A$3:$A$864,ROW($B$3:$B$864) - MIN(ROW($B$3:$B$864))+1,""), ROW()-2)),"") ->  | Z10: =IFERROR(INDEX($B$3:$B$864,SMALL(IF(Z$2=$A$3:$A$864,ROW($B$3:$B$864) - MIN(ROW($B$3:$B$864))+1,""), ROW()-2)),"") ->  | AA10: =IFERROR(INDEX($B$3:$B$864,SMALL(IF(AA$2=$A$3:$A$864,ROW($B$3:$B$864) - MIN(ROW($B$3:$B$864))+1,""), ROW()-2)),"") ->  | AB10: =IFERROR(INDEX($B$3:$B$864,SMALL(IF(AB$2=$A$3:$A$864,ROW($B$3:$B$864) - MIN(ROW($B$3:$B$864))+1,""), ROW()-2)),"") ->  | AC10: =IFERROR(INDEX($B$3:$B$864,SMALL(IF(AC$2=$A$3:$A$864,ROW($B$3:$B$864) - MIN(ROW($B$3:$B$864))+1,""), ROW()-2)),"") ->  | AD10: =IFERROR(INDEX($B$3:$B$864,SMALL(IF(AD$2=$A$3:$A$864,ROW($B$3:$B$864) - MIN(ROW($B$3:$B$864))+1,""), ROW()-2)),"") ->  | AE10: =IFERROR(INDEX($B$3:$B$864,SMALL(IF(AE$2=$A$3:$A$864,ROW($B$3:$B$864) - MIN(ROW($B$3:$B$864))+1,""), ROW()-2)),"") ->  | AF10: =IFERROR(INDEX($B$3:$B$864,SMALL(IF(AF$2=$A$3:$A$864,ROW($B$3:$B$864) - MIN(ROW($B$3:$B$864))+1,""), ROW()-2)),"") ->  | AG10: =IFERROR(INDEX($B$3:$B$864,SMALL(IF(AG$2=$A$3:$A$864,ROW($B$3:$B$864) - MIN(ROW($B$3:$B$864))+1,""), ROW()-2)),"") ->  | AH10: =IFERROR(INDEX($B$3:$B$864,SMALL(IF(AH$2=$A$3:$A$864,ROW($B$3:$B$864) - MIN(ROW($B$3:$B$864))+1,""), ROW()-2)),"") ->  | AI10: =IFERROR(INDEX($B$3:$B$864,SMALL(IF(AI$2=$A$3:$A$864,ROW($B$3:$B$864) - MIN(ROW($B$3:$B$864))+1,""), ROW()-2)),"") ->  | AJ10: =IFERROR(INDEX($B$3:$B$864,SMALL(IF(AJ$2=$A$3:$A$864,ROW($B$3:$B$864) - MIN(ROW($B$3:$B$864))+1,""), ROW()-2)),"") ->  | AK10: =IFERROR(INDEX($B$3:$B$864,SMALL(IF(AK$2=$A$3:$A$864,ROW($B$3:$B$864) - MIN(ROW($B$3:$B$864))+1,""), ROW()-2)),"") ->  | AL10: =IFERROR(INDEX($B$3:$B$864,SMALL(IF(AL$2=$A$3:$A$864,ROW($B$3:$B$864) - MIN(ROW($B$3:$B$864))+1,""), ROW()-2)),"") ->  | AM10: =IFERROR(INDEX($B$3:$B$864,SMALL(IF(AM$2=$A$3:$A$864,ROW($B$3:$B$864) - MIN(ROW($B$3:$B$864))+1,""), ROW()-2)),"") ->  | AN10: =IFERROR(INDEX($B$3:$B$864,SMALL(IF(AN$2=$A$3:$A$864,ROW($B$3:$B$864) - MIN(ROW($B$3:$B$864))+1,""), ROW()-2)),"") ->  | AO10: =IFERROR(INDEX($B$3:$B$864,SMALL(IF(AO$2=$A$3:$A$864,ROW($B$3:$B$864) - MIN(ROW($B$3:$B$864))+1,""), ROW()-2)),"") ->  | AP10: =IFERROR(INDEX($B$3:$B$864,SMALL(IF(AP$2=$A$3:$A$864,ROW($B$3:$B$864) - MIN(ROW($B$3:$B$864))+1,""), ROW()-2)),"") ->  | AQ10: =IFERROR(INDEX($B$3:$B$864,SMALL(IF(AQ$2=$A$3:$A$864,ROW($B$3:$B$864) - MIN(ROW($B$3:$B$864))+1,""), ROW()-2)),"") ->  | AR10: =IFERROR(INDEX($B$3:$B$864,SMALL(IF(AR$2=$A$3:$A$864,ROW($B$3:$B$864) - MIN(ROW($B$3:$B$864))+1,""), ROW()-2)),"") ->  | AS10: =IFERROR(INDEX($B$3:$B$864,SMALL(IF(AS$2=$A$3:$A$864,ROW($B$3:$B$864) - MIN(ROW($B$3:$B$864))+1,""), ROW()-2)),"") ->  | AT10: =IFERROR(INDEX($B$3:$B$864,SMALL(IF(AT$2=$A$3:$A$864,ROW($B$3:$B$864) - MIN(ROW($B$3:$B$864))+1,""), ROW()-2)),"") ->  | AU10: =IFERROR(INDEX($B$3:$B$864,SMALL(IF(AU$2=$A$3:$A$864,ROW($B$3:$B$864) - MIN(ROW($B$3:$B$864))+1,""), ROW()-2)),"") ->  | AV10: =IFERROR(INDEX($B$3:$B$864,SMALL(IF(AV$2=$A$3:$A$864,ROW($B$3:$B$864) - MIN(ROW($B$3:$B$864))+1,""), ROW()-2)),"") ->  | AW10: =IFERROR(INDEX($B$3:$B$864,SMALL(IF(AW$2=$A$3:$A$864,ROW($B$3:$B$864) - MIN(ROW($B$3:$B$864))+1,""), ROW()-2)),"") ->  | AX10: =IFERROR(INDEX($B$3:$B$864,SMALL(IF(AX$2=$A$3:$A$864,ROW($B$3:$B$864) - MIN(ROW($B$3:$B$864))+1,""), ROW()-2)),"") ->  | AY10: =IFERROR(INDEX($B$3:$B$864,SMALL(IF(AY$2=$A$3:$A$864,ROW($B$3:$B$864) - MIN(ROW($B$3:$B$864))+1,""), ROW()-2)),"") ->  | AZ10: =IFERROR(INDEX($B$3:$B$864,SMALL(IF(AZ$2=$A$3:$A$864,ROW($B$3:$B$864) - MIN(ROW($B$3:$B$864))+1,""), ROW()-2)),"") ->  | BA10: =IFERROR(INDEX($B$3:$B$864,SMALL(IF(BA$2=$A$3:$A$864,ROW($B$3:$B$864) - MIN(ROW($B$3:$B$864))+1,""), ROW()-2)),"") ->  | BB10: =IFERROR(INDEX($B$3:$B$864,SMALL(IF(BB$2=$A$3:$A$864,ROW($B$3:$B$864) - MIN(ROW($B$3:$B$864))+1,""), ROW()-2)),"") ->  | BC10: =IFERROR(INDEX($B$3:$B$864,SMALL(IF(BC$2=$A$3:$A$864,ROW($B$3:$B$864) - MIN(ROW($B$3:$B$864))+1,""), ROW()-2)),"") ->  | BD10: =IFERROR(INDEX($B$3:$B$864,SMALL(IF(BD$2=$A$3:$A$864,ROW($B$3:$B$864) - MIN(ROW($B$3:$B$864))+1,""), ROW()-2)),"") ->  | BE10: =IFERROR(INDEX($B$3:$B$864,SMALL(IF(BE$2=$A$3:$A$864,ROW($B$3:$B$864) - MIN(ROW($B$3:$B$864))+1,""), ROW()-2)),"") ->  | BF10: =IFERROR(INDEX($B$3:$B$864,SMALL(IF(BF$2=$A$3:$A$864,ROW($B$3:$B$864) - MIN(ROW($B$3:$B$864))+1,""), ROW()-2)),"") ->  | BG10: =IFERROR(INDEX($B$3:$B$864,SMALL(IF(BG$2=$A$3:$A$864,ROW($B$3:$B$864) - MIN(ROW($B$3:$B$864))+1,""), ROW()-2)),"") ->  | BH10: =IFERROR(INDEX($B$3:$B$864,SMALL(IF(BH$2=$A$3:$A$864,ROW($B$3:$B$864) - MIN(ROW($B$3:$B$864))+1,""), ROW()-2)),"") ->  | BI10: =IFERROR(INDEX($B$3:$B$864,SMALL(IF(BI$2=$A$3:$A$864,ROW($B$3:$B$864) - MIN(ROW($B$3:$B$864))+1,""), ROW()-2)),"") ->  | BJ10: =IFERROR(INDEX($B$3:$B$864,SMALL(IF(BJ$2=$A$3:$A$864,ROW($B$3:$B$864) - MIN(ROW($B$3:$B$864))+1,""), ROW()-2)),"") ->  | BK10: =IFERROR(INDEX($B$3:$B$864,SMALL(IF(BK$2=$A$3:$A$864,ROW($B$3:$B$864) - MIN(ROW($B$3:$B$864))+1,""), ROW()-2)),"") ->  | BL10: =IFERROR(INDEX($B$3:$B$864,SMALL(IF(BL$2=$A$3:$A$864,ROW($B$3:$B$864) - MIN(ROW($B$3:$B$864))+1,""), ROW()-2)),"") ->  | BM10: =IFERROR(INDEX($B$3:$B$864,SMALL(IF(BM$2=$A$3:$A$864,ROW($B$3:$B$864) - MIN(ROW($B$3:$B$864))+1,""), ROW()-2)),"") ->  | BN10: =IFERROR(INDEX($B$3:$B$864,SMALL(IF(BN$2=$A$3:$A$864,ROW($B$3:$B$864) - MIN(ROW($B$3:$B$864))+1,""), ROW()-2)),"") ->  | BO10: =IFERROR(INDEX($B$3:$B$864,SMALL(IF(BO$2=$A$3:$A$864,ROW($B$3:$B$864) - MIN(ROW($B$3:$B$864))+1,""), ROW()-2)),"") ->  | BP10: =IFERROR(INDEX($B$3:$B$864,SMALL(IF(BP$2=$A$3:$A$864,ROW($B$3:$B$864) - MIN(ROW($B$3:$B$864))+1,""), ROW()-2)),"") ->  | BQ10: =IFERROR(INDEX($B$3:$B$864,SMALL(IF(BQ$2=$A$3:$A$864,ROW($B$3:$B$864) - MIN(ROW($B$3:$B$864))+1,""), ROW()-2)),"") ->  | BR10: =IFERROR(INDEX($B$3:$B$864,SMALL(IF(BR$2=$A$3:$A$864,ROW($B$3:$B$864) - MIN(ROW($B$3:$B$864))+1,""), ROW()-2)),"") ->  | BS10: =IFERROR(INDEX($B$3:$B$864,SMALL(IF(BS$2=$A$3:$A$864,ROW($B$3:$B$864) - MIN(ROW($B$3:$B$864))+1,""), ROW()-2)),"") ->  | BT10: =IFERROR(INDEX($B$3:$B$864,SMALL(IF(BT$2=$A$3:$A$864,ROW($B$3:$B$864) - MIN(ROW($B$3:$B$864))+1,""), ROW()-2)),"") ->  | BU10: =IFERROR(INDEX($B$3:$B$864,SMALL(IF(BU$2=$A$3:$A$864,ROW($B$3:$B$864) - MIN(ROW($B$3:$B$864))+1,""), ROW()-2)),"") ->  | BV10: =IFERROR(INDEX($B$3:$B$864,SMALL(IF(BV$2=$A$3:$A$864,ROW($B$3:$B$864) - MIN(ROW($B$3:$B$864))+1,""), ROW()-2)),"") ->  | BW10: =IFERROR(INDEX($B$3:$B$864,SMALL(IF(BW$2=$A$3:$A$864,ROW($B$3:$B$864) - MIN(ROW($B$3:$B$864))+1,""), ROW()-2)),"") ->  | BX10: =IFERROR(INDEX($B$3:$B$864,SMALL(IF(BX$2=$A$3:$A$864,ROW($B$3:$B$864) - MIN(ROW($B$3:$B$864))+1,""), ROW()-2)),"") ->  | BY10: =IFERROR(INDEX($B$3:$B$864,SMALL(IF(BY$2=$A$3:$A$864,ROW($B$3:$B$864) - MIN(ROW($B$3:$B$864))+1,""), ROW()-2)),"") ->  | BZ10: =IFERROR(INDEX($B$3:$B$864,SMALL(IF(BZ$2=$A$3:$A$864,ROW($B$3:$B$864) - MIN(ROW($B$3:$B$864))+1,""), ROW()-2)),"") ->  | CA10: =IFERROR(INDEX($B$3:$B$864,SMALL(IF(CA$2=$A$3:$A$864,ROW($B$3:$B$864) - MIN(ROW($B$3:$B$864))+1,""), ROW()-2)),"") ->  | CB10: =IFERROR(INDEX($B$3:$B$864,SMALL(IF(CB$2=$A$3:$A$864,ROW($B$3:$B$864) - MIN(ROW($B$3:$B$864))+1,""), ROW()-2)),"") ->  | CC10: =IFERROR(INDEX($B$3:$B$864,SMALL(IF(CC$2=$A$3:$A$864,ROW($B$3:$B$864) - MIN(ROW($B$3:$B$864))+1,""), ROW()-2)),"") ->  | CD10: =IFERROR(INDEX($B$3:$B$864,SMALL(IF(CD$2=$A$3:$A$864,ROW($B$3:$B$864) - MIN(ROW($B$3:$B$864))+1,""), ROW()-2)),"") ->  | CE10: =IFERROR(INDEX($B$3:$B$864,SMALL(IF(CE$2=$A$3:$A$864,ROW($B$3:$B$864) - MIN(ROW($B$3:$B$864))+1,""), ROW()-2)),"") ->  | CF10: =IFERROR(INDEX($B$3:$B$864,SMALL(IF(CF$2=$A$3:$A$864,ROW($B$3:$B$864) - MIN(ROW($B$3:$B$864))+1,""), ROW()-2)),"") ->  | CG10: =IFERROR(INDEX($B$3:$B$864,SMALL(IF(CG$2=$A$3:$A$864,ROW($B$3:$B$864) - MIN(ROW($B$3:$B$864))+1,""), ROW()-2)),"") ->  | CH10: =IFERROR(INDEX($B$3:$B$864,SMALL(IF(CH$2=$A$3:$A$864,ROW($B$3:$B$864) - MIN(ROW($B$3:$B$864))+1,""), ROW()-2)),"") ->  | CI10: =IFERROR(INDEX($B$3:$B$864,SMALL(IF(CI$2=$A$3:$A$864,ROW($B$3:$B$864) - MIN(ROW($B$3:$B$864))+1,""), ROW()-2)),"") ->  | CJ10: =IFERROR(INDEX($B$3:$B$864,SMALL(IF(CJ$2=$A$3:$A$864,ROW($B$3:$B$864) - MIN(ROW($B$3:$B$864))+1,""), ROW()-2)),"") ->  | CK10: =IFERROR(INDEX($B$3:$B$864,SMALL(IF(CK$2=$A$3:$A$864,ROW($B$3:$B$864) - MIN(ROW($B$3:$B$864))+1,""), ROW()-2)),"") ->  | CL10: =IFERROR(INDEX($B$3:$B$864,SMALL(IF(CL$2=$A$3:$A$864,ROW($B$3:$B$864) - MIN(ROW($B$3:$B$864))+1,""), ROW()-2)),"") ->  | CM10: =IFERROR(INDEX($B$3:$B$864,SMALL(IF(CM$2=$A$3:$A$864,ROW($B$3:$B$864) - MIN(ROW($B$3:$B$864))+1,""), ROW()-2)),"") ->  | CN10: =IFERROR(INDEX($B$3:$B$864,SMALL(IF(CN$2=$A$3:$A$864,ROW($B$3:$B$864) - MIN(ROW($B$3:$B$864))+1,""), ROW()-2)),"") ->  | CO10: =IFERROR(INDEX($B$3:$B$864,SMALL(IF(CO$2=$A$3:$A$864,ROW($B$3:$B$864) - MIN(ROW($B$3:$B$864))+1,""), ROW()-2)),"") ->  | CP10: =IFERROR(INDEX($B$3:$B$864,SMALL(IF(CP$2=$A$3:$A$864,ROW($B$3:$B$864) - MIN(ROW($B$3:$B$864))+1,""), ROW()-2)),"") ->  | CQ10: =IFERROR(INDEX($B$3:$B$864,SMALL(IF(CQ$2=$A$3:$A$864,ROW($B$3:$B$864) - MIN(ROW($B$3:$B$864))+1,""), ROW()-2)),"") ->  | CR10: =IFERROR(INDEX($B$3:$B$864,SMALL(IF(CR$2=$A$3:$A$864,ROW($B$3:$B$864) - MIN(ROW($B$3:$B$864))+1,""), ROW()-2)),"") ->  | CS10: =IFERROR(INDEX($B$3:$B$864,SMALL(IF(CS$2=$A$3:$A$864,ROW($B$3:$B$864) - MIN(ROW($B$3:$B$864))+1,""), ROW()-2)),"") ->  | CT10: =IFERROR(INDEX($B$3:$B$864,SMALL(IF(CT$2=$A$3:$A$864,ROW($B$3:$B$864) - MIN(ROW($B$3:$B$864))+1,""), ROW()-2)),"") ->  | CU10: =IFERROR(INDEX($B$3:$B$864,SMALL(IF(CU$2=$A$3:$A$864,ROW($B$3:$B$864) - MIN(ROW($B$3:$B$864))+1,""), ROW()-2)),"") ->  | CV10: =IFERROR(INDEX($B$3:$B$864,SMALL(IF(CV$2=$A$3:$A$864,ROW($B$3:$B$864) - MIN(ROW($B$3:$B$864))+1,""), ROW()-2)),"") ->  | CW10: =IFERROR(INDEX($B$3:$B$864,SMALL(IF(CW$2=$A$3:$A$864,ROW($B$3:$B$864) - MIN(ROW($B$3:$B$864))+1,""), ROW()-2)),"") ->  | CX10: =IFERROR(INDEX($B$3:$B$864,SMALL(IF(CX$2=$A$3:$A$864,ROW($B$3:$B$864) - MIN(ROW($B$3:$B$864))+1,""), ROW()-2)),"") ->  | CY10: =IFERROR(INDEX($B$3:$B$864,SMALL(IF(CY$2=$A$3:$A$864,ROW($B$3:$B$864) - MIN(ROW($B$3:$B$864))+1,""), ROW()-2)),"") ->  | CZ10: =IFERROR(INDEX($B$3:$B$864,SMALL(IF(CZ$2=$A$3:$A$864,ROW($B$3:$B$864) - MIN(ROW($B$3:$B$864))+1,""), ROW()-2)),"") ->  | DA10: =IFERROR(INDEX($B$3:$B$864,SMALL(IF(DA$2=$A$3:$A$864,ROW($B$3:$B$864) - MIN(ROW($B$3:$B$864))+1,""), ROW()-2)),"") ->  | DB10: =IFERROR(INDEX($B$3:$B$864,SMALL(IF(DB$2=$A$3:$A$864,ROW($B$3:$B$864) - MIN(ROW($B$3:$B$864))+1,""), ROW()-2)),"") ->  | DC10: =IFERROR(INDEX($B$3:$B$864,SMALL(IF(DC$2=$A$3:$A$864,ROW($B$3:$B$864) - MIN(ROW($B$3:$B$864))+1,""), ROW()-2)),"") ->  | DD10: =IFERROR(INDEX($B$3:$B$864,SMALL(IF(DD$2=$A$3:$A$864,ROW($B$3:$B$864) - MIN(ROW($B$3:$B$864))+1,""), ROW()-2)),"") ->  | DE10: =IFERROR(INDEX($B$3:$B$864,SMALL(IF(DE$2=$A$3:$A$864,ROW($B$3:$B$864) - MIN(ROW($B$3:$B$864))+1,""), ROW()-2)),"") ->  | DF10: =IFERROR(INDEX($B$3:$B$864,SMALL(IF(DF$2=$A$3:$A$864,ROW($B$3:$B$864) - MIN(ROW($B$3:$B$864))+1,""), ROW()-2)),"") ->  | DG10: =IFERROR(INDEX($B$3:$B$864,SMALL(IF(DG$2=$A$3:$A$864,ROW($B$3:$B$864) - MIN(ROW($B$3:$B$864))+1,""), ROW()-2)),"") ->  | DH10: =IFERROR(INDEX($B$3:$B$864,SMALL(IF(DH$2=$A$3:$A$864,ROW($B$3:$B$864) - MIN(ROW($B$3:$B$864))+1,""), ROW()-2)),"") ->  | DI10: =IFERROR(INDEX($B$3:$B$864,SMALL(IF(DI$2=$A$3:$A$864,ROW($B$3:$B$864) - MIN(ROW($B$3:$B$864))+1,""), ROW()-2)),"") ->  | DJ10: =IFERROR(INDEX($B$3:$B$864,SMALL(IF(DJ$2=$A$3:$A$864,ROW($B$3:$B$864) - MIN(ROW($B$3:$B$864))+1,""), ROW()-2)),"") ->  | DK10: =IFERROR(INDEX($B$3:$B$864,SMALL(IF(DK$2=$A$3:$A$864,ROW($B$3:$B$864) - MIN(ROW($B$3:$B$864))+1,""), ROW()-2)),"") ->  | DL10: =IFERROR(INDEX($B$3:$B$864,SMALL(IF(DL$2=$A$3:$A$864,ROW($B$3:$B$864) - MIN(ROW($B$3:$B$864))+1,""), ROW()-2)),"") ->  | DM10: =IFERROR(INDEX($B$3:$B$864,SMALL(IF(DM$2=$A$3:$A$864,ROW($B$3:$B$864) - MIN(ROW($B$3:$B$864))+1,""), ROW()-2)),"") ->  | DN10: =IFERROR(INDEX($B$3:$B$864,SMALL(IF(DN$2=$A$3:$A$864,ROW($B$3:$B$864) - MIN(ROW($B$3:$B$864))+1,""), ROW()-2)),"") ->  | DO10: =IFERROR(INDEX($B$3:$B$864,SMALL(IF(DO$2=$A$3:$A$864,ROW($B$3:$B$864) - MIN(ROW($B$3:$B$864))+1,""), ROW()-2)),"") ->  | DP10: =IFERROR(INDEX($B$3:$B$864,SMALL(IF(DP$2=$A$3:$A$864,ROW($B$3:$B$864) - MIN(ROW($B$3:$B$864))+1,""), ROW()-2)),"") ->  | DQ10: =IFERROR(INDEX($B$3:$B$864,SMALL(IF(DQ$2=$A$3:$A$864,ROW($B$3:$B$864) - MIN(ROW($B$3:$B$864))+1,""), ROW()-2)),"") ->  | DR10: =IFERROR(INDEX($B$3:$B$864,SMALL(IF(DR$2=$A$3:$A$864,ROW($B$3:$B$864) - MIN(ROW($B$3:$B$864))+1,""), ROW()-2)),"") ->  | DS10: =IFERROR(INDEX($B$3:$B$864,SMALL(IF(DS$2=$A$3:$A$864,ROW($B$3:$B$864) - MIN(ROW($B$3:$B$864))+1,""), ROW()-2)),"") ->  | DT10: =IFERROR(INDEX($B$3:$B$864,SMALL(IF(DT$2=$A$3:$A$864,ROW($B$3:$B$864) - MIN(ROW($B$3:$B$864))+1,""), ROW()-2)),"") ->  | DU10: =IFERROR(INDEX($B$3:$B$864,SMALL(IF(DU$2=$A$3:$A$864,ROW($B$3:$B$864) - MIN(ROW($B$3:$B$864))+1,""), ROW()-2)),"") ->  | DV10: =IFERROR(INDEX($B$3:$B$864,SMALL(IF(DV$2=$A$3:$A$864,ROW($B$3:$B$864) - MIN(ROW($B$3:$B$864))+1,""), ROW()-2)),"") ->  | DW10: =IFERROR(INDEX($B$3:$B$864,SMALL(IF(DW$2=$A$3:$A$864,ROW($B$3:$B$864) - MIN(ROW($B$3:$B$864))+1,""), ROW()-2)),"") ->  | DX10: =IFERROR(INDEX($B$3:$B$864,SMALL(IF(DX$2=$A$3:$A$864,ROW($B$3:$B$864) - MIN(ROW($B$3:$B$864))+1,""), ROW()-2)),"") ->  | DY10: =IFERROR(INDEX($B$3:$B$864,SMALL(IF(DY$2=$A$3:$A$864,ROW($B$3:$B$864) - MIN(ROW($B$3:$B$864))+1,""), ROW()-2)),"") ->  | DZ10: =IFERROR(INDEX($B$3:$B$864,SMALL(IF(DZ$2=$A$3:$A$864,ROW($B$3:$B$864) - MIN(ROW($B$3:$B$864))+1,""), ROW()-2)),"") ->  | EA10: =IFERROR(INDEX($B$3:$B$864,SMALL(IF(EA$2=$A$3:$A$864,ROW($B$3:$B$864) - MIN(ROW($B$3:$B$864))+1,""), ROW()-2)),"") ->  | EB10: =IFERROR(INDEX($B$3:$B$864,SMALL(IF(EB$2=$A$3:$A$864,ROW($B$3:$B$864) - MIN(ROW($B$3:$B$864))+1,""), ROW()-2)),"") ->  | EC10: =IFERROR(INDEX($B$3:$B$864,SMALL(IF(EC$2=$A$3:$A$864,ROW($B$3:$B$864) - MIN(ROW($B$3:$B$864))+1,""), ROW()-2)),"") ->  | ED10: =IFERROR(INDEX($B$3:$B$864,SMALL(IF(ED$2=$A$3:$A$864,ROW($B$3:$B$864) - MIN(ROW($B$3:$B$864))+1,""), ROW()-2)),"") ->  | EE10: =IFERROR(INDEX($B$3:$B$864,SMALL(IF(EE$2=$A$3:$A$864,ROW($B$3:$B$864) - MIN(ROW($B$3:$B$864))+1,""), ROW()-2)),"") ->  | EF10: =IFERROR(INDEX($B$3:$B$864,SMALL(IF(EF$2=$A$3:$A$864,ROW($B$3:$B$864) - MIN(ROW($B$3:$B$864))+1,""), ROW()-2)),"") ->  | EG10: =IFERROR(INDEX($B$3:$B$864,SMALL(IF(EG$2=$A$3:$A$864,ROW($B$3:$B$864) - MIN(ROW($B$3:$B$864))+1,""), ROW()-2)),"") ->  | EH10: =IFERROR(INDEX($B$3:$B$864,SMALL(IF(EH$2=$A$3:$A$864,ROW($B$3:$B$864) - MIN(ROW($B$3:$B$864))+1,""), ROW()-2)),"") ->  | EI10: =IFERROR(INDEX($B$3:$B$864,SMALL(IF(EI$2=$A$3:$A$864,ROW($B$3:$B$864) - MIN(ROW($B$3:$B$864))+1,""), ROW()-2)),"") ->  | EJ10: =IFERROR(INDEX($B$3:$B$864,SMALL(IF(EJ$2=$A$3:$A$864,ROW($B$3:$B$864) - MIN(ROW($B$3:$B$864))+1,""), ROW()-2)),"") ->  | EK10: =IFERROR(INDEX($B$3:$B$864,SMALL(IF(EK$2=$A$3:$A$864,ROW($B$3:$B$864) - MIN(ROW($B$3:$B$864))+1,""), ROW()-2)),"") ->  | EL10: =IFERROR(INDEX($B$3:$B$864,SMALL(IF(EL$2=$A$3:$A$864,ROW($B$3:$B$864) - MIN(ROW($B$3:$B$864))+1,""), ROW()-2)),"") ->  | EM10: =IFERROR(INDEX($B$3:$B$864,SMALL(IF(EM$2=$A$3:$A$864,ROW($B$3:$B$864) - MIN(ROW($B$3:$B$864))+1,""), ROW()-2)),"") ->  | EN10: =IFERROR(INDEX($B$3:$B$864,SMALL(IF(EN$2=$A$3:$A$864,ROW($B$3:$B$864) - MIN(ROW($B$3:$B$864))+1,""), ROW()-2)),"") ->  | EO10: =IFERROR(INDEX($B$3:$B$864,SMALL(IF(EO$2=$A$3:$A$864,ROW($B$3:$B$864) - MIN(ROW($B$3:$B$864))+1,""), ROW()-2)),"") ->  | EP10: =IFERROR(INDEX($B$3:$B$864,SMALL(IF(EP$2=$A$3:$A$864,ROW($B$3:$B$864) - MIN(ROW($B$3:$B$864))+1,""), ROW()-2)),"") ->  | EQ10: =IFERROR(INDEX($B$3:$B$864,SMALL(IF(EQ$2=$A$3:$A$864,ROW($B$3:$B$864) - MIN(ROW($B$3:$B$864))+1,""), ROW()-2)),"") ->  | ER10: =IFERROR(INDEX($B$3:$B$864,SMALL(IF(ER$2=$A$3:$A$864,ROW($B$3:$B$864) - MIN(ROW($B$3:$B$864))+1,""), ROW()-2)),"") ->  | ES10: =IFERROR(INDEX($B$3:$B$864,SMALL(IF(ES$2=$A$3:$A$864,ROW($B$3:$B$864) - MIN(ROW($B$3:$B$864))+1,""), ROW()-2)),"") ->  | ET10: =IFERROR(INDEX($B$3:$B$864,SMALL(IF(ET$2=$A$3:$A$864,ROW($B$3:$B$864) - MIN(ROW($B$3:$B$864))+1,""), ROW()-2)),"") ->  | EU10: =IFERROR(INDEX($B$3:$B$864,SMALL(IF(EU$2=$A$3:$A$864,ROW($B$3:$B$864) - MIN(ROW($B$3:$B$864))+1,""), ROW()-2)),"") ->  | EV10: =IFERROR(INDEX($B$3:$B$864,SMALL(IF(EV$2=$A$3:$A$864,ROW($B$3:$B$864) - MIN(ROW($B$3:$B$864))+1,""), ROW()-2)),"") ->  | EW10: =IFERROR(INDEX($B$3:$B$864,SMALL(IF(EW$2=$A$3:$A$864,ROW($B$3:$B$864) - MIN(ROW($B$3:$B$864))+1,""), ROW()-2)),"") ->  | EX10: =IFERROR(INDEX($B$3:$B$864,SMALL(IF(EX$2=$A$3:$A$864,ROW($B$3:$B$864) - MIN(ROW($B$3:$B$864))+1,""), ROW()-2)),"") ->  | EY10: =IFERROR(INDEX($B$3:$B$864,SMALL(IF(EY$2=$A$3:$A$864,ROW($B$3:$B$864) - MIN(ROW($B$3:$B$864))+1,""), ROW()-2)),"") ->  | EZ10: =IFERROR(INDEX($B$3:$B$864,SMALL(IF(EZ$2=$A$3:$A$864,ROW($B$3:$B$864) - MIN(ROW($B$3:$B$864))+1,""), ROW()-2)),"") ->  | FA10: =IFERROR(INDEX($B$3:$B$864,SMALL(IF(FA$2=$A$3:$A$864,ROW($B$3:$B$864) - MIN(ROW($B$3:$B$864))+1,""), ROW()-2)),"") ->  | FB10: =IFERROR(INDEX($B$3:$B$864,SMALL(IF(FB$2=$A$3:$A$864,ROW($B$3:$B$864) - MIN(ROW($B$3:$B$864))+1,""), ROW()-2)),"") ->  | FC10: =IFERROR(INDEX($B$3:$B$864,SMALL(IF(FC$2=$A$3:$A$864,ROW($B$3:$B$864) - MIN(ROW($B$3:$B$864))+1,""), ROW()-2)),"") ->  | FD10: =IFERROR(INDEX($B$3:$B$864,SMALL(IF(FD$2=$A$3:$A$864,ROW($B$3:$B$864) - MIN(ROW($B$3:$B$864))+1,""), ROW()-2)),"") ->  | FE10: =IFERROR(INDEX($B$3:$B$864,SMALL(IF(FE$2=$A$3:$A$864,ROW($B$3:$B$864) - MIN(ROW($B$3:$B$864))+1,""), ROW()-2)),"") ->  | FF10: =IFERROR(INDEX($B$3:$B$864,SMALL(IF(FF$2=$A$3:$A$864,ROW($B$3:$B$864) - MIN(ROW($B$3:$B$864))+1,""), ROW()-2)),"") ->  | FG10: =IFERROR(INDEX($B$3:$B$864,SMALL(IF(FG$2=$A$3:$A$864,ROW($B$3:$B$864) - MIN(ROW($B$3:$B$864))+1,""), ROW()-2)),"") ->  | FH10: =IFERROR(INDEX($B$3:$B$864,SMALL(IF(FH$2=$A$3:$A$864,ROW($B$3:$B$864) - MIN(ROW($B$3:$B$864))+1,""), ROW()-2)),"") ->  | FI10: =IFERROR(INDEX($B$3:$B$864,SMALL(IF(FI$2=$A$3:$A$864,ROW($B$3:$B$864) - MIN(ROW($B$3:$B$864))+1,""), ROW()-2)),"") ->  | FJ10: =IFERROR(INDEX($B$3:$B$864,SMALL(IF(FJ$2=$A$3:$A$864,ROW($B$3:$B$864) - MIN(ROW($B$3:$B$864))+1,""), ROW()-2)),"") ->  | FK10: =IFERROR(INDEX($B$3:$B$864,SMALL(IF(FK$2=$A$3:$A$864,ROW($B$3:$B$864) - MIN(ROW($B$3:$B$864))+1,""), ROW()-2)),"") ->  | FL10: =IFERROR(INDEX($B$3:$B$864,SMALL(IF(FL$2=$A$3:$A$864,ROW($B$3:$B$864) - MIN(ROW($B$3:$B$864))+1,""), ROW()-2)),"") ->  | FM10: =IFERROR(INDEX($B$3:$B$864,SMALL(IF(FM$2=$A$3:$A$864,ROW($B$3:$B$864) - MIN(ROW($B$3:$B$864))+1,""), ROW()-2)),"") ->  | FN10: =IFERROR(INDEX($B$3:$B$864,SMALL(IF(FN$2=$A$3:$A$864,ROW($B$3:$B$864) - MIN(ROW($B$3:$B$864))+1,""), ROW()-2)),"") ->  | FO10: =IFERROR(INDEX($B$3:$B$864,SMALL(IF(FO$2=$A$3:$A$864,ROW($B$3:$B$864) - MIN(ROW($B$3:$B$864))+1,""), ROW()-2)),"") ->  | FP10: =IFERROR(INDEX($B$3:$B$864,SMALL(IF(FP$2=$A$3:$A$864,ROW($B$3:$B$864) - MIN(ROW($B$3:$B$864))+1,""), ROW()-2)),"") ->  | FQ10: =IFERROR(INDEX($B$3:$B$864,SMALL(IF(FQ$2=$A$3:$A$864,ROW($B$3:$B$864) - MIN(ROW($B$3:$B$864))+1,""), ROW()-2)),"") ->  | FR10: =IFERROR(INDEX($B$3:$B$864,SMALL(IF(FR$2=$A$3:$A$864,ROW($B$3:$B$864) - MIN(ROW($B$3:$B$864))+1,""), ROW()-2)),"") ->  | FS10: =IFERROR(INDEX($B$3:$B$864,SMALL(IF(FS$2=$A$3:$A$864,ROW($B$3:$B$864) - MIN(ROW($B$3:$B$864))+1,""), ROW()-2)),"") ->  | FT10: =IFERROR(INDEX($B$3:$B$864,SMALL(IF(FT$2=$A$3:$A$864,ROW($B$3:$B$864) - MIN(ROW($B$3:$B$864))+1,""), ROW()-2)),"") ->  | FU10: =IFERROR(INDEX($B$3:$B$864,SMALL(IF(FU$2=$A$3:$A$864,ROW($B$3:$B$864) - MIN(ROW($B$3:$B$864))+1,""), ROW()-2)),"") ->  | FV10: =IFERROR(INDEX($B$3:$B$864,SMALL(IF(FV$2=$A$3:$A$864,ROW($B$3:$B$864) - MIN(ROW($B$3:$B$864))+1,""), ROW()-2)),"") ->  | FW10: =IFERROR(INDEX($B$3:$B$864,SMALL(IF(FW$2=$A$3:$A$864,ROW($B$3:$B$864) - MIN(ROW($B$3:$B$864))+1,""), ROW()-2)),"") ->  | FX10: =IFERROR(INDEX($B$3:$B$864,SMALL(IF(FX$2=$A$3:$A$864,ROW($B$3:$B$864) - MIN(ROW($B$3:$B$864))+1,""), ROW()-2)),"") ->  | FY10: =IFERROR(INDEX($B$3:$B$864,SMALL(IF(FY$2=$A$3:$A$864,ROW($B$3:$B$864) - MIN(ROW($B$3:$B$864))+1,""), ROW()-2)),"") ->  | FZ10: =IFERROR(INDEX($B$3:$B$864,SMALL(IF(FZ$2=$A$3:$A$864,ROW($B$3:$B$864) - MIN(ROW($B$3:$B$864))+1,""), ROW()-2)),"") ->  | GA10: =IFERROR(INDEX($B$3:$B$864,SMALL(IF(GA$2=$A$3:$A$864,ROW($B$3:$B$864) - MIN(ROW($B$3:$B$864))+1,""), ROW()-2)),"") ->  | GB10: =IFERROR(INDEX($B$3:$B$864,SMALL(IF(GB$2=$A$3:$A$864,ROW($B$3:$B$864) - MIN(ROW($B$3:$B$864))+1,""), ROW()-2)),"") ->  | GC10: =IFERROR(INDEX($B$3:$B$864,SMALL(IF(GC$2=$A$3:$A$864,ROW($B$3:$B$864) - MIN(ROW($B$3:$B$864))+1,""), ROW()-2)),"") ->  | GD10: =IFERROR(INDEX($B$3:$B$864,SMALL(IF(GD$2=$A$3:$A$864,ROW($B$3:$B$864) - MIN(ROW($B$3:$B$864))+1,""), ROW()-2)),"") ->  | GE10: =IFERROR(INDEX($B$3:$B$864,SMALL(IF(GE$2=$A$3:$A$864,ROW($B$3:$B$864) - MIN(ROW($B$3:$B$864))+1,""), ROW()-2)),"") ->  | GF10: =IFERROR(INDEX($B$3:$B$864,SMALL(IF(GF$2=$A$3:$A$864,ROW($B$3:$B$864) - MIN(ROW($B$3:$B$864))+1,""), ROW()-2)),"") ->  | GG10: =IFERROR(INDEX($B$3:$B$864,SMALL(IF(GG$2=$A$3:$A$864,ROW($B$3:$B$864) - MIN(ROW($B$3:$B$864))+1,""), ROW()-2)),"") ->  | GH10: =IFERROR(INDEX($B$3:$B$864,SMALL(IF(GH$2=$A$3:$A$864,ROW($B$3:$B$864) - MIN(ROW($B$3:$B$864))+1,""), ROW()-2)),"") ->  | GI10: =IFERROR(INDEX($B$3:$B$864,SMALL(IF(GI$2=$A$3:$A$864,ROW($B$3:$B$864) - MIN(ROW($B$3:$B$864))+1,""), ROW()-2)),"") ->  | GJ10: =IFERROR(INDEX($B$3:$B$864,SMALL(IF(GJ$2=$A$3:$A$864,ROW($B$3:$B$864) - MIN(ROW($B$3:$B$864))+1,""), ROW()-2)),"") ->  | GK10: =IFERROR(INDEX($B$3:$B$864,SMALL(IF(GK$2=$A$3:$A$864,ROW($B$3:$B$864) - MIN(ROW($B$3:$B$864))+1,""), ROW()-2)),"") ->  | GL10: =IFERROR(INDEX($B$3:$B$864,SMALL(IF(GL$2=$A$3:$A$864,ROW($B$3:$B$864) - MIN(ROW($B$3:$B$864))+1,""), ROW()-2)),"") ->  | GM10: =IFERROR(INDEX($B$3:$B$864,SMALL(IF(GM$2=$A$3:$A$864,ROW($B$3:$B$864) - MIN(ROW($B$3:$B$864))+1,""), ROW()-2)),"") ->  | GN10: =IFERROR(INDEX($B$3:$B$864,SMALL(IF(GN$2=$A$3:$A$864,ROW($B$3:$B$864) - MIN(ROW($B$3:$B$864))+1,""), ROW()-2)),"") ->  | GO10: =IFERROR(INDEX($B$3:$B$864,SMALL(IF(GO$2=$A$3:$A$864,ROW($B$3:$B$864) - MIN(ROW($B$3:$B$864))+1,""), ROW()-2)),"") ->  | GP10: =IFERROR(INDEX($B$3:$B$864,SMALL(IF(GP$2=$A$3:$A$864,ROW($B$3:$B$864) - MIN(ROW($B$3:$B$864))+1,""), ROW()-2)),"") ->  | GQ10: =IFERROR(INDEX($B$3:$B$864,SMALL(IF(GQ$2=$A$3:$A$864,ROW($B$3:$B$864) - MIN(ROW($B$3:$B$864))+1,""), ROW()-2)),"") ->  | GR10: =IFERROR(INDEX($B$3:$B$864,SMALL(IF(GR$2=$A$3:$A$864,ROW($B$3:$B$864) - MIN(ROW($B$3:$B$864))+1,""), ROW()-2)),"") ->  | GS10: =IFERROR(INDEX($B$3:$B$864,SMALL(IF(GS$2=$A$3:$A$864,ROW($B$3:$B$864) - MIN(ROW($B$3:$B$864))+1,""), ROW()-2)),"") ->  | GT10: =IFERROR(INDEX($B$3:$B$864,SMALL(IF(GT$2=$A$3:$A$864,ROW($B$3:$B$864) - MIN(ROW($B$3:$B$864))+1,""), ROW()-2)),"") ->  | GU10: =IFERROR(INDEX($B$3:$B$864,SMALL(IF(GU$2=$A$3:$A$864,ROW($B$3:$B$864) - MIN(ROW($B$3:$B$864))+1,""), ROW()-2)),"") ->  | GV10: =IFERROR(INDEX($B$3:$B$864,SMALL(IF(GV$2=$A$3:$A$864,ROW($B$3:$B$864) - MIN(ROW($B$3:$B$864))+1,""), ROW()-2)),"") ->  | GW10: =IFERROR(INDEX($B$3:$B$864,SMALL(IF(GW$2=$A$3:$A$864,ROW($B$3:$B$864) - MIN(ROW($B$3:$B$864))+1,""), ROW()-2)),"") ->  | GX10: =IFERROR(INDEX($B$3:$B$864,SMALL(IF(GX$2=$A$3:$A$864,ROW($B$3:$B$864) - MIN(ROW($B$3:$B$864))+1,""), ROW()-2)),"") ->  | GY10: =IFERROR(INDEX($B$3:$B$864,SMALL(IF(GY$2=$A$3:$A$864,ROW($B$3:$B$864) - MIN(ROW($B$3:$B$864))+1,""), ROW()-2)),"") ->  | GZ10: =IFERROR(INDEX($B$3:$B$864,SMALL(IF(GZ$2=$A$3:$A$864,ROW($B$3:$B$864) - MIN(ROW($B$3:$B$864))+1,""), ROW()-2)),"") ->  | HA10: =IFERROR(INDEX($B$3:$B$864,SMALL(IF(HA$2=$A$3:$A$864,ROW($B$3:$B$864) - MIN(ROW($B$3:$B$864))+1,""), ROW()-2)),"") ->  | HB10: =IFERROR(INDEX($B$3:$B$864,SMALL(IF(HB$2=$A$3:$A$864,ROW($B$3:$B$864) - MIN(ROW($B$3:$B$864))+1,""), ROW()-2)),"") ->  | HC10: =IFERROR(INDEX($B$3:$B$864,SMALL(IF(HC$2=$A$3:$A$864,ROW($B$3:$B$864) - MIN(ROW($B$3:$B$864))+1,""), ROW()-2)),"") ->  | HD10: =IFERROR(INDEX($B$3:$B$864,SMALL(IF(HD$2=$A$3:$A$864,ROW($B$3:$B$864) - MIN(ROW($B$3:$B$864))+1,""), ROW()-2)),"") ->  | HE10: =IFERROR(INDEX($B$3:$B$864,SMALL(IF(HE$2=$A$3:$A$864,ROW($B$3:$B$864) - MIN(ROW($B$3:$B$864))+1,""), ROW()-2)),"") ->  | HF10: =IFERROR(INDEX($B$3:$B$864,SMALL(IF(HF$2=$A$3:$A$864,ROW($B$3:$B$864) - MIN(ROW($B$3:$B$864))+1,""), ROW()-2)),"") ->  | HG10: =IFERROR(INDEX($B$3:$B$864,SMALL(IF(HG$2=$A$3:$A$864,ROW($B$3:$B$864) - MIN(ROW($B$3:$B$864))+1,""), ROW()-2)),"") ->  | HH10: =IFERROR(INDEX($B$3:$B$864,SMALL(IF(HH$2=$A$3:$A$864,ROW($B$3:$B$864) - MIN(ROW($B$3:$B$864))+1,""), ROW()-2)),"") ->  | HI10: =IFERROR(INDEX($B$3:$B$864,SMALL(IF(HI$2=$A$3:$A$864,ROW($B$3:$B$864) - MIN(ROW($B$3:$B$864))+1,""), ROW()-2)),"") ->  | HJ10: =IFERROR(INDEX($B$3:$B$864,SMALL(IF(HJ$2=$A$3:$A$864,ROW($B$3:$B$864) - MIN(ROW($B$3:$B$864))+1,""), ROW()-2)),"") ->  | HK10: =IFERROR(INDEX($B$3:$B$864,SMALL(IF(HK$2=$A$3:$A$864,ROW($B$3:$B$864) - MIN(ROW($B$3:$B$864))+1,""), ROW()-2)),"") ->  | HL10: =IFERROR(INDEX($B$3:$B$864,SMALL(IF(HL$2=$A$3:$A$864,ROW($B$3:$B$864) - MIN(ROW($B$3:$B$864))+1,""), ROW()-2)),"") ->  | HM10: =IFERROR(INDEX($B$3:$B$864,SMALL(IF(HM$2=$A$3:$A$864,ROW($B$3:$B$864) - MIN(ROW($B$3:$B$864))+1,""), ROW()-2)),"") ->  | HN10: =IFERROR(INDEX($B$3:$B$864,SMALL(IF(HN$2=$A$3:$A$864,ROW($B$3:$B$864) - MIN(ROW($B$3:$B$864))+1,""), ROW()-2)),"") ->  | HO10: =IFERROR(INDEX($B$3:$B$864,SMALL(IF(HO$2=$A$3:$A$864,ROW($B$3:$B$864) - MIN(ROW($B$3:$B$864))+1,""), ROW()-2)),"") ->  | HP10: =IFERROR(INDEX($B$3:$B$864,SMALL(IF(HP$2=$A$3:$A$864,ROW($B$3:$B$864) - MIN(ROW($B$3:$B$864))+1,""), ROW()-2)),"") ->  | HQ10: =IFERROR(INDEX($B$3:$B$864,SMALL(IF(HQ$2=$A$3:$A$864,ROW($B$3:$B$864) - MIN(ROW($B$3:$B$864))+1,""), ROW()-2)),"") ->  | HR10: =IFERROR(INDEX($B$3:$B$864,SMALL(IF(HR$2=$A$3:$A$864,ROW($B$3:$B$864) - MIN(ROW($B$3:$B$864))+1,""), ROW()-2)),"") ->  | HS10: =IFERROR(INDEX($B$3:$B$864,SMALL(IF(HS$2=$A$3:$A$864,ROW($B$3:$B$864) - MIN(ROW($B$3:$B$864))+1,""), ROW()-2)),"") ->  | HT10: =IFERROR(INDEX($B$3:$B$864,SMALL(IF(HT$2=$A$3:$A$864,ROW($B$3:$B$864) - MIN(ROW($B$3:$B$864))+1,""), ROW()-2)),"") ->  | HU10: =IFERROR(INDEX($B$3:$B$864,SMALL(IF(HU$2=$A$3:$A$864,ROW($B$3:$B$864) - MIN(ROW($B$3:$B$864))+1,""), ROW()-2)),"") ->  | HV10: =IFERROR(INDEX($B$3:$B$864,SMALL(IF(HV$2=$A$3:$A$864,ROW($B$3:$B$864) - MIN(ROW($B$3:$B$864))+1,""), ROW()-2)),"") ->  | HW10: =IFERROR(INDEX($B$3:$B$864,SMALL(IF(HW$2=$A$3:$A$864,ROW($B$3:$B$864) - MIN(ROW($B$3:$B$864))+1,""), ROW()-2)),"") ->  | HX10: =IFERROR(INDEX($B$3:$B$864,SMALL(IF(HX$2=$A$3:$A$864,ROW($B$3:$B$864) - MIN(ROW($B$3:$B$864))+1,""), ROW()-2)),"") ->  | HY10: =IFERROR(INDEX($B$3:$B$864,SMALL(IF(HY$2=$A$3:$A$864,ROW($B$3:$B$864) - MIN(ROW($B$3:$B$864))+1,""), ROW()-2)),"") ->  | HZ10: =IFERROR(INDEX($B$3:$B$864,SMALL(IF(HZ$2=$A$3:$A$864,ROW($B$3:$B$864) - MIN(ROW($B$3:$B$864))+1,""), ROW()-2)),"") ->  | IA10: =IFERROR(INDEX($B$3:$B$864,SMALL(IF(IA$2=$A$3:$A$864,ROW($B$3:$B$864) - MIN(ROW($B$3:$B$864))+1,""), ROW()-2)),"") ->  | IB10: =IFERROR(INDEX($B$3:$B$864,SMALL(IF(IB$2=$A$3:$A$864,ROW($B$3:$B$864) - MIN(ROW($B$3:$B$864))+1,""), ROW()-2)),"") ->  | IC10: =IFERROR(INDEX($B$3:$B$864,SMALL(IF(IC$2=$A$3:$A$864,ROW($B$3:$B$864) - MIN(ROW($B$3:$B$864))+1,""), ROW()-2)),"") ->  | ID10: =IFERROR(INDEX($B$3:$B$864,SMALL(IF(ID$2=$A$3:$A$864,ROW($B$3:$B$864) - MIN(ROW($B$3:$B$864))+1,""), ROW()-2)),"") ->  | IE10: =IFERROR(INDEX($B$3:$B$864,SMALL(IF(IE$2=$A$3:$A$864,ROW($B$3:$B$864) - MIN(ROW($B$3:$B$864))+1,""), ROW()-2)),"") ->  | IF10: =IFERROR(INDEX($B$3:$B$864,SMALL(IF(IF$2=$A$3:$A$864,ROW($B$3:$B$864) - MIN(ROW($B$3:$B$864))+1,""), ROW()-2)),"") ->  | IG10: =IFERROR(INDEX($B$3:$B$864,SMALL(IF(IG$2=$A$3:$A$864,ROW($B$3:$B$864) - MIN(ROW($B$3:$B$864))+1,""), ROW()-2)),"") ->  | IH10: =IFERROR(INDEX($B$3:$B$864,SMALL(IF(IH$2=$A$3:$A$864,ROW($B$3:$B$864) - MIN(ROW($B$3:$B$864))+1,""), ROW()-2)),"") ->  | II10: =IFERROR(INDEX($B$3:$B$864,SMALL(IF(II$2=$A$3:$A$864,ROW($B$3:$B$864) - MIN(ROW($B$3:$B$864))+1,""), ROW()-2)),"") ->  | IJ10: =IFERROR(INDEX($B$3:$B$864,SMALL(IF(IJ$2=$A$3:$A$864,ROW($B$3:$B$864) - MIN(ROW($B$3:$B$864))+1,""), ROW()-2)),"") ->  | IK10: =IFERROR(INDEX($B$3:$B$864,SMALL(IF(IK$2=$A$3:$A$864,ROW($B$3:$B$864) - MIN(ROW($B$3:$B$864))+1,""), ROW()-2)),"") ->  | IL10: =IFERROR(INDEX($B$3:$B$864,SMALL(IF(IL$2=$A$3:$A$864,ROW($B$3:$B$864) - MIN(ROW($B$3:$B$864))+1,""), ROW()-2)),"") ->  | IM10: =IFERROR(INDEX($B$3:$B$864,SMALL(IF(IM$2=$A$3:$A$864,ROW($B$3:$B$864) - MIN(ROW($B$3:$B$864))+1,""), ROW()-2)),"") ->  | IN10: =IFERROR(INDEX($B$3:$B$864,SMALL(IF(IN$2=$A$3:$A$864,ROW($B$3:$B$864) - MIN(ROW($B$3:$B$864))+1,""), ROW()-2)),"") ->  | IO10: =IFERROR(INDEX($B$3:$B$864,SMALL(IF(IO$2=$A$3:$A$864,ROW($B$3:$B$864) - MIN(ROW($B$3:$B$864))+1,""), ROW()-2)),"") ->  | IP10: =IFERROR(INDEX($B$3:$B$864,SMALL(IF(IP$2=$A$3:$A$864,ROW($B$3:$B$864) - MIN(ROW($B$3:$B$864))+1,""), ROW()-2)),"") ->  | IQ10: =IFERROR(INDEX($B$3:$B$864,SMALL(IF(IQ$2=$A$3:$A$864,ROW($B$3:$B$864) - MIN(ROW($B$3:$B$864))+1,""), ROW()-2)),"") ->  | IR10: =IFERROR(INDEX($B$3:$B$864,SMALL(IF(IR$2=$A$3:$A$864,ROW($B$3:$B$864) - MIN(ROW($B$3:$B$864))+1,""), ROW()-2)),"") ->  | IS10: =IFERROR(INDEX($B$3:$B$864,SMALL(IF(IS$2=$A$3:$A$864,ROW($B$3:$B$864) - MIN(ROW($B$3:$B$864))+1,""), ROW()-2)),"") ->  | IT10: =IFERROR(INDEX($B$3:$B$864,SMALL(IF(IT$2=$A$3:$A$864,ROW($B$3:$B$864) - MIN(ROW($B$3:$B$864))+1,""), ROW()-2)),"") ->  | IU10: =IFERROR(INDEX($B$3:$B$864,SMALL(IF(IU$2=$A$3:$A$864,ROW($B$3:$B$864) - MIN(ROW($B$3:$B$864))+1,""), ROW()-2)),"") ->  | IV10: =IFERROR(INDEX($B$3:$B$864,SMALL(IF(IV$2=$A$3:$A$864,ROW($B$3:$B$864) - MIN(ROW($B$3:$B$864))+1,""), ROW()-2)),"") ->  | IW10: =IFERROR(INDEX($B$3:$B$864,SMALL(IF(IW$2=$A$3:$A$864,ROW($B$3:$B$864) - MIN(ROW($B$3:$B$864))+1,""), ROW()-2)),"") ->  | IX10: =IFERROR(INDEX($B$3:$B$864,SMALL(IF(IX$2=$A$3:$A$864,ROW($B$3:$B$864) - MIN(ROW($B$3:$B$864))+1,""), ROW()-2)),"") ->  | IY10: =IFERROR(INDEX($B$3:$B$864,SMALL(IF(IY$2=$A$3:$A$864,ROW($B$3:$B$864) - MIN(ROW($B$3:$B$864))+1,""), ROW()-2)),"") -> 
